Workbook

Sheet Title
D9: Transportation Services
D11: Winter Quarter
D12: Parking Space Occupancy Report
D14: University of California San Diego
D15: March 17, 2025

Sheet Key Locations Lots & Structures
B2: Location | D2: Location | Q2: Location | V2: Location
B3: La Jolla Campus | D3: La Jolla Campus | Q3: La Jolla Campus | V3: Medical Center Hillcrest
B5: Area | D5: Area | Q5: Area | V5: Area
B6: Scripps Institution of Oceanography | D6: West Campus | Q6: East Campus | V6: Medical Center Hillcrest
B8: Neighborhood | D8: Neighborhood | Q8: Neighborhood | V8: Neighborhood
D9: Revelle | E9: Muir | F9: N. Torrey Pines | G9: Marshall | H9: Roosevelt | I9: North | J9: Torrey Pines | K9: Pepper | L9: University | M9: Warren | N9: Campus | O9: Health | Q9: East | R9: Health | S9: Preuss | T9: Science | V9: Medical Center Hillcrest
B10: SIO | D10: College | E10: College | F10: Living &Learning | G10: College | H10: College | I10: Campus | J10: Center | K10: Canyon | L10: Center | M10: College | N10: Services | O10: Sciences | Q10: Recreation | R10: Sciences | S10: School | T10: Research
N11: Complex | O11: West | R11: East | T11: Park
B12: Lots & Structures | D12: Lots & Structures | Q12: Lots & Structures | V12: Lots & Structures
B13: P001 | D13: P101 | E13: P113 | F13: Scholars | G13: P302 | H13: P306 | I13: P351 | J13: TPC South | K13: P401 | L13: P405 | M13: P418 | N13: P507 | O13: P601 | Q13: P701 | R13: P702 | S13: P706 | T13: P782 | V13: Arbor
B14: P002 | D14: P103 | E14: P201 | F14: (P211-3) | G14: P303 | H14: Hopkins | I14: P352 | J14: (P381-3) | K14: P402 | L14: P407 | M14: P502 | N14: P510 | O14: P602 | R14: P703 | T14: P785 | V14: (P901-14)
B15: P003 | D15: P106 | E15: P202 | F15: TDLLC | G15: P304 | H15: (P341-7) | I15: P357 | J15: P384 | K15: P406 | L15: P408 | M15: P503 | O15: P603 | R15: P704 | T15: Vela/ | V15: First Ave
B16: P004 | D16: P107 | E16: P203 | G16: P308 | H16: P353 | I16: P358 | J16: P385 | K16: P506 | L16: P410 | M16: P504 | O16: P604 | R16: P705 | T16: Nuevo W.
B17: P005 | D17: P108 | E17: P204 | G17: P309 | H17: P354 | I17: P359 | J17: P386 | L17: P411 | M17: P505 | O17: P605 | T17: (P791-3) | V17: P952
B18: P006 | D18: P110 | E18: P205 | G18: P310 | H18: Pangea | J18: TPC North | L18: P412 | M18: P508 | O18: P606 | R18: P707 | V18: P953
B19: P007 | D19: P112 | E19: P206 | H19: (P371-6) | J19: (P391-5) | L19: P413 | M19: P509 | O19: P607 | R19: Campus Pt E. | V19: P954
B20: P008 | D20: P116 | E20: P414 | L20: Gilman | O20: P608 | R20: (P721-2) | V20: P955
B21: P009 | E21: P415 | L21: (P451-6) | O21: P610 | R21: Campus Pt W. | V21: P956
B22: P010 | E22: P416 | L22: P501 | O22: South | R22: (P731-5) | V22: P957
B23: P011 | O23: (P651-5) | R23: Athena | V23: P958
B24: P012 | R24: (P741-7) | V24: P962
B25: P013 | R25: P751 | V25: P963
B26: P014 | R26: P752 | V26: P964
B27: P015 | R27: P753
B28: P016 | R28: P757
B29: P017 | R29: P758
B30: P021 | R30: P759
R31: P760
R32: P761
R33: P762
R34: P784
B37: Lot Completely Closed
B38: Total Inventory Numbers Affected by Construction
B39: Closed for COVID-19 testing
B41: Partially Affected by Construction
B42: Closed for Construction
B43: Permanently Closed

Sheet Key Descriptions
B1: Key 2: Parking Space Descriptions
B3: Parking Space Type | C3: Description | D3: Subtypes
B4: A | C4: "A" spaces are for individuals with "A" permits. | D4: If no subtype is listed, any "A" permit holder can use the space without limitations. Other permits can upgrade to use these spaces.
C5: These spaces are stenciled with red blocks, 'A'; Or designated with 24/7 signage. | D5: 24/7 A spaces have signage indicating A permits are required at all times. Preuss A and Physician A require additional permits to use this spaces.
B6: B | C6: "B" spaces are for individuals with "B" permits. | D6: Preuss B and SIO B require additional permits to use this spaces.
C7: These spaces are stenciled with green blocks, 'B'.
B8: S | C8: "S" spaces are for individuals with "S" permits. | D8: SIO S require additional permits to use this spaces.
C9: These spaces are stenciled with yellow blocks, 'S'.
B10: SR | C10: "SR" spaces are for individuals with "SR" permits.
C11: These spaces are stenciled with black and yellow 'SR' blocks.
B12: D | C12: "D" spaces are for individuals with "D" permits or permit bought via ParkMobile.
C13: These spaces are not stenciled and are located at Regents lots, P703, P704, P705.
B14: $3.25 (SS) | C14: "$3.25" (SS) spaces can be used by visitors or permit holders with permit bought via ParkMobile.
C15: Spaces have no stencil or color block.
B16: Visitor | C16: "Visitor" spaces are for those without permits. | D16: Subtypes include: Medical Patients, Birch Aquarium, Sanford Consortium, Police Visitor
C17: These spaces are stenciled with white blocks, 'V'. | D17: Payment at these subtype spaces is not subject to the same restrictions as Visitor spaces.
B18: Reserved | C18: "Reserved" spaces are stenciled with numbers, 'Reserved', and/or signage.
C19: Spaces are paid for by departments or individuals.
B20: Allocated | C20: "Allocated" spaces are special use spaces. | D20: A full list of Allocated spaces is listed in the Allocated Summary table of this report.
C21: These spaces are designated with signage or stenciled with description.
B22: Accessible | C22: "Accessible" spaces are for individuals with disabilities. | D22: Accessible spaces with Electric Vehicle charging access are listed seperately.
B23: Accessible (Van)
B24: UC Vehicle | C24: "UC Vehicle" spaces are for official university vehicles, stenciled 'UC Vehicle' or 'UC Cart'. | D24: Subtype includes: UC Cart spaces.
B25: Service Yard | C25: "Service Yard" spaces are stenciled 'Service Yard'.
B26: Loading | C26: "Loading" spaces are stenciled 'Loading'. | D26: If no subtype is listed, it is a Loading space marked only with the Loading Time Limit. Subtypes include: Bars (large areas not spaces), Docks, Commercial.
B27: Carpool | C27: "Carpool" spaces have "Reserved" signage with notes on the type of carpool permit needed as well as hours of enforcement. | D27: Subtypes include: 2-Person, A/B/S 3-Person, Electric Vehicle charging access.
B28: Electric Vehicle | C28: "Electric Vehicle" spaces have signage with notes indicating time limit and permit requirements.
B29: Motorcycle | C29: "Motorcycle" sections are designated with signage and/or stenciled 'Motorcycles'.

Sheet Allocations Changes (hidden)
D1: =SUBTOTAL(9, D3:D200) -> -1539 | F1: =SUBTOTAL(9, F3:F200) -> 1289
A2: Lot # | B2: Location in Lot | C2: Space Type From | D2: Number of Stalls - | E2: Space Type To | F2: Number of Stalls + | G2: Date Changes Made To Lot | H2: Survey Period Changes Took Place
A3: Hopkins | B3: Level 2 | C3: SR | D3: -28 | E3: S | F3: 28 | G3: 45545 | H3: Fall 2024/2025
A4: Scholars | B4: Level 2 | C4: SR | D4: -10 | E4: B | F4: 10 | G4: 45545 | H4: Fall 2024/2025
A5: South | B5: Level 1 | C5: SR | D5: -95 | E5: A | F5: 95 | G5: 45545 | H5: Fall 2024/2025
A6: Pangea | B6: Level 2 | C6: SR | D6: -199 | E6: S | F6: 199 | G6: 45545 | H6: Fall 2024/2025
A7: P206 | B7: North end. Middle row. | C7: B 2 Hour | D7: -12 | E7: Commercial Loading | F7: 4 | G7: 45566 | H7: Fall 2024/2025
A8: P381 | B8: West end | C8: B | D8: -1 | E8: Reserved | F8: 1 | G8: 45599 | H8: Fall 2024/2025
A9: P603 | B9: Various | C9: A | D9: -3 | E9: Reserved | F9: 3 | G9: 45599 | H9: Fall 2024/2025
A10: P606 | B10: Various | C10: Blank Reserved | D10: -1 | E10: Reserved | F10: 1 | G10: 45599 | H10: Fall 2024/2025
A11: P602 | B11: Various | C11: A | D11: -4 | E11: Reserved | F11: 4 | G11: 45599 | H11: Fall 2024/2025
A12: P206 | B12: Various | C12: B 2 Hour | D12: -32 | E12: A 2 Hour | F12: 32 | G12: 45649 | H12: Winter 2024/2025
A13: Athena | B13: Level 1, 2 | C13: A | D13: -21 | E13: Patient / Visitor | F13: 21 | G13: 45649 | H13: Winter 2024/2025
A14: Athena | B14: Level 3, 4 | C14: B | D14: -104 | E14: A | F14: 104 | G14: 45649 | H14: Winter 2024/2025
A15: Athena | B15: Level 3 | C15: Reserved | D15: -10 | E15: A | F15: 10 | G15: 45649 | H15: Winter 2024/2025
A16: Athena | B16: Level 3 | C16: B | D16: -20 | E16: Patient / Visitor | F16: 20 | G16: 45649 | H16: Winter 2024/2025
A17: TDLLN | B17: Level 4 | C17: B | D17: -12 | E17: SR | F17: 12 | G17: 45576 | H17: Fall 2024/2025
A18: Mesa Canyon | B18: Level 3 | C18: G Residential | D18: -50 | E18: B | F18: 50 | G18: 45689 | H18: Winter 2024/2025
A19: P760 | B19: All | C19: All | D19: -252 | E19: - | F19: 0 | G19: 45688 | H19: Winter 2024/2025
A20: TDLLN | B20: Level 2 | C20: Carpool | D20: =-(28+22) -> -50 | E20: A | F20: 50 | G20: 45696 | H20: Winter 2024/2025
A21: TDLLN | B21: Level 2 | C21: Visitor | D21: -56 | E21: Carpool | F21: 56 | G21: 45696 | H21: Winter 2024/2025
A22: TDLLN | B22: Level 3 | C22: A | D22: -90 | E22: B | F22: 90 | G22: 45696 | H22: Winter 2024/2025
A23: TDLLN | B23: Level 4 | C23: B | D23: -29 | E23: SR | F23: 29 | G23: 45696 | H23: Winter 2024/2025
A24: South | B24: Level 2 | C24: Carpool | D24: -63 | E24: A | F24: 63 | G24: 45696 | H24: Winter 2024/2025
A25: South | B25: Level 4 | C25: B | D25: -61 | E25: Carpool | F25: 61 | G25: 45696 | H25: Winter 2024/2025
A26: South | B26: Level 3 | C26: B | D26: -24 | E26: A | F26: 24 | G26: 45696 | H26: Winter 2024/2025
A27: Mesa Canyon | B27: Level 3 / 4 | C27: B | D27: -129 | E27: G Residential | F27: 129 | G27: 45710 | H27: Winter 2024/2025
A28: P702 | B28: Entire Lot | C28: S | D28: -183 | E28: B | F28: 183 | G28: 45710 | H28: Winter 2024/2025
A29: South | E29: EV | F29: 10 | H29: Spring 2024

Sheet Allocation Change Graph (hidden)
A1: Row Labels | B1: Sum of Inventory By Location | C1: Sum of Max Open Stalls | D1: Sum of Min Open Stalls | H1: Row Labels | I1: Sum of Min % Occupancy | J1: Sum of Max % Occupancy | K1: Sum of Optimal %
A2: Health Sciences East | H2: Health Sciences East
A3: A | H3: A
A4: Athena | B4: 307 | C4: 245 | D4: 70 | H4: Athena | I4: 0.2019543974 | J4: 0.7719869707 | K4: 0.9
A5: Accessible | H5: Accessible
A6: Athena | B6: 71 | C6: 60 | D6: 10 | H6: Athena | I6: 0.1549295775 | J6: 0.8591549296 | K6: 0.85 | BD6: Location | BE6: Space Type | BG6: + / -
A7: B | H7: B | BF7: =BD7&BE7 -> 
A8: Athena | B8: 540 | C8: 347.5 | D8: 1 | H8: Athena | I8: 0.3564814815 | J8: 0.9981481481 | K8: 0.9 | BF8: =BD8&BE8 -> 
A9: Electric Vehicle | H9: Electric Vehicle
A10: Athena | B10: 45 | C10: 39.25 | D10: 10 | H10: Athena | I10: 0.1277777778 | J10: 0.7777777778 | K10: 0.85
A11: Motorcycle Section | H11: Motorcycle Section
A12: Athena | B12: 30 | C12: 30 | D12: 20 | H12: Athena | I12: 0 | J12: 0.3333333333 | K12: 0.85
A13: Reserved | H13: Reserved
A14: Athena | B14: 6 | C14: 6 | D14: 0 | H14: Athena | I14: 0 | J14: 1 | K14: 0.85
A15: Visitor | H15: Visitor
A16: Athena | B16: 286 | C16: 272 | D16: 78 | H16: Athena | I16: 0.04895104895 | J16: 0.7272727273 | K16: 0.85
A17: Accessible (Van) | H17: Accessible (Van)
A18: Athena | B18: 8 | C18: 8 | D18: 3 | H18: Athena | I18: 0 | J18: 0.625 | K18: 0.85

Sheet Pivot Table Data (hidden)
A2: Choose Quarter / Year of Survey | D2: Winter 2025 | E2: Count of Locations & Sum of Stalls | G2: =SUBTOTAL(3, G5:G1001) -> 944 | H2: =SUBTOTAL(3, H5:H1001) -> 944 | I2: =SUBTOTAL(3, I5:I1001) -> 944 | M2: =SUBTOTAL(3, M5:M1001) -> 944 | N2: =SUBTOTAL(3, N5:N1001) -> 631 | O2: =SUBTOTAL(3, O5:O1001) -> 146 | S2: =SUBTOTAL(9, S5:S1001) -> 20885 | T2: 20885 | U2: 0 | X2: 0 | Y2: 276 | Z2: 20885 | AA2: 0 | AB2: 0 | AC2: 0 | AD2: 11529 | AE2: 8492 | AF2: 7006 | AG2: 6042 | AH2: 5576 | AI2: 5106 | AJ2: 5403 | AK2: 6613 | AL2: 9082 | AM2: 11975.75 | AN2: 0 | AO2: 0 | AP2: 0 | AQ2: 0 | AR2: 0 | AS2: 3509 | AT2: 14278.75
M3: Yes
A4: Date | B4: Zone # | C4: University Wide | D4: La Jolla / Hillcrest | E4: Area | F4: Neighborhood | G4: Structure | H4: Lot # | I4: Garage Level | J4: Space Type | K4: Space Subtype | L4: Time Limit [minutes] | M4: For Inventory Survey? | N4: For Occupancy Survey? | O4: For Qpass Survey? | P4: Lot / Structure | Q4: & | R4: Type Count | S4: Inventory By Locaton & Level | T4: Inventory By Location | U4: Theoretical Allocation Changes By Location (+ / -) | V4: Desired Percentage | W4: Desired Car Count | X4: Summer 2025 | Y4: Fall 2025 | Z4: Winter 2025 | AA4: Spring 2025 | AB4: 6am | AC4: 7am | AD4: 8am | AE4: 9am | AF4: 10am | AG4: 11am | AH4: 12pm | AI4: 1pm | AJ4: 2pm | AK4: 3pm | AL4: 4pm | AM4: 5pm | AN4: 6pm | AO4: 7pm | AP4: 8pm | AQ4: 9pm | AR4: 10pm | AS4: Min Open Stalls | AT4: Max Open Stalls
C5: University Wide | D5: La Jolla Campus | E5: East Campus | F5: Health Sciences East | G5: Athena | H5: P741 | I5: Ground Floor | J5: A | M5: Yes | N5: Yes | O5: Yes | P5: =IF(G5="Surface Lot", H5, G5) -> Athena | Q5: =P5&J5&K5&L5 -> AthenaA | R5: =COUNTIF(Q$5:Q5, Q5 ) -> 1 | S5: =_xlfn.IFS(D$2=X$4, X5, D$2=Y$4, Y5,D$2=Z$4, Z5,D$2=AA$4, AA5) -> 4 | T5: =IF(R5=1,SUMIF(Q:Q,Q5,S:S)+U5, "") -> 307 | U5: =IF(R5=1, _xlfn.IFNA(VLOOKUP(Q5, 'Allocation Change Graph'!BF$7:BG$20, 2, FALSE), 0), 0) -> 0 | V5: 0.9 | W5: =IF(R5=1, V5*T5, "") -> 276.3 | Z5: 4 | AD5: 135 | AE5: 100 | AF5: 116 | AG5: 90 | AH5: 70 | AI5: 75 | AJ5: 106 | AK5: 134 | AL5: 201 | AM5: 245 | AS5: =MIN($AB5:$AR5)+U5 -> 70 | AT5: =MAX($AB5:$AR5)+U5 -> 245
C6: University Wide | D6: La Jolla Campus | E6: East Campus | F6: Health Sciences East | G6: Athena | H6: P741 | I6: Ground Floor | J6: Accessible | M6: Yes | N6: Yes | P6: Athena | Q6: AthenaAccessible | R6: =COUNTIF(Q$5:Q6, Q6 ) -> 1 | S6: =_xlfn.IFS(D$2=X$4, X6, D$2=Y$4, Y6,D$2=Z$4, Z6,D$2=AA$4, AA6) -> 49 | T6: 71 | U6: =IF(R6=1, _xlfn.IFNA(VLOOKUP(Q6, 'Allocation Change Graph'!BF$7:BG$20, 2, FALSE), 0), 0) -> 0 | V6: 0.85 | W6: 60.35 | Z6: 49 | AD6: 30 | AE6: 20 | AF6: 15 | AG6: 10 | AH6: 15 | AI6: 18 | AJ6: 13 | AK6: 16 | AL6: 49 | AM6: 60 | AS6: 10 | AT6: 60
C7: University Wide | D7: La Jolla Campus | E7: East Campus | F7: Health Sciences East | G7: Athena | H7: P741 | I7: Ground Floor | J7: Accessible (Van) | M7: Yes | N7: Yes | P7: Athena | Q7: AthenaAccessible (Van) | R7: =COUNTIF(Q$5:Q7, Q7 ) -> 1 | S7: =_xlfn.IFS(D$2=X$4, X7, D$2=Y$4, Y7,D$2=Z$4, Z7,D$2=AA$4, AA7) -> 3 | T7: 8 | U7: =IF(R7=1, _xlfn.IFNA(VLOOKUP(Q7, 'Allocation Change Graph'!BF$7:BG$20, 2, FALSE), 0), 0) -> 0 | V7: 0.85 | W7: 6.8 | Z7: 3 | AD7: 3 | AE7: 4 | AF7: 5 | AG7: 3 | AH7: 6 | AI7: 5 | AJ7: 5 | AK7: 5 | AL7: 8 | AM7: 8 | AS7: 3 | AT7: 8
C8: University Wide | D8: La Jolla Campus | E8: East Campus | F8: Health Sciences East | G8: Athena | H8: P741 | I8: Ground Floor | J8: Accessible (Van) | M8: Yes | P8: Athena | Q8: AthenaAccessible (Van) | R8: =COUNTIF(Q$5:Q8, Q8 ) -> 2 | S8: =_xlfn.IFS(D$2=X$4, X8, D$2=Y$4, Y8,D$2=Z$4, Z8,D$2=AA$4, AA8) -> 0 | U8: =IF(R8=1, _xlfn.IFNA(VLOOKUP(Q8, 'Allocation Change Graph'!BF$7:BG$20, 2, FALSE), 0), 0) -> 0 | Z8: 0 | AM8: =AL8+(AL8*0.25) -> 0 | AS8: 0 | AT8: 0
C9: University Wide | D9: La Jolla Campus | E9: East Campus | F9: Health Sciences East | G9: Athena | H9: P741 | I9: Ground Floor | J9: Electric Vehicle | K9: ADA | M9: Yes | N9: Yes | P9: Athena | Q9: AthenaElectric VehicleADA | R9: =COUNTIF(Q$5:Q9, Q9 ) -> 1 | S9: =_xlfn.IFS(D$2=X$4, X9, D$2=Y$4, Y9,D$2=Z$4, Z9,D$2=AA$4, AA9) -> 2 | T9: 2 | U9: =IF(R9=1, _xlfn.IFNA(VLOOKUP(Q9, 'Allocation Change Graph'!BF$7:BG$20, 2, FALSE), 0), 0) -> 0 | V9: 0.85 | W9: 1.7 | Z9: 2 | AD9: 1 | AE9: 0 | AF9: 0 | AG9: 2 | AH9: 2 | AI9: 2 | AJ9: 0 | AK9: 1 | AL9: 2 | AM9: 2 | AS9: 0 | AT9: 2
C10: University Wide | D10: La Jolla Campus | E10: East Campus | F10: Health Sciences East | G10: Athena | H10: P741 | I10: Ground Floor | J10: Electric Vehicle | M10: Yes | N10: Yes | P10: Athena | Q10: AthenaElectric Vehicle | R10: =COUNTIF(Q$5:Q10, Q10 ) -> 1 | S10: =_xlfn.IFS(D$2=X$4, X10, D$2=Y$4, Y10,D$2=Z$4, Z10,D$2=AA$4, AA10) -> 16 | T10: 16 | U10: =IF(R10=1, _xlfn.IFNA(VLOOKUP(Q10, 'Allocation Change Graph'!BF$7:BG$20, 2, FALSE), 0), 0) -> 0 | V10: 0.85 | W10: 13.6 | Z10: 16 | AD10: 15 | AE10: 15 | AF10: 5 | AG10: 15 | AH10: 12 | AI10: 16 | AJ10: 14 | AK10: 14 | AL10: 14 | AM10: 16 | AS10: 5 | AT10: 16
C11: University Wide | D11: La Jolla Campus | E11: East Campus | F11: Health Sciences East | G11: Athena | H11: P741 | I11: Ground Floor | J11: Motorcycle Section | M11: Yes | N11: Yes | P11: Athena | Q11: AthenaMotorcycle Section | R11: =COUNTIF(Q$5:Q11, Q11 ) -> 1 | S11: =_xlfn.IFS(D$2=X$4, X11, D$2=Y$4, Y11,D$2=Z$4, Z11,D$2=AA$4, AA11) -> 0 | T11: 30 | U11: =IF(R11=1, _xlfn.IFNA(VLOOKUP(Q11, 'Allocation Change Graph'!BF$7:BG$20, 2, FALSE), 0), 0) -> 0 | V11: 0.85 | W11: 25.5 | Z11: 0 | AD11: 27 | AE11: 20 | AF11: 28 | AG11: 30 | AH11: 29 | AI11: 27 | AJ11: 30 | AK11: 30 | AL11: 30 | AM11: 30 | AS11: 20 | AT11: 30
C12: University Wide | D12: La Jolla Campus | E12: East Campus | F12: Health Sciences East | G12: Athena | H12: P741 | I12: Ground Floor | J12: Visitor | K12: Patient/Visitor Reserved | L12: 30 minutes | M12: Yes | N12: Yes | O12: Yes | P12: Athena | Q12: AthenaVisitorPatient/Visitor Reserved30 minutes | R12: =COUNTIF(Q$5:Q12, Q12 ) -> 1 | S12: =_xlfn.IFS(D$2=X$4, X12, D$2=Y$4, Y12,D$2=Z$4, Z12,D$2=AA$4, AA12) -> 9 | T12: 9 | U12: =IF(R12=1, _xlfn.IFNA(VLOOKUP(Q12, 'Allocation Change Graph'!BF$7:BG$20, 2, FALSE), 0), 0) -> 0 | V12: 0.85 | W12: 7.65 | Z12: 9 | AD12: 5 | AE12: 4 | AF12: 5 | AG12: 2 | AH12: 3 | AI12: 6 | AJ12: 5 | AK12: 7 | AL12: 9 | AM12: 2 | AS12: 2 | AT12: 9
C13: University Wide | D13: La Jolla Campus | E13: East Campus | F13: Health Sciences East | G13: Athena | H13: P741 | I13: Ground Floor | J13: Visitor | M13: Yes | N13: Yes | O13: Yes | P13: Athena | Q13: AthenaVisitor | R13: =COUNTIF(Q$5:Q13, Q13 ) -> 1 | S13: =_xlfn.IFS(D$2=X$4, X13, D$2=Y$4, Y13,D$2=Z$4, Z13,D$2=AA$4, AA13) -> 64 | T13: 237 | U13: =IF(R13=1, _xlfn.IFNA(VLOOKUP(Q13, 'Allocation Change Graph'!BF$7:BG$20, 2, FALSE), 0), 0) -> 0 | V13: 0.85 | W13: 201.45 | Z13: 64 | AD13: 150 | AE13: 100 | AF13: 70 | AG13: 72 | AH13: 110 | AI13: 120 | AJ13: 92 | AK13: 145 | AL13: 206 | AM13: 224 | AS13: 70 | AT13: 224
C14: University Wide | D14: La Jolla Campus | E14: East Campus | F14: Health Sciences East | G14: Athena | H14: P742 | I14: L2 | J14: A | M14: Yes | P14: Athena | Q14: AthenaA | R14: =COUNTIF(Q$5:Q14, Q14 ) -> 2 | S14: =_xlfn.IFS(D$2=X$4, X14, D$2=Y$4, Y14,D$2=Z$4, Z14,D$2=AA$4, AA14) -> 9 | U14: =IF(R14=1, _xlfn.IFNA(VLOOKUP(Q14, 'Allocation Change Graph'!BF$7:BG$20, 2, FALSE), 0), 0) -> 0 | Z14: 9 | AS14: 0 | AT14: 0
C15: University Wide | D15: La Jolla Campus | E15: East Campus | F15: Health Sciences East | G15: Athena | H15: P742 | I15: L2 | J15: Accessible | M15: Yes | P15: Athena | Q15: AthenaAccessible | R15: =COUNTIF(Q$5:Q15, Q15 ) -> 2 | S15: =_xlfn.IFS(D$2=X$4, X15, D$2=Y$4, Y15,D$2=Z$4, Z15,D$2=AA$4, AA15) -> 15 | U15: =IF(R15=1, _xlfn.IFNA(VLOOKUP(Q15, 'Allocation Change Graph'!BF$7:BG$20, 2, FALSE), 0), 0) -> 0 | Z15: 15 | AS15: 0 | AT15: 0
C16: University Wide | D16: La Jolla Campus | E16: East Campus | F16: Health Sciences East | G16: Athena | H16: P742 | I16: L2 | J16: Accessible (Van) | M16: Yes | P16: Athena | Q16: AthenaAccessible (Van) | R16: =COUNTIF(Q$5:Q16, Q16 ) -> 3 | S16: =_xlfn.IFS(D$2=X$4, X16, D$2=Y$4, Y16,D$2=Z$4, Z16,D$2=AA$4, AA16) -> 3 | U16: =IF(R16=1, _xlfn.IFNA(VLOOKUP(Q16, 'Allocation Change Graph'!BF$7:BG$20, 2, FALSE), 0), 0) -> 0 | Z16: 3 | AS16: 0 | AT16: 0
C17: University Wide | D17: La Jolla Campus | E17: East Campus | F17: Health Sciences East | G17: Athena | H17: P742 | I17: L2 | J17: Motorcycle Section | M17: Yes | P17: Athena | Q17: AthenaMotorcycle Section | R17: =COUNTIF(Q$5:Q17, Q17 ) -> 2 | S17: =_xlfn.IFS(D$2=X$4, X17, D$2=Y$4, Y17,D$2=Z$4, Z17,D$2=AA$4, AA17) -> 10 | U17: =IF(R17=1, _xlfn.IFNA(VLOOKUP(Q17, 'Allocation Change Graph'!BF$7:BG$20, 2, FALSE), 0), 0) -> 0 | Z17: 10 | AS17: 0 | AT17: 0
C18: University Wide | D18: La Jolla Campus | E18: East Campus | F18: Health Sciences East | G18: Athena | H18: P742 | I18: L2 | J18: Motorcycle Section | M18: Yes | P18: Athena | Q18: AthenaMotorcycle Section | R18: =COUNTIF(Q$5:Q18, Q18 ) -> 3 | S18: =_xlfn.IFS(D$2=X$4, X18, D$2=Y$4, Y18,D$2=Z$4, Z18,D$2=AA$4, AA18) -> 2 | U18: =IF(R18=1, _xlfn.IFNA(VLOOKUP(Q18, 'Allocation Change Graph'!BF$7:BG$20, 2, FALSE), 0), 0) -> 0 | Z18: 2 | AS18: 0 | AT18: 0
C19: University Wide | D19: La Jolla Campus | E19: East Campus | F19: Health Sciences East | G19: Athena | H19: P742 | I19: L2 | J19: Visitor | K19: Infusion | M19: Yes | N19: Yes | O19: Yes | P19: Athena | Q19: AthenaVisitorInfusion | R19: =COUNTIF(Q$5:Q19, Q19 ) -> 1 | S19: =_xlfn.IFS(D$2=X$4, X19, D$2=Y$4, Y19,D$2=Z$4, Z19,D$2=AA$4, AA19) -> 30 | T19: 30 | U19: =IF(R19=1, _xlfn.IFNA(VLOOKUP(Q19, 'Allocation Change Graph'!BF$7:BG$20, 2, FALSE), 0), 0) -> 0 | V19: 0.85 | W19: 25.5 | Z19: 30 | AD19: 25 | AE19: 15 | AF19: 17 | AG19: 5 | AH19: 5 | AI19: 4 | AJ19: 12 | AK19: 12 | AL19: 25 | AM19: 29 | AS19: 4 | AT19: 29
C20: University Wide | D20: La Jolla Campus | E20: East Campus | F20: Health Sciences East | G20: Athena | H20: P742 | I20: L2 | J20: Visitor | K20: Radiation | M20: Yes | N20: Yes | O20: Yes | P20: Athena | Q20: AthenaVisitorRadiation | R20: =COUNTIF(Q$5:Q20, Q20 ) -> 1 | S20: =_xlfn.IFS(D$2=X$4, X20, D$2=Y$4, Y20,D$2=Z$4, Z20,D$2=AA$4, AA20) -> 10 | T20: 10 | U20: =IF(R20=1, _xlfn.IFNA(VLOOKUP(Q20, 'Allocation Change Graph'!BF$7:BG$20, 2, FALSE), 0), 0) -> 0 | V20: 0.85 | W20: 8.5 | Z20: 10 | AD20: 6 | AE20: 3 | AF20: 3 | AG20: 3 | AH20: 2 | AI20: 4 | AJ20: 3 | AK20: 7 | AL20: 8 | AM20: =AL20+(AL20*0.25) -> 10 | AS20: 2 | AT20: 10
C21: University Wide | D21: La Jolla Campus | E21: East Campus | F21: Health Sciences East | G21: Athena | H21: P742 | I21: L2 | J21: Visitor | M21: Yes | P21: Athena | Q21: AthenaVisitor | R21: =COUNTIF(Q$5:Q21, Q21 ) -> 2 | S21: =_xlfn.IFS(D$2=X$4, X21, D$2=Y$4, Y21,D$2=Z$4, Z21,D$2=AA$4, AA21) -> 115 | U21: =IF(R21=1, _xlfn.IFNA(VLOOKUP(Q21, 'Allocation Change Graph'!BF$7:BG$20, 2, FALSE), 0), 0) -> 0 | Z21: 115 | AS21: 0 | AT21: 0
C22: University Wide | D22: La Jolla Campus | E22: East Campus | F22: Health Sciences East | G22: Athena | H22: P743 | I22: L3 | J22: A | M22: Yes | P22: Athena | Q22: AthenaA | R22: =COUNTIF(Q$5:Q22, Q22 ) -> 3 | S22: =_xlfn.IFS(D$2=X$4, X22, D$2=Y$4, Y22,D$2=Z$4, Z22,D$2=AA$4, AA22) -> 147 | U22: =IF(R22=1, _xlfn.IFNA(VLOOKUP(Q22, 'Allocation Change Graph'!BF$7:BG$20, 2, FALSE), 0), 0) -> 0 | Z22: 147 | AS22: 0 | AT22: 0
C23: University Wide | D23: La Jolla Campus | E23: East Campus | F23: Health Sciences East | G23: Athena | H23: P743 | I23: L3 | J23: A | M23: Yes | P23: Athena | Q23: AthenaA | R23: =COUNTIF(Q$5:Q23, Q23 ) -> 4 | S23: =_xlfn.IFS(D$2=X$4, X23, D$2=Y$4, Y23,D$2=Z$4, Z23,D$2=AA$4, AA23) -> 0 | U23: =IF(R23=1, _xlfn.IFNA(VLOOKUP(Q23, 'Allocation Change Graph'!BF$7:BG$20, 2, FALSE), 0), 0) -> 0 | Z23: 0 | AS23: 0 | AT23: 0
C24: University Wide | D24: La Jolla Campus | E24: East Campus | F24: Health Sciences East | G24: Athena | H24: P743 | I24: L3 | J24: A | M24: Yes | P24: Athena | Q24: AthenaA | R24: =COUNTIF(Q$5:Q24, Q24 ) -> 5 | S24: =_xlfn.IFS(D$2=X$4, X24, D$2=Y$4, Y24,D$2=Z$4, Z24,D$2=AA$4, AA24) -> 0 | U24: =IF(R24=1, _xlfn.IFNA(VLOOKUP(Q24, 'Allocation Change Graph'!BF$7:BG$20, 2, FALSE), 0), 0) -> 0 | Z24: 0 | AS24: 0 | AT24: 0
C25: University Wide | D25: La Jolla Campus | E25: East Campus | F25: Health Sciences East | G25: Athena | H25: P743 | I25: L3 | J25: Accessible | M25: Yes | P25: Athena | Q25: AthenaAccessible | R25: =COUNTIF(Q$5:Q25, Q25 ) -> 3 | S25: =_xlfn.IFS(D$2=X$4, X25, D$2=Y$4, Y25,D$2=Z$4, Z25,D$2=AA$4, AA25) -> 7 | U25: =IF(R25=1, _xlfn.IFNA(VLOOKUP(Q25, 'Allocation Change Graph'!BF$7:BG$20, 2, FALSE), 0), 0) -> 0 | Z25: 7 | AS25: 0 | AT25: 0
C26: University Wide | D26: La Jolla Campus | E26: East Campus | F26: Health Sciences East | G26: Athena | H26: P743 | I26: L3 | J26: Accessible (Van) | M26: Yes | P26: Athena | Q26: AthenaAccessible (Van) | R26: =COUNTIF(Q$5:Q26, Q26 ) -> 4 | S26: =_xlfn.IFS(D$2=X$4, X26, D$2=Y$4, Y26,D$2=Z$4, Z26,D$2=AA$4, AA26) -> 2 | U26: =IF(R26=1, _xlfn.IFNA(VLOOKUP(Q26, 'Allocation Change Graph'!BF$7:BG$20, 2, FALSE), 0), 0) -> 0 | Z26: 2 | AS26: 0 | AT26: 0
C27: University Wide | D27: La Jolla Campus | E27: East Campus | F27: Health Sciences East | G27: Athena | H27: P743 | I27: L3 | J27: B | M27: Yes | N27: Yes | O27: Yes | P27: Athena | Q27: AthenaB | R27: =COUNTIF(Q$5:Q27, Q27 ) -> 1 | S27: =_xlfn.IFS(D$2=X$4, X27, D$2=Y$4, Y27,D$2=Z$4, Z27,D$2=AA$4, AA27) -> 0 | T27: 540 | U27: =IF(R27=1, _xlfn.IFNA(VLOOKUP(Q27, 'Allocation Change Graph'!BF$7:BG$20, 2, FALSE), 0), 0) -> 0 | V27: 0.9 | W27: 486 | Z27: 0 | AD27: 217 | AE27: 150 | AF27: 30 | AG27: 1 | AH27: 6 | AI27: 10 | AJ27: 18 | AK27: 122 | AL27: 278 | AM27: =AL27+(AL27*0.25) -> 347.5 | AS27: 1 | AT27: 347.5
C28: University Wide | D28: La Jolla Campus | E28: East Campus | F28: Health Sciences East | G28: Athena | H28: P743 | I28: L3 | J28: Visitor | M28: Yes | P28: Athena | Q28: AthenaVisitor | R28: =COUNTIF(Q$5:Q28, Q28 ) -> 3 | S28: =_xlfn.IFS(D$2=X$4, X28, D$2=Y$4, Y28,D$2=Z$4, Z28,D$2=AA$4, AA28) -> 58 | U28: =IF(R28=1, _xlfn.IFNA(VLOOKUP(Q28, 'Allocation Change Graph'!BF$7:BG$20, 2, FALSE), 0), 0) -> 0 | Z28: 58 | AS28: 0 | AT28: 0
C29: University Wide | D29: La Jolla Campus | E29: East Campus | F29: Health Sciences East | G29: Athena | H29: P744 | I29: L4 | J29: A | M29: Yes | P29: Athena | Q29: AthenaA | R29: =COUNTIF(Q$5:Q29, Q29 ) -> 6 | S29: =_xlfn.IFS(D$2=X$4, X29, D$2=Y$4, Y29,D$2=Z$4, Z29,D$2=AA$4, AA29) -> 147 | U29: =IF(R29=1, _xlfn.IFNA(VLOOKUP(Q29, 'Allocation Change Graph'!BF$7:BG$20, 2, FALSE), 0), 0) -> 0 | Z29: 147 | AS29: 0 | AT29: 0
C30: University Wide | D30: La Jolla Campus | E30: East Campus | F30: Health Sciences East | G30: Athena | H30: P744 | I30: L4 | J30: B | M30: Yes | P30: Athena | Q30: AthenaB | R30: =COUNTIF(Q$5:Q30, Q30 ) -> 2 | S30: =_xlfn.IFS(D$2=X$4, X30, D$2=Y$4, Y30,D$2=Z$4, Z30,D$2=AA$4, AA30) -> 76 | U30: =IF(R30=1, _xlfn.IFNA(VLOOKUP(Q30, 'Allocation Change Graph'!BF$7:BG$20, 2, FALSE), 0), 0) -> 0 | Z30: 76 | AS30: 0 | AT30: 0
C31: University Wide | D31: La Jolla Campus | E31: East Campus | F31: Health Sciences East | G31: Athena | H31: P744 | I31: L4 | J31: Motorcycle Section | M31: Yes | P31: Athena | Q31: AthenaMotorcycle Section | R31: =COUNTIF(Q$5:Q31, Q31 ) -> 4 | S31: =_xlfn.IFS(D$2=X$4, X31, D$2=Y$4, Y31,D$2=Z$4, Z31,D$2=AA$4, AA31) -> 5 | U31: =IF(R31=1, _xlfn.IFNA(VLOOKUP(Q31, 'Allocation Change Graph'!BF$7:BG$20, 2, FALSE), 0), 0) -> 0 | Z31: 5 | AS31: 0 | AT31: 0
C32: University Wide | D32: La Jolla Campus | E32: East Campus | F32: Health Sciences East | G32: Athena | H32: P744 | I32: L4 | J32: Reserved | M32: Yes | N32: Yes | P32: Athena | Q32: AthenaReserved | R32: =COUNTIF(Q$5:Q32, Q32 ) -> 1 | S32: =_xlfn.IFS(D$2=X$4, X32, D$2=Y$4, Y32,D$2=Z$4, Z32,D$2=AA$4, AA32) -> 6 | T32: 6 | U32: =IF(R32=1, _xlfn.IFNA(VLOOKUP(Q32, 'Allocation Change Graph'!BF$7:BG$20, 2, FALSE), 0), 0) -> 0 | V32: 0.85 | W32: 5.1 | Z32: 6 | AD32: 3 | AE32: 5 | AF32: 4 | AG32: 0 | AH32: 2 | AI32: 4 | AJ32: 4 | AK32: 5 | AL32: 6 | AM32: 6 | AS32: 0 | AT32: 6
C33: University Wide | D33: La Jolla Campus | E33: East Campus | F33: Health Sciences East | G33: Athena | H33: P745 | I33: L5 | J33: B | M33: Yes | P33: Athena | Q33: AthenaB | R33: =COUNTIF(Q$5:Q33, Q33 ) -> 3 | S33: =_xlfn.IFS(D$2=X$4, X33, D$2=Y$4, Y33,D$2=Z$4, Z33,D$2=AA$4, AA33) -> 225 | U33: =IF(R33=1, _xlfn.IFNA(VLOOKUP(Q33, 'Allocation Change Graph'!BF$7:BG$20, 2, FALSE), 0), 0) -> 0 | Z33: 225 | AS33: 0 | AT33: 0
C34: University Wide | D34: La Jolla Campus | E34: East Campus | F34: Health Sciences East | G34: Athena | H34: P745 | I34: L5 | J34: Electric Vehicle | L34: 12-Hour | M34: Yes | N34: Yes | P34: Athena | Q34: AthenaElectric Vehicle12-Hour | R34: =COUNTIF(Q$5:Q34, Q34 ) -> 1 | S34: =_xlfn.IFS(D$2=X$4, X34, D$2=Y$4, Y34,D$2=Z$4, Z34,D$2=AA$4, AA34) -> 0 | T34: 27 | U34: =IF(R34=1, _xlfn.IFNA(VLOOKUP(Q34, 'Allocation Change Graph'!BF$7:BG$20, 2, FALSE), 0), 0) -> 0 | V34: 0.85 | W34: 22.95 | Z34: 0 | AD34: 20 | AE34: 15 | AF34: 5 | AG34: 15 | AH34: 12 | AI34: 16 | AJ34: 14 | AK34: 15 | AL34: 17 | AM34: =AL34+(AL34*0.25) -> 21.25 | AS34: 5 | AT34: 21.25
C35: University Wide | D35: La Jolla Campus | E35: East Campus | F35: Health Sciences East | G35: Athena | H35: P745 | I35: L5 | J35: Motorcycle Section | M35: Yes | P35: Athena | Q35: AthenaMotorcycle Section | R35: =COUNTIF(Q$5:Q35, Q35 ) -> 5 | S35: =_xlfn.IFS(D$2=X$4, X35, D$2=Y$4, Y35,D$2=Z$4, Z35,D$2=AA$4, AA35) -> 5 | U35: =IF(R35=1, _xlfn.IFNA(VLOOKUP(Q35, 'Allocation Change Graph'!BF$7:BG$20, 2, FALSE), 0), 0) -> 0 | Z35: 5 | AS35: 0 | AT35: 0
C36: University Wide | D36: La Jolla Campus | E36: East Campus | F36: Health Sciences East | G36: Athena | H36: P746 | I36: L6 | J36: B | M36: Yes | P36: Athena | Q36: AthenaB | R36: =COUNTIF(Q$5:Q36, Q36 ) -> 4 | S36: =_xlfn.IFS(D$2=X$4, X36, D$2=Y$4, Y36,D$2=Z$4, Z36,D$2=AA$4, AA36) -> 133 | U36: =IF(R36=1, _xlfn.IFNA(VLOOKUP(Q36, 'Allocation Change Graph'!BF$7:BG$20, 2, FALSE), 0), 0) -> 0 | Z36: 133 | AS36: 0 | AT36: 0
C37: University Wide | D37: La Jolla Campus | E37: East Campus | F37: Health Sciences East | G37: Athena | H37: P746 | I37: L6 | J37: Electric Vehicle | L37: 12-Hour | M37: Yes | P37: Athena | Q37: AthenaElectric Vehicle12-Hour | R37: =COUNTIF(Q$5:Q37, Q37 ) -> 2 | S37: =_xlfn.IFS(D$2=X$4, X37, D$2=Y$4, Y37,D$2=Z$4, Z37,D$2=AA$4, AA37) -> 27 | U37: =IF(R37=1, _xlfn.IFNA(VLOOKUP(Q37, 'Allocation Change Graph'!BF$7:BG$20, 2, FALSE), 0), 0) -> 0 | Z37: 27 | AS37: 0 | AT37: 0
C38: University Wide | D38: La Jolla Campus | E38: East Campus | F38: Health Sciences East | G38: Athena | H38: P746 | I38: L6 | J38: Motorcycle Section | M38: Yes | P38: Athena | Q38: AthenaMotorcycle Section | R38: =COUNTIF(Q$5:Q38, Q38 ) -> 6 | S38: =_xlfn.IFS(D$2=X$4, X38, D$2=Y$4, Y38,D$2=Z$4, Z38,D$2=AA$4, AA38) -> 8 | U38: =IF(R38=1, _xlfn.IFNA(VLOOKUP(Q38, 'Allocation Change Graph'!BF$7:BG$20, 2, FALSE), 0), 0) -> 0 | Z38: 8 | AS38: 0 | AT38: 0
C39: University Wide | D39: La Jolla Campus | E39: East Campus | F39: Health Sciences East | G39: Athena | H39: P747 | I39: Roof | J39: B | M39: Yes | P39: Athena | Q39: AthenaB | R39: =COUNTIF(Q$5:Q39, Q39 ) -> 5 | S39: =_xlfn.IFS(D$2=X$4, X39, D$2=Y$4, Y39,D$2=Z$4, Z39,D$2=AA$4, AA39) -> 106 | U39: =IF(R39=1, _xlfn.IFNA(VLOOKUP(Q39, 'Allocation Change Graph'!BF$7:BG$20, 2, FALSE), 0), 0) -> 0 | Z39: 106 | AS39: 0 | AT39: 0
C40: University Wide | D40: La Jolla Campus | E40: East Campus | F40: Health Sciences East | G40: Campus Point East | H40: P721 | I40: L1 | J40: A | K40: 24/7 Enforced | M40: Yes | N40: Yes | O40: Yes | P40: Campus Point East | Q40: Campus Point EastA24/7 Enforced | R40: =COUNTIF(Q$5:Q40, Q40 ) -> 1 | S40: =_xlfn.IFS(D$2=X$4, X40, D$2=Y$4, Y40,D$2=Z$4, Z40,D$2=AA$4, AA40) -> 177 | T40: 371 | U40: =IF(R40=1, _xlfn.IFNA(VLOOKUP(Q40, 'Allocation Change Graph'!BF$7:BG$20, 2, FALSE), 0), 0) -> 0 | V40: 0.9 | W40: 333.9 | Z40: 177 | AD40: 51 | AE40: 2 | AF40: 0 | AG40: 1 | AH40: 3 | AI40: 2 | AJ40: 3 | AK40: 22 | AL40: 117 | AM40: 198 | AS40: 0 | AT40: 198
C41: University Wide | D41: La Jolla Campus | E41: East Campus | F41: Health Sciences East | G41: Campus Point East | H41: P722 | I41: L2 | J41: A | K41: 24/7 Enforced | M41: Yes | P41: Campus Point East | Q41: Campus Point EastA24/7 Enforced | R41: =COUNTIF(Q$5:Q41, Q41 ) -> 2 | S41: =_xlfn.IFS(D$2=X$4, X41, D$2=Y$4, Y41,D$2=Z$4, Z41,D$2=AA$4, AA41) -> 194 | U41: =IF(R41=1, _xlfn.IFNA(VLOOKUP(Q41, 'Allocation Change Graph'!BF$7:BG$20, 2, FALSE), 0), 0) -> 0 | Z41: 194 | AS41: 0 | AT41: 0
C42: University Wide | D42: La Jolla Campus | E42: East Campus | F42: Health Sciences East | G42: Campus Point East | H42: P722 | I42: L2 | J42: Accessible | M42: Yes | N42: Yes | P42: Campus Point East | Q42: Campus Point EastAccessible | R42: =COUNTIF(Q$5:Q42, Q42 ) -> 1 | S42: =_xlfn.IFS(D$2=X$4, X42, D$2=Y$4, Y42,D$2=Z$4, Z42,D$2=AA$4, AA42) -> 11 | T42: 11 | U42: =IF(R42=1, _xlfn.IFNA(VLOOKUP(Q42, 'Allocation Change Graph'!BF$7:BG$20, 2, FALSE), 0), 0) -> 0 | V42: 0.85 | W42: 9.35 | Z42: 11 | AD42: 3 | AE42: 3 | AF42: 0 | AG42: 1 | AH42: 1 | AI42: 1 | AJ42: 2 | AK42: 4 | AL42: 0 | AM42: 5 | AS42: 0 | AT42: 5
C43: University Wide | D43: La Jolla Campus | E43: East Campus | F43: Health Sciences East | G43: Campus Point East | H43: P722 | I43: L2 | J43: Accessible (Van) | M43: Yes | N43: Yes | P43: Campus Point East | Q43: Campus Point EastAccessible (Van) | R43: =COUNTIF(Q$5:Q43, Q43 ) -> 1 | S43: =_xlfn.IFS(D$2=X$4, X43, D$2=Y$4, Y43,D$2=Z$4, Z43,D$2=AA$4, AA43) -> 1 | T43: 1 | U43: =IF(R43=1, _xlfn.IFNA(VLOOKUP(Q43, 'Allocation Change Graph'!BF$7:BG$20, 2, FALSE), 0), 0) -> 0 | V43: 0.85 | W43: 0.85 | Z43: 1 | AD43: 0 | AE43: 0 | AF43: 0 | AG43: 0 | AH43: 0 | AI43: 1 | AJ43: 0 | AK43: 0 | AL43: 0 | AM43: 1 | AS43: 0 | AT43: 1
C44: University Wide | D44: La Jolla Campus | E44: East Campus | F44: Health Sciences East | G44: Campus Point East | H44: P722 | I44: L2 | J44: Electric Vehicle | M44: Yes | N44: Yes | P44: Campus Point East | Q44: Campus Point EastElectric Vehicle | R44: =COUNTIF(Q$5:Q44, Q44 ) -> 1 | S44: =_xlfn.IFS(D$2=X$4, X44, D$2=Y$4, Y44,D$2=Z$4, Z44,D$2=AA$4, AA44) -> 3 | T44: 3 | U44: =IF(R44=1, _xlfn.IFNA(VLOOKUP(Q44, 'Allocation Change Graph'!BF$7:BG$20, 2, FALSE), 0), 0) -> 0 | V44: 0.85 | W44: 2.55 | Z44: 3 | AD44: 0 | AE44: 0 | AF44: 0 | AG44: 0 | AH44: 1 | AI44: 1 | AJ44: 1 | AK44: 0 | AL44: 0 | AM44: 2 | AS44: 0 | AT44: 2
C45: University Wide | D45: La Jolla Campus | E45: East Campus | F45: Health Sciences East | G45: Campus Point East | H45: P722 | I45: L2 | J45: Motorcycle Section | M45: Yes | N45: Yes | P45: Campus Point East | Q45: Campus Point EastMotorcycle Section | R45: =COUNTIF(Q$5:Q45, Q45 ) -> 1 | S45: =_xlfn.IFS(D$2=X$4, X45, D$2=Y$4, Y45,D$2=Z$4, Z45,D$2=AA$4, AA45) -> 8 | T45: 8 | U45: =IF(R45=1, _xlfn.IFNA(VLOOKUP(Q45, 'Allocation Change Graph'!BF$7:BG$20, 2, FALSE), 0), 0) -> 0 | V45: 0.85 | W45: 6.8 | Z45: 8 | AD45: 8 | AE45: 8 | AF45: 8 | AG45: 8 | AH45: 8 | AI45: 8 | AJ45: 8 | AK45: 1 | AL45: 2 | AM45: 8 | AS45: 1 | AT45: 8
C46: University Wide | D46: La Jolla Campus | E46: East Campus | F46: Health Sciences East | G46: Campus Point East | H46: P722 | I46: L2 | J46: Reserved | M46: Yes | N46: Yes | P46: Campus Point East | Q46: Campus Point EastReserved | R46: =COUNTIF(Q$5:Q46, Q46 ) -> 1 | S46: =_xlfn.IFS(D$2=X$4, X46, D$2=Y$4, Y46,D$2=Z$4, Z46,D$2=AA$4, AA46) -> 40 | T46: 40 | U46: =IF(R46=1, _xlfn.IFNA(VLOOKUP(Q46, 'Allocation Change Graph'!BF$7:BG$20, 2, FALSE), 0), 0) -> 0 | V46: 0.85 | W46: 34 | Z46: 40 | AD46: 24 | AE46: 18 | AF46: 18 | AG46: 16 | AH46: 12 | AI46: 9 | AJ46: 13 | AK46: 17 | AL46: 23 | AM46: 29 | AS46: 9 | AT46: 29
C47: University Wide | D47: La Jolla Campus | E47: East Campus | F47: Health Sciences East | G47: Campus Point East | H47: P723 | I47: L3 | J47: Reserved | K47: Valet | M47: Yes | N47: Yes | P47: Campus Point East | Q47: Campus Point EastReservedValet | R47: =COUNTIF(Q$5:Q47, Q47 ) -> 1 | S47: =_xlfn.IFS(D$2=X$4, X47, D$2=Y$4, Y47,D$2=Z$4, Z47,D$2=AA$4, AA47) -> 127 | T47: 127 | U47: =IF(R47=1, _xlfn.IFNA(VLOOKUP(Q47, 'Allocation Change Graph'!BF$7:BG$20, 2, FALSE), 0), 0) -> 0 | V47: 0.85 | W47: 107.95 | Z47: 127 | AD47: 114 | AE47: 76 | AF47: 42 | AG47: 26 | AH47: 32 | AI47: 24 | AJ47: 29 | AK47: 25 | AL47: 27 | AM47: 103 | AS47: 24 | AT47: 114
C48: University Wide | D48: La Jolla Campus | E48: East Campus | F48: Health Sciences East | G48: Campus Point East | H48: P723 | I48: L3 | J48: Visitor | M48: Yes | N48: Yes | O48: Yes | P48: Campus Point East | Q48: Campus Point EastVisitor | R48: =COUNTIF(Q$5:Q48, Q48 ) -> 1 | S48: =_xlfn.IFS(D$2=X$4, X48, D$2=Y$4, Y48,D$2=Z$4, Z48,D$2=AA$4, AA48) -> 138 | T48: 138 | U48: =IF(R48=1, _xlfn.IFNA(VLOOKUP(Q48, 'Allocation Change Graph'!BF$7:BG$20, 2, FALSE), 0), 0) -> 0 | V48: 0.85 | W48: 117.3 | Z48: 138 | AD48: 67 | AE48: 54 | AF48: 29 | AG48: 17 | AH48: 27 | AI48: 18 | AJ48: 25 | AK48: 28 | AL48: 31 | AM48: 72 | AS48: 17 | AT48: 72
C49: University Wide | D49: La Jolla Campus | E49: East Campus | F49: Health Sciences East | G49: Campus Point West | H49: P731 | I49: B3 | J49: Motorcycle Section | M49: Yes | N49: Yes | P49: Campus Point West | Q49: Campus Point WestMotorcycle Section | R49: =COUNTIF(Q$5:Q49, Q49 ) -> 1 | S49: =_xlfn.IFS(D$2=X$4, X49, D$2=Y$4, Y49,D$2=Z$4, Z49,D$2=AA$4, AA49) -> 0 | T49: 0 | U49: =IF(R49=1, _xlfn.IFNA(VLOOKUP(Q49, 'Allocation Change Graph'!BF$7:BG$20, 2, FALSE), 0), 0) -> 0 | V49: 0.85 | W49: 0 | AD49: 0 | AE49: 0 | AF49: 0 | AG49: 0 | AH49: 0 | AI49: 0 | AJ49: 0 | AK49: 0 | AL49: 0 | AM49: 0 | AS49: 0 | AT49: 0
C50: University Wide | D50: La Jolla Campus | E50: East Campus | F50: Health Sciences East | G50: Campus Point West | H50: P731 | I50: B3 | J50: Visitor | M50: Yes | N50: Yes | O50: Yes | P50: Campus Point West | Q50: Campus Point WestVisitor | R50: =COUNTIF(Q$5:Q50, Q50 ) -> 1 | S50: =_xlfn.IFS(D$2=X$4, X50, D$2=Y$4, Y50,D$2=Z$4, Z50,D$2=AA$4, AA50) -> 130 | T50: 611 | U50: =IF(R50=1, _xlfn.IFNA(VLOOKUP(Q50, 'Allocation Change Graph'!BF$7:BG$20, 2, FALSE), 0), 0) -> 0 | V50: 0.85 | W50: 519.35 | Z50: 130 | AD50: 252 | AE50: 212 | AF50: 184 | AG50: 107 | AH50: 111 | AI50: 124 | AJ50: 132 | AK50: 156 | AL50: 148 | AM50: 483 | AS50: 107 | AT50: 483
C51: University Wide | D51: La Jolla Campus | E51: East Campus | F51: Health Sciences East | G51: Campus Point West | H51: P732 | I51: B2 | J51: Motorcycle Section | M51: Yes | P51: Campus Point West | Q51: Campus Point WestMotorcycle Section | R51: =COUNTIF(Q$5:Q51, Q51 ) -> 2 | S51: =_xlfn.IFS(D$2=X$4, X51, D$2=Y$4, Y51,D$2=Z$4, Z51,D$2=AA$4, AA51) -> 0 | U51: =IF(R51=1, _xlfn.IFNA(VLOOKUP(Q51, 'Allocation Change Graph'!BF$7:BG$20, 2, FALSE), 0), 0) -> 0 | AS51: 0 | AT51: 0
C52: University Wide | D52: La Jolla Campus | E52: East Campus | F52: Health Sciences East | G52: Campus Point West | H52: P732 | I52: B2 | J52: Visitor | M52: Yes | P52: Campus Point West | Q52: Campus Point WestVisitor | R52: =COUNTIF(Q$5:Q52, Q52 ) -> 2 | S52: =_xlfn.IFS(D$2=X$4, X52, D$2=Y$4, Y52,D$2=Z$4, Z52,D$2=AA$4, AA52) -> 181 | U52: =IF(R52=1, _xlfn.IFNA(VLOOKUP(Q52, 'Allocation Change Graph'!BF$7:BG$20, 2, FALSE), 0), 0) -> 0 | Z52: 181 | AS52: 0 | AT52: 0
C53: University Wide | D53: La Jolla Campus | E53: East Campus | F53: Health Sciences East | G53: Campus Point West | H53: P733 | I53: B1 | J53: Accessible | M53: Yes | N53: Yes | P53: Campus Point West | Q53: Campus Point WestAccessible | R53: =COUNTIF(Q$5:Q53, Q53 ) -> 1 | S53: =_xlfn.IFS(D$2=X$4, X53, D$2=Y$4, Y53,D$2=Z$4, Z53,D$2=AA$4, AA53) -> 31 | T53: 87 | U53: =IF(R53=1, _xlfn.IFNA(VLOOKUP(Q53, 'Allocation Change Graph'!BF$7:BG$20, 2, FALSE), 0), 0) -> 0 | V53: 0.85 | W53: 73.95 | Z53: 31 | AD53: 0 | AE53: 0 | AF53: 1 | AG53: 0 | AH53: 0 | AI53: 1 | AJ53: 0 | AK53: 1 | AL53: 1 | AM53: 43 | AS53: 0 | AT53: 43
C54: University Wide | D54: La Jolla Campus | E54: East Campus | F54: Health Sciences East | G54: Campus Point West | H54: P733 | I54: B1 | J54: Accessible (Van) | M54: Yes | N54: Yes | P54: Campus Point West | Q54: Campus Point WestAccessible (Van) | R54: =COUNTIF(Q$5:Q54, Q54 ) -> 1 | S54: =_xlfn.IFS(D$2=X$4, X54, D$2=Y$4, Y54,D$2=Z$4, Z54,D$2=AA$4, AA54) -> 6 | T54: 17 | U54: =IF(R54=1, _xlfn.IFNA(VLOOKUP(Q54, 'Allocation Change Graph'!BF$7:BG$20, 2, FALSE), 0), 0) -> 0 | V54: 0.85 | W54: 14.45 | Z54: 6 | AD54: 0 | AE54: 0 | AF54: 0 | AG54: 0 | AH54: 0 | AI54: 0 | AJ54: 2 | AK54: 1 | AL54: 0 | AM54: 13 | AS54: 0 | AT54: 13
C55: University Wide | D55: La Jolla Campus | E55: East Campus | F55: Health Sciences East | G55: Campus Point West | H55: P733 | I55: B1 | J55: Electric Vehicle | M55: Yes | N55: Yes | P55: Campus Point West | Q55: Campus Point WestElectric Vehicle | R55: =COUNTIF(Q$5:Q55, Q55 ) -> 1 | S55: =_xlfn.IFS(D$2=X$4, X55, D$2=Y$4, Y55,D$2=Z$4, Z55,D$2=AA$4, AA55) -> 6 | T55: 6 | U55: =IF(R55=1, _xlfn.IFNA(VLOOKUP(Q55, 'Allocation Change Graph'!BF$7:BG$20, 2, FALSE), 0), 0) -> 0 | V55: 0.85 | W55: 5.1 | Z55: 6 | AD55: 0 | AE55: 1 | AF55: 0 | AG55: 0 | AH55: 0 | AI55: 2 | AJ55: 1 | AK55: 0 | AL55: 1 | AM55: 4 | AS55: 0 | AT55: 4
C56: University Wide | D56: La Jolla Campus | E56: East Campus | F56: Health Sciences East | G56: Campus Point West | H56: P733 | I56: B1 | J56: Visitor | M56: Yes | P56: Campus Point West | Q56: Campus Point WestVisitor | R56: =COUNTIF(Q$5:Q56, Q56 ) -> 3 | S56: =_xlfn.IFS(D$2=X$4, X56, D$2=Y$4, Y56,D$2=Z$4, Z56,D$2=AA$4, AA56) -> 109 | U56: =IF(R56=1, _xlfn.IFNA(VLOOKUP(Q56, 'Allocation Change Graph'!BF$7:BG$20, 2, FALSE), 0), 0) -> 0 | Z56: 109 | AS56: 0 | AT56: 0
C57: University Wide | D57: La Jolla Campus | E57: East Campus | F57: Health Sciences East | G57: Campus Point West | H57: P734 | I57: Ground Floor | J57: A | K57: 24/7 Enforced | M57: Yes | N57: Yes | O57: Yes | P57: Campus Point West | Q57: Campus Point WestA24/7 Enforced | R57: =COUNTIF(Q$5:Q57, Q57 ) -> 1 | S57: =_xlfn.IFS(D$2=X$4, X57, D$2=Y$4, Y57,D$2=Z$4, Z57,D$2=AA$4, AA57) -> 7 | T57: 7 | U57: =IF(R57=1, _xlfn.IFNA(VLOOKUP(Q57, 'Allocation Change Graph'!BF$7:BG$20, 2, FALSE), 0), 0) -> 0 | V57: 0.9 | W57: 6.3 | Z57: 7 | AD57: 1 | AE57: 2 | AF57: 0 | AG57: 0 | AH57: 0 | AI57: 1 | AJ57: 0 | AK57: 2 | AL57: 1 | AM57: 5 | AS57: 0 | AT57: 5
C58: University Wide | D58: La Jolla Campus | E58: East Campus | F58: Health Sciences East | G58: Campus Point West | H58: P734 | I58: Ground Floor | J58: Accessible | M58: Yes | P58: Campus Point West | Q58: Campus Point WestAccessible | R58: =COUNTIF(Q$5:Q58, Q58 ) -> 2 | S58: =_xlfn.IFS(D$2=X$4, X58, D$2=Y$4, Y58,D$2=Z$4, Z58,D$2=AA$4, AA58) -> 24 | U58: =IF(R58=1, _xlfn.IFNA(VLOOKUP(Q58, 'Allocation Change Graph'!BF$7:BG$20, 2, FALSE), 0), 0) -> 0 | Z58: 24 | AS58: 0 | AT58: 0
C59: University Wide | D59: La Jolla Campus | E59: East Campus | F59: Health Sciences East | G59: Campus Point West | H59: P734 | I59: Ground Floor | J59: Accessible (Van) | M59: Yes | P59: Campus Point West | Q59: Campus Point WestAccessible (Van) | R59: =COUNTIF(Q$5:Q59, Q59 ) -> 2 | S59: =_xlfn.IFS(D$2=X$4, X59, D$2=Y$4, Y59,D$2=Z$4, Z59,D$2=AA$4, AA59) -> 7 | U59: =IF(R59=1, _xlfn.IFNA(VLOOKUP(Q59, 'Allocation Change Graph'!BF$7:BG$20, 2, FALSE), 0), 0) -> 0 | Z59: 7 | AS59: 0 | AT59: 0
C60: University Wide | D60: La Jolla Campus | E60: East Campus | F60: Health Sciences East | G60: Campus Point West | H60: P734 | I60: Ground Floor | J60: Motorcycle Section | M60: Yes | P60: Campus Point West | Q60: Campus Point WestMotorcycle Section | R60: =COUNTIF(Q$5:Q60, Q60 ) -> 3 | S60: =_xlfn.IFS(D$2=X$4, X60, D$2=Y$4, Y60,D$2=Z$4, Z60,D$2=AA$4, AA60) -> 0 | U60: =IF(R60=1, _xlfn.IFNA(VLOOKUP(Q60, 'Allocation Change Graph'!BF$7:BG$20, 2, FALSE), 0), 0) -> 0 | AS60: 0 | AT60: 0
C61: University Wide | D61: La Jolla Campus | E61: East Campus | F61: Health Sciences East | G61: Campus Point West | H61: P734 | I61: Ground Floor | J61: Reserved | K61: Emergency Room | M61: Yes | N61: Yes | P61: Campus Point West | Q61: Campus Point WestReservedEmergency Room | R61: =COUNTIF(Q$5:Q61, Q61 ) -> 1 | S61: =_xlfn.IFS(D$2=X$4, X61, D$2=Y$4, Y61,D$2=Z$4, Z61,D$2=AA$4, AA61) -> 10 | T61: 10 | U61: =IF(R61=1, _xlfn.IFNA(VLOOKUP(Q61, 'Allocation Change Graph'!BF$7:BG$20, 2, FALSE), 0), 0) -> 0 | V61: 0.85 | W61: 8.5 | Z61: 10 | AD61: 0 | AE61: 0 | AF61: 0 | AG61: 1 | AH61: 0 | AI61: 2 | AJ61: 1 | AK61: 0 | AL61: 0 | AM61: 3 | AS61: 0 | AT61: 3
C62: University Wide | D62: La Jolla Campus | E62: East Campus | F62: Health Sciences East | G62: Campus Point West | H62: P734 | I62: Ground Floor | J62: Reserved | M62: Yes | N62: Yes | P62: Campus Point West | Q62: Campus Point WestReserved | R62: =COUNTIF(Q$5:Q62, Q62 ) -> 1 | S62: =_xlfn.IFS(D$2=X$4, X62, D$2=Y$4, Y62,D$2=Z$4, Z62,D$2=AA$4, AA62) -> 6 | T62: 18 | U62: =IF(R62=1, _xlfn.IFNA(VLOOKUP(Q62, 'Allocation Change Graph'!BF$7:BG$20, 2, FALSE), 0), 0) -> 0 | V62: 0.85 | W62: 15.3 | Z62: 6 | AD62: 11 | AE62: 6 | AF62: 11 | AG62: 11 | AH62: 12 | AI62: 10 | AJ62: 11 | AK62: 8 | AL62: 5 | AM62: 13 | AS62: 5 | AT62: 13
C63: University Wide | D63: La Jolla Campus | E63: East Campus | F63: Health Sciences East | G63: Campus Point West | H63: P734 | I63: Ground Floor | J63: Reserved | M63: Yes | P63: Campus Point West | Q63: Campus Point WestReserved | R63: =COUNTIF(Q$5:Q63, Q63 ) -> 2 | S63: =_xlfn.IFS(D$2=X$4, X63, D$2=Y$4, Y63,D$2=Z$4, Z63,D$2=AA$4, AA63) -> 2 | U63: =IF(R63=1, _xlfn.IFNA(VLOOKUP(Q63, 'Allocation Change Graph'!BF$7:BG$20, 2, FALSE), 0), 0) -> 0 | Z63: 2 | AS63: 0 | AT63: 0
C64: University Wide | D64: La Jolla Campus | E64: East Campus | F64: Health Sciences East | G64: Campus Point West | H64: P734 | I64: Ground Floor | J64: Reserved | M64: Yes | P64: Campus Point West | Q64: Campus Point WestReserved | R64: =COUNTIF(Q$5:Q64, Q64 ) -> 3 | S64: =_xlfn.IFS(D$2=X$4, X64, D$2=Y$4, Y64,D$2=Z$4, Z64,D$2=AA$4, AA64) -> 10 | U64: =IF(R64=1, _xlfn.IFNA(VLOOKUP(Q64, 'Allocation Change Graph'!BF$7:BG$20, 2, FALSE), 0), 0) -> 0 | Z64: 10 | AS64: 0 | AT64: 0
C65: University Wide | D65: La Jolla Campus | E65: East Campus | F65: Health Sciences East | G65: Campus Point West | H65: P734 | I65: Ground Floor | J65: Visitor | K65: Patient/Visitor Reserved | L65: 30 minutes | M65: Yes | N65: Yes | O65: Yes | P65: Campus Point West | Q65: Campus Point WestVisitorPatient/Visitor Reserved30 minutes | R65: =COUNTIF(Q$5:Q65, Q65 ) -> 1 | S65: =_xlfn.IFS(D$2=X$4, X65, D$2=Y$4, Y65,D$2=Z$4, Z65,D$2=AA$4, AA65) -> 1 | T65: 1 | U65: =IF(R65=1, _xlfn.IFNA(VLOOKUP(Q65, 'Allocation Change Graph'!BF$7:BG$20, 2, FALSE), 0), 0) -> 0 | V65: 0.85 | W65: 0.85 | Z65: 1 | AD65: 0 | AE65: 0 | AF65: 0 | AG65: 0 | AH65: 0 | AI65: 0 | AJ65: 0 | AK65: 0 | AL65: 0 | AM65: 0 | AS65: 0 | AT65: 0
C66: University Wide | D66: La Jolla Campus | E66: East Campus | F66: Health Sciences East | G66: Campus Point West | H66: P734 | I66: Ground Floor | J66: Visitor | M66: Yes | P66: Campus Point West | Q66: Campus Point WestVisitor | R66: =COUNTIF(Q$5:Q66, Q66 ) -> 4 | S66: =_xlfn.IFS(D$2=X$4, X66, D$2=Y$4, Y66,D$2=Z$4, Z66,D$2=AA$4, AA66) -> 47 | U66: =IF(R66=1, _xlfn.IFNA(VLOOKUP(Q66, 'Allocation Change Graph'!BF$7:BG$20, 2, FALSE), 0), 0) -> 0 | Z66: 47 | AS66: 0 | AT66: 0
C67: University Wide | D67: La Jolla Campus | E67: East Campus | F67: Health Sciences East | G67: Campus Point West | H67: P734 | I67: Ground Floor | J67: Visitor | M67: Yes | P67: Campus Point West | Q67: Campus Point WestVisitor | R67: =COUNTIF(Q$5:Q67, Q67 ) -> 5 | S67: =_xlfn.IFS(D$2=X$4, X67, D$2=Y$4, Y67,D$2=Z$4, Z67,D$2=AA$4, AA67) -> 18 | U67: =IF(R67=1, _xlfn.IFNA(VLOOKUP(Q67, 'Allocation Change Graph'!BF$7:BG$20, 2, FALSE), 0), 0) -> 0 | Z67: 18 | AS67: 0 | AT67: 0
C68: University Wide | D68: La Jolla Campus | E68: East Campus | F68: Health Sciences East | G68: Campus Point West | H68: P735 | I68: Roof | J68: Accessible | M68: Yes | P68: Campus Point West | Q68: Campus Point WestAccessible | R68: =COUNTIF(Q$5:Q68, Q68 ) -> 3 | S68: =_xlfn.IFS(D$2=X$4, X68, D$2=Y$4, Y68,D$2=Z$4, Z68,D$2=AA$4, AA68) -> 32 | U68: =IF(R68=1, _xlfn.IFNA(VLOOKUP(Q68, 'Allocation Change Graph'!BF$7:BG$20, 2, FALSE), 0), 0) -> 0 | Z68: 32 | AS68: 0 | AT68: 0
C69: University Wide | D69: La Jolla Campus | E69: East Campus | F69: Health Sciences East | G69: Campus Point West | H69: P735 | I69: Roof | J69: Accessible (Van) | M69: Yes | P69: =IF(G69="Surface Lot", H69, G69) -> Campus Point West | Q69: =P69&J69&K69&L69 -> Campus Point WestAccessible (Van) | R69: =COUNTIF(Q$5:Q69, Q69 ) -> 3 | S69: =_xlfn.IFS(D$2=X$4, X69, D$2=Y$4, Y69,D$2=Z$4, Z69,D$2=AA$4, AA69) -> 4 | T69: =IF(R69=1,SUMIF(Q:Q,Q69,S:S)+U69, "") ->  | U69: =IF(R69=1, _xlfn.IFNA(VLOOKUP(Q69, 'Allocation Change Graph'!BF$7:BG$20, 2, FALSE), 0), 0) -> 0 | W69: =IF(R69=1, V69*T69, "") ->  | Z69: 4 | AS69: =MIN($AB69:$AR69)+U69 -> 0 | AT69: =MAX($AB69:$AR69)+U69 -> 0
C70: University Wide | D70: La Jolla Campus | E70: East Campus | F70: Health Sciences East | G70: Campus Point West | H70: P735 | I70: Roof | J70: Motorcycle Section | M70: Yes | P70: Campus Point West | Q70: Campus Point WestMotorcycle Section | R70: =COUNTIF(Q$5:Q70, Q70 ) -> 4 | S70: =_xlfn.IFS(D$2=X$4, X70, D$2=Y$4, Y70,D$2=Z$4, Z70,D$2=AA$4, AA70) -> 0 | U70: =IF(R70=1, _xlfn.IFNA(VLOOKUP(Q70, 'Allocation Change Graph'!BF$7:BG$20, 2, FALSE), 0), 0) -> 0 | AS70: 0 | AT70: 0
C71: University Wide | D71: La Jolla Campus | E71: East Campus | F71: Health Sciences East | G71: Campus Point West | H71: P735 | I71: Roof | J71: Visitor | M71: Yes | P71: Campus Point West | Q71: Campus Point WestVisitor | R71: =COUNTIF(Q$5:Q71, Q71 ) -> 6 | S71: =_xlfn.IFS(D$2=X$4, X71, D$2=Y$4, Y71,D$2=Z$4, Z71,D$2=AA$4, AA71) -> 126 | U71: =IF(R71=1, _xlfn.IFNA(VLOOKUP(Q71, 'Allocation Change Graph'!BF$7:BG$20, 2, FALSE), 0), 0) -> 0 | Z71: 126 | AS71: 0 | AT71: 0
C72: University Wide | D72: La Jolla Campus | E72: East Campus | F72: Health Sciences East | G72: Curb | H72: Curb | I72: - | M72: Yes | N72: Yes | P72: Curb | Q72: Curb | R72: =COUNTIF(Q$5:Q72, Q72 ) -> 1 | S72: =_xlfn.IFS(D$2=X$4, X72, D$2=Y$4, Y72,D$2=Z$4, Z72,D$2=AA$4, AA72) -> 0 | T72: 0 | U72: =IF(R72=1, _xlfn.IFNA(VLOOKUP(Q72, 'Allocation Change Graph'!BF$7:BG$20, 2, FALSE), 0), 0) -> 0 | V72: 0.9 | W72: 0 | AD72: 0 | AE72: 0 | AF72: 0 | AG72: 0 | AH72: 0 | AI72: 0 | AJ72: 0 | AK72: 0 | AL72: 0 | AM72: 0 | AS72: 0 | AT72: 0
C73: University Wide | D73: La Jolla Campus | E73: East Campus | F73: Science Research Park | G73: Mesa Canyon | H73: PMC001 | I73: Ground | J73: Accessible | M73: Yes | N73: Yes | P73: Mesa Canyon | Q73: Mesa CanyonAccessible | R73: =COUNTIF(Q$5:Q73, Q73 ) -> 1 | S73: =_xlfn.IFS(D$2=X$4, X73, D$2=Y$4, Y73,D$2=Z$4, Z73,D$2=AA$4, AA73) -> 5 | T73: 12 | U73: =IF(R73=1, _xlfn.IFNA(VLOOKUP(Q73, 'Allocation Change Graph'!BF$7:BG$20, 2, FALSE), 0), 0) -> 0 | V73: 0.85 | W73: 10.2 | Z73: 5 | AD73: 7 | AE73: 5 | AF73: 10 | AG73: 5 | AH73: 7 | AI73: 6 | AJ73: 6 | AK73: 4 | AL73: 4 | AM73: 4 | AS73: 4 | AT73: 10
C74: University Wide | D74: La Jolla Campus | E74: East Campus | F74: Science Research Park | G74: Mesa Canyon | H74: PMC001 | I74: Ground | J74: Accessible (Van) | M74: Yes | N74: Yes | P74: Mesa Canyon | Q74: Mesa CanyonAccessible (Van) | R74: =COUNTIF(Q$5:Q74, Q74 ) -> 1 | S74: =_xlfn.IFS(D$2=X$4, X74, D$2=Y$4, Y74,D$2=Z$4, Z74,D$2=AA$4, AA74) -> 2 | T74: 5 | U74: =IF(R74=1, _xlfn.IFNA(VLOOKUP(Q74, 'Allocation Change Graph'!BF$7:BG$20, 2, FALSE), 0), 0) -> 0 | V74: 0.85 | W74: 4.25 | Z74: 2 | AD74: 3 | AE74: 2 | AF74: 2 | AG74: 3 | AH74: 5 | AI74: 4 | AJ74: 0 | AK74: 0 | AL74: 4 | AM74: 4 | AS74: 0 | AT74: 5
C75: University Wide | D75: La Jolla Campus | E75: East Campus | F75: Science Research Park | G75: Mesa Canyon | H75: PMC001 | I75: Ground | J75: B | M75: Yes | N75: Yes | O75: Yes | P75: Mesa Canyon | Q75: Mesa CanyonB | R75: =COUNTIF(Q$5:Q75, Q75 ) -> 1 | S75: =_xlfn.IFS(D$2=X$4, X75, D$2=Y$4, Y75,D$2=Z$4, Z75,D$2=AA$4, AA75) -> 148 | T75: 497 | U75: =IF(R75=1, _xlfn.IFNA(VLOOKUP(Q75, 'Allocation Change Graph'!BF$7:BG$20, 2, FALSE), 0), 0) -> 0 | V75: 0.9 | W75: 447.3 | Z75: 148 | AD75: 12 | AE75: 5 | AF75: 0 | AG75: 5 | AH75: 2 | AI75: 0 | AJ75: 6 | AK75: 84 | AL75: 286 | AM75: 312 | AS75: 0 | AT75: 312
C76: University Wide | D76: La Jolla Campus | E76: East Campus | F76: Science Research Park | G76: Mesa Canyon | H76: PMC001 | I76: Ground | J76: Electric Vehicle | M76: Yes | N76: Yes | P76: Mesa Canyon | Q76: Mesa CanyonElectric Vehicle | R76: =COUNTIF(Q$5:Q76, Q76 ) -> 1 | S76: =_xlfn.IFS(D$2=X$4, X76, D$2=Y$4, Y76,D$2=Z$4, Z76,D$2=AA$4, AA76) -> 18 | T76: 33 | U76: =IF(R76=1, _xlfn.IFNA(VLOOKUP(Q76, 'Allocation Change Graph'!BF$7:BG$20, 2, FALSE), 0), 0) -> 0 | V76: 0.85 | W76: 28.05 | Z76: 18 | AD76: 18 | AE76: 15 | AF76: 20 | AG76: 10 | AH76: 15 | AI76: 13 | AJ76: 9 | AK76: 13 | AL76: 22 | AM76: 22 | AS76: 9 | AT76: 22
C77: University Wide | D77: La Jolla Campus | E77: East Campus | F77: Science Research Park | G77: Mesa Canyon | H77: PMC001 | I77: Ground | J77: G | M77: Yes | N77: Yes | P77: Mesa Canyon | Q77: Mesa CanyonG | R77: =COUNTIF(Q$5:Q77, Q77 ) -> 1 | S77: =_xlfn.IFS(D$2=X$4, X77, D$2=Y$4, Y77,D$2=Z$4, Z77,D$2=AA$4, AA77) -> 0 | T77: 578 | U77: =IF(R77=1, _xlfn.IFNA(VLOOKUP(Q77, 'Allocation Change Graph'!BF$7:BG$20, 2, FALSE), 0), 0) -> 0 | V77: 0.9 | W77: 520.2 | Z77: 0 | AD77: 160 | AE77: 150 | AF77: 157 | AG77: 136 | AH77: 130 | AI77: 135 | AJ77: 175 | AK77: 138 | AL77: 217 | AM77: 300 | AS77: 130 | AT77: 300
C78: University Wide | D78: La Jolla Campus | E78: East Campus | F78: Science Research Park | G78: Mesa Canyon | H78: PMC001 | I78: Ground | J78: Motorcycle Section | M78: Yes | N78: Yes | P78: Mesa Canyon | Q78: Mesa CanyonMotorcycle Section | R78: =COUNTIF(Q$5:Q78, Q78 ) -> 1 | S78: =_xlfn.IFS(D$2=X$4, X78, D$2=Y$4, Y78,D$2=Z$4, Z78,D$2=AA$4, AA78) -> 6 | T78: 16 | U78: =IF(R78=1, _xlfn.IFNA(VLOOKUP(Q78, 'Allocation Change Graph'!BF$7:BG$20, 2, FALSE), 0), 0) -> 0 | V78: 0.85 | W78: 13.6 | Z78: 6 | AD78: 14 | AE78: 10 | AF78: 10 | AG78: 10 | AH78: 9 | AI78: 10 | AJ78: 10 | AK78: 10 | AL78: 10 | AM78: 10 | AS78: 9 | AT78: 14
C79: University Wide | D79: La Jolla Campus | E79: East Campus | F79: Science Research Park | G79: Mesa Canyon | H79: PMC002 | I79: L2 | J79: Accessible | M79: Yes | P79: Mesa Canyon | Q79: Mesa CanyonAccessible | R79: =COUNTIF(Q$5:Q79, Q79 ) -> 2 | S79: =_xlfn.IFS(D$2=X$4, X79, D$2=Y$4, Y79,D$2=Z$4, Z79,D$2=AA$4, AA79) -> 4 | U79: =IF(R79=1, _xlfn.IFNA(VLOOKUP(Q79, 'Allocation Change Graph'!BF$7:BG$20, 2, FALSE), 0), 0) -> 0 | Z79: 4 | AS79: 0 | AT79: 0
C80: University Wide | D80: La Jolla Campus | E80: East Campus | F80: Science Research Park | G80: Mesa Canyon | H80: PMC002 | I80: L2 | J80: Accessible (Van) | M80: Yes | P80: Mesa Canyon | Q80: Mesa CanyonAccessible (Van) | R80: =COUNTIF(Q$5:Q80, Q80 ) -> 2 | S80: =_xlfn.IFS(D$2=X$4, X80, D$2=Y$4, Y80,D$2=Z$4, Z80,D$2=AA$4, AA80) -> 1 | U80: =IF(R80=1, _xlfn.IFNA(VLOOKUP(Q80, 'Allocation Change Graph'!BF$7:BG$20, 2, FALSE), 0), 0) -> 0 | Z80: 1 | AS80: 0 | AT80: 0
C81: University Wide | D81: La Jolla Campus | E81: East Campus | F81: Science Research Park | G81: Mesa Canyon | H81: PMC002 | I81: L2 | J81: B | M81: Yes | P81: Mesa Canyon | Q81: Mesa CanyonB | R81: =COUNTIF(Q$5:Q81, Q81 ) -> 2 | S81: =_xlfn.IFS(D$2=X$4, X81, D$2=Y$4, Y81,D$2=Z$4, Z81,D$2=AA$4, AA81) -> 218 | U81: =IF(R81=1, _xlfn.IFNA(VLOOKUP(Q81, 'Allocation Change Graph'!BF$7:BG$20, 2, FALSE), 0), 0) -> 0 | Z81: 218 | AS81: 0 | AT81: 0
C82: University Wide | D82: La Jolla Campus | E82: East Campus | F82: Science Research Park | G82: Mesa Canyon | H82: PMC002 | I82: L2 | J82: Electric Vehicle | M82: Yes | P82: Mesa Canyon | Q82: Mesa CanyonElectric Vehicle | R82: =COUNTIF(Q$5:Q82, Q82 ) -> 2 | S82: =_xlfn.IFS(D$2=X$4, X82, D$2=Y$4, Y82,D$2=Z$4, Z82,D$2=AA$4, AA82) -> 6 | U82: =IF(R82=1, _xlfn.IFNA(VLOOKUP(Q82, 'Allocation Change Graph'!BF$7:BG$20, 2, FALSE), 0), 0) -> 0 | Z82: 6 | AS82: 0 | AT82: 0
C83: University Wide | D83: La Jolla Campus | E83: East Campus | F83: Science Research Park | G83: Mesa Canyon | H83: PMC002 | I83: L2 | J83: G | M83: Yes | P83: Mesa Canyon | Q83: Mesa CanyonG | R83: =COUNTIF(Q$5:Q83, Q83 ) -> 2 | S83: =_xlfn.IFS(D$2=X$4, X83, D$2=Y$4, Y83,D$2=Z$4, Z83,D$2=AA$4, AA83) -> 0 | U83: =IF(R83=1, _xlfn.IFNA(VLOOKUP(Q83, 'Allocation Change Graph'!BF$7:BG$20, 2, FALSE), 0), 0) -> 0 | Z83: 0 | AS83: 0 | AT83: 0
C84: University Wide | D84: La Jolla Campus | E84: East Campus | F84: Science Research Park | G84: Mesa Canyon | H84: PMC002 | I84: L2 | J84: Motorcycle Section | M84: Yes | P84: Mesa Canyon | Q84: Mesa CanyonMotorcycle Section | R84: =COUNTIF(Q$5:Q84, Q84 ) -> 2 | S84: =_xlfn.IFS(D$2=X$4, X84, D$2=Y$4, Y84,D$2=Z$4, Z84,D$2=AA$4, AA84) -> 0 | U84: =IF(R84=1, _xlfn.IFNA(VLOOKUP(Q84, 'Allocation Change Graph'!BF$7:BG$20, 2, FALSE), 0), 0) -> 0 | Z84: 0 | AS84: 0 | AT84: 0
C85: University Wide | D85: La Jolla Campus | E85: East Campus | F85: Science Research Park | G85: Mesa Canyon | H85: PMC003 | I85: L3 | J85: Accessible | M85: Yes | P85: Mesa Canyon | Q85: Mesa CanyonAccessible | R85: =COUNTIF(Q$5:Q85, Q85 ) -> 3 | S85: =_xlfn.IFS(D$2=X$4, X85, D$2=Y$4, Y85,D$2=Z$4, Z85,D$2=AA$4, AA85) -> 3 | U85: =IF(R85=1, _xlfn.IFNA(VLOOKUP(Q85, 'Allocation Change Graph'!BF$7:BG$20, 2, FALSE), 0), 0) -> 0 | Z85: 3 | AS85: 0 | AT85: 0
C86: University Wide | D86: La Jolla Campus | E86: East Campus | F86: Science Research Park | G86: Mesa Canyon | H86: PMC003 | I86: L3 | J86: Accessible (Van) | M86: Yes | P86: Mesa Canyon | Q86: Mesa CanyonAccessible (Van) | R86: =COUNTIF(Q$5:Q86, Q86 ) -> 3 | S86: =_xlfn.IFS(D$2=X$4, X86, D$2=Y$4, Y86,D$2=Z$4, Z86,D$2=AA$4, AA86) -> 2 | U86: =IF(R86=1, _xlfn.IFNA(VLOOKUP(Q86, 'Allocation Change Graph'!BF$7:BG$20, 2, FALSE), 0), 0) -> 0 | Z86: 2 | AS86: 0 | AT86: 0
C87: University Wide | D87: La Jolla Campus | E87: East Campus | F87: Science Research Park | G87: Mesa Canyon | H87: PMC003 | I87: L3 | J87: B | M87: Yes | P87: Mesa Canyon | Q87: Mesa CanyonB | R87: =COUNTIF(Q$5:Q87, Q87 ) -> 3 | S87: =_xlfn.IFS(D$2=X$4, X87, D$2=Y$4, Y87,D$2=Z$4, Z87,D$2=AA$4, AA87) -> 131 | U87: =IF(R87=1, _xlfn.IFNA(VLOOKUP(Q87, 'Allocation Change Graph'!BF$7:BG$20, 2, FALSE), 0), 0) -> 0 | Z87: =198-67 -> 131 | AS87: 0 | AT87: 0
C88: University Wide | D88: La Jolla Campus | E88: East Campus | F88: Science Research Park | G88: Mesa Canyon | H88: PMC003 | I88: L3 | J88: Electric Vehicle | M88: Yes | P88: Mesa Canyon | Q88: Mesa CanyonElectric Vehicle | R88: =COUNTIF(Q$5:Q88, Q88 ) -> 3 | S88: =_xlfn.IFS(D$2=X$4, X88, D$2=Y$4, Y88,D$2=Z$4, Z88,D$2=AA$4, AA88) -> 7 | U88: =IF(R88=1, _xlfn.IFNA(VLOOKUP(Q88, 'Allocation Change Graph'!BF$7:BG$20, 2, FALSE), 0), 0) -> 0 | Z88: 7 | AS88: 0 | AT88: 0
C89: University Wide | D89: La Jolla Campus | E89: East Campus | F89: Science Research Park | G89: Mesa Canyon | H89: PMC003 | I89: L3 | J89: G | M89: Yes | P89: Mesa Canyon | Q89: Mesa CanyonG | R89: =COUNTIF(Q$5:Q89, Q89 ) -> 3 | S89: =_xlfn.IFS(D$2=X$4, X89, D$2=Y$4, Y89,D$2=Z$4, Z89,D$2=AA$4, AA89) -> 0 | U89: =IF(R89=1, _xlfn.IFNA(VLOOKUP(Q89, 'Allocation Change Graph'!BF$7:BG$20, 2, FALSE), 0), 0) -> 0 | Z89: 0 | AS89: 0 | AT89: 0
C90: University Wide | D90: La Jolla Campus | E90: East Campus | F90: Science Research Park | G90: Mesa Canyon | H90: PMC003 | I90: L3 | J90: Motorcycle Section | M90: Yes | P90: Mesa Canyon | Q90: Mesa CanyonMotorcycle Section | R90: =COUNTIF(Q$5:Q90, Q90 ) -> 3 | S90: =_xlfn.IFS(D$2=X$4, X90, D$2=Y$4, Y90,D$2=Z$4, Z90,D$2=AA$4, AA90) -> 10 | U90: =IF(R90=1, _xlfn.IFNA(VLOOKUP(Q90, 'Allocation Change Graph'!BF$7:BG$20, 2, FALSE), 0), 0) -> 0 | Z90: 10 | AS90: 0 | AT90: 0
C91: University Wide | D91: La Jolla Campus | E91: East Campus | F91: Science Research Park | G91: Mesa Canyon | H91: PMC004 | I91: L4 | J91: Accessible | M91: Yes | P91: Mesa Canyon | Q91: Mesa CanyonAccessible | R91: =COUNTIF(Q$5:Q91, Q91 ) -> 4 | S91: =_xlfn.IFS(D$2=X$4, X91, D$2=Y$4, Y91,D$2=Z$4, Z91,D$2=AA$4, AA91) -> 0 | U91: =IF(R91=1, _xlfn.IFNA(VLOOKUP(Q91, 'Allocation Change Graph'!BF$7:BG$20, 2, FALSE), 0), 0) -> 0 | Z91: 0 | AS91: 0 | AT91: 0
C92: University Wide | D92: La Jolla Campus | E92: East Campus | F92: Science Research Park | G92: Mesa Canyon | H92: PMC004 | I92: L4 | J92: Accessible (Van) | M92: Yes | P92: Mesa Canyon | Q92: Mesa CanyonAccessible (Van) | R92: =COUNTIF(Q$5:Q92, Q92 ) -> 4 | S92: =_xlfn.IFS(D$2=X$4, X92, D$2=Y$4, Y92,D$2=Z$4, Z92,D$2=AA$4, AA92) -> 0 | U92: =IF(R92=1, _xlfn.IFNA(VLOOKUP(Q92, 'Allocation Change Graph'!BF$7:BG$20, 2, FALSE), 0), 0) -> 0 | AS92: 0 | AT92: 0
C93: University Wide | D93: La Jolla Campus | E93: East Campus | F93: Science Research Park | G93: Mesa Canyon | H93: PMC004 | I93: L4 | J93: B | M93: Yes | P93: Mesa Canyon | Q93: Mesa CanyonB | R93: =COUNTIF(Q$5:Q93, Q93 ) -> 4 | S93: =_xlfn.IFS(D$2=X$4, X93, D$2=Y$4, Y93,D$2=Z$4, Z93,D$2=AA$4, AA93) -> 0 | U93: =IF(R93=1, _xlfn.IFNA(VLOOKUP(Q93, 'Allocation Change Graph'!BF$7:BG$20, 2, FALSE), 0), 0) -> 0 | Z93: =62-62 -> 0 | AS93: 0 | AT93: 0
C94: University Wide | D94: La Jolla Campus | E94: East Campus | F94: Science Research Park | G94: Mesa Canyon | H94: PMC004 | I94: L4 | J94: Electric Vehicle | M94: Yes | P94: Mesa Canyon | Q94: Mesa CanyonElectric Vehicle | R94: =COUNTIF(Q$5:Q94, Q94 ) -> 4 | S94: =_xlfn.IFS(D$2=X$4, X94, D$2=Y$4, Y94,D$2=Z$4, Z94,D$2=AA$4, AA94) -> 2 | U94: =IF(R94=1, _xlfn.IFNA(VLOOKUP(Q94, 'Allocation Change Graph'!BF$7:BG$20, 2, FALSE), 0), 0) -> 0 | Z94: 2 | AS94: 0 | AT94: 0
C95: University Wide | D95: La Jolla Campus | E95: East Campus | F95: Science Research Park | G95: Mesa Canyon | H95: PMC004 | I95: L4 | J95: G | M95: Yes | P95: Mesa Canyon | Q95: Mesa CanyonG | R95: =COUNTIF(Q$5:Q95, Q95 ) -> 4 | S95: =_xlfn.IFS(D$2=X$4, X95, D$2=Y$4, Y95,D$2=Z$4, Z95,D$2=AA$4, AA95) -> 144 | U95: =IF(R95=1, _xlfn.IFNA(VLOOKUP(Q95, 'Allocation Change Graph'!BF$7:BG$20, 2, FALSE), 0), 0) -> 0 | Z95: 144 | AS95: 0 | AT95: 0
C96: University Wide | D96: La Jolla Campus | E96: East Campus | F96: Science Research Park | G96: Mesa Canyon | H96: PMC004 | I96: L4 | J96: Motorcycle Section | M96: Yes | P96: Mesa Canyon | Q96: Mesa CanyonMotorcycle Section | R96: =COUNTIF(Q$5:Q96, Q96 ) -> 4 | S96: =_xlfn.IFS(D$2=X$4, X96, D$2=Y$4, Y96,D$2=Z$4, Z96,D$2=AA$4, AA96) -> 0 | U96: =IF(R96=1, _xlfn.IFNA(VLOOKUP(Q96, 'Allocation Change Graph'!BF$7:BG$20, 2, FALSE), 0), 0) -> 0 | Z96: 0 | AS96: 0 | AT96: 0
C97: University Wide | D97: La Jolla Campus | E97: East Campus | F97: Science Research Park | G97: Mesa Canyon | H97: PMC005 | I97: L5 | J97: Accessible | M97: Yes | P97: Mesa Canyon | Q97: Mesa CanyonAccessible | R97: =COUNTIF(Q$5:Q97, Q97 ) -> 5 | S97: =_xlfn.IFS(D$2=X$4, X97, D$2=Y$4, Y97,D$2=Z$4, Z97,D$2=AA$4, AA97) -> 0 | U97: =IF(R97=1, _xlfn.IFNA(VLOOKUP(Q97, 'Allocation Change Graph'!BF$7:BG$20, 2, FALSE), 0), 0) -> 0 | Z97: 0 | AS97: 0 | AT97: 0
C98: University Wide | D98: La Jolla Campus | E98: East Campus | F98: Science Research Park | G98: Mesa Canyon | H98: PMC005 | I98: L5 | J98: Accessible (Van) | M98: Yes | P98: Mesa Canyon | Q98: Mesa CanyonAccessible (Van) | R98: =COUNTIF(Q$5:Q98, Q98 ) -> 5 | S98: =_xlfn.IFS(D$2=X$4, X98, D$2=Y$4, Y98,D$2=Z$4, Z98,D$2=AA$4, AA98) -> 0 | U98: =IF(R98=1, _xlfn.IFNA(VLOOKUP(Q98, 'Allocation Change Graph'!BF$7:BG$20, 2, FALSE), 0), 0) -> 0 | AS98: 0 | AT98: 0
C99: University Wide | D99: La Jolla Campus | E99: East Campus | F99: Science Research Park | G99: Mesa Canyon | H99: PMC005 | I99: L5 | J99: B | M99: Yes | P99: Mesa Canyon | Q99: Mesa CanyonB | R99: =COUNTIF(Q$5:Q99, Q99 ) -> 5 | S99: =_xlfn.IFS(D$2=X$4, X99, D$2=Y$4, Y99,D$2=Z$4, Z99,D$2=AA$4, AA99) -> 0 | U99: =IF(R99=1, _xlfn.IFNA(VLOOKUP(Q99, 'Allocation Change Graph'!BF$7:BG$20, 2, FALSE), 0), 0) -> 0 | Z99: 0 | AS99: 0 | AT99: 0
C100: University Wide | D100: La Jolla Campus | E100: East Campus | F100: Science Research Park | G100: Mesa Canyon | H100: PMC005 | I100: L5 | J100: Electric Vehicle | M100: Yes | P100: Mesa Canyon | Q100: Mesa CanyonElectric Vehicle | R100: =COUNTIF(Q$5:Q100, Q100 ) -> 5 | S100: =_xlfn.IFS(D$2=X$4, X100, D$2=Y$4, Y100,D$2=Z$4, Z100,D$2=AA$4, AA100) -> 0 | U100: =IF(R100=1, _xlfn.IFNA(VLOOKUP(Q100, 'Allocation Change Graph'!BF$7:BG$20, 2, FALSE), 0), 0) -> 0 | Z100: 0 | AS100: 0 | AT100: 0
C101: University Wide | D101: La Jolla Campus | E101: East Campus | F101: Science Research Park | G101: Mesa Canyon | H101: PMC005 | I101: L5 | J101: G | M101: Yes | P101: Mesa Canyon | Q101: Mesa CanyonG | R101: =COUNTIF(Q$5:Q101, Q101 ) -> 5 | S101: =_xlfn.IFS(D$2=X$4, X101, D$2=Y$4, Y101,D$2=Z$4, Z101,D$2=AA$4, AA101) -> 217 | U101: =IF(R101=1, _xlfn.IFNA(VLOOKUP(Q101, 'Allocation Change Graph'!BF$7:BG$20, 2, FALSE), 0), 0) -> 0 | Z101: 217 | AS101: 0 | AT101: 0
C102: University Wide | D102: La Jolla Campus | E102: East Campus | F102: Science Research Park | G102: Mesa Canyon | H102: PMC005 | I102: L5 | J102: Motorcycle Section | M102: Yes | P102: Mesa Canyon | Q102: Mesa CanyonMotorcycle Section | R102: =COUNTIF(Q$5:Q102, Q102 ) -> 5 | S102: =_xlfn.IFS(D$2=X$4, X102, D$2=Y$4, Y102,D$2=Z$4, Z102,D$2=AA$4, AA102) -> 0 | U102: =IF(R102=1, _xlfn.IFNA(VLOOKUP(Q102, 'Allocation Change Graph'!BF$7:BG$20, 2, FALSE), 0), 0) -> 0 | Z102: 0 | AS102: 0 | AT102: 0
C103: University Wide | D103: La Jolla Campus | E103: East Campus | F103: Science Research Park | G103: Mesa Canyon | H103: PMC006 | I103: L6 | J103: Accessible | M103: Yes | P103: Mesa Canyon | Q103: Mesa CanyonAccessible | R103: =COUNTIF(Q$5:Q103, Q103 ) -> 6 | S103: =_xlfn.IFS(D$2=X$4, X103, D$2=Y$4, Y103,D$2=Z$4, Z103,D$2=AA$4, AA103) -> 0 | U103: =IF(R103=1, _xlfn.IFNA(VLOOKUP(Q103, 'Allocation Change Graph'!BF$7:BG$20, 2, FALSE), 0), 0) -> 0 | Z103: 0 | AS103: 0 | AT103: 0
C104: University Wide | D104: La Jolla Campus | E104: East Campus | F104: Science Research Park | G104: Mesa Canyon | H104: PMC006 | I104: L6 | J104: Accessible (Van) | M104: Yes | P104: Mesa Canyon | Q104: Mesa CanyonAccessible (Van) | R104: =COUNTIF(Q$5:Q104, Q104 ) -> 6 | S104: =_xlfn.IFS(D$2=X$4, X104, D$2=Y$4, Y104,D$2=Z$4, Z104,D$2=AA$4, AA104) -> 0 | U104: =IF(R104=1, _xlfn.IFNA(VLOOKUP(Q104, 'Allocation Change Graph'!BF$7:BG$20, 2, FALSE), 0), 0) -> 0 | AS104: 0 | AT104: 0
C105: University Wide | D105: La Jolla Campus | E105: East Campus | F105: Science Research Park | G105: Mesa Canyon | H105: PMC006 | I105: L6 | J105: B | M105: Yes | P105: Mesa Canyon | Q105: Mesa CanyonB | R105: =COUNTIF(Q$5:Q105, Q105 ) -> 6 | S105: =_xlfn.IFS(D$2=X$4, X105, D$2=Y$4, Y105,D$2=Z$4, Z105,D$2=AA$4, AA105) -> 0 | U105: =IF(R105=1, _xlfn.IFNA(VLOOKUP(Q105, 'Allocation Change Graph'!BF$7:BG$20, 2, FALSE), 0), 0) -> 0 | Z105: 0 | AS105: 0 | AT105: 0
C106: University Wide | D106: La Jolla Campus | E106: East Campus | F106: Science Research Park | G106: Mesa Canyon | H106: PMC006 | I106: L6 | J106: Electric Vehicle | M106: Yes | P106: Mesa Canyon | Q106: Mesa CanyonElectric Vehicle | R106: =COUNTIF(Q$5:Q106, Q106 ) -> 6 | S106: =_xlfn.IFS(D$2=X$4, X106, D$2=Y$4, Y106,D$2=Z$4, Z106,D$2=AA$4, AA106) -> 0 | U106: =IF(R106=1, _xlfn.IFNA(VLOOKUP(Q106, 'Allocation Change Graph'!BF$7:BG$20, 2, FALSE), 0), 0) -> 0 | Z106: 0 | AS106: 0 | AT106: 0
C107: University Wide | D107: La Jolla Campus | E107: East Campus | F107: Science Research Park | G107: Mesa Canyon | H107: PMC006 | I107: L6 | J107: G | M107: Yes | P107: Mesa Canyon | Q107: Mesa CanyonG | R107: =COUNTIF(Q$5:Q107, Q107 ) -> 6 | S107: =_xlfn.IFS(D$2=X$4, X107, D$2=Y$4, Y107,D$2=Z$4, Z107,D$2=AA$4, AA107) -> 217 | U107: =IF(R107=1, _xlfn.IFNA(VLOOKUP(Q107, 'Allocation Change Graph'!BF$7:BG$20, 2, FALSE), 0), 0) -> 0 | Z107: 217 | AS107: 0 | AT107: 0
C108: University Wide | D108: La Jolla Campus | E108: East Campus | F108: Science Research Park | G108: Mesa Canyon | H108: PMC006 | I108: L6 | J108: Motorcycle Section | M108: Yes | P108: Mesa Canyon | Q108: Mesa CanyonMotorcycle Section | R108: =COUNTIF(Q$5:Q108, Q108 ) -> 6 | S108: =_xlfn.IFS(D$2=X$4, X108, D$2=Y$4, Y108,D$2=Z$4, Z108,D$2=AA$4, AA108) -> 0 | U108: =IF(R108=1, _xlfn.IFNA(VLOOKUP(Q108, 'Allocation Change Graph'!BF$7:BG$20, 2, FALSE), 0), 0) -> 0 | Z108: 0 | AS108: 0 | AT108: 0
C109: University Wide | D109: La Jolla Campus | E109: East Campus | F109: East Recreation | G109: Surface Lot | H109: P701 | I109: - | J109: S | M109: Yes | N109: Yes | O109: Yes | P109: P701 | Q109: P701S | R109: =COUNTIF(Q$5:Q109, Q109 ) -> 1 | S109: =_xlfn.IFS(D$2=X$4, X109, D$2=Y$4, Y109,D$2=Z$4, Z109,D$2=AA$4, AA109) -> 378 | T109: 378 | U109: =IF(R109=1, _xlfn.IFNA(VLOOKUP(Q109, 'Allocation Change Graph'!BF$7:BG$20, 2, FALSE), 0), 0) -> 0 | V109: 0.9 | W109: 340.2 | Z109: 378 | AD109: 300 | AE109: 280 | AF109: 275 | AG109: 270 | AH109: 278 | AI109: 280 | AJ109: 226 | AK109: 255 | AL109: 278 | AM109: 299 | AS109: 226 | AT109: 300
C110: University Wide | D110: La Jolla Campus | E110: East Campus | F110: Health Sciences East | G110: Surface Lot | H110: P702 | I110: - | J110: Accessible | M110: Yes | N110: Yes | P110: P702 | Q110: P702Accessible | R110: =COUNTIF(Q$5:Q110, Q110 ) -> 1 | S110: =_xlfn.IFS(D$2=X$4, X110, D$2=Y$4, Y110,D$2=Z$4, Z110,D$2=AA$4, AA110) -> 3 | T110: 3 | U110: =IF(R110=1, _xlfn.IFNA(VLOOKUP(Q110, 'Allocation Change Graph'!BF$7:BG$20, 2, FALSE), 0), 0) -> 0 | V110: 0.9 | W110: 2.7 | Z110: 3 | AD110: 3 | AE110: 1 | AF110: 1 | AG110: 2 | AH110: 3 | AI110: 2 | AJ110: 1 | AK110: 1 | AL110: 1 | AM110: 1 | AS110: 1 | AT110: 3
C111: University Wide | D111: La Jolla Campus | E111: East Campus | F111: Health Sciences East | G111: Surface Lot | H111: P702 | I111: - | J111: Accessible (Van) | M111: Yes | N111: Yes | P111: P702 | Q111: P702Accessible (Van) | R111: =COUNTIF(Q$5:Q111, Q111 ) -> 1 | S111: =_xlfn.IFS(D$2=X$4, X111, D$2=Y$4, Y111,D$2=Z$4, Z111,D$2=AA$4, AA111) -> 3 | T111: 3 | U111: =IF(R111=1, _xlfn.IFNA(VLOOKUP(Q111, 'Allocation Change Graph'!BF$7:BG$20, 2, FALSE), 0), 0) -> 0 | V111: 0.9 | W111: 2.7 | Z111: 3 | AD111: 3 | AE111: 2 | AF111: 2 | AG111: 2 | AH111: 1 | AI111: 0 | AJ111: 3 | AK111: 3 | AL111: 3 | AM111: 3 | AS111: 0 | AT111: 3
C112: University Wide | D112: La Jolla Campus | E112: East Campus | F112: Health Sciences East | G112: Surface Lot | H112: P702 | I112: - | J112: B | M112: Yes | N112: Yes | O112: Yes | P112: P702 | Q112: P702B | R112: =COUNTIF(Q$5:Q112, Q112 ) -> 1 | S112: =_xlfn.IFS(D$2=X$4, X112, D$2=Y$4, Y112,D$2=Z$4, Z112,D$2=AA$4, AA112) -> 183 | T112: 183 | U112: =IF(R112=1, _xlfn.IFNA(VLOOKUP(Q112, 'Allocation Change Graph'!BF$7:BG$20, 2, FALSE), 0), 0) -> 0 | V112: 0.9 | W112: 164.7 | Z112: 183 | AD112: 80 | AE112: 50 | AF112: 55 | AG112: 70 | AH112: 60 | AI112: 50 | AJ112: 29 | AK112: 44 | AL112: 56 | AM112: 71 | AS112: 29 | AT112: 80
C113: University Wide | D113: La Jolla Campus | E113: East Campus | F113: Health Sciences East | G113: Surface Lot | H113: P703 | I113: - | J113: Accessible | M113: Yes | N113: Yes | P113: P703 | Q113: P703Accessible | R113: =COUNTIF(Q$5:Q113, Q113 ) -> 1 | S113: =_xlfn.IFS(D$2=X$4, X113, D$2=Y$4, Y113,D$2=Z$4, Z113,D$2=AA$4, AA113) -> 0 | T113: 0 | U113: =IF(R113=1, _xlfn.IFNA(VLOOKUP(Q113, 'Allocation Change Graph'!BF$7:BG$20, 2, FALSE), 0), 0) -> 0 | V113: 0.9 | W113: 0 | Z113: 0 | AD113: 0 | AE113: 0 | AF113: 0 | AG113: 0 | AH113: 0 | AI113: 0 | AJ113: 0 | AK113: 0 | AL113: 0 | AM113: 0 | AS113: 0 | AT113: 0
C114: University Wide | D114: La Jolla Campus | E114: East Campus | F114: Health Sciences East | G114: Surface Lot | H114: P703 | I114: - | J114: Accessible (Van) | M114: Yes | N114: Yes | P114: P703 | Q114: P703Accessible (Van) | R114: =COUNTIF(Q$5:Q114, Q114 ) -> 1 | S114: =_xlfn.IFS(D$2=X$4, X114, D$2=Y$4, Y114,D$2=Z$4, Z114,D$2=AA$4, AA114) -> 11 | T114: 11 | U114: =IF(R114=1, _xlfn.IFNA(VLOOKUP(Q114, 'Allocation Change Graph'!BF$7:BG$20, 2, FALSE), 0), 0) -> 0 | V114: 0.9 | W114: 9.9 | Z114: 11 | AD114: 4 | AE114: 5 | AF114: 6 | AG114: 6 | AH114: 5 | AI114: 3 | AJ114: 4 | AK114: 4 | AL114: 5 | AM114: 5 | AS114: 3 | AT114: 6
C115: University Wide | D115: La Jolla Campus | E115: East Campus | F115: Health Sciences East | G115: Surface Lot | H115: P703 | I115: - | J115: Allocated | K115: Ambulance | M115: Yes | N115: Yes | P115: P703 | Q115: P703AllocatedAmbulance | R115: =COUNTIF(Q$5:Q115, Q115 ) -> 1 | S115: =_xlfn.IFS(D$2=X$4, X115, D$2=Y$4, Y115,D$2=Z$4, Z115,D$2=AA$4, AA115) -> 2 | T115: 2 | U115: =IF(R115=1, _xlfn.IFNA(VLOOKUP(Q115, 'Allocation Change Graph'!BF$7:BG$20, 2, FALSE), 0), 0) -> 0 | V115: 0.9 | W115: 1.8 | Z115: 2 | AD115: 2 | AE115: 2 | AF115: 1 | AG115: 1 | AH115: 1 | AI115: 0 | AJ115: 2 | AK115: 2 | AL115: 2 | AM115: 2 | AS115: 0 | AT115: 2
C116: University Wide | D116: La Jolla Campus | E116: East Campus | F116: Health Sciences East | G116: Surface Lot | H116: P703 | I116: - | J116: D ($5.00) | M116: Yes | N116: Yes | O116: Yes | P116: P703 | Q116: P703D ($5.00) | R116: =COUNTIF(Q$5:Q116, Q116 ) -> 1 | S116: =_xlfn.IFS(D$2=X$4, X116, D$2=Y$4, Y116,D$2=Z$4, Z116,D$2=AA$4, AA116) -> 295 | T116: 295 | U116: =IF(R116=1, _xlfn.IFNA(VLOOKUP(Q116, 'Allocation Change Graph'!BF$7:BG$20, 2, FALSE), 0), 0) -> 0 | V116: 0.9 | W116: 265.5 | Z116: 295 | AD116: 50 | AE116: 40 | AF116: 43 | AG116: 60 | AH116: 55 | AI116: 48 | AJ116: 69 | AK116: 71 | AL116: 85 | AM116: 99 | AS116: 40 | AT116: 99
C117: University Wide | D117: La Jolla Campus | E117: East Campus | F117: Health Sciences East | G117: Surface Lot | H117: P703 | I117: - | J117: Electric Vehicle | M117: Yes | N117: Yes | P117: P703 | Q117: P703Electric Vehicle | R117: =COUNTIF(Q$5:Q117, Q117 ) -> 1 | S117: =_xlfn.IFS(D$2=X$4, X117, D$2=Y$4, Y117,D$2=Z$4, Z117,D$2=AA$4, AA117) -> 12 | T117: 12 | U117: =IF(R117=1, _xlfn.IFNA(VLOOKUP(Q117, 'Allocation Change Graph'!BF$7:BG$20, 2, FALSE), 0), 0) -> 0 | V117: 0.9 | W117: 10.8 | Z117: 12 | AD117: 4 | AE117: 5 | AF117: 4 | AG117: 3 | AH117: 7 | AI117: 5 | AJ117: 4 | AK117: 3 | AL117: 3 | AM117: 3 | AS117: 3 | AT117: 7
C118: University Wide | D118: La Jolla Campus | E118: East Campus | F118: Health Sciences East | G118: Surface Lot | H118: P703 | I118: - | J118: Loading | M118: Yes | N118: Yes | P118: P703 | Q118: P703Loading | R118: =COUNTIF(Q$5:Q118, Q118 ) -> 1 | S118: =_xlfn.IFS(D$2=X$4, X118, D$2=Y$4, Y118,D$2=Z$4, Z118,D$2=AA$4, AA118) -> 2 | T118: 2 | U118: =IF(R118=1, _xlfn.IFNA(VLOOKUP(Q118, 'Allocation Change Graph'!BF$7:BG$20, 2, FALSE), 0), 0) -> 0 | V118: 0.9 | W118: 1.8 | Z118: 2 | AD118: 2 | AE118: 2 | AF118: 2 | AG118: 2 | AH118: 1 | AI118: 1 | AJ118: 1 | AK118: 1 | AL118: 1 | AM118: 1 | AS118: 1 | AT118: 2
C119: University Wide | D119: La Jolla Campus | E119: East Campus | F119: Health Sciences East | G119: Surface Lot | H119: P703 | I119: - | J119: Reserved | K119: V2G | M119: Yes | N119: Yes | P119: P703 | Q119: P703ReservedV2G | R119: =COUNTIF(Q$5:Q119, Q119 ) -> 1 | S119: =_xlfn.IFS(D$2=X$4, X119, D$2=Y$4, Y119,D$2=Z$4, Z119,D$2=AA$4, AA119) -> 1 | T119: 1 | U119: =IF(R119=1, _xlfn.IFNA(VLOOKUP(Q119, 'Allocation Change Graph'!BF$7:BG$20, 2, FALSE), 0), 0) -> 0 | V119: 0.9 | W119: 0.9 | Z119: 1 | AD119: 1 | AE119: 1 | AF119: 1 | AG119: 0 | AH119: 0 | AI119: 1 | AJ119: 0 | AK119: 1 | AL119: 1 | AM119: 1 | AS119: 0 | AT119: 1
C120: University Wide | D120: La Jolla Campus | E120: East Campus | F120: Health Sciences East | G120: Surface Lot | H120: P703 | I120: - | J120: Reserved | M120: Yes | N120: Yes | P120: P703 | Q120: P703Reserved | R120: =COUNTIF(Q$5:Q120, Q120 ) -> 1 | S120: =_xlfn.IFS(D$2=X$4, X120, D$2=Y$4, Y120,D$2=Z$4, Z120,D$2=AA$4, AA120) -> 1 | T120: 1 | U120: =IF(R120=1, _xlfn.IFNA(VLOOKUP(Q120, 'Allocation Change Graph'!BF$7:BG$20, 2, FALSE), 0), 0) -> 0 | V120: 0.9 | W120: 0.9 | Z120: 1 | AD120: 0 | AE120: 0 | AF120: 0 | AG120: 1 | AH120: 1 | AI120: 1 | AJ120: 0 | AK120: 0 | AL120: 0 | AM120: 0 | AS120: 0 | AT120: 1
C121: University Wide | D121: La Jolla Campus | E121: East Campus | F121: Health Sciences East | G121: Surface Lot | H121: P703 | I121: - | J121: UC Vehicle | K121: UC Cart | M121: Yes | N121: Yes | P121: P703 | Q121: P703UC VehicleUC Cart | R121: =COUNTIF(Q$5:Q121, Q121 ) -> 1 | S121: =_xlfn.IFS(D$2=X$4, X121, D$2=Y$4, Y121,D$2=Z$4, Z121,D$2=AA$4, AA121) -> 2 | T121: 2 | U121: =IF(R121=1, _xlfn.IFNA(VLOOKUP(Q121, 'Allocation Change Graph'!BF$7:BG$20, 2, FALSE), 0), 0) -> 0 | V121: 0.9 | W121: 1.8 | Z121: 2 | AD121: 2 | AE121: 1 | AF121: 1 | AG121: 1 | AH121: 2 | AI121: 0 | AJ121: 2 | AK121: 2 | AL121: 2 | AM121: 2 | AS121: 0 | AT121: 2
C122: University Wide | D122: La Jolla Campus | E122: East Campus | F122: Health Sciences East | G122: Surface Lot | H122: P703 | I122: - | J122: UC Vehicle | M122: Yes | N122: Yes | P122: P703 | Q122: P703UC Vehicle | R122: =COUNTIF(Q$5:Q122, Q122 ) -> 1 | S122: =_xlfn.IFS(D$2=X$4, X122, D$2=Y$4, Y122,D$2=Z$4, Z122,D$2=AA$4, AA122) -> 19 | T122: 19 | U122: =IF(R122=1, _xlfn.IFNA(VLOOKUP(Q122, 'Allocation Change Graph'!BF$7:BG$20, 2, FALSE), 0), 0) -> 0 | V122: 0.9 | W122: 17.1 | Z122: 19 | AD122: 14 | AE122: 10 | AF122: 12 | AG122: 4 | AH122: 14 | AI122: 10 | AJ122: 11 | AK122: 9 | AL122: 8 | AM122: 8 | AS122: 4 | AT122: 14
C123: University Wide | D123: La Jolla Campus | E123: East Campus | F123: Health Sciences East | G123: Surface Lot | H123: P703 | I123: - | J123: Visitor | K123: Radiation Oncology Center Patient | M123: Yes | N123: Yes | O123: Yes | P123: P703 | Q123: P703VisitorRadiation Oncology Center Patient | R123: =COUNTIF(Q$5:Q123, Q123 ) -> 1 | S123: =_xlfn.IFS(D$2=X$4, X123, D$2=Y$4, Y123,D$2=Z$4, Z123,D$2=AA$4, AA123) -> 17 | T123: 17 | U123: =IF(R123=1, _xlfn.IFNA(VLOOKUP(Q123, 'Allocation Change Graph'!BF$7:BG$20, 2, FALSE), 0), 0) -> 0 | V123: 0.9 | W123: 15.3 | Z123: 17 | AD123: 12 | AE123: 5 | AF123: 7 | AG123: 8 | AH123: 4 | AI123: 5 | AJ123: 7 | AK123: 10 | AL123: 11 | AM123: 12 | AS123: 4 | AT123: 12
C124: University Wide | D124: La Jolla Campus | E124: East Campus | F124: Health Sciences East | G124: Surface Lot | H124: P704 | I124: - | J124: D ($5.00) | M124: Yes | N124: Yes | O124: Yes | P124: P704 | Q124: P704D ($5.00) | R124: =COUNTIF(Q$5:Q124, Q124 ) -> 1 | S124: =_xlfn.IFS(D$2=X$4, X124, D$2=Y$4, Y124,D$2=Z$4, Z124,D$2=AA$4, AA124) -> 326 | T124: 326 | U124: =IF(R124=1, _xlfn.IFNA(VLOOKUP(Q124, 'Allocation Change Graph'!BF$7:BG$20, 2, FALSE), 0), 0) -> 0 | V124: 0.9 | W124: 293.4 | Z124: 326 | AD124: 200 | AE124: 125 | AF124: 140 | AG124: 150 | AH124: 130 | AI124: 137 | AJ124: 185 | AK124: 215 | AL124: 209 | AM124: 227 | AS124: 125 | AT124: 227
C125: University Wide | D125: La Jolla Campus | E125: East Campus | F125: Health Sciences East | G125: Surface Lot | H125: P705 | I125: - | J125: D ($5.00) | M125: Yes | N125: Yes | O125: Yes | P125: P705 | Q125: P705D ($5.00) | R125: =COUNTIF(Q$5:Q125, Q125 ) -> 1 | S125: =_xlfn.IFS(D$2=X$4, X125, D$2=Y$4, Y125,D$2=Z$4, Z125,D$2=AA$4, AA125) -> 266 | T125: 266 | U125: =IF(R125=1, _xlfn.IFNA(VLOOKUP(Q125, 'Allocation Change Graph'!BF$7:BG$20, 2, FALSE), 0), 0) -> 0 | V125: 0.9 | W125: 239.4 | Z125: 266 | AD125: 145 | AE125: 120 | AF125: 100 | AG125: 110 | AH125: 113 | AI125: 106 | AJ125: 148 | AK125: 150 | AL125: 158 | AM125: 181 | AS125: 100 | AT125: 181
C126: University Wide | D126: La Jolla Campus | E126: East Campus | F126: Preuss School | G126: Surface Lot | H126: P706 | I126: - | J126: A | K126: Preuss | M126: Yes | N126: Yes | O126: Yes | P126: P706 | Q126: P706APreuss | R126: =COUNTIF(Q$5:Q126, Q126 ) -> 1 | S126: =_xlfn.IFS(D$2=X$4, X126, D$2=Y$4, Y126,D$2=Z$4, Z126,D$2=AA$4, AA126) -> 6 | T126: 6 | U126: =IF(R126=1, _xlfn.IFNA(VLOOKUP(Q126, 'Allocation Change Graph'!BF$7:BG$20, 2, FALSE), 0), 0) -> 0 | V126: 0.9 | W126: 5.4 | Z126: 6 | AD126: 4 | AE126: 1 | AF126: 1 | AG126: 3 | AH126: 2 | AI126: 2 | AJ126: 1 | AK126: 2 | AL126: 3 | AM126: 3 | AS126: 1 | AT126: 4
C127: University Wide | D127: La Jolla Campus | E127: East Campus | F127: Preuss School | G127: Surface Lot | H127: P706 | I127: - | J127: Accessible | M127: Yes | N127: Yes | P127: P706 | Q127: P706Accessible | R127: =COUNTIF(Q$5:Q127, Q127 ) -> 1 | S127: =_xlfn.IFS(D$2=X$4, X127, D$2=Y$4, Y127,D$2=Z$4, Z127,D$2=AA$4, AA127) -> 1 | T127: 1 | U127: =IF(R127=1, _xlfn.IFNA(VLOOKUP(Q127, 'Allocation Change Graph'!BF$7:BG$20, 2, FALSE), 0), 0) -> 0 | V127: 0.9 | W127: 0.9 | Z127: 1 | AD127: 0 | AE127: 1 | AF127: 1 | AG127: 1 | AH127: 0 | AI127: 1 | AJ127: 1 | AK127: 1 | AL127: 1 | AM127: 1 | AS127: 0 | AT127: 1
C128: University Wide | D128: La Jolla Campus | E128: East Campus | F128: Preuss School | G128: Surface Lot | H128: P706 | I128: - | J128: Accessible (Van) | M128: Yes | N128: Yes | P128: P706 | Q128: P706Accessible (Van) | R128: =COUNTIF(Q$5:Q128, Q128 ) -> 1 | S128: =_xlfn.IFS(D$2=X$4, X128, D$2=Y$4, Y128,D$2=Z$4, Z128,D$2=AA$4, AA128) -> 3 | T128: 3 | U128: =IF(R128=1, _xlfn.IFNA(VLOOKUP(Q128, 'Allocation Change Graph'!BF$7:BG$20, 2, FALSE), 0), 0) -> 0 | V128: 0.9 | W128: 2.7 | Z128: 3 | AD128: 0 | AE128: 2 | AF128: 3 | AG128: 3 | AH128: 2 | AI128: 1 | AJ128: 3 | AK128: 3 | AL128: 3 | AM128: 3 | AS128: 0 | AT128: 3
C129: University Wide | D129: La Jolla Campus | E129: East Campus | F129: Preuss School | G129: Surface Lot | H129: P706 | I129: - | J129: B | K129: Preuss | M129: Yes | N129: Yes | O129: Yes | P129: P706 | Q129: P706BPreuss | R129: =COUNTIF(Q$5:Q129, Q129 ) -> 1 | S129: =_xlfn.IFS(D$2=X$4, X129, D$2=Y$4, Y129,D$2=Z$4, Z129,D$2=AA$4, AA129) -> 59 | T129: 59 | U129: =IF(R129=1, _xlfn.IFNA(VLOOKUP(Q129, 'Allocation Change Graph'!BF$7:BG$20, 2, FALSE), 0), 0) -> 0 | V129: 0.9 | W129: 53.1 | Z129: 59 | AD129: 21 | AE129: 5 | AF129: 4 | AG129: 1 | AH129: 0 | AI129: 0 | AJ129: 6 | AK129: 12 | AL129: 27 | AM129: 29 | AS129: 0 | AT129: 29
C130: University Wide | D130: La Jolla Campus | E130: East Campus | F130: Preuss School | G130: Surface Lot | H130: P706 | I130: - | J130: Loading | L130: 30 minutes | M130: Yes | N130: Yes | P130: P706 | Q130: P706Loading30 minutes | R130: =COUNTIF(Q$5:Q130, Q130 ) -> 1 | S130: =_xlfn.IFS(D$2=X$4, X130, D$2=Y$4, Y130,D$2=Z$4, Z130,D$2=AA$4, AA130) -> 3 | T130: 3 | U130: =IF(R130=1, _xlfn.IFNA(VLOOKUP(Q130, 'Allocation Change Graph'!BF$7:BG$20, 2, FALSE), 0), 0) -> 0 | V130: 0.9 | W130: 2.7 | Z130: 3 | AD130: 1 | AE130: 1 | AF130: 0 | AG130: 0 | AH130: 2 | AI130: 2 | AJ130: 2 | AK130: 2 | AL130: 2 | AM130: 3 | AS130: 0 | AT130: 3
C131: University Wide | D131: La Jolla Campus | E131: East Campus | F131: Health Sciences East | G131: Surface Lot | H131: P707 | I131: - | J131: Accessible | M131: Yes | N131: Yes | P131: P707 | Q131: P707Accessible | R131: =COUNTIF(Q$5:Q131, Q131 ) -> 1 | S131: =_xlfn.IFS(D$2=X$4, X131, D$2=Y$4, Y131,D$2=Z$4, Z131,D$2=AA$4, AA131) -> 4 | T131: 4 | U131: =IF(R131=1, _xlfn.IFNA(VLOOKUP(Q131, 'Allocation Change Graph'!BF$7:BG$20, 2, FALSE), 0), 0) -> 0 | V131: 0.9 | W131: 3.6 | Z131: 4 | AD131: 4 | AE131: 3 | AF131: 4 | AG131: 4 | AH131: 2 | AI131: 3 | AJ131: 2 | AK131: 2 | AL131: 4 | AM131: 4 | AS131: 2 | AT131: 4
C132: University Wide | D132: La Jolla Campus | E132: East Campus | F132: Health Sciences East | G132: Surface Lot | H132: P707 | I132: - | J132: Accessible (Van) | M132: Yes | N132: Yes | P132: P707 | Q132: P707Accessible (Van) | R132: =COUNTIF(Q$5:Q132, Q132 ) -> 1 | S132: =_xlfn.IFS(D$2=X$4, X132, D$2=Y$4, Y132,D$2=Z$4, Z132,D$2=AA$4, AA132) -> 3 | T132: 3 | U132: =IF(R132=1, _xlfn.IFNA(VLOOKUP(Q132, 'Allocation Change Graph'!BF$7:BG$20, 2, FALSE), 0), 0) -> 0 | V132: 0.9 | W132: 2.7 | Z132: 3 | AD132: 3 | AE132: 2 | AF132: 2 | AG132: 3 | AH132: 2 | AI132: 2 | AJ132: 2 | AK132: 2 | AL132: 3 | AM132: 3 | AS132: 2 | AT132: 3
C133: University Wide | D133: La Jolla Campus | E133: East Campus | F133: Health Sciences East | G133: Surface Lot | H133: P707 | I133: - | J133: Electric Vehicle | M133: Yes | N133: Yes | P133: =IF(G133="Surface Lot", H133, G133) -> P707 | Q133: =P133&J133&K133&L133 -> P707Electric Vehicle | R133: =COUNTIF(Q$5:Q133, Q133 ) -> 1 | S133: =_xlfn.IFS(D$2=X$4, X133, D$2=Y$4, Y133,D$2=Z$4, Z133,D$2=AA$4, AA133) -> 2 | T133: =IF(R133=1,SUMIF(Q:Q,Q133,S:S)+U133, "") -> 2 | U133: =IF(R133=1, _xlfn.IFNA(VLOOKUP(Q133, 'Allocation Change Graph'!BF$7:BG$20, 2, FALSE), 0), 0) -> 0 | V133: 0.9 | W133: =IF(R133=1, V133*T133, "") -> 1.8 | Z133: 2 | AD133: 2 | AE133: 1 | AF133: 1 | AG133: 1 | AH133: 2 | AI133: 2 | AJ133: 2 | AK133: 2 | AL133: 2 | AM133: 2 | AS133: =MIN($AB133:$AR133)+U133 -> 1 | AT133: =MAX($AB133:$AR133)+U133 -> 2
C134: University Wide | D134: La Jolla Campus | E134: East Campus | F134: Health Sciences East | G134: Surface Lot | H134: P707 | I134: - | J134: Reserved | M134: Yes | N134: Yes | P134: P707 | Q134: P707Reserved | R134: =COUNTIF(Q$5:Q134, Q134 ) -> 1 | S134: =_xlfn.IFS(D$2=X$4, X134, D$2=Y$4, Y134,D$2=Z$4, Z134,D$2=AA$4, AA134) -> 6 | T134: 6 | U134: =IF(R134=1, _xlfn.IFNA(VLOOKUP(Q134, 'Allocation Change Graph'!BF$7:BG$20, 2, FALSE), 0), 0) -> 0 | V134: 0.9 | W134: 5.4 | Z134: 6 | AD134: 5 | AE134: 4 | AF134: 3 | AG134: 5 | AH134: 6 | AI134: 6 | AJ134: 6 | AK134: 6 | AL134: 6 | AM134: 6 | AS134: 3 | AT134: 6
C135: University Wide | D135: La Jolla Campus | E135: East Campus | F135: Health Sciences East | G135: Surface Lot | H135: P707 | I135: - | J135: S | M135: Yes | N135: Yes | O135: Yes | P135: P707 | Q135: P707S | R135: =COUNTIF(Q$5:Q135, Q135 ) -> 1 | S135: =_xlfn.IFS(D$2=X$4, X135, D$2=Y$4, Y135,D$2=Z$4, Z135,D$2=AA$4, AA135) -> 194 | T135: 194 | U135: =IF(R135=1, _xlfn.IFNA(VLOOKUP(Q135, 'Allocation Change Graph'!BF$7:BG$20, 2, FALSE), 0), 0) -> 0 | V135: 0.9 | W135: 174.6 | Z135: 194 | AD135: 70 | AE135: 60 | AF135: 50 | AG135: 52 | AH135: 55 | AI135: 50 | AJ135: 35 | AK135: 42 | AL135: 54 | AM135: 68 | AS135: 35 | AT135: 70
C136: University Wide | D136: La Jolla Campus | E136: East Campus | F136: Health Sciences East | G136: Surface Lot | H136: P751 | I136: - | J136: Accessible | M136: Yes | N136: Yes | P136: P751 | Q136: P751Accessible | R136: =COUNTIF(Q$5:Q136, Q136 ) -> 1 | S136: =_xlfn.IFS(D$2=X$4, X136, D$2=Y$4, Y136,D$2=Z$4, Z136,D$2=AA$4, AA136) -> 2 | T136: 2 | U136: =IF(R136=1, _xlfn.IFNA(VLOOKUP(Q136, 'Allocation Change Graph'!BF$7:BG$20, 2, FALSE), 0), 0) -> 0 | V136: 0.9 | W136: 1.8 | Z136: 2 | AD136: 0 | AE136: 1 | AF136: 0 | AG136: 0 | AH136: 1 | AI136: 2 | AJ136: 0 | AK136: 0 | AL136: 0 | AM136: 0 | AS136: 0 | AT136: 2
C137: University Wide | D137: La Jolla Campus | E137: East Campus | F137: Health Sciences East | G137: Surface Lot | H137: P751 | I137: - | J137: Accessible (Van) | M137: Yes | N137: Yes | P137: P751 | Q137: P751Accessible (Van) | R137: =COUNTIF(Q$5:Q137, Q137 ) -> 1 | S137: =_xlfn.IFS(D$2=X$4, X137, D$2=Y$4, Y137,D$2=Z$4, Z137,D$2=AA$4, AA137) -> 2 | T137: 2 | U137: =IF(R137=1, _xlfn.IFNA(VLOOKUP(Q137, 'Allocation Change Graph'!BF$7:BG$20, 2, FALSE), 0), 0) -> 0 | V137: 0.9 | W137: 1.8 | Z137: 2 | AD137: 1 | AE137: 1 | AF137: 1 | AG137: 0 | AH137: 0 | AI137: 1 | AJ137: 0 | AK137: 0 | AL137: 0 | AM137: 0 | AS137: 0 | AT137: 1
C138: University Wide | D138: La Jolla Campus | E138: East Campus | F138: Health Sciences East | G138: Surface Lot | H138: P751 | I138: - | J138: Electric Vehicle | M138: Yes | N138: Yes | P138: P751 | Q138: P751Electric Vehicle | R138: =COUNTIF(Q$5:Q138, Q138 ) -> 1 | S138: =_xlfn.IFS(D$2=X$4, X138, D$2=Y$4, Y138,D$2=Z$4, Z138,D$2=AA$4, AA138) -> 0 | T138: 0 | U138: =IF(R138=1, _xlfn.IFNA(VLOOKUP(Q138, 'Allocation Change Graph'!BF$7:BG$20, 2, FALSE), 0), 0) -> 0 | V138: 0.9 | W138: 0 | Z138: 0 | AD138: 0 | AE138: 0 | AF138: 0 | AG138: 0 | AH138: 0 | AI138: 0 | AJ138: 0 | AK138: 0 | AL138: 0 | AM138: 0 | AS138: 0 | AT138: 0
C139: University Wide | D139: La Jolla Campus | E139: East Campus | F139: Health Sciences East | G139: Surface Lot | H139: P751 | I139: - | J139: Reserved | K139: Valet | M139: Yes | N139: Yes | P139: P751 | Q139: P751ReservedValet | R139: =COUNTIF(Q$5:Q139, Q139 ) -> 1 | S139: =_xlfn.IFS(D$2=X$4, X139, D$2=Y$4, Y139,D$2=Z$4, Z139,D$2=AA$4, AA139) -> 0 | T139: 0 | U139: =IF(R139=1, _xlfn.IFNA(VLOOKUP(Q139, 'Allocation Change Graph'!BF$7:BG$20, 2, FALSE), 0), 0) -> 0 | V139: 0.9 | W139: 0 | Z139: 0 | AD139: 0 | AE139: 0 | AF139: 0 | AG139: 0 | AH139: 0 | AI139: 0 | AJ139: 0 | AK139: 0 | AL139: 0 | AM139: 0 | AS139: 0 | AT139: 0
C140: University Wide | D140: La Jolla Campus | E140: East Campus | F140: Health Sciences East | G140: Surface Lot | H140: P751 | I140: - | J140: Reserved | M140: Yes | N140: Yes | P140: P751 | Q140: P751Reserved | R140: =COUNTIF(Q$5:Q140, Q140 ) -> 1 | S140: =_xlfn.IFS(D$2=X$4, X140, D$2=Y$4, Y140,D$2=Z$4, Z140,D$2=AA$4, AA140) -> 0 | T140: 0 | U140: =IF(R140=1, _xlfn.IFNA(VLOOKUP(Q140, 'Allocation Change Graph'!BF$7:BG$20, 2, FALSE), 0), 0) -> 0 | V140: 0.9 | W140: 0 | Z140: 0 | AD140: 0 | AE140: 0 | AF140: 0 | AG140: 0 | AH140: 0 | AI140: 0 | AJ140: 0 | AK140: 0 | AL140: 0 | AM140: 0 | AS140: 0 | AT140: 0
C141: University Wide | D141: La Jolla Campus | E141: East Campus | F141: Health Sciences East | G141: Surface Lot | H141: P751 | I141: - | J141: Visitor | L141: 30 minutes | M141: Yes | N141: Yes | O141: Yes | P141: P751 | Q141: P751Visitor30 minutes | R141: =COUNTIF(Q$5:Q141, Q141 ) -> 1 | S141: =_xlfn.IFS(D$2=X$4, X141, D$2=Y$4, Y141,D$2=Z$4, Z141,D$2=AA$4, AA141) -> 3 | T141: 3 | U141: =IF(R141=1, _xlfn.IFNA(VLOOKUP(Q141, 'Allocation Change Graph'!BF$7:BG$20, 2, FALSE), 0), 0) -> 0 | V141: 0.9 | W141: 2.7 | Z141: 3 | AD141: 1 | AE141: 2 | AF141: 2 | AG141: 0 | AH141: 0 | AI141: 0 | AJ141: 0 | AK141: 0 | AL141: 0 | AM141: 0 | AS141: 0 | AT141: 2
C142: University Wide | D142: La Jolla Campus | E142: East Campus | F142: Health Sciences East | G142: Surface Lot | H142: P752 | I142: - | J142: Accessible | M142: Yes | N142: Yes | P142: P752 | Q142: P752Accessible | R142: =COUNTIF(Q$5:Q142, Q142 ) -> 1 | S142: =_xlfn.IFS(D$2=X$4, X142, D$2=Y$4, Y142,D$2=Z$4, Z142,D$2=AA$4, AA142) -> 0 | T142: 0 | U142: =IF(R142=1, _xlfn.IFNA(VLOOKUP(Q142, 'Allocation Change Graph'!BF$7:BG$20, 2, FALSE), 0), 0) -> 0 | V142: 0.9 | W142: 0 | Z142: 0 | AD142: 0 | AE142: 0 | AF142: 0 | AG142: 0 | AH142: 0 | AI142: 0 | AJ142: 0 | AK142: 0 | AL142: 0 | AM142: 0 | AS142: 0 | AT142: 0
C143: University Wide | D143: La Jolla Campus | E143: East Campus | F143: Health Sciences East | G143: Surface Lot | H143: P752 | I143: - | J143: Accessible (Van) | M143: Yes | N143: Yes | P143: P752 | Q143: P752Accessible (Van) | R143: =COUNTIF(Q$5:Q143, Q143 ) -> 1 | S143: =_xlfn.IFS(D$2=X$4, X143, D$2=Y$4, Y143,D$2=Z$4, Z143,D$2=AA$4, AA143) -> 2 | T143: 2 | U143: =IF(R143=1, _xlfn.IFNA(VLOOKUP(Q143, 'Allocation Change Graph'!BF$7:BG$20, 2, FALSE), 0), 0) -> 0 | V143: 0.9 | W143: 1.8 | Z143: 2 | AD143: 0 | AE143: 0 | AF143: 1 | AG143: 1 | AH143: 1 | AI143: 0 | AJ143: 0 | AK143: 0 | AL143: 0 | AM143: 0 | AS143: 0 | AT143: 1
C144: University Wide | D144: La Jolla Campus | E144: East Campus | F144: Health Sciences East | G144: Surface Lot | H144: P752 | I144: - | J144: Allocated | K144: Physician On Call | M144: Yes | N144: Yes | P144: P752 | Q144: P752AllocatedPhysician On Call | R144: =COUNTIF(Q$5:Q144, Q144 ) -> 1 | S144: =_xlfn.IFS(D$2=X$4, X144, D$2=Y$4, Y144,D$2=Z$4, Z144,D$2=AA$4, AA144) -> 4 | T144: 4 | U144: =IF(R144=1, _xlfn.IFNA(VLOOKUP(Q144, 'Allocation Change Graph'!BF$7:BG$20, 2, FALSE), 0), 0) -> 0 | V144: 0.9 | W144: 3.6 | Z144: 4 | AD144: 2 | AE144: 1 | AF144: 1 | AG144: 2 | AH144: 2 | AI144: 1 | AJ144: 1 | AK144: 1 | AL144: 0 | AM144: 0 | AS144: 0 | AT144: 2
C145: University Wide | D145: La Jolla Campus | E145: East Campus | F145: Health Sciences East | G145: Surface Lot | H145: P752 | I145: - | J145: Reserved | K145: Valet | M145: Yes | N145: Yes | P145: P752 | Q145: P752ReservedValet | R145: =COUNTIF(Q$5:Q145, Q145 ) -> 1 | S145: =_xlfn.IFS(D$2=X$4, X145, D$2=Y$4, Y145,D$2=Z$4, Z145,D$2=AA$4, AA145) -> 23 | T145: 23 | U145: =IF(R145=1, _xlfn.IFNA(VLOOKUP(Q145, 'Allocation Change Graph'!BF$7:BG$20, 2, FALSE), 0), 0) -> 0 | V145: 0.9 | W145: 20.7 | Z145: 23 | AD145: 19 | AE145: 15 | AF145: 5 | AG145: 6 | AH145: 4 | AI145: 7 | AJ145: 5 | AK145: 2 | AL145: 3 | AM145: 9 | AS145: 2 | AT145: 19
C146: University Wide | D146: La Jolla Campus | E146: East Campus | F146: Health Sciences East | G146: Surface Lot | H146: P752 | I146: - | J146: Reserved | M146: Yes | N146: Yes | P146: P752 | Q146: P752Reserved | R146: =COUNTIF(Q$5:Q146, Q146 ) -> 1 | S146: =_xlfn.IFS(D$2=X$4, X146, D$2=Y$4, Y146,D$2=Z$4, Z146,D$2=AA$4, AA146) -> 1 | T146: 1 | U146: =IF(R146=1, _xlfn.IFNA(VLOOKUP(Q146, 'Allocation Change Graph'!BF$7:BG$20, 2, FALSE), 0), 0) -> 0 | V146: 0.9 | W146: 0.9 | Z146: 1 | AD146: 0 | AE146: 0 | AF146: 0 | AG146: 1 | AH146: 0 | AI146: 0 | AJ146: 0 | AK146: 0 | AL146: 0 | AM146: 0 | AS146: 0 | AT146: 1
C147: University Wide | D147: La Jolla Campus | E147: East Campus | F147: Health Sciences East | G147: Surface Lot | H147: P753 | I147: - | J147: Accessible | M147: Yes | N147: Yes | P147: P753 | Q147: P753Accessible | R147: =COUNTIF(Q$5:Q147, Q147 ) -> 1 | S147: =_xlfn.IFS(D$2=X$4, X147, D$2=Y$4, Y147,D$2=Z$4, Z147,D$2=AA$4, AA147) -> 0 | T147: 0 | U147: =IF(R147=1, _xlfn.IFNA(VLOOKUP(Q147, 'Allocation Change Graph'!BF$7:BG$20, 2, FALSE), 0), 0) -> 0 | V147: 0.9 | W147: 0 | Z147: 0 | AD147: 0 | AE147: 0 | AF147: 0 | AG147: 0 | AH147: 0 | AI147: 0 | AJ147: 0 | AK147: 0 | AL147: 0 | AM147: 0 | AS147: 0 | AT147: 0
C148: University Wide | D148: La Jolla Campus | E148: East Campus | F148: Health Sciences East | G148: Surface Lot | H148: P753 | I148: - | J148: Accessible (Van) | M148: Yes | N148: Yes | P148: P753 | Q148: P753Accessible (Van) | R148: =COUNTIF(Q$5:Q148, Q148 ) -> 1 | S148: =_xlfn.IFS(D$2=X$4, X148, D$2=Y$4, Y148,D$2=Z$4, Z148,D$2=AA$4, AA148) -> 2 | T148: 2 | U148: =IF(R148=1, _xlfn.IFNA(VLOOKUP(Q148, 'Allocation Change Graph'!BF$7:BG$20, 2, FALSE), 0), 0) -> 0 | V148: 0.9 | W148: 1.8 | Z148: 2 | AD148: 0 | AE148: 0 | AF148: 0 | AG148: 1 | AH148: 2 | AI148: 1 | AJ148: 0 | AK148: 0 | AL148: 1 | AM148: 1 | AS148: 0 | AT148: 2
C149: University Wide | D149: La Jolla Campus | E149: East Campus | F149: Health Sciences East | G149: Surface Lot | H149: P753 | I149: - | J149: Reserved | M149: Yes | N149: Yes | P149: P753 | Q149: P753Reserved | R149: =COUNTIF(Q$5:Q149, Q149 ) -> 1 | S149: =_xlfn.IFS(D$2=X$4, X149, D$2=Y$4, Y149,D$2=Z$4, Z149,D$2=AA$4, AA149) -> 32 | T149: 32 | U149: =IF(R149=1, _xlfn.IFNA(VLOOKUP(Q149, 'Allocation Change Graph'!BF$7:BG$20, 2, FALSE), 0), 0) -> 0 | V149: 0.9 | W149: 28.8 | Z149: 32 | AD149: 20 | AE149: 15 | AF149: 12 | AG149: 13 | AH149: 10 | AI149: 8 | AJ149: 18 | AK149: 20 | AL149: 26 | AM149: 20 | AS149: 8 | AT149: 26
C150: University Wide | D150: La Jolla Campus | E150: East Campus | F150: Health Sciences East | G150: Surface Lot | H150: P757 | I150: - | J150: Loading | K150: Shiley Surgery | L150: 20 | M150: Yes | N150: Yes | P150: P757 | Q150: P757LoadingShiley Surgery20 | R150: =COUNTIF(Q$5:Q150, Q150 ) -> 1 | S150: =_xlfn.IFS(D$2=X$4, X150, D$2=Y$4, Y150,D$2=Z$4, Z150,D$2=AA$4, AA150) -> 0 | T150: 0 | U150: =IF(R150=1, _xlfn.IFNA(VLOOKUP(Q150, 'Allocation Change Graph'!BF$7:BG$20, 2, FALSE), 0), 0) -> 0 | V150: 0.9 | W150: 0 | Z150: 0 | AD150: 0 | AE150: 0 | AF150: 0 | AG150: 0 | AH150: 0 | AI150: 0 | AJ150: 0 | AK150: 0 | AL150: 0 | AM150: 0 | AS150: 0 | AT150: 0
C151: University Wide | D151: La Jolla Campus | E151: East Campus | F151: Health Sciences East | G151: Surface Lot | H151: P757 | I151: - | J151: Reserved | M151: Yes | N151: Yes | P151: P757 | Q151: P757Reserved | R151: =COUNTIF(Q$5:Q151, Q151 ) -> 1 | S151: =_xlfn.IFS(D$2=X$4, X151, D$2=Y$4, Y151,D$2=Z$4, Z151,D$2=AA$4, AA151) -> 0 | T151: 0 | U151: =IF(R151=1, _xlfn.IFNA(VLOOKUP(Q151, 'Allocation Change Graph'!BF$7:BG$20, 2, FALSE), 0), 0) -> 0 | V151: 0.9 | W151: 0 | Z151: 0 | AD151: 0 | AE151: 0 | AF151: 0 | AG151: 0 | AH151: 0 | AI151: 0 | AJ151: 0 | AK151: 0 | AL151: 0 | AM151: 0 | AS151: 0 | AT151: 0
C152: University Wide | D152: La Jolla Campus | E152: East Campus | F152: Health Sciences East | G152: Surface Lot | H152: P757 | I152: - | J152: UC Vehicle | M152: Yes | N152: Yes | P152: P757 | Q152: P757UC Vehicle | R152: =COUNTIF(Q$5:Q152, Q152 ) -> 1 | S152: =_xlfn.IFS(D$2=X$4, X152, D$2=Y$4, Y152,D$2=Z$4, Z152,D$2=AA$4, AA152) -> 0 | T152: 0 | U152: =IF(R152=1, _xlfn.IFNA(VLOOKUP(Q152, 'Allocation Change Graph'!BF$7:BG$20, 2, FALSE), 0), 0) -> 0 | V152: 0.9 | W152: 0 | Z152: 0 | AD152: 0 | AE152: 0 | AF152: 0 | AG152: 0 | AH152: 0 | AI152: 0 | AJ152: 0 | AK152: 0 | AL152: 0 | AM152: 0 | AS152: 0 | AT152: 0
C153: University Wide | D153: La Jolla Campus | E153: East Campus | F153: Health Sciences East | G153: Surface Lot | H153: P758 | I153: - | J153: Accessible | M153: Yes | N153: Yes | P153: P758 | Q153: P758Accessible | R153: =COUNTIF(Q$5:Q153, Q153 ) -> 1 | S153: =_xlfn.IFS(D$2=X$4, X153, D$2=Y$4, Y153,D$2=Z$4, Z153,D$2=AA$4, AA153) -> 2 | T153: 2 | U153: =IF(R153=1, _xlfn.IFNA(VLOOKUP(Q153, 'Allocation Change Graph'!BF$7:BG$20, 2, FALSE), 0), 0) -> 0 | V153: 0.9 | W153: 1.8 | Z153: 2 | AD153: 1 | AE153: 1 | AF153: 0 | AG153: 0 | AH153: 0 | AI153: 1 | AJ153: 0 | AK153: 0 | AL153: 1 | AM153: 0 | AS153: 0 | AT153: 1
C154: University Wide | D154: La Jolla Campus | E154: East Campus | F154: Health Sciences East | G154: Surface Lot | H154: P758 | I154: - | J154: Accessible (Van) | M154: Yes | N154: Yes | P154: P758 | Q154: P758Accessible (Van) | R154: =COUNTIF(Q$5:Q154, Q154 ) -> 1 | S154: =_xlfn.IFS(D$2=X$4, X154, D$2=Y$4, Y154,D$2=Z$4, Z154,D$2=AA$4, AA154) -> 0 | T154: 0 | U154: =IF(R154=1, _xlfn.IFNA(VLOOKUP(Q154, 'Allocation Change Graph'!BF$7:BG$20, 2, FALSE), 0), 0) -> 0 | V154: 0.9 | W154: 0 | AD154: 0 | AE154: 0 | AF154: 0 | AG154: 0 | AH154: 0 | AI154: 0 | AJ154: 0 | AK154: 0 | AL154: 0 | AM154: 0 | AS154: 0 | AT154: 0
C155: University Wide | D155: La Jolla Campus | E155: East Campus | F155: Health Sciences East | G155: Surface Lot | H155: P758 | I155: - | J155: Motorcycle Section | M155: Yes | N155: Yes | P155: P758 | Q155: P758Motorcycle Section | R155: =COUNTIF(Q$5:Q155, Q155 ) -> 1 | S155: =_xlfn.IFS(D$2=X$4, X155, D$2=Y$4, Y155,D$2=Z$4, Z155,D$2=AA$4, AA155) -> 0 | T155: 0 | U155: =IF(R155=1, _xlfn.IFNA(VLOOKUP(Q155, 'Allocation Change Graph'!BF$7:BG$20, 2, FALSE), 0), 0) -> 0 | V155: 0.9 | W155: 0 | Z155: 0 | AD155: 0 | AE155: 0 | AF155: 0 | AG155: 0 | AH155: 0 | AI155: 0 | AJ155: 0 | AK155: 0 | AL155: 0 | AM155: 0 | AS155: 0 | AT155: 0
C156: University Wide | D156: La Jolla Campus | E156: East Campus | F156: Health Sciences East | G156: Surface Lot | H156: P758 | I156: - | J156: Reserved | M156: Yes | N156: Yes | P156: P758 | Q156: P758Reserved | R156: =COUNTIF(Q$5:Q156, Q156 ) -> 1 | S156: =_xlfn.IFS(D$2=X$4, X156, D$2=Y$4, Y156,D$2=Z$4, Z156,D$2=AA$4, AA156) -> 5 | T156: 5 | U156: =IF(R156=1, _xlfn.IFNA(VLOOKUP(Q156, 'Allocation Change Graph'!BF$7:BG$20, 2, FALSE), 0), 0) -> 0 | V156: 0.9 | W156: 4.5 | Z156: 5 | AD156: 2 | AE156: 3 | AF156: 2 | AG156: 2 | AH156: 1 | AI156: 0 | AJ156: 1 | AK156: 1 | AL156: 2 | AM156: 2 | AS156: 0 | AT156: 3
C157: University Wide | D157: La Jolla Campus | E157: East Campus | F157: Health Sciences East | G157: Surface Lot | H157: P759 | I157: - | J157: A | K157: Physician A | M157: Yes | N157: Yes | O157: Yes | P157: P759 | Q157: P759APhysician A | R157: =COUNTIF(Q$5:Q157, Q157 ) -> 1 | S157: =_xlfn.IFS(D$2=X$4, X157, D$2=Y$4, Y157,D$2=Z$4, Z157,D$2=AA$4, AA157) -> 87 | T157: 87 | U157: =IF(R157=1, _xlfn.IFNA(VLOOKUP(Q157, 'Allocation Change Graph'!BF$7:BG$20, 2, FALSE), 0), 0) -> 0 | V157: 0.9 | W157: 78.3 | Z157: 87 | AD157: 50 | AE157: 30 | AF157: 22 | AG157: 15 | AH157: 14 | AI157: 10 | AJ157: 11 | AK157: 15 | AL157: 34 | AM157: 41 | AS157: 10 | AT157: 50
C158: University Wide | D158: La Jolla Campus | E158: East Campus | F158: Health Sciences East | G158: Surface Lot | H158: P759 | I158: - | J158: Accessible | M158: Yes | N158: Yes | P158: P759 | Q158: P759Accessible | R158: =COUNTIF(Q$5:Q158, Q158 ) -> 1 | S158: =_xlfn.IFS(D$2=X$4, X158, D$2=Y$4, Y158,D$2=Z$4, Z158,D$2=AA$4, AA158) -> 4 | T158: 4 | U158: =IF(R158=1, _xlfn.IFNA(VLOOKUP(Q158, 'Allocation Change Graph'!BF$7:BG$20, 2, FALSE), 0), 0) -> 0 | V158: 0.9 | W158: 3.6 | Z158: 4 | AD158: 3 | AE158: 2 | AF158: 2 | AG158: 1 | AH158: 1 | AI158: 3 | AJ158: 1 | AK158: 1 | AL158: 2 | AM158: 2 | AS158: 1 | AT158: 3
C159: University Wide | D159: La Jolla Campus | E159: East Campus | F159: Health Sciences East | G159: Surface Lot | H159: P759 | I159: - | J159: Accessible (Van) | M159: Yes | N159: Yes | P159: P759 | Q159: P759Accessible (Van) | R159: =COUNTIF(Q$5:Q159, Q159 ) -> 1 | S159: =_xlfn.IFS(D$2=X$4, X159, D$2=Y$4, Y159,D$2=Z$4, Z159,D$2=AA$4, AA159) -> 5 | T159: 5 | U159: =IF(R159=1, _xlfn.IFNA(VLOOKUP(Q159, 'Allocation Change Graph'!BF$7:BG$20, 2, FALSE), 0), 0) -> 0 | V159: 0.9 | W159: 4.5 | Z159: 5 | AD159: 2 | AE159: 3 | AF159: 2 | AG159: 2 | AH159: 1 | AI159: 2 | AJ159: 0 | AK159: 0 | AL159: 2 | AM159: 2 | AS159: 0 | AT159: 3
C160: University Wide | D160: La Jolla Campus | E160: East Campus | F160: Health Sciences East | G160: Surface Lot | H160: P759 | I160: - | J160: Motorcycle Section | M160: Yes | N160: Yes | P160: P759 | Q160: P759Motorcycle Section | R160: =COUNTIF(Q$5:Q160, Q160 ) -> 1 | S160: =_xlfn.IFS(D$2=X$4, X160, D$2=Y$4, Y160,D$2=Z$4, Z160,D$2=AA$4, AA160) -> 1 | T160: 1 | U160: =IF(R160=1, _xlfn.IFNA(VLOOKUP(Q160, 'Allocation Change Graph'!BF$7:BG$20, 2, FALSE), 0), 0) -> 0 | V160: 0.9 | W160: 0.9 | Z160: 1 | AD160: 1 | AE160: 1 | AF160: 0 | AG160: 0 | AH160: 1 | AI160: 1 | AJ160: 1 | AK160: 1 | AL160: 1 | AM160: 1 | AS160: 0 | AT160: 1
C161: University Wide | D161: La Jolla Campus | E161: East Campus | F161: Health Sciences East | G161: Surface Lot | H161: P759 | I161: - | J161: Reserved | K161: Alzheimer's Disease Research Center Patient | M161: Yes | N161: Yes | P161: P759 | Q161: P759ReservedAlzheimer's Disease Research Center Patient | R161: =COUNTIF(Q$5:Q161, Q161 ) -> 1 | S161: =_xlfn.IFS(D$2=X$4, X161, D$2=Y$4, Y161,D$2=Z$4, Z161,D$2=AA$4, AA161) -> 10 | T161: 10 | U161: =IF(R161=1, _xlfn.IFNA(VLOOKUP(Q161, 'Allocation Change Graph'!BF$7:BG$20, 2, FALSE), 0), 0) -> 0 | V161: 0.9 | W161: 9 | Z161: 10 | AD161: 6 | AE161: 4 | AF161: 3 | AG161: 4 | AH161: 5 | AI161: 5 | AJ161: 6 | AK161: 7 | AL161: 7 | AM161: 9 | AS161: 3 | AT161: 9
C162: University Wide | D162: La Jolla Campus | E162: East Campus | F162: Health Sciences East | G162: Surface Lot | H162: P759 | I162: - | J162: Reserved | K162: Brain Health and Memory Disorders | M162: Yes | N162: Yes | P162: P759 | Q162: P759ReservedBrain Health and Memory Disorders | R162: =COUNTIF(Q$5:Q162, Q162 ) -> 1 | S162: =_xlfn.IFS(D$2=X$4, X162, D$2=Y$4, Y162,D$2=Z$4, Z162,D$2=AA$4, AA162) -> 5 | T162: 5 | U162: =IF(R162=1, _xlfn.IFNA(VLOOKUP(Q162, 'Allocation Change Graph'!BF$7:BG$20, 2, FALSE), 0), 0) -> 0 | V162: 0.9 | W162: 4.5 | Z162: 5 | AD162: 3 | AE162: 2 | AF162: 2 | AG162: 1 | AH162: 3 | AI162: 2 | AJ162: 2 | AK162: 3 | AL162: 4 | AM162: 4 | AS162: 1 | AT162: 4
C163: University Wide | D163: La Jolla Campus | E163: East Campus | F163: Health Sciences East | G163: Surface Lot | H163: P759 | I163: - | J163: Reserved | K163: Huntington's Disease Clinical Research Center | M163: Yes | N163: Yes | P163: P759 | Q163: P759ReservedHuntington's Disease Clinical Research Center | R163: =COUNTIF(Q$5:Q163, Q163 ) -> 1 | S163: =_xlfn.IFS(D$2=X$4, X163, D$2=Y$4, Y163,D$2=Z$4, Z163,D$2=AA$4, AA163) -> 2 | T163: 2 | U163: =IF(R163=1, _xlfn.IFNA(VLOOKUP(Q163, 'Allocation Change Graph'!BF$7:BG$20, 2, FALSE), 0), 0) -> 0 | V163: 0.9 | W163: 1.8 | Z163: 2 | AD163: 1 | AE163: 2 | AF163: 0 | AG163: 0 | AH163: 1 | AI163: 2 | AJ163: 1 | AK163: 1 | AL163: 1 | AM163: 1 | AS163: 0 | AT163: 2
C164: University Wide | D164: La Jolla Campus | E164: East Campus | F164: Health Sciences East | G164: Surface Lot | H164: P761 | I164: - | J164: UC Vehicle | M164: Yes | N164: Yes | P164: P761 | Q164: P761UC Vehicle | R164: =COUNTIF(Q$5:Q164, Q164 ) -> 1 | S164: =_xlfn.IFS(D$2=X$4, X164, D$2=Y$4, Y164,D$2=Z$4, Z164,D$2=AA$4, AA164) -> 3 | T164: 3 | U164: =IF(R164=1, _xlfn.IFNA(VLOOKUP(Q164, 'Allocation Change Graph'!BF$7:BG$20, 2, FALSE), 0), 0) -> 0 | V164: 0.9 | W164: 2.7 | Z164: 3 | AD164: 2 | AE164: 1 | AF164: 1 | AG164: 2 | AH164: 1 | AI164: 1 | AJ164: 2 | AK164: 3 | AL164: 3 | AM164: 3 | AS164: 1 | AT164: 3
C165: University Wide | D165: La Jolla Campus | E165: East Campus | F165: Health Sciences East | G165: Surface Lot | H165: P762 | I165: - | J165: Loading | M165: Yes | N165: Yes | P165: P762 | Q165: P762Loading | R165: =COUNTIF(Q$5:Q165, Q165 ) -> 1 | S165: =_xlfn.IFS(D$2=X$4, X165, D$2=Y$4, Y165,D$2=Z$4, Z165,D$2=AA$4, AA165) -> 1 | T165: 1 | U165: =IF(R165=1, _xlfn.IFNA(VLOOKUP(Q165, 'Allocation Change Graph'!BF$7:BG$20, 2, FALSE), 0), 0) -> 0 | V165: 0.9 | W165: 0.9 | Z165: 1 | AD165: 1 | AE165: 1 | AF165: 0 | AG165: 1 | AH165: 1 | AI165: 0 | AJ165: 0 | AK165: 0 | AL165: 1 | AM165: 1 | AS165: 0 | AT165: 1
C166: University Wide | D166: La Jolla Campus | E166: East Campus | F166: Health Sciences East | G166: Surface Lot | H166: P762 | I166: - | J166: Service Yard | M166: Yes | N166: Yes | P166: P762 | Q166: P762Service Yard | R166: =COUNTIF(Q$5:Q166, Q166 ) -> 1 | S166: =_xlfn.IFS(D$2=X$4, X166, D$2=Y$4, Y166,D$2=Z$4, Z166,D$2=AA$4, AA166) -> 3 | T166: 3 | U166: =IF(R166=1, _xlfn.IFNA(VLOOKUP(Q166, 'Allocation Change Graph'!BF$7:BG$20, 2, FALSE), 0), 0) -> 0 | V166: 0.9 | W166: 2.7 | Z166: 3 | AD166: 1 | AE166: 2 | AF166: 3 | AG166: 1 | AH166: 1 | AI166: 0 | AJ166: 0 | AK166: 0 | AL166: 3 | AM166: 3 | AS166: 0 | AT166: 3
C167: University Wide | D167: La Jolla Campus | E167: East Campus | F167: Science Research Park | G167: Surface Lot | H167: P782 | I167: - | J167: SS ($3.25) | M167: Yes | N167: Yes | O167: Yes | P167: P782 | Q167: P782SS ($3.25) | R167: =COUNTIF(Q$5:Q167, Q167 ) -> 1 | S167: =_xlfn.IFS(D$2=X$4, X167, D$2=Y$4, Y167,D$2=Z$4, Z167,D$2=AA$4, AA167) -> 216 | T167: 216 | U167: =IF(R167=1, _xlfn.IFNA(VLOOKUP(Q167, 'Allocation Change Graph'!BF$7:BG$20, 2, FALSE), 0), 0) -> 0 | V167: 0.9 | W167: 194.4 | Z167: 216 | AD167: 160 | AE167: 120 | AF167: 100 | AG167: 110 | AH167: 115 | AI167: 130 | AJ167: 61 | AK167: 168 | AL167: 157 | AM167: 169 | AS167: 61 | AT167: 169
C168: University Wide | D168: La Jolla Campus | E168: East Campus | F168: Health Sciences East | G168: Surface Lot | H168: P784 | I168: - | J168: Accessible | M168: Yes | N168: Yes | P168: P784 | Q168: P784Accessible | R168: =COUNTIF(Q$5:Q168, Q168 ) -> 1 | S168: =_xlfn.IFS(D$2=X$4, X168, D$2=Y$4, Y168,D$2=Z$4, Z168,D$2=AA$4, AA168) -> 6 | T168: 6 | U168: =IF(R168=1, _xlfn.IFNA(VLOOKUP(Q168, 'Allocation Change Graph'!BF$7:BG$20, 2, FALSE), 0), 0) -> 0 | V168: 0.9 | W168: 5.4 | Z168: 6 | AD168: 0 | AE168: 0 | AF168: 0 | AG168: 0 | AH168: 1 | AI168: 0 | AJ168: 2 | AK168: 1 | AL168: 2 | AM168: 2 | AS168: 0 | AT168: 2
C169: University Wide | D169: La Jolla Campus | E169: East Campus | F169: Health Sciences East | G169: Surface Lot | H169: P784 | I169: - | J169: Accessible (Van) | M169: Yes | N169: Yes | P169: P784 | Q169: P784Accessible (Van) | R169: =COUNTIF(Q$5:Q169, Q169 ) -> 1 | S169: =_xlfn.IFS(D$2=X$4, X169, D$2=Y$4, Y169,D$2=Z$4, Z169,D$2=AA$4, AA169) -> 12 | T169: 12 | U169: =IF(R169=1, _xlfn.IFNA(VLOOKUP(Q169, 'Allocation Change Graph'!BF$7:BG$20, 2, FALSE), 0), 0) -> 0 | V169: 0.9 | W169: 10.8 | Z169: 12 | AD169: 0 | AE169: 0 | AF169: 0 | AG169: 1 | AH169: 0 | AI169: 0 | AJ169: 0 | AK169: 0 | AL169: 3 | AM169: 3 | AS169: 0 | AT169: 3
C170: University Wide | D170: La Jolla Campus | E170: East Campus | F170: Health Sciences East | G170: Surface Lot | H170: P784 | I170: - | J170: B | M170: Yes | N170: Yes | O170: Yes | P170: P784 | Q170: P784B | R170: =COUNTIF(Q$5:Q170, Q170 ) -> 1 | S170: =_xlfn.IFS(D$2=X$4, X170, D$2=Y$4, Y170,D$2=Z$4, Z170,D$2=AA$4, AA170) -> 81 | T170: 81 | U170: =IF(R170=1, _xlfn.IFNA(VLOOKUP(Q170, 'Allocation Change Graph'!BF$7:BG$20, 2, FALSE), 0), 0) -> 0 | V170: 0.9 | W170: 72.9 | Z170: 81 | AD170: 0 | AE170: 0 | AF170: 0 | AG170: 0 | AH170: 1 | AI170: 1 | AJ170: 0 | AK170: 11 | AL170: 13 | AM170: 28 | AS170: 0 | AT170: 28
C171: University Wide | D171: La Jolla Campus | E171: East Campus | F171: Health Sciences East | G171: Surface Lot | H171: P784 | I171: - | J171: Reserved | K171: Valet | M171: Yes | N171: Yes | P171: P784 | Q171: P784ReservedValet | R171: =COUNTIF(Q$5:Q171, Q171 ) -> 1 | S171: =_xlfn.IFS(D$2=X$4, X171, D$2=Y$4, Y171,D$2=Z$4, Z171,D$2=AA$4, AA171) -> 9 | T171: 9 | U171: =IF(R171=1, _xlfn.IFNA(VLOOKUP(Q171, 'Allocation Change Graph'!BF$7:BG$20, 2, FALSE), 0), 0) -> 0 | V171: 0.9 | W171: 8.1 | Z171: 9 | AD171: 7 | AE171: 5 | AF171: 0 | AG171: 3 | AH171: 5 | AI171: 2 | AJ171: 7 | AK171: 7 | AL171: 8 | AM171: 7 | AS171: 0 | AT171: 8
C172: University Wide | D172: La Jolla Campus | E172: East Campus | F172: Health Sciences East | G172: Surface Lot | H172: P785 | I172: - | J172: Accessible | M172: Yes | N172: Yes | P172: P785 | Q172: P785Accessible | R172: =COUNTIF(Q$5:Q172, Q172 ) -> 1 | S172: =_xlfn.IFS(D$2=X$4, X172, D$2=Y$4, Y172,D$2=Z$4, Z172,D$2=AA$4, AA172) -> 0 | T172: 0 | U172: =IF(R172=1, _xlfn.IFNA(VLOOKUP(Q172, 'Allocation Change Graph'!BF$7:BG$20, 2, FALSE), 0), 0) -> 0 | V172: 0.9 | W172: 0 | Z172: 0 | AD172: 0 | AE172: 0 | AF172: 0 | AG172: 0 | AH172: 0 | AI172: 0 | AJ172: 0 | AK172: 0 | AL172: 0 | AM172: 0 | AS172: 0 | AT172: 0
C173: University Wide | D173: La Jolla Campus | E173: East Campus | F173: Health Sciences East | G173: Surface Lot | H173: P785 | I173: - | J173: Accessible (Van) | M173: Yes | N173: Yes | P173: P785 | Q173: P785Accessible (Van) | R173: =COUNTIF(Q$5:Q173, Q173 ) -> 1 | S173: =_xlfn.IFS(D$2=X$4, X173, D$2=Y$4, Y173,D$2=Z$4, Z173,D$2=AA$4, AA173) -> 8 | T173: 8 | U173: =IF(R173=1, _xlfn.IFNA(VLOOKUP(Q173, 'Allocation Change Graph'!BF$7:BG$20, 2, FALSE), 0), 0) -> 0 | V173: 0.9 | W173: 7.2 | Z173: 8 | AD173: 1 | AE173: 3 | AF173: 4 | AG173: 4 | AH173: 2 | AI173: 3 | AJ173: 0 | AK173: 2 | AL173: 3 | AM173: 4 | AS173: 0 | AT173: 4
C174: University Wide | D174: La Jolla Campus | E174: East Campus | F174: Health Sciences East | G174: Surface Lot | H174: P785 | I174: - | J174: B | M174: Yes | N174: Yes | O174: Yes | P174: P785 | Q174: P785B | R174: =COUNTIF(Q$5:Q174, Q174 ) -> 1 | S174: =_xlfn.IFS(D$2=X$4, X174, D$2=Y$4, Y174,D$2=Z$4, Z174,D$2=AA$4, AA174) -> 384 | T174: 384 | U174: =IF(R174=1, _xlfn.IFNA(VLOOKUP(Q174, 'Allocation Change Graph'!BF$7:BG$20, 2, FALSE), 0), 0) -> 0 | V174: 0.9 | W174: 345.6 | Z174: 384 | AD174: 0 | AE174: 4 | AF174: 2 | AG174: 2 | AH174: 1 | AI174: 0 | AJ174: 7 | AK174: 86 | AL174: 170 | AM174: 212 | AS174: 0 | AT174: 212
C175: University Wide | D175: Medical Center Hillcrest | E175: Medical Center Hillcrest | F175: Medical Center Hillcrest | G175: Arbor | H175: P901 | I175: L1 | J175: Visitor | M175: Yes | N175: Yes | P175: Arbor | Q175: ArborVisitor | R175: =COUNTIF(Q$5:Q175, Q175 ) -> 1 | S175: =_xlfn.IFS(D$2=X$4, X175, D$2=Y$4, Y175,D$2=Z$4, Z175,D$2=AA$4, AA175) -> 41 | T175: 263 | U175: =IF(R175=1, _xlfn.IFNA(VLOOKUP(Q175, 'Allocation Change Graph'!BF$7:BG$20, 2, FALSE), 0), 0) -> 0 | V175: 0.85 | W175: 223.55 | Z175: 41 | AD175: 201 | AE175: 143 | AF175: 111 | AG175: 92 | AH175: 76 | AI175: 84 | AJ175: 105 | AK175: 137 | AL175: 177 | AM175: 181 | AS175: 76 | AT175: 201
C176: University Wide | D176: Medical Center Hillcrest | E176: Medical Center Hillcrest | F176: Medical Center Hillcrest | G176: Arbor | H176: P902 | I176: L2 | J176: Visitor | M176: Yes | P176: Arbor | Q176: ArborVisitor | R176: =COUNTIF(Q$5:Q176, Q176 ) -> 2 | S176: =_xlfn.IFS(D$2=X$4, X176, D$2=Y$4, Y176,D$2=Z$4, Z176,D$2=AA$4, AA176) -> 41 | U176: =IF(R176=1, _xlfn.IFNA(VLOOKUP(Q176, 'Allocation Change Graph'!BF$7:BG$20, 2, FALSE), 0), 0) -> 0 | Z176: 41 | AS176: 0 | AT176: 0
C177: University Wide | D177: Medical Center Hillcrest | E177: Medical Center Hillcrest | F177: Medical Center Hillcrest | G177: Arbor | H177: P903 | I177: L3 | J177: Visitor | M177: Yes | P177: Arbor | Q177: ArborVisitor | R177: =COUNTIF(Q$5:Q177, Q177 ) -> 3 | S177: =_xlfn.IFS(D$2=X$4, X177, D$2=Y$4, Y177,D$2=Z$4, Z177,D$2=AA$4, AA177) -> 39 | U177: =IF(R177=1, _xlfn.IFNA(VLOOKUP(Q177, 'Allocation Change Graph'!BF$7:BG$20, 2, FALSE), 0), 0) -> 0 | Z177: 39 | AS177: 0 | AT177: 0
C178: University Wide | D178: Medical Center Hillcrest | E178: Medical Center Hillcrest | F178: Medical Center Hillcrest | G178: Arbor | H178: P904 | I178: L4 | J178: Visitor | M178: Yes | P178: Arbor | Q178: ArborVisitor | R178: =COUNTIF(Q$5:Q178, Q178 ) -> 4 | S178: =_xlfn.IFS(D$2=X$4, X178, D$2=Y$4, Y178,D$2=Z$4, Z178,D$2=AA$4, AA178) -> 39 | U178: =IF(R178=1, _xlfn.IFNA(VLOOKUP(Q178, 'Allocation Change Graph'!BF$7:BG$20, 2, FALSE), 0), 0) -> 0 | Z178: 39 | AS178: 0 | AT178: 0
C179: University Wide | D179: Medical Center Hillcrest | E179: Medical Center Hillcrest | F179: Medical Center Hillcrest | G179: Arbor | H179: P905 | I179: L5 | J179: Visitor | M179: Yes | P179: Arbor | Q179: ArborVisitor | R179: =COUNTIF(Q$5:Q179, Q179 ) -> 5 | S179: =_xlfn.IFS(D$2=X$4, X179, D$2=Y$4, Y179,D$2=Z$4, Z179,D$2=AA$4, AA179) -> 39 | U179: =IF(R179=1, _xlfn.IFNA(VLOOKUP(Q179, 'Allocation Change Graph'!BF$7:BG$20, 2, FALSE), 0), 0) -> 0 | Z179: 39 | AS179: 0 | AT179: 0
C180: University Wide | D180: Medical Center Hillcrest | E180: Medical Center Hillcrest | F180: Medical Center Hillcrest | G180: Arbor | H180: P906 | I180: L6 | J180: Visitor | M180: Yes | P180: Arbor | Q180: ArborVisitor | R180: =COUNTIF(Q$5:Q180, Q180 ) -> 6 | S180: =_xlfn.IFS(D$2=X$4, X180, D$2=Y$4, Y180,D$2=Z$4, Z180,D$2=AA$4, AA180) -> 39 | U180: =IF(R180=1, _xlfn.IFNA(VLOOKUP(Q180, 'Allocation Change Graph'!BF$7:BG$20, 2, FALSE), 0), 0) -> 0 | Z180: 39 | AS180: 0 | AT180: 0
C181: University Wide | D181: Medical Center Hillcrest | E181: Medical Center Hillcrest | F181: Medical Center Hillcrest | G181: Arbor | H181: P907 | I181: L7 | J181: Motorcycle Section | M181: Yes | N181: Yes | P181: Arbor | Q181: ArborMotorcycle Section | R181: =COUNTIF(Q$5:Q181, Q181 ) -> 1 | S181: =_xlfn.IFS(D$2=X$4, X181, D$2=Y$4, Y181,D$2=Z$4, Z181,D$2=AA$4, AA181) -> 10 | T181: 10 | U181: =IF(R181=1, _xlfn.IFNA(VLOOKUP(Q181, 'Allocation Change Graph'!BF$7:BG$20, 2, FALSE), 0), 0) -> 0 | V181: 0.85 | W181: 8.5 | Z181: 10 | AD181: 9 | AE181: 9 | AF181: 8 | AG181: 8 | AH181: 9 | AI181: 10 | AJ181: 9 | AK181: 9 | AL181: 10 | AM181: 10 | AS181: 8 | AT181: 10
C182: University Wide | D182: Medical Center Hillcrest | E182: Medical Center Hillcrest | F182: Medical Center Hillcrest | G182: Arbor | H182: P907 | I182: L7 | J182: Visitor | K182: Patient Visitor Reserved | M182: Yes | N182: Yes | P182: Arbor | Q182: ArborVisitorPatient Visitor Reserved | R182: =COUNTIF(Q$5:Q182, Q182 ) -> 1 | S182: =_xlfn.IFS(D$2=X$4, X182, D$2=Y$4, Y182,D$2=Z$4, Z182,D$2=AA$4, AA182) -> 4 | T182: 4 | U182: =IF(R182=1, _xlfn.IFNA(VLOOKUP(Q182, 'Allocation Change Graph'!BF$7:BG$20, 2, FALSE), 0), 0) -> 0 | V182: 0.85 | W182: 3.4 | Z182: 4 | AD182: 3 | AE182: 2 | AF182: 1 | AG182: 1 | AH182: 2 | AI182: 2 | AJ182: 1 | AK182: 2 | AL182: 3 | AM182: 3 | AS182: 1 | AT182: 3
C183: University Wide | D183: Medical Center Hillcrest | E183: Medical Center Hillcrest | F183: Medical Center Hillcrest | G183: Arbor | H183: P907 | I183: L7 | J183: Visitor | M183: Yes | P183: Arbor | Q183: ArborVisitor | R183: =COUNTIF(Q$5:Q183, Q183 ) -> 7 | S183: =_xlfn.IFS(D$2=X$4, X183, D$2=Y$4, Y183,D$2=Z$4, Z183,D$2=AA$4, AA183) -> 25 | U183: =IF(R183=1, _xlfn.IFNA(VLOOKUP(Q183, 'Allocation Change Graph'!BF$7:BG$20, 2, FALSE), 0), 0) -> 0 | Z183: 25 | AS183: 0 | AT183: 0
C184: University Wide | D184: Medical Center Hillcrest | E184: Medical Center Hillcrest | F184: Medical Center Hillcrest | G184: Arbor | H184: P908 | I184: L8 | J184: Accessible | M184: Yes | N184: Yes | P184: Arbor | Q184: ArborAccessible | R184: =COUNTIF(Q$5:Q184, Q184 ) -> 1 | S184: =_xlfn.IFS(D$2=X$4, X184, D$2=Y$4, Y184,D$2=Z$4, Z184,D$2=AA$4, AA184) -> 10 | T184: 15 | U184: =IF(R184=1, _xlfn.IFNA(VLOOKUP(Q184, 'Allocation Change Graph'!BF$7:BG$20, 2, FALSE), 0), 0) -> 0 | V184: 0.85 | W184: 12.75 | Z184: 10 | AD184: 11 | AE184: 9 | AF184: 6 | AG184: 5 | AH184: 6 | AI184: 8 | AJ184: 4 | AK184: 3 | AL184: 5 | AM184: 8 | AS184: 3 | AT184: 11
C185: University Wide | D185: Medical Center Hillcrest | E185: Medical Center Hillcrest | F185: Medical Center Hillcrest | G185: Arbor | H185: P908 | I185: L8 | J185: Accessible (Van) | M185: Yes | N185: Yes | P185: Arbor | Q185: ArborAccessible (Van) | R185: =COUNTIF(Q$5:Q185, Q185 ) -> 1 | S185: =_xlfn.IFS(D$2=X$4, X185, D$2=Y$4, Y185,D$2=Z$4, Z185,D$2=AA$4, AA185) -> 0 | T185: 0 | U185: =IF(R185=1, _xlfn.IFNA(VLOOKUP(Q185, 'Allocation Change Graph'!BF$7:BG$20, 2, FALSE), 0), 0) -> 0 | V185: 0.85 | W185: 0 | AS185: 0 | AT185: 0
C186: University Wide | D186: Medical Center Hillcrest | E186: Medical Center Hillcrest | F186: Medical Center Hillcrest | G186: Arbor | H186: P908 | I186: L8 | J186: Reserved | K186: Transportation Office | M186: Yes | N186: Yes | P186: Arbor | Q186: ArborReservedTransportation Office | R186: =COUNTIF(Q$5:Q186, Q186 ) -> 1 | S186: =_xlfn.IFS(D$2=X$4, X186, D$2=Y$4, Y186,D$2=Z$4, Z186,D$2=AA$4, AA186) -> 1 | T186: 1 | U186: =IF(R186=1, _xlfn.IFNA(VLOOKUP(Q186, 'Allocation Change Graph'!BF$7:BG$20, 2, FALSE), 0), 0) -> 0 | V186: 0.85 | W186: 0.85 | Z186: 1 | AD186: 0 | AE186: 0 | AF186: 0 | AG186: 0 | AH186: 0 | AI186: 1 | AJ186: 1 | AK186: 1 | AL186: 1 | AM186: 1 | AS186: 0 | AT186: 1
C187: University Wide | D187: Medical Center Hillcrest | E187: Medical Center Hillcrest | F187: Medical Center Hillcrest | G187: Arbor | H187: P908 | I187: L8 | J187: UC Vehicle | M187: Yes | N187: Yes | P187: Arbor | Q187: ArborUC Vehicle | R187: =COUNTIF(Q$5:Q187, Q187 ) -> 1 | S187: =_xlfn.IFS(D$2=X$4, X187, D$2=Y$4, Y187,D$2=Z$4, Z187,D$2=AA$4, AA187) -> 2 | T187: 2 | U187: =IF(R187=1, _xlfn.IFNA(VLOOKUP(Q187, 'Allocation Change Graph'!BF$7:BG$20, 2, FALSE), 0), 0) -> 0 | V187: 0.85 | W187: 1.7 | Z187: 2 | AD187: 0 | AE187: 0 | AF187: 0 | AG187: 0 | AH187: 0 | AI187: 1 | AJ187: 0 | AK187: 1 | AL187: 2 | AM187: 2 | AS187: 0 | AT187: 2
C188: University Wide | D188: Medical Center Hillcrest | E188: Medical Center Hillcrest | F188: Medical Center Hillcrest | G188: Arbor | H188: P909 | I188: L9 | J188: Electric Vehicle | L188: 4 Hours | M188: Yes | N188: Yes | P188: Arbor | Q188: ArborElectric Vehicle4 Hours | R188: =COUNTIF(Q$5:Q188, Q188 ) -> 1 | S188: =_xlfn.IFS(D$2=X$4, X188, D$2=Y$4, Y188,D$2=Z$4, Z188,D$2=AA$4, AA188) -> 12 | T188: 12 | U188: =IF(R188=1, _xlfn.IFNA(VLOOKUP(Q188, 'Allocation Change Graph'!BF$7:BG$20, 2, FALSE), 0), 0) -> 0 | V188: 0.85 | W188: 10.2 | Z188: 12 | AD188: 7 | AE188: 5 | AF188: 3 | AG188: 4 | AH188: 2 | AI188: 5 | AJ188: 4 | AK188: 2 | AL188: 4 | AM188: 9 | AS188: 2 | AT188: 9
C189: University Wide | D189: Medical Center Hillcrest | E189: Medical Center Hillcrest | F189: Medical Center Hillcrest | G189: Arbor | H189: P909 | I189: L9 | J189: Motorcycle Section | M189: Yes | P189: Arbor | Q189: ArborMotorcycle Section | R189: =COUNTIF(Q$5:Q189, Q189 ) -> 2 | S189: =_xlfn.IFS(D$2=X$4, X189, D$2=Y$4, Y189,D$2=Z$4, Z189,D$2=AA$4, AA189) -> 0 | U189: =IF(R189=1, _xlfn.IFNA(VLOOKUP(Q189, 'Allocation Change Graph'!BF$7:BG$20, 2, FALSE), 0), 0) -> 0 | AS189: 0 | AT189: 0
C190: University Wide | D190: Medical Center Hillcrest | E190: Medical Center Hillcrest | F190: Medical Center Hillcrest | G190: Arbor | H190: P909 | I190: L9 | J190: Reserved | M190: Yes | N190: Yes | P190: Arbor | Q190: ArborReserved | R190: =COUNTIF(Q$5:Q190, Q190 ) -> 1 | S190: =_xlfn.IFS(D$2=X$4, X190, D$2=Y$4, Y190,D$2=Z$4, Z190,D$2=AA$4, AA190) -> 19 | T190: 19 | U190: =IF(R190=1, _xlfn.IFNA(VLOOKUP(Q190, 'Allocation Change Graph'!BF$7:BG$20, 2, FALSE), 0), 0) -> 0 | V190: 0.85 | W190: 16.15 | Z190: 19 | AD190: 9 | AE190: 7 | AF190: 4 | AG190: 3 | AH190: 3 | AI190: 5 | AJ190: 14 | AK190: 16 | AL190: 14 | AM190: 18 | AS190: 3 | AT190: 18
C191: University Wide | D191: Medical Center Hillcrest | E191: Medical Center Hillcrest | F191: Medical Center Hillcrest | G191: Arbor | H191: P910 | I191: L10 | J191: A | M191: Yes | N191: Yes | P191: Arbor | Q191: ArborA | R191: =COUNTIF(Q$5:Q191, Q191 ) -> 1 | S191: =_xlfn.IFS(D$2=X$4, X191, D$2=Y$4, Y191,D$2=Z$4, Z191,D$2=AA$4, AA191) -> 44 | T191: 226 | U191: =IF(R191=1, _xlfn.IFNA(VLOOKUP(Q191, 'Allocation Change Graph'!BF$7:BG$20, 2, FALSE), 0), 0) -> 0 | V191: 0.9 | W191: 203.4 | Z191: 44 | AD191: 131 | AE191: 80 | AF191: 48 | AG191: 31 | AH191: 27 | AI191: 35 | AJ191: 42 | AK191: 59 | AL191: 100 | AM191: 145 | AS191: 27 | AT191: 145
C192: University Wide | D192: Medical Center Hillcrest | E192: Medical Center Hillcrest | F192: Medical Center Hillcrest | G192: Arbor | H192: P910 | I192: L10 | J192: Accessible | M192: Yes | P192: Arbor | Q192: ArborAccessible | R192: =COUNTIF(Q$5:Q192, Q192 ) -> 2 | S192: =_xlfn.IFS(D$2=X$4, X192, D$2=Y$4, Y192,D$2=Z$4, Z192,D$2=AA$4, AA192) -> 3 | U192: =IF(R192=1, _xlfn.IFNA(VLOOKUP(Q192, 'Allocation Change Graph'!BF$7:BG$20, 2, FALSE), 0), 0) -> 0 | Z192: 3 | AS192: 0 | AT192: 0
C193: University Wide | D193: Medical Center Hillcrest | E193: Medical Center Hillcrest | F193: Medical Center Hillcrest | G193: Arbor | H193: P910 | I193: L10 | J193: Accessible (Van) | M193: Yes | P193: Arbor | Q193: ArborAccessible (Van) | R193: =COUNTIF(Q$5:Q193, Q193 ) -> 2 | S193: =_xlfn.IFS(D$2=X$4, X193, D$2=Y$4, Y193,D$2=Z$4, Z193,D$2=AA$4, AA193) -> 0 | U193: =IF(R193=1, _xlfn.IFNA(VLOOKUP(Q193, 'Allocation Change Graph'!BF$7:BG$20, 2, FALSE), 0), 0) -> 0 | AS193: 0 | AT193: 0
C194: University Wide | D194: Medical Center Hillcrest | E194: Medical Center Hillcrest | F194: Medical Center Hillcrest | G194: Arbor | H194: P911 | I194: L11 | J194: A | M194: Yes | P194: Arbor | Q194: ArborA | R194: =COUNTIF(Q$5:Q194, Q194 ) -> 2 | S194: =_xlfn.IFS(D$2=X$4, X194, D$2=Y$4, Y194,D$2=Z$4, Z194,D$2=AA$4, AA194) -> 47 | U194: =IF(R194=1, _xlfn.IFNA(VLOOKUP(Q194, 'Allocation Change Graph'!BF$7:BG$20, 2, FALSE), 0), 0) -> 0 | Z194: 47 | AS194: 0 | AT194: 0
C195: University Wide | D195: Medical Center Hillcrest | E195: Medical Center Hillcrest | F195: Medical Center Hillcrest | G195: Arbor | H195: P912 | I195: L12 | J195: A | M195: Yes | P195: Arbor | Q195: ArborA | R195: =COUNTIF(Q$5:Q195, Q195 ) -> 3 | S195: =_xlfn.IFS(D$2=X$4, X195, D$2=Y$4, Y195,D$2=Z$4, Z195,D$2=AA$4, AA195) -> 45 | U195: =IF(R195=1, _xlfn.IFNA(VLOOKUP(Q195, 'Allocation Change Graph'!BF$7:BG$20, 2, FALSE), 0), 0) -> 0 | Z195: 45 | AS195: 0 | AT195: 0
C196: University Wide | D196: Medical Center Hillcrest | E196: Medical Center Hillcrest | F196: Medical Center Hillcrest | G196: Arbor | H196: P912 | I196: L12 | J196: Accessible | M196: Yes | P196: Arbor | Q196: ArborAccessible | R196: =COUNTIF(Q$5:Q196, Q196 ) -> 3 | S196: =_xlfn.IFS(D$2=X$4, X196, D$2=Y$4, Y196,D$2=Z$4, Z196,D$2=AA$4, AA196) -> 1 | U196: =IF(R196=1, _xlfn.IFNA(VLOOKUP(Q196, 'Allocation Change Graph'!BF$7:BG$20, 2, FALSE), 0), 0) -> 0 | Z196: 1 | AS196: 0 | AT196: 0
C197: University Wide | D197: Medical Center Hillcrest | E197: Medical Center Hillcrest | F197: Medical Center Hillcrest | G197: Arbor | H197: P912 | I197: L12 | J197: Accessible (Van) | M197: Yes | P197: =IF(G197="Surface Lot", H197, G197) -> Arbor | Q197: =P197&J197&K197&L197 -> ArborAccessible (Van) | R197: =COUNTIF(Q$5:Q197, Q197 ) -> 3 | S197: =_xlfn.IFS(D$2=X$4, X197, D$2=Y$4, Y197,D$2=Z$4, Z197,D$2=AA$4, AA197) -> 0 | T197: =IF(R197=1,SUMIF(Q:Q,Q197,S:S)+U197, "") ->  | U197: =IF(R197=1, _xlfn.IFNA(VLOOKUP(Q197, 'Allocation Change Graph'!BF$7:BG$20, 2, FALSE), 0), 0) -> 0 | W197: =IF(R197=1, V197*T197, "") ->  | AS197: =MIN($AB197:$AR197)+U197 -> 0 | AT197: =MAX($AB197:$AR197)+U197 -> 0
C198: University Wide | D198: Medical Center Hillcrest | E198: Medical Center Hillcrest | F198: Medical Center Hillcrest | G198: Arbor | H198: P913 | I198: L13 | J198: A | M198: Yes | P198: Arbor | Q198: ArborA | R198: =COUNTIF(Q$5:Q198, Q198 ) -> 4 | S198: =_xlfn.IFS(D$2=X$4, X198, D$2=Y$4, Y198,D$2=Z$4, Z198,D$2=AA$4, AA198) -> 47 | U198: =IF(R198=1, _xlfn.IFNA(VLOOKUP(Q198, 'Allocation Change Graph'!BF$7:BG$20, 2, FALSE), 0), 0) -> 0 | Z198: 47 | AS198: 0 | AT198: 0
C199: University Wide | D199: Medical Center Hillcrest | E199: Medical Center Hillcrest | F199: Medical Center Hillcrest | G199: Arbor | H199: P914 | I199: L14 | J199: A | M199: Yes | P199: Arbor | Q199: ArborA | R199: =COUNTIF(Q$5:Q199, Q199 ) -> 5 | S199: =_xlfn.IFS(D$2=X$4, X199, D$2=Y$4, Y199,D$2=Z$4, Z199,D$2=AA$4, AA199) -> 43 | U199: =IF(R199=1, _xlfn.IFNA(VLOOKUP(Q199, 'Allocation Change Graph'!BF$7:BG$20, 2, FALSE), 0), 0) -> 0 | Z199: 43 | AS199: 0 | AT199: 0
C200: University Wide | D200: Medical Center Hillcrest | E200: Medical Center Hillcrest | F200: Medical Center Hillcrest | G200: Arbor | H200: P914 | I200: L14 | J200: Accessible | M200: Yes | P200: Arbor | Q200: ArborAccessible | R200: =COUNTIF(Q$5:Q200, Q200 ) -> 4 | S200: =_xlfn.IFS(D$2=X$4, X200, D$2=Y$4, Y200,D$2=Z$4, Z200,D$2=AA$4, AA200) -> 1 | U200: =IF(R200=1, _xlfn.IFNA(VLOOKUP(Q200, 'Allocation Change Graph'!BF$7:BG$20, 2, FALSE), 0), 0) -> 0 | Z200: 1 | AS200: 0 | AT200: 0
C201: University Wide | D201: Medical Center Hillcrest | E201: Medical Center Hillcrest | F201: Medical Center Hillcrest | G201: Arbor | H201: P914 | I201: L14 | J201: Accessible (Van) | M201: Yes | P201: Arbor | Q201: ArborAccessible (Van) | R201: =COUNTIF(Q$5:Q201, Q201 ) -> 4 | S201: =_xlfn.IFS(D$2=X$4, X201, D$2=Y$4, Y201,D$2=Z$4, Z201,D$2=AA$4, AA201) -> 0 | U201: =IF(R201=1, _xlfn.IFNA(VLOOKUP(Q201, 'Allocation Change Graph'!BF$7:BG$20, 2, FALSE), 0), 0) -> 0 | AS201: 0 | AT201: 0
... 800 more rows

Sheet Print Inventory Forms (hidden)
A1: Day / Date : | E1: Name(s) :
M3: * Only enter the number of open spaces
A4: ='Pivot Table Data'!B4 -> Zone # | B4: ='Pivot Table Data'!F4 -> Neighborhood | C4: ='Pivot Table Data'!P4 -> Lot / Structure | D4: ='Pivot Table Data'!I4 -> Garage Level | E4: ='Pivot Table Data'!J4 -> Space Type | F4: ='Pivot Table Data'!K4 -> Space Subtype | G4: ='Pivot Table Data'!L4 -> Time Limit [minutes] | H4: Stall Count (Inventory) | I4: Stall Count (Occupancy) | J4: Stall Count (QPass) | K4: ='Pivot Table Data'!AB4 -> 6am | L4: ='Pivot Table Data'!AC4 -> 7am | M4: ='Pivot Table Data'!AD4 -> 8am | N4: ='Pivot Table Data'!AE4 -> 9am | O4: ='Pivot Table Data'!AF4 -> 10am | P4: ='Pivot Table Data'!AG4 -> 11am | Q4: ='Pivot Table Data'!AH4 -> 12pm | R4: ='Pivot Table Data'!AI4 -> 1pm | S4: ='Pivot Table Data'!AJ4 -> 2pm | T4: ='Pivot Table Data'!AK4 -> 3pm | U4: ='Pivot Table Data'!AL4 -> 4pm | V4: ='Pivot Table Data'!AM4 -> 5pm | W4: ='Pivot Table Data'!AN4 -> 6pm | X4: ='Pivot Table Data'!AO4 -> 7pm | Y4: ='Pivot Table Data'!AP4 -> 8pm | Z4: ='Pivot Table Data'!AQ4 -> 9pm | AA4: ='Pivot Table Data'!AR4 -> 10pm | AB4: Notes
A5: ='Pivot Table Data'!B5 -> 0 | B5: ='Pivot Table Data'!F5 -> Health Sciences East | C5: ='Pivot Table Data'!P5 -> Athena | D5: ='Pivot Table Data'!I5 -> Ground Floor | E5: ='Pivot Table Data'!J5 -> A | F5: ='Pivot Table Data'!K5 -> 0 | G5: ='Pivot Table Data'!L5 -> 0 | H5: ='Pivot Table Data'!S5 -> 4 | I5: ='Pivot Table Data'!T5 -> 307 | J5: =IF('Pivot Table Data'!O5="Yes", 'Pivot Table Data'!T5, "") -> 307
A6: ='Pivot Table Data'!B6 -> 0 | B6: ='Pivot Table Data'!F6 -> Health Sciences East | C6: ='Pivot Table Data'!P6 -> Athena | D6: ='Pivot Table Data'!I6 -> Ground Floor | E6: ='Pivot Table Data'!J6 -> Accessible | F6: ='Pivot Table Data'!K6 -> 0 | G6: ='Pivot Table Data'!L6 -> 0 | H6: ='Pivot Table Data'!S6 -> 49 | I6: ='Pivot Table Data'!T6 -> 71 | J6: =IF('Pivot Table Data'!O6="Yes", 'Pivot Table Data'!T6, "") -> 
A7: ='Pivot Table Data'!B7 -> 0 | B7: ='Pivot Table Data'!F7 -> Health Sciences East | C7: ='Pivot Table Data'!P7 -> Athena | D7: ='Pivot Table Data'!I7 -> Ground Floor | E7: ='Pivot Table Data'!J7 -> Accessible (Van) | F7: ='Pivot Table Data'!K7 -> 0 | G7: ='Pivot Table Data'!L7 -> 0 | H7: ='Pivot Table Data'!S7 -> 3 | I7: ='Pivot Table Data'!T7 -> 8 | J7: =IF('Pivot Table Data'!O7="Yes", 'Pivot Table Data'!T7, "") -> 
A8: ='Pivot Table Data'!B8 -> 0 | B8: ='Pivot Table Data'!F8 -> Health Sciences East | C8: ='Pivot Table Data'!P8 -> Athena | D8: ='Pivot Table Data'!I8 -> Ground Floor | E8: ='Pivot Table Data'!J8 -> Accessible (Van) | F8: ='Pivot Table Data'!K8 -> 0 | G8: ='Pivot Table Data'!L8 -> 0 | H8: ='Pivot Table Data'!S8 -> 0 | I8: ='Pivot Table Data'!T8 ->  | J8: =IF('Pivot Table Data'!O8="Yes", 'Pivot Table Data'!T8, "") -> 
A9: ='Pivot Table Data'!B9 -> 0 | B9: ='Pivot Table Data'!F9 -> Health Sciences East | C9: ='Pivot Table Data'!P9 -> Athena | D9: ='Pivot Table Data'!I9 -> Ground Floor | E9: ='Pivot Table Data'!J9 -> Electric Vehicle | F9: ='Pivot Table Data'!K9 -> ADA | G9: ='Pivot Table Data'!L9 -> 0 | H9: ='Pivot Table Data'!S9 -> 2 | I9: ='Pivot Table Data'!T9 -> 2 | J9: =IF('Pivot Table Data'!O9="Yes", 'Pivot Table Data'!T9, "") -> 
A10: ='Pivot Table Data'!B10 -> 0 | B10: ='Pivot Table Data'!F10 -> Health Sciences East | C10: ='Pivot Table Data'!P10 -> Athena | D10: ='Pivot Table Data'!I10 -> Ground Floor | E10: ='Pivot Table Data'!J10 -> Electric Vehicle | F10: ='Pivot Table Data'!K10 -> 0 | G10: ='Pivot Table Data'!L10 -> 0 | H10: ='Pivot Table Data'!S10 -> 16 | I10: ='Pivot Table Data'!T10 -> 16 | J10: =IF('Pivot Table Data'!O10="Yes", 'Pivot Table Data'!T10, "") -> 
A11: ='Pivot Table Data'!B11 -> 0 | B11: ='Pivot Table Data'!F11 -> Health Sciences East | C11: ='Pivot Table Data'!P11 -> Athena | D11: ='Pivot Table Data'!I11 -> Ground Floor | E11: ='Pivot Table Data'!J11 -> Motorcycle Section | F11: ='Pivot Table Data'!K11 -> 0 | G11: ='Pivot Table Data'!L11 -> 0 | H11: ='Pivot Table Data'!S11 -> 0 | I11: ='Pivot Table Data'!T11 -> 30 | J11: =IF('Pivot Table Data'!O11="Yes", 'Pivot Table Data'!T11, "") -> 
A12: ='Pivot Table Data'!B12 -> 0 | B12: ='Pivot Table Data'!F12 -> Health Sciences East | C12: ='Pivot Table Data'!P12 -> Athena | D12: ='Pivot Table Data'!I12 -> Ground Floor | E12: ='Pivot Table Data'!J12 -> Visitor | F12: ='Pivot Table Data'!K12 -> Patient/Visitor Reserved | G12: ='Pivot Table Data'!L12 -> 30 minutes | H12: ='Pivot Table Data'!S12 -> 9 | I12: ='Pivot Table Data'!T12 -> 9 | J12: =IF('Pivot Table Data'!O12="Yes", 'Pivot Table Data'!T12, "") -> 9
A13: ='Pivot Table Data'!B13 -> 0 | B13: ='Pivot Table Data'!F13 -> Health Sciences East | C13: ='Pivot Table Data'!P13 -> Athena | D13: ='Pivot Table Data'!I13 -> Ground Floor | E13: ='Pivot Table Data'!J13 -> Visitor | F13: ='Pivot Table Data'!K13 -> 0 | G13: ='Pivot Table Data'!L13 -> 0 | H13: ='Pivot Table Data'!S13 -> 64 | I13: ='Pivot Table Data'!T13 -> 237 | J13: =IF('Pivot Table Data'!O13="Yes", 'Pivot Table Data'!T13, "") -> 237
A14: ='Pivot Table Data'!B14 -> 0 | B14: ='Pivot Table Data'!F14 -> Health Sciences East | C14: ='Pivot Table Data'!P14 -> Athena | D14: ='Pivot Table Data'!I14 -> L2 | E14: ='Pivot Table Data'!J14 -> A | F14: ='Pivot Table Data'!K14 -> 0 | G14: ='Pivot Table Data'!L14 -> 0 | H14: ='Pivot Table Data'!S14 -> 9 | I14: ='Pivot Table Data'!T14 ->  | J14: =IF('Pivot Table Data'!O14="Yes", 'Pivot Table Data'!T14, "") -> 
A15: ='Pivot Table Data'!B15 -> 0 | B15: ='Pivot Table Data'!F15 -> Health Sciences East | C15: ='Pivot Table Data'!P15 -> Athena | D15: ='Pivot Table Data'!I15 -> L2 | E15: ='Pivot Table Data'!J15 -> Accessible | F15: ='Pivot Table Data'!K15 -> 0 | G15: ='Pivot Table Data'!L15 -> 0 | H15: ='Pivot Table Data'!S15 -> 15 | I15: ='Pivot Table Data'!T15 ->  | J15: =IF('Pivot Table Data'!O15="Yes", 'Pivot Table Data'!T15, "") -> 
A16: ='Pivot Table Data'!B16 -> 0 | B16: ='Pivot Table Data'!F16 -> Health Sciences East | C16: ='Pivot Table Data'!P16 -> Athena | D16: ='Pivot Table Data'!I16 -> L2 | E16: ='Pivot Table Data'!J16 -> Accessible (Van) | F16: ='Pivot Table Data'!K16 -> 0 | G16: ='Pivot Table Data'!L16 -> 0 | H16: ='Pivot Table Data'!S16 -> 3 | I16: ='Pivot Table Data'!T16 ->  | J16: =IF('Pivot Table Data'!O16="Yes", 'Pivot Table Data'!T16, "") -> 
A17: ='Pivot Table Data'!B17 -> 0 | B17: ='Pivot Table Data'!F17 -> Health Sciences East | C17: ='Pivot Table Data'!P17 -> Athena | D17: ='Pivot Table Data'!I17 -> L2 | E17: ='Pivot Table Data'!J17 -> Motorcycle Section | F17: ='Pivot Table Data'!K17 -> 0 | G17: ='Pivot Table Data'!L17 -> 0 | H17: ='Pivot Table Data'!S17 -> 10 | I17: ='Pivot Table Data'!T17 ->  | J17: =IF('Pivot Table Data'!O17="Yes", 'Pivot Table Data'!T17, "") -> 
A18: ='Pivot Table Data'!B18 -> 0 | B18: ='Pivot Table Data'!F18 -> Health Sciences East | C18: ='Pivot Table Data'!P18 -> Athena | D18: ='Pivot Table Data'!I18 -> L2 | E18: ='Pivot Table Data'!J18 -> Motorcycle Section | F18: ='Pivot Table Data'!K18 -> 0 | G18: ='Pivot Table Data'!L18 -> 0 | H18: ='Pivot Table Data'!S18 -> 2 | I18: ='Pivot Table Data'!T18 ->  | J18: =IF('Pivot Table Data'!O18="Yes", 'Pivot Table Data'!T18, "") -> 
A19: ='Pivot Table Data'!B19 -> 0 | B19: ='Pivot Table Data'!F19 -> Health Sciences East | C19: ='Pivot Table Data'!P19 -> Athena | D19: ='Pivot Table Data'!I19 -> L2 | E19: ='Pivot Table Data'!J19 -> Visitor | F19: ='Pivot Table Data'!K19 -> Infusion | G19: ='Pivot Table Data'!L19 -> 0 | H19: ='Pivot Table Data'!S19 -> 30 | I19: ='Pivot Table Data'!T19 -> 30 | J19: =IF('Pivot Table Data'!O19="Yes", 'Pivot Table Data'!T19, "") -> 30
A20: ='Pivot Table Data'!B20 -> 0 | B20: ='Pivot Table Data'!F20 -> Health Sciences East | C20: ='Pivot Table Data'!P20 -> Athena | D20: ='Pivot Table Data'!I20 -> L2 | E20: ='Pivot Table Data'!J20 -> Visitor | F20: ='Pivot Table Data'!K20 -> Radiation | G20: ='Pivot Table Data'!L20 -> 0 | H20: ='Pivot Table Data'!S20 -> 10 | I20: ='Pivot Table Data'!T20 -> 10 | J20: =IF('Pivot Table Data'!O20="Yes", 'Pivot Table Data'!T20, "") -> 10
A21: ='Pivot Table Data'!B21 -> 0 | B21: ='Pivot Table Data'!F21 -> Health Sciences East | C21: ='Pivot Table Data'!P21 -> Athena | D21: ='Pivot Table Data'!I21 -> L2 | E21: ='Pivot Table Data'!J21 -> Visitor | F21: ='Pivot Table Data'!K21 -> 0 | G21: ='Pivot Table Data'!L21 -> 0 | H21: ='Pivot Table Data'!S21 -> 115 | I21: ='Pivot Table Data'!T21 ->  | J21: =IF('Pivot Table Data'!O21="Yes", 'Pivot Table Data'!T21, "") -> 
A22: ='Pivot Table Data'!B22 -> 0 | B22: ='Pivot Table Data'!F22 -> Health Sciences East | C22: ='Pivot Table Data'!P22 -> Athena | D22: ='Pivot Table Data'!I22 -> L3 | E22: ='Pivot Table Data'!J22 -> A | F22: ='Pivot Table Data'!K22 -> 0 | G22: ='Pivot Table Data'!L22 -> 0 | H22: ='Pivot Table Data'!S22 -> 147 | I22: ='Pivot Table Data'!T22 ->  | J22: =IF('Pivot Table Data'!O22="Yes", 'Pivot Table Data'!T22, "") -> 
A23: ='Pivot Table Data'!B23 -> 0 | B23: ='Pivot Table Data'!F23 -> Health Sciences East | C23: ='Pivot Table Data'!P23 -> Athena | D23: ='Pivot Table Data'!I23 -> L3 | E23: ='Pivot Table Data'!J23 -> A | F23: ='Pivot Table Data'!K23 -> 0 | G23: ='Pivot Table Data'!L23 -> 0 | H23: ='Pivot Table Data'!S23 -> 0 | I23: ='Pivot Table Data'!T23 ->  | J23: =IF('Pivot Table Data'!O23="Yes", 'Pivot Table Data'!T23, "") -> 
A24: ='Pivot Table Data'!B24 -> 0 | B24: ='Pivot Table Data'!F24 -> Health Sciences East | C24: ='Pivot Table Data'!P24 -> Athena | D24: ='Pivot Table Data'!I24 -> L3 | E24: ='Pivot Table Data'!J24 -> A | F24: ='Pivot Table Data'!K24 -> 0 | G24: ='Pivot Table Data'!L24 -> 0 | H24: ='Pivot Table Data'!S24 -> 0 | I24: ='Pivot Table Data'!T24 ->  | J24: =IF('Pivot Table Data'!O24="Yes", 'Pivot Table Data'!T24, "") -> 
A25: ='Pivot Table Data'!B25 -> 0 | B25: ='Pivot Table Data'!F25 -> Health Sciences East | C25: ='Pivot Table Data'!P25 -> Athena | D25: ='Pivot Table Data'!I25 -> L3 | E25: ='Pivot Table Data'!J25 -> Accessible | F25: ='Pivot Table Data'!K25 -> 0 | G25: ='Pivot Table Data'!L25 -> 0 | H25: ='Pivot Table Data'!S25 -> 7 | I25: ='Pivot Table Data'!T25 ->  | J25: =IF('Pivot Table Data'!O25="Yes", 'Pivot Table Data'!T25, "") -> 
A26: ='Pivot Table Data'!B26 -> 0 | B26: ='Pivot Table Data'!F26 -> Health Sciences East | C26: ='Pivot Table Data'!P26 -> Athena | D26: ='Pivot Table Data'!I26 -> L3 | E26: ='Pivot Table Data'!J26 -> Accessible (Van) | F26: ='Pivot Table Data'!K26 -> 0 | G26: ='Pivot Table Data'!L26 -> 0 | H26: ='Pivot Table Data'!S26 -> 2 | I26: ='Pivot Table Data'!T26 ->  | J26: =IF('Pivot Table Data'!O26="Yes", 'Pivot Table Data'!T26, "") -> 
A27: ='Pivot Table Data'!B27 -> 0 | B27: ='Pivot Table Data'!F27 -> Health Sciences East | C27: ='Pivot Table Data'!P27 -> Athena | D27: ='Pivot Table Data'!I27 -> L3 | E27: ='Pivot Table Data'!J27 -> B | F27: ='Pivot Table Data'!K27 -> 0 | G27: ='Pivot Table Data'!L27 -> 0 | H27: ='Pivot Table Data'!S27 -> 0 | I27: ='Pivot Table Data'!T27 -> 540 | J27: =IF('Pivot Table Data'!O27="Yes", 'Pivot Table Data'!T27, "") -> 540
A28: ='Pivot Table Data'!B28 -> 0 | B28: ='Pivot Table Data'!F28 -> Health Sciences East | C28: ='Pivot Table Data'!P28 -> Athena | D28: ='Pivot Table Data'!I28 -> L3 | E28: ='Pivot Table Data'!J28 -> Visitor | F28: ='Pivot Table Data'!K28 -> 0 | G28: ='Pivot Table Data'!L28 -> 0 | H28: ='Pivot Table Data'!S28 -> 58 | I28: ='Pivot Table Data'!T28 ->  | J28: =IF('Pivot Table Data'!O28="Yes", 'Pivot Table Data'!T28, "") -> 
A29: ='Pivot Table Data'!B29 -> 0 | B29: ='Pivot Table Data'!F29 -> Health Sciences East | C29: ='Pivot Table Data'!P29 -> Athena | D29: ='Pivot Table Data'!I29 -> L4 | E29: ='Pivot Table Data'!J29 -> A | F29: ='Pivot Table Data'!K29 -> 0 | G29: ='Pivot Table Data'!L29 -> 0 | H29: ='Pivot Table Data'!S29 -> 147 | I29: ='Pivot Table Data'!T29 ->  | J29: =IF('Pivot Table Data'!O29="Yes", 'Pivot Table Data'!T29, "") -> 
A30: ='Pivot Table Data'!B30 -> 0 | B30: ='Pivot Table Data'!F30 -> Health Sciences East | C30: ='Pivot Table Data'!P30 -> Athena | D30: ='Pivot Table Data'!I30 -> L4 | E30: ='Pivot Table Data'!J30 -> B | F30: ='Pivot Table Data'!K30 -> 0 | G30: ='Pivot Table Data'!L30 -> 0 | H30: ='Pivot Table Data'!S30 -> 76 | I30: ='Pivot Table Data'!T30 ->  | J30: =IF('Pivot Table Data'!O30="Yes", 'Pivot Table Data'!T30, "") -> 
A31: ='Pivot Table Data'!B31 -> 0 | B31: ='Pivot Table Data'!F31 -> Health Sciences East | C31: ='Pivot Table Data'!P31 -> Athena | D31: ='Pivot Table Data'!I31 -> L4 | E31: ='Pivot Table Data'!J31 -> Motorcycle Section | F31: ='Pivot Table Data'!K31 -> 0 | G31: ='Pivot Table Data'!L31 -> 0 | H31: ='Pivot Table Data'!S31 -> 5 | I31: ='Pivot Table Data'!T31 ->  | J31: =IF('Pivot Table Data'!O31="Yes", 'Pivot Table Data'!T31, "") -> 
A32: ='Pivot Table Data'!B32 -> 0 | B32: ='Pivot Table Data'!F32 -> Health Sciences East | C32: ='Pivot Table Data'!P32 -> Athena | D32: ='Pivot Table Data'!I32 -> L4 | E32: ='Pivot Table Data'!J32 -> Reserved | F32: ='Pivot Table Data'!K32 -> 0 | G32: ='Pivot Table Data'!L32 -> 0 | H32: ='Pivot Table Data'!S32 -> 6 | I32: ='Pivot Table Data'!T32 -> 6 | J32: =IF('Pivot Table Data'!O32="Yes", 'Pivot Table Data'!T32, "") -> 
A33: ='Pivot Table Data'!B33 -> 0 | B33: ='Pivot Table Data'!F33 -> Health Sciences East | C33: ='Pivot Table Data'!P33 -> Athena | D33: ='Pivot Table Data'!I33 -> L5 | E33: ='Pivot Table Data'!J33 -> B | F33: ='Pivot Table Data'!K33 -> 0 | G33: ='Pivot Table Data'!L33 -> 0 | H33: ='Pivot Table Data'!S33 -> 225 | I33: ='Pivot Table Data'!T33 ->  | J33: =IF('Pivot Table Data'!O33="Yes", 'Pivot Table Data'!T33, "") -> 
A34: ='Pivot Table Data'!B34 -> 0 | B34: ='Pivot Table Data'!F34 -> Health Sciences East | C34: ='Pivot Table Data'!P34 -> Athena | D34: ='Pivot Table Data'!I34 -> L5 | E34: ='Pivot Table Data'!J34 -> Electric Vehicle | F34: ='Pivot Table Data'!K34 -> 0 | G34: ='Pivot Table Data'!L34 -> 12-Hour | H34: ='Pivot Table Data'!S34 -> 0 | I34: ='Pivot Table Data'!T34 -> 27 | J34: =IF('Pivot Table Data'!O34="Yes", 'Pivot Table Data'!T34, "") -> 
A35: ='Pivot Table Data'!B35 -> 0 | B35: ='Pivot Table Data'!F35 -> Health Sciences East | C35: ='Pivot Table Data'!P35 -> Athena | D35: ='Pivot Table Data'!I35 -> L5 | E35: ='Pivot Table Data'!J35 -> Motorcycle Section | F35: ='Pivot Table Data'!K35 -> 0 | G35: ='Pivot Table Data'!L35 -> 0 | H35: ='Pivot Table Data'!S35 -> 5 | I35: ='Pivot Table Data'!T35 ->  | J35: =IF('Pivot Table Data'!O35="Yes", 'Pivot Table Data'!T35, "") -> 
A36: ='Pivot Table Data'!B36 -> 0 | B36: ='Pivot Table Data'!F36 -> Health Sciences East | C36: ='Pivot Table Data'!P36 -> Athena | D36: ='Pivot Table Data'!I36 -> L6 | E36: ='Pivot Table Data'!J36 -> B | F36: ='Pivot Table Data'!K36 -> 0 | G36: ='Pivot Table Data'!L36 -> 0 | H36: ='Pivot Table Data'!S36 -> 133 | I36: ='Pivot Table Data'!T36 ->  | J36: =IF('Pivot Table Data'!O36="Yes", 'Pivot Table Data'!T36, "") -> 
A37: ='Pivot Table Data'!B37 -> 0 | B37: ='Pivot Table Data'!F37 -> Health Sciences East | C37: ='Pivot Table Data'!P37 -> Athena | D37: ='Pivot Table Data'!I37 -> L6 | E37: ='Pivot Table Data'!J37 -> Electric Vehicle | F37: ='Pivot Table Data'!K37 -> 0 | G37: ='Pivot Table Data'!L37 -> 12-Hour | H37: ='Pivot Table Data'!S37 -> 27 | I37: ='Pivot Table Data'!T37 ->  | J37: =IF('Pivot Table Data'!O37="Yes", 'Pivot Table Data'!T37, "") -> 
A38: ='Pivot Table Data'!B38 -> 0 | B38: ='Pivot Table Data'!F38 -> Health Sciences East | C38: ='Pivot Table Data'!P38 -> Athena | D38: ='Pivot Table Data'!I38 -> L6 | E38: ='Pivot Table Data'!J38 -> Motorcycle Section | F38: ='Pivot Table Data'!K38 -> 0 | G38: ='Pivot Table Data'!L38 -> 0 | H38: ='Pivot Table Data'!S38 -> 8 | I38: ='Pivot Table Data'!T38 ->  | J38: =IF('Pivot Table Data'!O38="Yes", 'Pivot Table Data'!T38, "") -> 
A39: ='Pivot Table Data'!B39 -> 0 | B39: ='Pivot Table Data'!F39 -> Health Sciences East | C39: ='Pivot Table Data'!P39 -> Athena | D39: ='Pivot Table Data'!I39 -> Roof | E39: ='Pivot Table Data'!J39 -> B | F39: ='Pivot Table Data'!K39 -> 0 | G39: ='Pivot Table Data'!L39 -> 0 | H39: ='Pivot Table Data'!S39 -> 106 | I39: ='Pivot Table Data'!T39 ->  | J39: =IF('Pivot Table Data'!O39="Yes", 'Pivot Table Data'!T39, "") -> 
A40: ='Pivot Table Data'!B40 -> 0 | B40: ='Pivot Table Data'!F40 -> Health Sciences East | C40: ='Pivot Table Data'!P40 -> Campus Point East | D40: ='Pivot Table Data'!I40 -> L1 | E40: ='Pivot Table Data'!J40 -> A | F40: ='Pivot Table Data'!K40 -> 24/7 Enforced | G40: ='Pivot Table Data'!L40 -> 0 | H40: ='Pivot Table Data'!S40 -> 177 | I40: ='Pivot Table Data'!T40 -> 371 | J40: =IF('Pivot Table Data'!O40="Yes", 'Pivot Table Data'!T40, "") -> 371
A41: ='Pivot Table Data'!B41 -> 0 | B41: ='Pivot Table Data'!F41 -> Health Sciences East | C41: ='Pivot Table Data'!P41 -> Campus Point East | D41: ='Pivot Table Data'!I41 -> L2 | E41: ='Pivot Table Data'!J41 -> A | F41: ='Pivot Table Data'!K41 -> 24/7 Enforced | G41: ='Pivot Table Data'!L41 -> 0 | H41: ='Pivot Table Data'!S41 -> 194 | I41: ='Pivot Table Data'!T41 ->  | J41: =IF('Pivot Table Data'!O41="Yes", 'Pivot Table Data'!T41, "") -> 
A42: ='Pivot Table Data'!B42 -> 0 | B42: ='Pivot Table Data'!F42 -> Health Sciences East | C42: ='Pivot Table Data'!P42 -> Campus Point East | D42: ='Pivot Table Data'!I42 -> L2 | E42: ='Pivot Table Data'!J42 -> Accessible | F42: ='Pivot Table Data'!K42 -> 0 | G42: ='Pivot Table Data'!L42 -> 0 | H42: ='Pivot Table Data'!S42 -> 11 | I42: ='Pivot Table Data'!T42 -> 11 | J42: =IF('Pivot Table Data'!O42="Yes", 'Pivot Table Data'!T42, "") -> 
A43: ='Pivot Table Data'!B43 -> 0 | B43: ='Pivot Table Data'!F43 -> Health Sciences East | C43: ='Pivot Table Data'!P43 -> Campus Point East | D43: ='Pivot Table Data'!I43 -> L2 | E43: ='Pivot Table Data'!J43 -> Accessible (Van) | F43: ='Pivot Table Data'!K43 -> 0 | G43: ='Pivot Table Data'!L43 -> 0 | H43: ='Pivot Table Data'!S43 -> 1 | I43: ='Pivot Table Data'!T43 -> 1 | J43: =IF('Pivot Table Data'!O43="Yes", 'Pivot Table Data'!T43, "") -> 
A44: ='Pivot Table Data'!B44 -> 0 | B44: ='Pivot Table Data'!F44 -> Health Sciences East | C44: ='Pivot Table Data'!P44 -> Campus Point East | D44: ='Pivot Table Data'!I44 -> L2 | E44: ='Pivot Table Data'!J44 -> Electric Vehicle | F44: ='Pivot Table Data'!K44 -> 0 | G44: ='Pivot Table Data'!L44 -> 0 | H44: ='Pivot Table Data'!S44 -> 3 | I44: ='Pivot Table Data'!T44 -> 3 | J44: =IF('Pivot Table Data'!O44="Yes", 'Pivot Table Data'!T44, "") -> 
A45: ='Pivot Table Data'!B45 -> 0 | B45: ='Pivot Table Data'!F45 -> Health Sciences East | C45: ='Pivot Table Data'!P45 -> Campus Point East | D45: ='Pivot Table Data'!I45 -> L2 | E45: ='Pivot Table Data'!J45 -> Motorcycle Section | F45: ='Pivot Table Data'!K45 -> 0 | G45: ='Pivot Table Data'!L45 -> 0 | H45: ='Pivot Table Data'!S45 -> 8 | I45: ='Pivot Table Data'!T45 -> 8 | J45: =IF('Pivot Table Data'!O45="Yes", 'Pivot Table Data'!T45, "") -> 
A46: ='Pivot Table Data'!B46 -> 0 | B46: ='Pivot Table Data'!F46 -> Health Sciences East | C46: ='Pivot Table Data'!P46 -> Campus Point East | D46: ='Pivot Table Data'!I46 -> L2 | E46: ='Pivot Table Data'!J46 -> Reserved | F46: ='Pivot Table Data'!K46 -> 0 | G46: ='Pivot Table Data'!L46 -> 0 | H46: ='Pivot Table Data'!S46 -> 40 | I46: ='Pivot Table Data'!T46 -> 40 | J46: =IF('Pivot Table Data'!O46="Yes", 'Pivot Table Data'!T46, "") -> 
A47: ='Pivot Table Data'!B47 -> 0 | B47: ='Pivot Table Data'!F47 -> Health Sciences East | C47: ='Pivot Table Data'!P47 -> Campus Point East | D47: ='Pivot Table Data'!I47 -> L3 | E47: ='Pivot Table Data'!J47 -> Reserved | F47: ='Pivot Table Data'!K47 -> Valet | G47: ='Pivot Table Data'!L47 -> 0 | H47: ='Pivot Table Data'!S47 -> 127 | I47: ='Pivot Table Data'!T47 -> 127 | J47: =IF('Pivot Table Data'!O47="Yes", 'Pivot Table Data'!T47, "") -> 
A48: ='Pivot Table Data'!B48 -> 0 | B48: ='Pivot Table Data'!F48 -> Health Sciences East | C48: ='Pivot Table Data'!P48 -> Campus Point East | D48: ='Pivot Table Data'!I48 -> L3 | E48: ='Pivot Table Data'!J48 -> Visitor | F48: ='Pivot Table Data'!K48 -> 0 | G48: ='Pivot Table Data'!L48 -> 0 | H48: ='Pivot Table Data'!S48 -> 138 | I48: ='Pivot Table Data'!T48 -> 138 | J48: =IF('Pivot Table Data'!O48="Yes", 'Pivot Table Data'!T48, "") -> 138
A49: ='Pivot Table Data'!B49 -> 0 | B49: ='Pivot Table Data'!F49 -> Health Sciences East | C49: ='Pivot Table Data'!P49 -> Campus Point West | D49: ='Pivot Table Data'!I49 -> B3 | E49: ='Pivot Table Data'!J49 -> Motorcycle Section | F49: ='Pivot Table Data'!K49 -> 0 | G49: ='Pivot Table Data'!L49 -> 0 | H49: ='Pivot Table Data'!S49 -> 0 | I49: ='Pivot Table Data'!T49 -> 0 | J49: =IF('Pivot Table Data'!O49="Yes", 'Pivot Table Data'!T49, "") -> 
A50: ='Pivot Table Data'!B50 -> 0 | B50: ='Pivot Table Data'!F50 -> Health Sciences East | C50: ='Pivot Table Data'!P50 -> Campus Point West | D50: ='Pivot Table Data'!I50 -> B3 | E50: ='Pivot Table Data'!J50 -> Visitor | F50: ='Pivot Table Data'!K50 -> 0 | G50: ='Pivot Table Data'!L50 -> 0 | H50: ='Pivot Table Data'!S50 -> 130 | I50: ='Pivot Table Data'!T50 -> 611 | J50: =IF('Pivot Table Data'!O50="Yes", 'Pivot Table Data'!T50, "") -> 611
A51: ='Pivot Table Data'!B51 -> 0 | B51: ='Pivot Table Data'!F51 -> Health Sciences East | C51: ='Pivot Table Data'!P51 -> Campus Point West | D51: ='Pivot Table Data'!I51 -> B2 | E51: ='Pivot Table Data'!J51 -> Motorcycle Section | F51: ='Pivot Table Data'!K51 -> 0 | G51: ='Pivot Table Data'!L51 -> 0 | H51: ='Pivot Table Data'!S51 -> 0 | I51: ='Pivot Table Data'!T51 ->  | J51: =IF('Pivot Table Data'!O51="Yes", 'Pivot Table Data'!T51, "") -> 
A52: ='Pivot Table Data'!B52 -> 0 | B52: ='Pivot Table Data'!F52 -> Health Sciences East | C52: ='Pivot Table Data'!P52 -> Campus Point West | D52: ='Pivot Table Data'!I52 -> B2 | E52: ='Pivot Table Data'!J52 -> Visitor | F52: ='Pivot Table Data'!K52 -> 0 | G52: ='Pivot Table Data'!L52 -> 0 | H52: ='Pivot Table Data'!S52 -> 181 | I52: ='Pivot Table Data'!T52 ->  | J52: =IF('Pivot Table Data'!O52="Yes", 'Pivot Table Data'!T52, "") -> 
A53: ='Pivot Table Data'!B53 -> 0 | B53: ='Pivot Table Data'!F53 -> Health Sciences East | C53: ='Pivot Table Data'!P53 -> Campus Point West | D53: ='Pivot Table Data'!I53 -> B1 | E53: ='Pivot Table Data'!J53 -> Accessible | F53: ='Pivot Table Data'!K53 -> 0 | G53: ='Pivot Table Data'!L53 -> 0 | H53: ='Pivot Table Data'!S53 -> 31 | I53: ='Pivot Table Data'!T53 -> 87 | J53: =IF('Pivot Table Data'!O53="Yes", 'Pivot Table Data'!T53, "") -> 
A54: ='Pivot Table Data'!B54 -> 0 | B54: ='Pivot Table Data'!F54 -> Health Sciences East | C54: ='Pivot Table Data'!P54 -> Campus Point West | D54: ='Pivot Table Data'!I54 -> B1 | E54: ='Pivot Table Data'!J54 -> Accessible (Van) | F54: ='Pivot Table Data'!K54 -> 0 | G54: ='Pivot Table Data'!L54 -> 0 | H54: ='Pivot Table Data'!S54 -> 6 | I54: ='Pivot Table Data'!T54 -> 17 | J54: =IF('Pivot Table Data'!O54="Yes", 'Pivot Table Data'!T54, "") -> 
A55: ='Pivot Table Data'!B55 -> 0 | B55: ='Pivot Table Data'!F55 -> Health Sciences East | C55: ='Pivot Table Data'!P55 -> Campus Point West | D55: ='Pivot Table Data'!I55 -> B1 | E55: ='Pivot Table Data'!J55 -> Electric Vehicle | F55: ='Pivot Table Data'!K55 -> 0 | G55: ='Pivot Table Data'!L55 -> 0 | H55: ='Pivot Table Data'!S55 -> 6 | I55: ='Pivot Table Data'!T55 -> 6 | J55: =IF('Pivot Table Data'!O55="Yes", 'Pivot Table Data'!T55, "") -> 
A56: ='Pivot Table Data'!B56 -> 0 | B56: ='Pivot Table Data'!F56 -> Health Sciences East | C56: ='Pivot Table Data'!P56 -> Campus Point West | D56: ='Pivot Table Data'!I56 -> B1 | E56: ='Pivot Table Data'!J56 -> Visitor | F56: ='Pivot Table Data'!K56 -> 0 | G56: ='Pivot Table Data'!L56 -> 0 | H56: ='Pivot Table Data'!S56 -> 109 | I56: ='Pivot Table Data'!T56 ->  | J56: =IF('Pivot Table Data'!O56="Yes", 'Pivot Table Data'!T56, "") -> 
A57: ='Pivot Table Data'!B57 -> 0 | B57: ='Pivot Table Data'!F57 -> Health Sciences East | C57: ='Pivot Table Data'!P57 -> Campus Point West | D57: ='Pivot Table Data'!I57 -> Ground Floor | E57: ='Pivot Table Data'!J57 -> A | F57: ='Pivot Table Data'!K57 -> 24/7 Enforced | G57: ='Pivot Table Data'!L57 -> 0 | H57: ='Pivot Table Data'!S57 -> 7 | I57: ='Pivot Table Data'!T57 -> 7 | J57: =IF('Pivot Table Data'!O57="Yes", 'Pivot Table Data'!T57, "") -> 7
A58: ='Pivot Table Data'!B58 -> 0 | B58: ='Pivot Table Data'!F58 -> Health Sciences East | C58: ='Pivot Table Data'!P58 -> Campus Point West | D58: ='Pivot Table Data'!I58 -> Ground Floor | E58: ='Pivot Table Data'!J58 -> Accessible | F58: ='Pivot Table Data'!K58 -> 0 | G58: ='Pivot Table Data'!L58 -> 0 | H58: ='Pivot Table Data'!S58 -> 24 | I58: ='Pivot Table Data'!T58 ->  | J58: =IF('Pivot Table Data'!O58="Yes", 'Pivot Table Data'!T58, "") -> 
A59: ='Pivot Table Data'!B59 -> 0 | B59: ='Pivot Table Data'!F59 -> Health Sciences East | C59: ='Pivot Table Data'!P59 -> Campus Point West | D59: ='Pivot Table Data'!I59 -> Ground Floor | E59: ='Pivot Table Data'!J59 -> Accessible (Van) | F59: ='Pivot Table Data'!K59 -> 0 | G59: ='Pivot Table Data'!L59 -> 0 | H59: ='Pivot Table Data'!S59 -> 7 | I59: ='Pivot Table Data'!T59 ->  | J59: =IF('Pivot Table Data'!O59="Yes", 'Pivot Table Data'!T59, "") -> 
A60: ='Pivot Table Data'!B60 -> 0 | B60: ='Pivot Table Data'!F60 -> Health Sciences East | C60: ='Pivot Table Data'!P60 -> Campus Point West | D60: ='Pivot Table Data'!I60 -> Ground Floor | E60: ='Pivot Table Data'!J60 -> Motorcycle Section | F60: ='Pivot Table Data'!K60 -> 0 | G60: ='Pivot Table Data'!L60 -> 0 | H60: ='Pivot Table Data'!S60 -> 0 | I60: ='Pivot Table Data'!T60 ->  | J60: =IF('Pivot Table Data'!O60="Yes", 'Pivot Table Data'!T60, "") -> 
A61: ='Pivot Table Data'!B61 -> 0 | B61: ='Pivot Table Data'!F61 -> Health Sciences East | C61: ='Pivot Table Data'!P61 -> Campus Point West | D61: ='Pivot Table Data'!I61 -> Ground Floor | E61: ='Pivot Table Data'!J61 -> Reserved | F61: ='Pivot Table Data'!K61 -> Emergency Room | G61: ='Pivot Table Data'!L61 -> 0 | H61: ='Pivot Table Data'!S61 -> 10 | I61: ='Pivot Table Data'!T61 -> 10 | J61: =IF('Pivot Table Data'!O61="Yes", 'Pivot Table Data'!T61, "") -> 
A62: ='Pivot Table Data'!B62 -> 0 | B62: ='Pivot Table Data'!F62 -> Health Sciences East | C62: ='Pivot Table Data'!P62 -> Campus Point West | D62: ='Pivot Table Data'!I62 -> Ground Floor | E62: ='Pivot Table Data'!J62 -> Reserved | F62: ='Pivot Table Data'!K62 -> 0 | G62: ='Pivot Table Data'!L62 -> 0 | H62: ='Pivot Table Data'!S62 -> 6 | I62: ='Pivot Table Data'!T62 -> 18 | J62: =IF('Pivot Table Data'!O62="Yes", 'Pivot Table Data'!T62, "") -> 
A63: ='Pivot Table Data'!B63 -> 0 | B63: ='Pivot Table Data'!F63 -> Health Sciences East | C63: ='Pivot Table Data'!P63 -> Campus Point West | D63: ='Pivot Table Data'!I63 -> Ground Floor | E63: ='Pivot Table Data'!J63 -> Reserved | F63: ='Pivot Table Data'!K63 -> 0 | G63: ='Pivot Table Data'!L63 -> 0 | H63: ='Pivot Table Data'!S63 -> 2 | I63: ='Pivot Table Data'!T63 ->  | J63: =IF('Pivot Table Data'!O63="Yes", 'Pivot Table Data'!T63, "") -> 
A64: ='Pivot Table Data'!B64 -> 0 | B64: ='Pivot Table Data'!F64 -> Health Sciences East | C64: ='Pivot Table Data'!P64 -> Campus Point West | D64: ='Pivot Table Data'!I64 -> Ground Floor | E64: ='Pivot Table Data'!J64 -> Reserved | F64: ='Pivot Table Data'!K64 -> 0 | G64: ='Pivot Table Data'!L64 -> 0 | H64: ='Pivot Table Data'!S64 -> 10 | I64: ='Pivot Table Data'!T64 ->  | J64: =IF('Pivot Table Data'!O64="Yes", 'Pivot Table Data'!T64, "") -> 
A65: ='Pivot Table Data'!B65 -> 0 | B65: ='Pivot Table Data'!F65 -> Health Sciences East | C65: ='Pivot Table Data'!P65 -> Campus Point West | D65: ='Pivot Table Data'!I65 -> Ground Floor | E65: ='Pivot Table Data'!J65 -> Visitor | F65: ='Pivot Table Data'!K65 -> Patient/Visitor Reserved | G65: ='Pivot Table Data'!L65 -> 30 minutes | H65: ='Pivot Table Data'!S65 -> 1 | I65: ='Pivot Table Data'!T65 -> 1 | J65: =IF('Pivot Table Data'!O65="Yes", 'Pivot Table Data'!T65, "") -> 1
A66: ='Pivot Table Data'!B66 -> 0 | B66: ='Pivot Table Data'!F66 -> Health Sciences East | C66: ='Pivot Table Data'!P66 -> Campus Point West | D66: ='Pivot Table Data'!I66 -> Ground Floor | E66: ='Pivot Table Data'!J66 -> Visitor | F66: ='Pivot Table Data'!K66 -> 0 | G66: ='Pivot Table Data'!L66 -> 0 | H66: ='Pivot Table Data'!S66 -> 47 | I66: ='Pivot Table Data'!T66 ->  | J66: =IF('Pivot Table Data'!O66="Yes", 'Pivot Table Data'!T66, "") -> 
A67: ='Pivot Table Data'!B67 -> 0 | B67: ='Pivot Table Data'!F67 -> Health Sciences East | C67: ='Pivot Table Data'!P67 -> Campus Point West | D67: ='Pivot Table Data'!I67 -> Ground Floor | E67: ='Pivot Table Data'!J67 -> Visitor | F67: ='Pivot Table Data'!K67 -> 0 | G67: ='Pivot Table Data'!L67 -> 0 | H67: ='Pivot Table Data'!S67 -> 18 | I67: ='Pivot Table Data'!T67 ->  | J67: =IF('Pivot Table Data'!O67="Yes", 'Pivot Table Data'!T67, "") -> 
A68: ='Pivot Table Data'!B68 -> 0 | B68: ='Pivot Table Data'!F68 -> Health Sciences East | C68: ='Pivot Table Data'!P68 -> Campus Point West | D68: ='Pivot Table Data'!I68 -> Roof | E68: ='Pivot Table Data'!J68 -> Accessible | F68: ='Pivot Table Data'!K68 -> 0 | G68: ='Pivot Table Data'!L68 -> 0 | H68: ='Pivot Table Data'!S68 -> 32 | I68: ='Pivot Table Data'!T68 ->  | J68: =IF('Pivot Table Data'!O68="Yes", 'Pivot Table Data'!T68, "") -> 
A69: ='Pivot Table Data'!B69 -> 0 | B69: ='Pivot Table Data'!F69 -> Health Sciences East | C69: ='Pivot Table Data'!P69 -> Campus Point West | D69: ='Pivot Table Data'!I69 -> Roof | E69: ='Pivot Table Data'!J69 -> Accessible (Van) | F69: ='Pivot Table Data'!K69 -> 0 | G69: ='Pivot Table Data'!L69 -> 0 | H69: ='Pivot Table Data'!S69 -> 4 | I69: ='Pivot Table Data'!T69 ->  | J69: =IF('Pivot Table Data'!O69="Yes", 'Pivot Table Data'!T69, "") -> 
A70: ='Pivot Table Data'!B70 -> 0 | B70: ='Pivot Table Data'!F70 -> Health Sciences East | C70: ='Pivot Table Data'!P70 -> Campus Point West | D70: ='Pivot Table Data'!I70 -> Roof | E70: ='Pivot Table Data'!J70 -> Motorcycle Section | F70: ='Pivot Table Data'!K70 -> 0 | G70: ='Pivot Table Data'!L70 -> 0 | H70: ='Pivot Table Data'!S70 -> 0 | I70: ='Pivot Table Data'!T70 ->  | J70: =IF('Pivot Table Data'!O70="Yes", 'Pivot Table Data'!T70, "") -> 
A71: ='Pivot Table Data'!B71 -> 0 | B71: ='Pivot Table Data'!F71 -> Health Sciences East | C71: ='Pivot Table Data'!P71 -> Campus Point West | D71: ='Pivot Table Data'!I71 -> Roof | E71: ='Pivot Table Data'!J71 -> Visitor | F71: ='Pivot Table Data'!K71 -> 0 | G71: ='Pivot Table Data'!L71 -> 0 | H71: ='Pivot Table Data'!S71 -> 126 | I71: ='Pivot Table Data'!T71 ->  | J71: =IF('Pivot Table Data'!O71="Yes", 'Pivot Table Data'!T71, "") -> 
A72: ='Pivot Table Data'!B72 -> 0 | B72: ='Pivot Table Data'!F72 -> Health Sciences East | C72: ='Pivot Table Data'!P72 -> Curb | D72: ='Pivot Table Data'!I72 -> - | E72: ='Pivot Table Data'!J72 -> 0 | F72: ='Pivot Table Data'!K72 -> 0 | G72: ='Pivot Table Data'!L72 -> 0 | H72: ='Pivot Table Data'!S72 -> 0 | I72: ='Pivot Table Data'!T72 -> 0 | J72: =IF('Pivot Table Data'!O72="Yes", 'Pivot Table Data'!T72, "") -> 
A73: ='Pivot Table Data'!B73 -> 0 | B73: ='Pivot Table Data'!F73 -> Science Research Park | C73: ='Pivot Table Data'!P73 -> Mesa Canyon | D73: ='Pivot Table Data'!I73 -> Ground | E73: ='Pivot Table Data'!J73 -> Accessible | F73: ='Pivot Table Data'!K73 -> 0 | G73: ='Pivot Table Data'!L73 -> 0 | H73: ='Pivot Table Data'!S73 -> 5 | I73: ='Pivot Table Data'!T73 -> 12 | J73: =IF('Pivot Table Data'!O73="Yes", 'Pivot Table Data'!T73, "") -> 
A74: ='Pivot Table Data'!B74 -> 0 | B74: ='Pivot Table Data'!F74 -> Science Research Park | C74: ='Pivot Table Data'!P74 -> Mesa Canyon | D74: ='Pivot Table Data'!I74 -> Ground | E74: ='Pivot Table Data'!J74 -> Accessible (Van) | F74: ='Pivot Table Data'!K74 -> 0 | G74: ='Pivot Table Data'!L74 -> 0 | H74: ='Pivot Table Data'!S74 -> 2 | I74: ='Pivot Table Data'!T74 -> 5 | J74: =IF('Pivot Table Data'!O74="Yes", 'Pivot Table Data'!T74, "") -> 
A75: ='Pivot Table Data'!B75 -> 0 | B75: ='Pivot Table Data'!F75 -> Science Research Park | C75: ='Pivot Table Data'!P75 -> Mesa Canyon | D75: ='Pivot Table Data'!I75 -> Ground | E75: ='Pivot Table Data'!J75 -> B | F75: ='Pivot Table Data'!K75 -> 0 | G75: ='Pivot Table Data'!L75 -> 0 | H75: ='Pivot Table Data'!S75 -> 148 | I75: ='Pivot Table Data'!T75 -> 497 | J75: =IF('Pivot Table Data'!O75="Yes", 'Pivot Table Data'!T75, "") -> 497
A76: ='Pivot Table Data'!B76 -> 0 | B76: ='Pivot Table Data'!F76 -> Science Research Park | C76: ='Pivot Table Data'!P76 -> Mesa Canyon | D76: ='Pivot Table Data'!I76 -> Ground | E76: ='Pivot Table Data'!J76 -> Electric Vehicle | F76: ='Pivot Table Data'!K76 -> 0 | G76: ='Pivot Table Data'!L76 -> 0 | H76: ='Pivot Table Data'!S76 -> 18 | I76: ='Pivot Table Data'!T76 -> 33 | J76: =IF('Pivot Table Data'!O76="Yes", 'Pivot Table Data'!T76, "") -> 
A77: ='Pivot Table Data'!B77 -> 0 | B77: ='Pivot Table Data'!F77 -> Science Research Park | C77: ='Pivot Table Data'!P77 -> Mesa Canyon | D77: ='Pivot Table Data'!I77 -> Ground | E77: ='Pivot Table Data'!J77 -> G | F77: ='Pivot Table Data'!K77 -> 0 | G77: ='Pivot Table Data'!L77 -> 0 | H77: ='Pivot Table Data'!S77 -> 0 | I77: ='Pivot Table Data'!T77 -> 578 | J77: =IF('Pivot Table Data'!O77="Yes", 'Pivot Table Data'!T77, "") -> 
A78: ='Pivot Table Data'!B78 -> 0 | B78: ='Pivot Table Data'!F78 -> Science Research Park | C78: ='Pivot Table Data'!P78 -> Mesa Canyon | D78: ='Pivot Table Data'!I78 -> Ground | E78: ='Pivot Table Data'!J78 -> Motorcycle Section | F78: ='Pivot Table Data'!K78 -> 0 | G78: ='Pivot Table Data'!L78 -> 0 | H78: ='Pivot Table Data'!S78 -> 6 | I78: ='Pivot Table Data'!T78 -> 16 | J78: =IF('Pivot Table Data'!O78="Yes", 'Pivot Table Data'!T78, "") -> 
A79: ='Pivot Table Data'!B79 -> 0 | B79: ='Pivot Table Data'!F79 -> Science Research Park | C79: ='Pivot Table Data'!P79 -> Mesa Canyon | D79: ='Pivot Table Data'!I79 -> L2 | E79: ='Pivot Table Data'!J79 -> Accessible | F79: ='Pivot Table Data'!K79 -> 0 | G79: ='Pivot Table Data'!L79 -> 0 | H79: ='Pivot Table Data'!S79 -> 4 | I79: ='Pivot Table Data'!T79 ->  | J79: =IF('Pivot Table Data'!O79="Yes", 'Pivot Table Data'!T79, "") -> 
A80: ='Pivot Table Data'!B80 -> 0 | B80: ='Pivot Table Data'!F80 -> Science Research Park | C80: ='Pivot Table Data'!P80 -> Mesa Canyon | D80: ='Pivot Table Data'!I80 -> L2 | E80: ='Pivot Table Data'!J80 -> Accessible (Van) | F80: ='Pivot Table Data'!K80 -> 0 | G80: ='Pivot Table Data'!L80 -> 0 | H80: ='Pivot Table Data'!S80 -> 1 | I80: ='Pivot Table Data'!T80 ->  | J80: =IF('Pivot Table Data'!O80="Yes", 'Pivot Table Data'!T80, "") -> 
A81: ='Pivot Table Data'!B81 -> 0 | B81: ='Pivot Table Data'!F81 -> Science Research Park | C81: ='Pivot Table Data'!P81 -> Mesa Canyon | D81: ='Pivot Table Data'!I81 -> L2 | E81: ='Pivot Table Data'!J81 -> B | F81: ='Pivot Table Data'!K81 -> 0 | G81: ='Pivot Table Data'!L81 -> 0 | H81: ='Pivot Table Data'!S81 -> 218 | I81: ='Pivot Table Data'!T81 ->  | J81: =IF('Pivot Table Data'!O81="Yes", 'Pivot Table Data'!T81, "") -> 
A82: ='Pivot Table Data'!B82 -> 0 | B82: ='Pivot Table Data'!F82 -> Science Research Park | C82: ='Pivot Table Data'!P82 -> Mesa Canyon | D82: ='Pivot Table Data'!I82 -> L2 | E82: ='Pivot Table Data'!J82 -> Electric Vehicle | F82: ='Pivot Table Data'!K82 -> 0 | G82: ='Pivot Table Data'!L82 -> 0 | H82: ='Pivot Table Data'!S82 -> 6 | I82: ='Pivot Table Data'!T82 ->  | J82: =IF('Pivot Table Data'!O82="Yes", 'Pivot Table Data'!T82, "") -> 
A83: ='Pivot Table Data'!B83 -> 0 | B83: ='Pivot Table Data'!F83 -> Science Research Park | C83: ='Pivot Table Data'!P83 -> Mesa Canyon | D83: ='Pivot Table Data'!I83 -> L2 | E83: ='Pivot Table Data'!J83 -> G | F83: ='Pivot Table Data'!K83 -> 0 | G83: ='Pivot Table Data'!L83 -> 0 | H83: ='Pivot Table Data'!S83 -> 0 | I83: ='Pivot Table Data'!T83 ->  | J83: =IF('Pivot Table Data'!O83="Yes", 'Pivot Table Data'!T83, "") -> 
A84: ='Pivot Table Data'!B84 -> 0 | B84: ='Pivot Table Data'!F84 -> Science Research Park | C84: ='Pivot Table Data'!P84 -> Mesa Canyon | D84: ='Pivot Table Data'!I84 -> L2 | E84: ='Pivot Table Data'!J84 -> Motorcycle Section | F84: ='Pivot Table Data'!K84 -> 0 | G84: ='Pivot Table Data'!L84 -> 0 | H84: ='Pivot Table Data'!S84 -> 0 | I84: ='Pivot Table Data'!T84 ->  | J84: =IF('Pivot Table Data'!O84="Yes", 'Pivot Table Data'!T84, "") -> 
A85: ='Pivot Table Data'!B85 -> 0 | B85: ='Pivot Table Data'!F85 -> Science Research Park | C85: ='Pivot Table Data'!P85 -> Mesa Canyon | D85: ='Pivot Table Data'!I85 -> L3 | E85: ='Pivot Table Data'!J85 -> Accessible | F85: ='Pivot Table Data'!K85 -> 0 | G85: ='Pivot Table Data'!L85 -> 0 | H85: ='Pivot Table Data'!S85 -> 3 | I85: ='Pivot Table Data'!T85 ->  | J85: =IF('Pivot Table Data'!O85="Yes", 'Pivot Table Data'!T85, "") -> 
A86: ='Pivot Table Data'!B86 -> 0 | B86: ='Pivot Table Data'!F86 -> Science Research Park | C86: ='Pivot Table Data'!P86 -> Mesa Canyon | D86: ='Pivot Table Data'!I86 -> L3 | E86: ='Pivot Table Data'!J86 -> Accessible (Van) | F86: ='Pivot Table Data'!K86 -> 0 | G86: ='Pivot Table Data'!L86 -> 0 | H86: ='Pivot Table Data'!S86 -> 2 | I86: ='Pivot Table Data'!T86 ->  | J86: =IF('Pivot Table Data'!O86="Yes", 'Pivot Table Data'!T86, "") -> 
A87: ='Pivot Table Data'!B87 -> 0 | B87: ='Pivot Table Data'!F87 -> Science Research Park | C87: ='Pivot Table Data'!P87 -> Mesa Canyon | D87: ='Pivot Table Data'!I87 -> L3 | E87: ='Pivot Table Data'!J87 -> B | F87: ='Pivot Table Data'!K87 -> 0 | G87: ='Pivot Table Data'!L87 -> 0 | H87: ='Pivot Table Data'!S87 -> 131 | I87: ='Pivot Table Data'!T87 ->  | J87: =IF('Pivot Table Data'!O87="Yes", 'Pivot Table Data'!T87, "") -> 
A88: ='Pivot Table Data'!B88 -> 0 | B88: ='Pivot Table Data'!F88 -> Science Research Park | C88: ='Pivot Table Data'!P88 -> Mesa Canyon | D88: ='Pivot Table Data'!I88 -> L3 | E88: ='Pivot Table Data'!J88 -> Electric Vehicle | F88: ='Pivot Table Data'!K88 -> 0 | G88: ='Pivot Table Data'!L88 -> 0 | H88: ='Pivot Table Data'!S88 -> 7 | I88: ='Pivot Table Data'!T88 ->  | J88: =IF('Pivot Table Data'!O88="Yes", 'Pivot Table Data'!T88, "") -> 
A89: ='Pivot Table Data'!B89 -> 0 | B89: ='Pivot Table Data'!F89 -> Science Research Park | C89: ='Pivot Table Data'!P89 -> Mesa Canyon | D89: ='Pivot Table Data'!I89 -> L3 | E89: ='Pivot Table Data'!J89 -> G | F89: ='Pivot Table Data'!K89 -> 0 | G89: ='Pivot Table Data'!L89 -> 0 | H89: ='Pivot Table Data'!S89 -> 0 | I89: ='Pivot Table Data'!T89 ->  | J89: =IF('Pivot Table Data'!O89="Yes", 'Pivot Table Data'!T89, "") -> 
A90: ='Pivot Table Data'!B90 -> 0 | B90: ='Pivot Table Data'!F90 -> Science Research Park | C90: ='Pivot Table Data'!P90 -> Mesa Canyon | D90: ='Pivot Table Data'!I90 -> L3 | E90: ='Pivot Table Data'!J90 -> Motorcycle Section | F90: ='Pivot Table Data'!K90 -> 0 | G90: ='Pivot Table Data'!L90 -> 0 | H90: ='Pivot Table Data'!S90 -> 10 | I90: ='Pivot Table Data'!T90 ->  | J90: =IF('Pivot Table Data'!O90="Yes", 'Pivot Table Data'!T90, "") -> 
A91: ='Pivot Table Data'!B91 -> 0 | B91: ='Pivot Table Data'!F91 -> Science Research Park | C91: ='Pivot Table Data'!P91 -> Mesa Canyon | D91: ='Pivot Table Data'!I91 -> L4 | E91: ='Pivot Table Data'!J91 -> Accessible | F91: ='Pivot Table Data'!K91 -> 0 | G91: ='Pivot Table Data'!L91 -> 0 | H91: ='Pivot Table Data'!S91 -> 0 | I91: ='Pivot Table Data'!T91 ->  | J91: =IF('Pivot Table Data'!O91="Yes", 'Pivot Table Data'!T91, "") -> 
A92: ='Pivot Table Data'!B92 -> 0 | B92: ='Pivot Table Data'!F92 -> Science Research Park | C92: ='Pivot Table Data'!P92 -> Mesa Canyon | D92: ='Pivot Table Data'!I92 -> L4 | E92: ='Pivot Table Data'!J92 -> Accessible (Van) | F92: ='Pivot Table Data'!K92 -> 0 | G92: ='Pivot Table Data'!L92 -> 0 | H92: ='Pivot Table Data'!S92 -> 0 | I92: ='Pivot Table Data'!T92 ->  | J92: =IF('Pivot Table Data'!O92="Yes", 'Pivot Table Data'!T92, "") -> 
A93: ='Pivot Table Data'!B93 -> 0 | B93: ='Pivot Table Data'!F93 -> Science Research Park | C93: ='Pivot Table Data'!P93 -> Mesa Canyon | D93: ='Pivot Table Data'!I93 -> L4 | E93: ='Pivot Table Data'!J93 -> B | F93: ='Pivot Table Data'!K93 -> 0 | G93: ='Pivot Table Data'!L93 -> 0 | H93: ='Pivot Table Data'!S93 -> 0 | I93: ='Pivot Table Data'!T93 ->  | J93: =IF('Pivot Table Data'!O93="Yes", 'Pivot Table Data'!T93, "") -> 
A94: ='Pivot Table Data'!B94 -> 0 | B94: ='Pivot Table Data'!F94 -> Science Research Park | C94: ='Pivot Table Data'!P94 -> Mesa Canyon | D94: ='Pivot Table Data'!I94 -> L4 | E94: ='Pivot Table Data'!J94 -> Electric Vehicle | F94: ='Pivot Table Data'!K94 -> 0 | G94: ='Pivot Table Data'!L94 -> 0 | H94: ='Pivot Table Data'!S94 -> 2 | I94: ='Pivot Table Data'!T94 ->  | J94: =IF('Pivot Table Data'!O94="Yes", 'Pivot Table Data'!T94, "") -> 
A95: ='Pivot Table Data'!B95 -> 0 | B95: ='Pivot Table Data'!F95 -> Science Research Park | C95: ='Pivot Table Data'!P95 -> Mesa Canyon | D95: ='Pivot Table Data'!I95 -> L4 | E95: ='Pivot Table Data'!J95 -> G | F95: ='Pivot Table Data'!K95 -> 0 | G95: ='Pivot Table Data'!L95 -> 0 | H95: ='Pivot Table Data'!S95 -> 144 | I95: ='Pivot Table Data'!T95 ->  | J95: =IF('Pivot Table Data'!O95="Yes", 'Pivot Table Data'!T95, "") -> 
A96: ='Pivot Table Data'!B96 -> 0 | B96: ='Pivot Table Data'!F96 -> Science Research Park | C96: ='Pivot Table Data'!P96 -> Mesa Canyon | D96: ='Pivot Table Data'!I96 -> L4 | E96: ='Pivot Table Data'!J96 -> Motorcycle Section | F96: ='Pivot Table Data'!K96 -> 0 | G96: ='Pivot Table Data'!L96 -> 0 | H96: ='Pivot Table Data'!S96 -> 0 | I96: ='Pivot Table Data'!T96 ->  | J96: =IF('Pivot Table Data'!O96="Yes", 'Pivot Table Data'!T96, "") -> 
A97: ='Pivot Table Data'!B97 -> 0 | B97: ='Pivot Table Data'!F97 -> Science Research Park | C97: ='Pivot Table Data'!P97 -> Mesa Canyon | D97: ='Pivot Table Data'!I97 -> L5 | E97: ='Pivot Table Data'!J97 -> Accessible | F97: ='Pivot Table Data'!K97 -> 0 | G97: ='Pivot Table Data'!L97 -> 0 | H97: ='Pivot Table Data'!S97 -> 0 | I97: ='Pivot Table Data'!T97 ->  | J97: =IF('Pivot Table Data'!O97="Yes", 'Pivot Table Data'!T97, "") -> 
A98: ='Pivot Table Data'!B98 -> 0 | B98: ='Pivot Table Data'!F98 -> Science Research Park | C98: ='Pivot Table Data'!P98 -> Mesa Canyon | D98: ='Pivot Table Data'!I98 -> L5 | E98: ='Pivot Table Data'!J98 -> Accessible (Van) | F98: ='Pivot Table Data'!K98 -> 0 | G98: ='Pivot Table Data'!L98 -> 0 | H98: ='Pivot Table Data'!S98 -> 0 | I98: ='Pivot Table Data'!T98 ->  | J98: =IF('Pivot Table Data'!O98="Yes", 'Pivot Table Data'!T98, "") -> 
A99: ='Pivot Table Data'!B99 -> 0 | B99: ='Pivot Table Data'!F99 -> Science Research Park | C99: ='Pivot Table Data'!P99 -> Mesa Canyon | D99: ='Pivot Table Data'!I99 -> L5 | E99: ='Pivot Table Data'!J99 -> B | F99: ='Pivot Table Data'!K99 -> 0 | G99: ='Pivot Table Data'!L99 -> 0 | H99: ='Pivot Table Data'!S99 -> 0 | I99: ='Pivot Table Data'!T99 ->  | J99: =IF('Pivot Table Data'!O99="Yes", 'Pivot Table Data'!T99, "") -> 
A100: ='Pivot Table Data'!B100 -> 0 | B100: ='Pivot Table Data'!F100 -> Science Research Park | C100: ='Pivot Table Data'!P100 -> Mesa Canyon | D100: ='Pivot Table Data'!I100 -> L5 | E100: ='Pivot Table Data'!J100 -> Electric Vehicle | F100: ='Pivot Table Data'!K100 -> 0 | G100: ='Pivot Table Data'!L100 -> 0 | H100: ='Pivot Table Data'!S100 -> 0 | I100: ='Pivot Table Data'!T100 ->  | J100: =IF('Pivot Table Data'!O100="Yes", 'Pivot Table Data'!T100, "") -> 
A101: ='Pivot Table Data'!B101 -> 0 | B101: ='Pivot Table Data'!F101 -> Science Research Park | C101: ='Pivot Table Data'!P101 -> Mesa Canyon | D101: ='Pivot Table Data'!I101 -> L5 | E101: ='Pivot Table Data'!J101 -> G | F101: ='Pivot Table Data'!K101 -> 0 | G101: ='Pivot Table Data'!L101 -> 0 | H101: ='Pivot Table Data'!S101 -> 217 | I101: ='Pivot Table Data'!T101 ->  | J101: =IF('Pivot Table Data'!O101="Yes", 'Pivot Table Data'!T101, "") -> 
A102: ='Pivot Table Data'!B102 -> 0 | B102: ='Pivot Table Data'!F102 -> Science Research Park | C102: ='Pivot Table Data'!P102 -> Mesa Canyon | D102: ='Pivot Table Data'!I102 -> L5 | E102: ='Pivot Table Data'!J102 -> Motorcycle Section | F102: ='Pivot Table Data'!K102 -> 0 | G102: ='Pivot Table Data'!L102 -> 0 | H102: ='Pivot Table Data'!S102 -> 0 | I102: ='Pivot Table Data'!T102 ->  | J102: =IF('Pivot Table Data'!O102="Yes", 'Pivot Table Data'!T102, "") -> 
A103: ='Pivot Table Data'!B103 -> 0 | B103: ='Pivot Table Data'!F103 -> Science Research Park | C103: ='Pivot Table Data'!P103 -> Mesa Canyon | D103: ='Pivot Table Data'!I103 -> L6 | E103: ='Pivot Table Data'!J103 -> Accessible | F103: ='Pivot Table Data'!K103 -> 0 | G103: ='Pivot Table Data'!L103 -> 0 | H103: ='Pivot Table Data'!S103 -> 0 | I103: ='Pivot Table Data'!T103 ->  | J103: =IF('Pivot Table Data'!O103="Yes", 'Pivot Table Data'!T103, "") -> 
A104: ='Pivot Table Data'!B104 -> 0 | B104: ='Pivot Table Data'!F104 -> Science Research Park | C104: ='Pivot Table Data'!P104 -> Mesa Canyon | D104: ='Pivot Table Data'!I104 -> L6 | E104: ='Pivot Table Data'!J104 -> Accessible (Van) | F104: ='Pivot Table Data'!K104 -> 0 | G104: ='Pivot Table Data'!L104 -> 0 | H104: ='Pivot Table Data'!S104 -> 0 | I104: ='Pivot Table Data'!T104 ->  | J104: =IF('Pivot Table Data'!O104="Yes", 'Pivot Table Data'!T104, "") -> 
A105: ='Pivot Table Data'!B105 -> 0 | B105: ='Pivot Table Data'!F105 -> Science Research Park | C105: ='Pivot Table Data'!P105 -> Mesa Canyon | D105: ='Pivot Table Data'!I105 -> L6 | E105: ='Pivot Table Data'!J105 -> B | F105: ='Pivot Table Data'!K105 -> 0 | G105: ='Pivot Table Data'!L105 -> 0 | H105: ='Pivot Table Data'!S105 -> 0 | I105: ='Pivot Table Data'!T105 ->  | J105: =IF('Pivot Table Data'!O105="Yes", 'Pivot Table Data'!T105, "") -> 
A106: ='Pivot Table Data'!B106 -> 0 | B106: ='Pivot Table Data'!F106 -> Science Research Park | C106: ='Pivot Table Data'!P106 -> Mesa Canyon | D106: ='Pivot Table Data'!I106 -> L6 | E106: ='Pivot Table Data'!J106 -> Electric Vehicle | F106: ='Pivot Table Data'!K106 -> 0 | G106: ='Pivot Table Data'!L106 -> 0 | H106: ='Pivot Table Data'!S106 -> 0 | I106: ='Pivot Table Data'!T106 ->  | J106: =IF('Pivot Table Data'!O106="Yes", 'Pivot Table Data'!T106, "") -> 
A107: ='Pivot Table Data'!B107 -> 0 | B107: ='Pivot Table Data'!F107 -> Science Research Park | C107: ='Pivot Table Data'!P107 -> Mesa Canyon | D107: ='Pivot Table Data'!I107 -> L6 | E107: ='Pivot Table Data'!J107 -> G | F107: ='Pivot Table Data'!K107 -> 0 | G107: ='Pivot Table Data'!L107 -> 0 | H107: ='Pivot Table Data'!S107 -> 217 | I107: ='Pivot Table Data'!T107 ->  | J107: =IF('Pivot Table Data'!O107="Yes", 'Pivot Table Data'!T107, "") -> 
A108: ='Pivot Table Data'!B108 -> 0 | B108: ='Pivot Table Data'!F108 -> Science Research Park | C108: ='Pivot Table Data'!P108 -> Mesa Canyon | D108: ='Pivot Table Data'!I108 -> L6 | E108: ='Pivot Table Data'!J108 -> Motorcycle Section | F108: ='Pivot Table Data'!K108 -> 0 | G108: ='Pivot Table Data'!L108 -> 0 | H108: ='Pivot Table Data'!S108 -> 0 | I108: ='Pivot Table Data'!T108 ->  | J108: =IF('Pivot Table Data'!O108="Yes", 'Pivot Table Data'!T108, "") -> 
A109: ='Pivot Table Data'!B109 -> 0 | B109: ='Pivot Table Data'!F109 -> East Recreation | C109: ='Pivot Table Data'!P109 -> P701 | D109: ='Pivot Table Data'!I109 -> - | E109: ='Pivot Table Data'!J109 -> S | F109: ='Pivot Table Data'!K109 -> 0 | G109: ='Pivot Table Data'!L109 -> 0 | H109: ='Pivot Table Data'!S109 -> 378 | I109: ='Pivot Table Data'!T109 -> 378 | J109: =IF('Pivot Table Data'!O109="Yes", 'Pivot Table Data'!T109, "") -> 378
A110: ='Pivot Table Data'!B110 -> 0 | B110: ='Pivot Table Data'!F110 -> Health Sciences East | C110: ='Pivot Table Data'!P110 -> P702 | D110: ='Pivot Table Data'!I110 -> - | E110: ='Pivot Table Data'!J110 -> Accessible | F110: ='Pivot Table Data'!K110 -> 0 | G110: ='Pivot Table Data'!L110 -> 0 | H110: ='Pivot Table Data'!S110 -> 3 | I110: ='Pivot Table Data'!T110 -> 3 | J110: =IF('Pivot Table Data'!O110="Yes", 'Pivot Table Data'!T110, "") -> 
A111: ='Pivot Table Data'!B111 -> 0 | B111: ='Pivot Table Data'!F111 -> Health Sciences East | C111: ='Pivot Table Data'!P111 -> P702 | D111: ='Pivot Table Data'!I111 -> - | E111: ='Pivot Table Data'!J111 -> Accessible (Van) | F111: ='Pivot Table Data'!K111 -> 0 | G111: ='Pivot Table Data'!L111 -> 0 | H111: ='Pivot Table Data'!S111 -> 3 | I111: ='Pivot Table Data'!T111 -> 3 | J111: =IF('Pivot Table Data'!O111="Yes", 'Pivot Table Data'!T111, "") -> 
A112: ='Pivot Table Data'!B112 -> 0 | B112: ='Pivot Table Data'!F112 -> Health Sciences East | C112: ='Pivot Table Data'!P112 -> P702 | D112: ='Pivot Table Data'!I112 -> - | E112: ='Pivot Table Data'!J112 -> B | F112: ='Pivot Table Data'!K112 -> 0 | G112: ='Pivot Table Data'!L112 -> 0 | H112: ='Pivot Table Data'!S112 -> 183 | I112: ='Pivot Table Data'!T112 -> 183 | J112: =IF('Pivot Table Data'!O112="Yes", 'Pivot Table Data'!T112, "") -> 183
A113: ='Pivot Table Data'!B113 -> 0 | B113: ='Pivot Table Data'!F113 -> Health Sciences East | C113: ='Pivot Table Data'!P113 -> P703 | D113: ='Pivot Table Data'!I113 -> - | E113: ='Pivot Table Data'!J113 -> Accessible | F113: ='Pivot Table Data'!K113 -> 0 | G113: ='Pivot Table Data'!L113 -> 0 | H113: ='Pivot Table Data'!S113 -> 0 | I113: ='Pivot Table Data'!T113 -> 0 | J113: =IF('Pivot Table Data'!O113="Yes", 'Pivot Table Data'!T113, "") -> 
A114: ='Pivot Table Data'!B114 -> 0 | B114: ='Pivot Table Data'!F114 -> Health Sciences East | C114: ='Pivot Table Data'!P114 -> P703 | D114: ='Pivot Table Data'!I114 -> - | E114: ='Pivot Table Data'!J114 -> Accessible (Van) | F114: ='Pivot Table Data'!K114 -> 0 | G114: ='Pivot Table Data'!L114 -> 0 | H114: ='Pivot Table Data'!S114 -> 11 | I114: ='Pivot Table Data'!T114 -> 11 | J114: =IF('Pivot Table Data'!O114="Yes", 'Pivot Table Data'!T114, "") -> 
A115: ='Pivot Table Data'!B115 -> 0 | B115: ='Pivot Table Data'!F115 -> Health Sciences East | C115: ='Pivot Table Data'!P115 -> P703 | D115: ='Pivot Table Data'!I115 -> - | E115: ='Pivot Table Data'!J115 -> Allocated | F115: ='Pivot Table Data'!K115 -> Ambulance | G115: ='Pivot Table Data'!L115 -> 0 | H115: ='Pivot Table Data'!S115 -> 2 | I115: ='Pivot Table Data'!T115 -> 2 | J115: =IF('Pivot Table Data'!O115="Yes", 'Pivot Table Data'!T115, "") -> 
A116: ='Pivot Table Data'!B116 -> 0 | B116: ='Pivot Table Data'!F116 -> Health Sciences East | C116: ='Pivot Table Data'!P116 -> P703 | D116: ='Pivot Table Data'!I116 -> - | E116: ='Pivot Table Data'!J116 -> D ($5.00) | F116: ='Pivot Table Data'!K116 -> 0 | G116: ='Pivot Table Data'!L116 -> 0 | H116: ='Pivot Table Data'!S116 -> 295 | I116: ='Pivot Table Data'!T116 -> 295 | J116: =IF('Pivot Table Data'!O116="Yes", 'Pivot Table Data'!T116, "") -> 295
A117: ='Pivot Table Data'!B117 -> 0 | B117: ='Pivot Table Data'!F117 -> Health Sciences East | C117: ='Pivot Table Data'!P117 -> P703 | D117: ='Pivot Table Data'!I117 -> - | E117: ='Pivot Table Data'!J117 -> Electric Vehicle | F117: ='Pivot Table Data'!K117 -> 0 | G117: ='Pivot Table Data'!L117 -> 0 | H117: ='Pivot Table Data'!S117 -> 12 | I117: ='Pivot Table Data'!T117 -> 12 | J117: =IF('Pivot Table Data'!O117="Yes", 'Pivot Table Data'!T117, "") -> 
A118: ='Pivot Table Data'!B118 -> 0 | B118: ='Pivot Table Data'!F118 -> Health Sciences East | C118: ='Pivot Table Data'!P118 -> P703 | D118: ='Pivot Table Data'!I118 -> - | E118: ='Pivot Table Data'!J118 -> Loading | F118: ='Pivot Table Data'!K118 -> 0 | G118: ='Pivot Table Data'!L118 -> 0 | H118: ='Pivot Table Data'!S118 -> 2 | I118: ='Pivot Table Data'!T118 -> 2 | J118: =IF('Pivot Table Data'!O118="Yes", 'Pivot Table Data'!T118, "") -> 
A119: ='Pivot Table Data'!B119 -> 0 | B119: ='Pivot Table Data'!F119 -> Health Sciences East | C119: ='Pivot Table Data'!P119 -> P703 | D119: ='Pivot Table Data'!I119 -> - | E119: ='Pivot Table Data'!J119 -> Reserved | F119: ='Pivot Table Data'!K119 -> V2G | G119: ='Pivot Table Data'!L119 -> 0 | H119: ='Pivot Table Data'!S119 -> 1 | I119: ='Pivot Table Data'!T119 -> 1 | J119: =IF('Pivot Table Data'!O119="Yes", 'Pivot Table Data'!T119, "") -> 
A120: ='Pivot Table Data'!B120 -> 0 | B120: ='Pivot Table Data'!F120 -> Health Sciences East | C120: ='Pivot Table Data'!P120 -> P703 | D120: ='Pivot Table Data'!I120 -> - | E120: ='Pivot Table Data'!J120 -> Reserved | F120: ='Pivot Table Data'!K120 -> 0 | G120: ='Pivot Table Data'!L120 -> 0 | H120: ='Pivot Table Data'!S120 -> 1 | I120: ='Pivot Table Data'!T120 -> 1 | J120: =IF('Pivot Table Data'!O120="Yes", 'Pivot Table Data'!T120, "") -> 
A121: ='Pivot Table Data'!B121 -> 0 | B121: ='Pivot Table Data'!F121 -> Health Sciences East | C121: ='Pivot Table Data'!P121 -> P703 | D121: ='Pivot Table Data'!I121 -> - | E121: ='Pivot Table Data'!J121 -> UC Vehicle | F121: ='Pivot Table Data'!K121 -> UC Cart | G121: ='Pivot Table Data'!L121 -> 0 | H121: ='Pivot Table Data'!S121 -> 2 | I121: ='Pivot Table Data'!T121 -> 2 | J121: =IF('Pivot Table Data'!O121="Yes", 'Pivot Table Data'!T121, "") -> 
A122: ='Pivot Table Data'!B122 -> 0 | B122: ='Pivot Table Data'!F122 -> Health Sciences East | C122: ='Pivot Table Data'!P122 -> P703 | D122: ='Pivot Table Data'!I122 -> - | E122: ='Pivot Table Data'!J122 -> UC Vehicle | F122: ='Pivot Table Data'!K122 -> 0 | G122: ='Pivot Table Data'!L122 -> 0 | H122: ='Pivot Table Data'!S122 -> 19 | I122: ='Pivot Table Data'!T122 -> 19 | J122: =IF('Pivot Table Data'!O122="Yes", 'Pivot Table Data'!T122, "") -> 
A123: ='Pivot Table Data'!B123 -> 0 | B123: ='Pivot Table Data'!F123 -> Health Sciences East | C123: ='Pivot Table Data'!P123 -> P703 | D123: ='Pivot Table Data'!I123 -> - | E123: ='Pivot Table Data'!J123 -> Visitor | F123: ='Pivot Table Data'!K123 -> Radiation Oncology Center Patient | G123: ='Pivot Table Data'!L123 -> 0 | H123: ='Pivot Table Data'!S123 -> 17 | I123: ='Pivot Table Data'!T123 -> 17 | J123: =IF('Pivot Table Data'!O123="Yes", 'Pivot Table Data'!T123, "") -> 17
A124: ='Pivot Table Data'!B124 -> 0 | B124: ='Pivot Table Data'!F124 -> Health Sciences East | C124: ='Pivot Table Data'!P124 -> P704 | D124: ='Pivot Table Data'!I124 -> - | E124: ='Pivot Table Data'!J124 -> D ($5.00) | F124: ='Pivot Table Data'!K124 -> 0 | G124: ='Pivot Table Data'!L124 -> 0 | H124: ='Pivot Table Data'!S124 -> 326 | I124: ='Pivot Table Data'!T124 -> 326 | J124: =IF('Pivot Table Data'!O124="Yes", 'Pivot Table Data'!T124, "") -> 326
A125: ='Pivot Table Data'!B125 -> 0 | B125: ='Pivot Table Data'!F125 -> Health Sciences East | C125: ='Pivot Table Data'!P125 -> P705 | D125: ='Pivot Table Data'!I125 -> - | E125: ='Pivot Table Data'!J125 -> D ($5.00) | F125: ='Pivot Table Data'!K125 -> 0 | G125: ='Pivot Table Data'!L125 -> 0 | H125: ='Pivot Table Data'!S125 -> 266 | I125: ='Pivot Table Data'!T125 -> 266 | J125: =IF('Pivot Table Data'!O125="Yes", 'Pivot Table Data'!T125, "") -> 266
A126: ='Pivot Table Data'!B126 -> 0 | B126: ='Pivot Table Data'!F126 -> Preuss School | C126: ='Pivot Table Data'!P126 -> P706 | D126: ='Pivot Table Data'!I126 -> - | E126: ='Pivot Table Data'!J126 -> A | F126: ='Pivot Table Data'!K126 -> Preuss | G126: ='Pivot Table Data'!L126 -> 0 | H126: ='Pivot Table Data'!S126 -> 6 | I126: ='Pivot Table Data'!T126 -> 6 | J126: =IF('Pivot Table Data'!O126="Yes", 'Pivot Table Data'!T126, "") -> 6
A127: ='Pivot Table Data'!B127 -> 0 | B127: ='Pivot Table Data'!F127 -> Preuss School | C127: ='Pivot Table Data'!P127 -> P706 | D127: ='Pivot Table Data'!I127 -> - | E127: ='Pivot Table Data'!J127 -> Accessible | F127: ='Pivot Table Data'!K127 -> 0 | G127: ='Pivot Table Data'!L127 -> 0 | H127: ='Pivot Table Data'!S127 -> 1 | I127: ='Pivot Table Data'!T127 -> 1 | J127: =IF('Pivot Table Data'!O127="Yes", 'Pivot Table Data'!T127, "") -> 
A128: ='Pivot Table Data'!B128 -> 0 | B128: ='Pivot Table Data'!F128 -> Preuss School | C128: ='Pivot Table Data'!P128 -> P706 | D128: ='Pivot Table Data'!I128 -> - | E128: ='Pivot Table Data'!J128 -> Accessible (Van) | F128: ='Pivot Table Data'!K128 -> 0 | G128: ='Pivot Table Data'!L128 -> 0 | H128: ='Pivot Table Data'!S128 -> 3 | I128: ='Pivot Table Data'!T128 -> 3 | J128: =IF('Pivot Table Data'!O128="Yes", 'Pivot Table Data'!T128, "") -> 
A129: ='Pivot Table Data'!B129 -> 0 | B129: ='Pivot Table Data'!F129 -> Preuss School | C129: ='Pivot Table Data'!P129 -> P706 | D129: ='Pivot Table Data'!I129 -> - | E129: ='Pivot Table Data'!J129 -> B | F129: ='Pivot Table Data'!K129 -> Preuss | G129: ='Pivot Table Data'!L129 -> 0 | H129: ='Pivot Table Data'!S129 -> 59 | I129: ='Pivot Table Data'!T129 -> 59 | J129: =IF('Pivot Table Data'!O129="Yes", 'Pivot Table Data'!T129, "") -> 59
A130: ='Pivot Table Data'!B130 -> 0 | B130: ='Pivot Table Data'!F130 -> Preuss School | C130: ='Pivot Table Data'!P130 -> P706 | D130: ='Pivot Table Data'!I130 -> - | E130: ='Pivot Table Data'!J130 -> Loading | F130: ='Pivot Table Data'!K130 -> 0 | G130: ='Pivot Table Data'!L130 -> 30 minutes | H130: ='Pivot Table Data'!S130 -> 3 | I130: ='Pivot Table Data'!T130 -> 3 | J130: =IF('Pivot Table Data'!O130="Yes", 'Pivot Table Data'!T130, "") -> 
A131: ='Pivot Table Data'!B131 -> 0 | B131: ='Pivot Table Data'!F131 -> Health Sciences East | C131: ='Pivot Table Data'!P131 -> P707 | D131: ='Pivot Table Data'!I131 -> - | E131: ='Pivot Table Data'!J131 -> Accessible | F131: ='Pivot Table Data'!K131 -> 0 | G131: ='Pivot Table Data'!L131 -> 0 | H131: ='Pivot Table Data'!S131 -> 4 | I131: ='Pivot Table Data'!T131 -> 4 | J131: =IF('Pivot Table Data'!O131="Yes", 'Pivot Table Data'!T131, "") -> 
A132: ='Pivot Table Data'!B132 -> 0 | B132: ='Pivot Table Data'!F132 -> Health Sciences East | C132: ='Pivot Table Data'!P132 -> P707 | D132: ='Pivot Table Data'!I132 -> - | E132: ='Pivot Table Data'!J132 -> Accessible (Van) | F132: ='Pivot Table Data'!K132 -> 0 | G132: ='Pivot Table Data'!L132 -> 0 | H132: ='Pivot Table Data'!S132 -> 3 | I132: ='Pivot Table Data'!T132 -> 3 | J132: =IF('Pivot Table Data'!O132="Yes", 'Pivot Table Data'!T132, "") -> 
A133: ='Pivot Table Data'!B133 -> 0 | B133: ='Pivot Table Data'!F133 -> Health Sciences East | C133: ='Pivot Table Data'!P133 -> P707 | D133: ='Pivot Table Data'!I133 -> - | E133: ='Pivot Table Data'!J133 -> Electric Vehicle | F133: ='Pivot Table Data'!K133 -> 0 | G133: ='Pivot Table Data'!L133 -> 0 | H133: ='Pivot Table Data'!S133 -> 2 | I133: ='Pivot Table Data'!T133 -> 2 | J133: =IF('Pivot Table Data'!O133="Yes", 'Pivot Table Data'!T133, "") -> 
A134: ='Pivot Table Data'!B134 -> 0 | B134: ='Pivot Table Data'!F134 -> Health Sciences East | C134: ='Pivot Table Data'!P134 -> P707 | D134: ='Pivot Table Data'!I134 -> - | E134: ='Pivot Table Data'!J134 -> Reserved | F134: ='Pivot Table Data'!K134 -> 0 | G134: ='Pivot Table Data'!L134 -> 0 | H134: ='Pivot Table Data'!S134 -> 6 | I134: ='Pivot Table Data'!T134 -> 6 | J134: =IF('Pivot Table Data'!O134="Yes", 'Pivot Table Data'!T134, "") -> 
A135: ='Pivot Table Data'!B135 -> 0 | B135: ='Pivot Table Data'!F135 -> Health Sciences East | C135: ='Pivot Table Data'!P135 -> P707 | D135: ='Pivot Table Data'!I135 -> - | E135: ='Pivot Table Data'!J135 -> S | F135: ='Pivot Table Data'!K135 -> 0 | G135: ='Pivot Table Data'!L135 -> 0 | H135: ='Pivot Table Data'!S135 -> 194 | I135: ='Pivot Table Data'!T135 -> 194 | J135: =IF('Pivot Table Data'!O135="Yes", 'Pivot Table Data'!T135, "") -> 194
A136: ='Pivot Table Data'!B136 -> 0 | B136: ='Pivot Table Data'!F136 -> Health Sciences East | C136: ='Pivot Table Data'!P136 -> P751 | D136: ='Pivot Table Data'!I136 -> - | E136: ='Pivot Table Data'!J136 -> Accessible | F136: ='Pivot Table Data'!K136 -> 0 | G136: ='Pivot Table Data'!L136 -> 0 | H136: ='Pivot Table Data'!S136 -> 2 | I136: ='Pivot Table Data'!T136 -> 2 | J136: =IF('Pivot Table Data'!O136="Yes", 'Pivot Table Data'!T136, "") -> 
A137: ='Pivot Table Data'!B137 -> 0 | B137: ='Pivot Table Data'!F137 -> Health Sciences East | C137: ='Pivot Table Data'!P137 -> P751 | D137: ='Pivot Table Data'!I137 -> - | E137: ='Pivot Table Data'!J137 -> Accessible (Van) | F137: ='Pivot Table Data'!K137 -> 0 | G137: ='Pivot Table Data'!L137 -> 0 | H137: ='Pivot Table Data'!S137 -> 2 | I137: ='Pivot Table Data'!T137 -> 2 | J137: =IF('Pivot Table Data'!O137="Yes", 'Pivot Table Data'!T137, "") -> 
A138: ='Pivot Table Data'!B138 -> 0 | B138: ='Pivot Table Data'!F138 -> Health Sciences East | C138: ='Pivot Table Data'!P138 -> P751 | D138: ='Pivot Table Data'!I138 -> - | E138: ='Pivot Table Data'!J138 -> Electric Vehicle | F138: ='Pivot Table Data'!K138 -> 0 | G138: ='Pivot Table Data'!L138 -> 0 | H138: ='Pivot Table Data'!S138 -> 0 | I138: ='Pivot Table Data'!T138 -> 0 | J138: =IF('Pivot Table Data'!O138="Yes", 'Pivot Table Data'!T138, "") -> 
A139: ='Pivot Table Data'!B139 -> 0 | B139: ='Pivot Table Data'!F139 -> Health Sciences East | C139: ='Pivot Table Data'!P139 -> P751 | D139: ='Pivot Table Data'!I139 -> - | E139: ='Pivot Table Data'!J139 -> Reserved | F139: ='Pivot Table Data'!K139 -> Valet | G139: ='Pivot Table Data'!L139 -> 0 | H139: ='Pivot Table Data'!S139 -> 0 | I139: ='Pivot Table Data'!T139 -> 0 | J139: =IF('Pivot Table Data'!O139="Yes", 'Pivot Table Data'!T139, "") -> 
A140: ='Pivot Table Data'!B140 -> 0 | B140: ='Pivot Table Data'!F140 -> Health Sciences East | C140: ='Pivot Table Data'!P140 -> P751 | D140: ='Pivot Table Data'!I140 -> - | E140: ='Pivot Table Data'!J140 -> Reserved | F140: ='Pivot Table Data'!K140 -> 0 | G140: ='Pivot Table Data'!L140 -> 0 | H140: ='Pivot Table Data'!S140 -> 0 | I140: ='Pivot Table Data'!T140 -> 0 | J140: =IF('Pivot Table Data'!O140="Yes", 'Pivot Table Data'!T140, "") -> 
A141: ='Pivot Table Data'!B141 -> 0 | B141: ='Pivot Table Data'!F141 -> Health Sciences East | C141: ='Pivot Table Data'!P141 -> P751 | D141: ='Pivot Table Data'!I141 -> - | E141: ='Pivot Table Data'!J141 -> Visitor | F141: ='Pivot Table Data'!K141 -> 0 | G141: ='Pivot Table Data'!L141 -> 30 minutes | H141: ='Pivot Table Data'!S141 -> 3 | I141: ='Pivot Table Data'!T141 -> 3 | J141: =IF('Pivot Table Data'!O141="Yes", 'Pivot Table Data'!T141, "") -> 3
A142: ='Pivot Table Data'!B142 -> 0 | B142: ='Pivot Table Data'!F142 -> Health Sciences East | C142: ='Pivot Table Data'!P142 -> P752 | D142: ='Pivot Table Data'!I142 -> - | E142: ='Pivot Table Data'!J142 -> Accessible | F142: ='Pivot Table Data'!K142 -> 0 | G142: ='Pivot Table Data'!L142 -> 0 | H142: ='Pivot Table Data'!S142 -> 0 | I142: ='Pivot Table Data'!T142 -> 0 | J142: =IF('Pivot Table Data'!O142="Yes", 'Pivot Table Data'!T142, "") -> 
A143: ='Pivot Table Data'!B143 -> 0 | B143: ='Pivot Table Data'!F143 -> Health Sciences East | C143: ='Pivot Table Data'!P143 -> P752 | D143: ='Pivot Table Data'!I143 -> - | E143: ='Pivot Table Data'!J143 -> Accessible (Van) | F143: ='Pivot Table Data'!K143 -> 0 | G143: ='Pivot Table Data'!L143 -> 0 | H143: ='Pivot Table Data'!S143 -> 2 | I143: ='Pivot Table Data'!T143 -> 2 | J143: =IF('Pivot Table Data'!O143="Yes", 'Pivot Table Data'!T143, "") -> 
A144: ='Pivot Table Data'!B144 -> 0 | B144: ='Pivot Table Data'!F144 -> Health Sciences East | C144: ='Pivot Table Data'!P144 -> P752 | D144: ='Pivot Table Data'!I144 -> - | E144: ='Pivot Table Data'!J144 -> Allocated | F144: ='Pivot Table Data'!K144 -> Physician On Call | G144: ='Pivot Table Data'!L144 -> 0 | H144: ='Pivot Table Data'!S144 -> 4 | I144: ='Pivot Table Data'!T144 -> 4 | J144: =IF('Pivot Table Data'!O144="Yes", 'Pivot Table Data'!T144, "") -> 
A145: ='Pivot Table Data'!B145 -> 0 | B145: ='Pivot Table Data'!F145 -> Health Sciences East | C145: ='Pivot Table Data'!P145 -> P752 | D145: ='Pivot Table Data'!I145 -> - | E145: ='Pivot Table Data'!J145 -> Reserved | F145: ='Pivot Table Data'!K145 -> Valet | G145: ='Pivot Table Data'!L145 -> 0 | H145: ='Pivot Table Data'!S145 -> 23 | I145: ='Pivot Table Data'!T145 -> 23 | J145: =IF('Pivot Table Data'!O145="Yes", 'Pivot Table Data'!T145, "") -> 
A146: ='Pivot Table Data'!B146 -> 0 | B146: ='Pivot Table Data'!F146 -> Health Sciences East | C146: ='Pivot Table Data'!P146 -> P752 | D146: ='Pivot Table Data'!I146 -> - | E146: ='Pivot Table Data'!J146 -> Reserved | F146: ='Pivot Table Data'!K146 -> 0 | G146: ='Pivot Table Data'!L146 -> 0 | H146: ='Pivot Table Data'!S146 -> 1 | I146: ='Pivot Table Data'!T146 -> 1 | J146: =IF('Pivot Table Data'!O146="Yes", 'Pivot Table Data'!T146, "") -> 
A147: ='Pivot Table Data'!B147 -> 0 | B147: ='Pivot Table Data'!F147 -> Health Sciences East | C147: ='Pivot Table Data'!P147 -> P753 | D147: ='Pivot Table Data'!I147 -> - | E147: ='Pivot Table Data'!J147 -> Accessible | F147: ='Pivot Table Data'!K147 -> 0 | G147: ='Pivot Table Data'!L147 -> 0 | H147: ='Pivot Table Data'!S147 -> 0 | I147: ='Pivot Table Data'!T147 -> 0 | J147: =IF('Pivot Table Data'!O147="Yes", 'Pivot Table Data'!T147, "") -> 
A148: ='Pivot Table Data'!B148 -> 0 | B148: ='Pivot Table Data'!F148 -> Health Sciences East | C148: ='Pivot Table Data'!P148 -> P753 | D148: ='Pivot Table Data'!I148 -> - | E148: ='Pivot Table Data'!J148 -> Accessible (Van) | F148: ='Pivot Table Data'!K148 -> 0 | G148: ='Pivot Table Data'!L148 -> 0 | H148: ='Pivot Table Data'!S148 -> 2 | I148: ='Pivot Table Data'!T148 -> 2 | J148: =IF('Pivot Table Data'!O148="Yes", 'Pivot Table Data'!T148, "") -> 
A149: ='Pivot Table Data'!B149 -> 0 | B149: ='Pivot Table Data'!F149 -> Health Sciences East | C149: ='Pivot Table Data'!P149 -> P753 | D149: ='Pivot Table Data'!I149 -> - | E149: ='Pivot Table Data'!J149 -> Reserved | F149: ='Pivot Table Data'!K149 -> 0 | G149: ='Pivot Table Data'!L149 -> 0 | H149: ='Pivot Table Data'!S149 -> 32 | I149: ='Pivot Table Data'!T149 -> 32 | J149: =IF('Pivot Table Data'!O149="Yes", 'Pivot Table Data'!T149, "") -> 
A150: ='Pivot Table Data'!B150 -> 0 | B150: ='Pivot Table Data'!F150 -> Health Sciences East | C150: ='Pivot Table Data'!P150 -> P757 | D150: ='Pivot Table Data'!I150 -> - | E150: ='Pivot Table Data'!J150 -> Loading | F150: ='Pivot Table Data'!K150 -> Shiley Surgery | G150: ='Pivot Table Data'!L150 -> 20 | H150: ='Pivot Table Data'!S150 -> 0 | I150: ='Pivot Table Data'!T150 -> 0 | J150: =IF('Pivot Table Data'!O150="Yes", 'Pivot Table Data'!T150, "") -> 
A151: ='Pivot Table Data'!B151 -> 0 | B151: ='Pivot Table Data'!F151 -> Health Sciences East | C151: ='Pivot Table Data'!P151 -> P757 | D151: ='Pivot Table Data'!I151 -> - | E151: ='Pivot Table Data'!J151 -> Reserved | F151: ='Pivot Table Data'!K151 -> 0 | G151: ='Pivot Table Data'!L151 -> 0 | H151: ='Pivot Table Data'!S151 -> 0 | I151: ='Pivot Table Data'!T151 -> 0 | J151: =IF('Pivot Table Data'!O151="Yes", 'Pivot Table Data'!T151, "") -> 
A152: ='Pivot Table Data'!B152 -> 0 | B152: ='Pivot Table Data'!F152 -> Health Sciences East | C152: ='Pivot Table Data'!P152 -> P757 | D152: ='Pivot Table Data'!I152 -> - | E152: ='Pivot Table Data'!J152 -> UC Vehicle | F152: ='Pivot Table Data'!K152 -> 0 | G152: ='Pivot Table Data'!L152 -> 0 | H152: ='Pivot Table Data'!S152 -> 0 | I152: ='Pivot Table Data'!T152 -> 0 | J152: =IF('Pivot Table Data'!O152="Yes", 'Pivot Table Data'!T152, "") -> 
A153: ='Pivot Table Data'!B153 -> 0 | B153: ='Pivot Table Data'!F153 -> Health Sciences East | C153: ='Pivot Table Data'!P153 -> P758 | D153: ='Pivot Table Data'!I153 -> - | E153: ='Pivot Table Data'!J153 -> Accessible | F153: ='Pivot Table Data'!K153 -> 0 | G153: ='Pivot Table Data'!L153 -> 0 | H153: ='Pivot Table Data'!S153 -> 2 | I153: ='Pivot Table Data'!T153 -> 2 | J153: =IF('Pivot Table Data'!O153="Yes", 'Pivot Table Data'!T153, "") -> 
A154: ='Pivot Table Data'!B154 -> 0 | B154: ='Pivot Table Data'!F154 -> Health Sciences East | C154: ='Pivot Table Data'!P154 -> P758 | D154: ='Pivot Table Data'!I154 -> - | E154: ='Pivot Table Data'!J154 -> Accessible (Van) | F154: ='Pivot Table Data'!K154 -> 0 | G154: ='Pivot Table Data'!L154 -> 0 | H154: ='Pivot Table Data'!S154 -> 0 | I154: ='Pivot Table Data'!T154 -> 0 | J154: =IF('Pivot Table Data'!O154="Yes", 'Pivot Table Data'!T154, "") -> 
A155: ='Pivot Table Data'!B155 -> 0 | B155: ='Pivot Table Data'!F155 -> Health Sciences East | C155: ='Pivot Table Data'!P155 -> P758 | D155: ='Pivot Table Data'!I155 -> - | E155: ='Pivot Table Data'!J155 -> Motorcycle Section | F155: ='Pivot Table Data'!K155 -> 0 | G155: ='Pivot Table Data'!L155 -> 0 | H155: ='Pivot Table Data'!S155 -> 0 | I155: ='Pivot Table Data'!T155 -> 0 | J155: =IF('Pivot Table Data'!O155="Yes", 'Pivot Table Data'!T155, "") -> 
A156: ='Pivot Table Data'!B156 -> 0 | B156: ='Pivot Table Data'!F156 -> Health Sciences East | C156: ='Pivot Table Data'!P156 -> P758 | D156: ='Pivot Table Data'!I156 -> - | E156: ='Pivot Table Data'!J156 -> Reserved | F156: ='Pivot Table Data'!K156 -> 0 | G156: ='Pivot Table Data'!L156 -> 0 | H156: ='Pivot Table Data'!S156 -> 5 | I156: ='Pivot Table Data'!T156 -> 5 | J156: =IF('Pivot Table Data'!O156="Yes", 'Pivot Table Data'!T156, "") -> 
A157: ='Pivot Table Data'!B157 -> 0 | B157: ='Pivot Table Data'!F157 -> Health Sciences East | C157: ='Pivot Table Data'!P157 -> P759 | D157: ='Pivot Table Data'!I157 -> - | E157: ='Pivot Table Data'!J157 -> A | F157: ='Pivot Table Data'!K157 -> Physician A | G157: ='Pivot Table Data'!L157 -> 0 | H157: ='Pivot Table Data'!S157 -> 87 | I157: ='Pivot Table Data'!T157 -> 87 | J157: =IF('Pivot Table Data'!O157="Yes", 'Pivot Table Data'!T157, "") -> 87
A158: ='Pivot Table Data'!B158 -> 0 | B158: ='Pivot Table Data'!F158 -> Health Sciences East | C158: ='Pivot Table Data'!P158 -> P759 | D158: ='Pivot Table Data'!I158 -> - | E158: ='Pivot Table Data'!J158 -> Accessible | F158: ='Pivot Table Data'!K158 -> 0 | G158: ='Pivot Table Data'!L158 -> 0 | H158: ='Pivot Table Data'!S158 -> 4 | I158: ='Pivot Table Data'!T158 -> 4 | J158: =IF('Pivot Table Data'!O158="Yes", 'Pivot Table Data'!T158, "") -> 
A159: ='Pivot Table Data'!B159 -> 0 | B159: ='Pivot Table Data'!F159 -> Health Sciences East | C159: ='Pivot Table Data'!P159 -> P759 | D159: ='Pivot Table Data'!I159 -> - | E159: ='Pivot Table Data'!J159 -> Accessible (Van) | F159: ='Pivot Table Data'!K159 -> 0 | G159: ='Pivot Table Data'!L159 -> 0 | H159: ='Pivot Table Data'!S159 -> 5 | I159: ='Pivot Table Data'!T159 -> 5 | J159: =IF('Pivot Table Data'!O159="Yes", 'Pivot Table Data'!T159, "") -> 
A160: ='Pivot Table Data'!B160 -> 0 | B160: ='Pivot Table Data'!F160 -> Health Sciences East | C160: ='Pivot Table Data'!P160 -> P759 | D160: ='Pivot Table Data'!I160 -> - | E160: ='Pivot Table Data'!J160 -> Motorcycle Section | F160: ='Pivot Table Data'!K160 -> 0 | G160: ='Pivot Table Data'!L160 -> 0 | H160: ='Pivot Table Data'!S160 -> 1 | I160: ='Pivot Table Data'!T160 -> 1 | J160: =IF('Pivot Table Data'!O160="Yes", 'Pivot Table Data'!T160, "") -> 
A161: ='Pivot Table Data'!B161 -> 0 | B161: ='Pivot Table Data'!F161 -> Health Sciences East | C161: ='Pivot Table Data'!P161 -> P759 | D161: ='Pivot Table Data'!I161 -> - | E161: ='Pivot Table Data'!J161 -> Reserved | F161: ='Pivot Table Data'!K161 -> Alzheimer's Disease Research Center Patient | G161: ='Pivot Table Data'!L161 -> 0 | H161: ='Pivot Table Data'!S161 -> 10 | I161: ='Pivot Table Data'!T161 -> 10 | J161: =IF('Pivot Table Data'!O161="Yes", 'Pivot Table Data'!T161, "") -> 
A162: ='Pivot Table Data'!B162 -> 0 | B162: ='Pivot Table Data'!F162 -> Health Sciences East | C162: ='Pivot Table Data'!P162 -> P759 | D162: ='Pivot Table Data'!I162 -> - | E162: ='Pivot Table Data'!J162 -> Reserved | F162: ='Pivot Table Data'!K162 -> Brain Health and Memory Disorders | G162: ='Pivot Table Data'!L162 -> 0 | H162: ='Pivot Table Data'!S162 -> 5 | I162: ='Pivot Table Data'!T162 -> 5 | J162: =IF('Pivot Table Data'!O162="Yes", 'Pivot Table Data'!T162, "") -> 
A163: ='Pivot Table Data'!B163 -> 0 | B163: ='Pivot Table Data'!F163 -> Health Sciences East | C163: ='Pivot Table Data'!P163 -> P759 | D163: ='Pivot Table Data'!I163 -> - | E163: ='Pivot Table Data'!J163 -> Reserved | F163: ='Pivot Table Data'!K163 -> Huntington's Disease Clinical Research Center | G163: ='Pivot Table Data'!L163 -> 0 | H163: ='Pivot Table Data'!S163 -> 2 | I163: ='Pivot Table Data'!T163 -> 2 | J163: =IF('Pivot Table Data'!O163="Yes", 'Pivot Table Data'!T163, "") -> 
A164: ='Pivot Table Data'!B164 -> 0 | B164: ='Pivot Table Data'!F164 -> Health Sciences East | C164: ='Pivot Table Data'!P164 -> P761 | D164: ='Pivot Table Data'!I164 -> - | E164: ='Pivot Table Data'!J164 -> UC Vehicle | F164: ='Pivot Table Data'!K164 -> 0 | G164: ='Pivot Table Data'!L164 -> 0 | H164: ='Pivot Table Data'!S164 -> 3 | I164: ='Pivot Table Data'!T164 -> 3 | J164: =IF('Pivot Table Data'!O164="Yes", 'Pivot Table Data'!T164, "") -> 
A165: ='Pivot Table Data'!B165 -> 0 | B165: ='Pivot Table Data'!F165 -> Health Sciences East | C165: ='Pivot Table Data'!P165 -> P762 | D165: ='Pivot Table Data'!I165 -> - | E165: ='Pivot Table Data'!J165 -> Loading | F165: ='Pivot Table Data'!K165 -> 0 | G165: ='Pivot Table Data'!L165 -> 0 | H165: ='Pivot Table Data'!S165 -> 1 | I165: ='Pivot Table Data'!T165 -> 1 | J165: =IF('Pivot Table Data'!O165="Yes", 'Pivot Table Data'!T165, "") -> 
A166: ='Pivot Table Data'!B166 -> 0 | B166: ='Pivot Table Data'!F166 -> Health Sciences East | C166: ='Pivot Table Data'!P166 -> P762 | D166: ='Pivot Table Data'!I166 -> - | E166: ='Pivot Table Data'!J166 -> Service Yard | F166: ='Pivot Table Data'!K166 -> 0 | G166: ='Pivot Table Data'!L166 -> 0 | H166: ='Pivot Table Data'!S166 -> 3 | I166: ='Pivot Table Data'!T166 -> 3 | J166: =IF('Pivot Table Data'!O166="Yes", 'Pivot Table Data'!T166, "") -> 
A167: ='Pivot Table Data'!B167 -> 0 | B167: ='Pivot Table Data'!F167 -> Science Research Park | C167: ='Pivot Table Data'!P167 -> P782 | D167: ='Pivot Table Data'!I167 -> - | E167: ='Pivot Table Data'!J167 -> SS ($3.25) | F167: ='Pivot Table Data'!K167 -> 0 | G167: ='Pivot Table Data'!L167 -> 0 | H167: ='Pivot Table Data'!S167 -> 216 | I167: ='Pivot Table Data'!T167 -> 216 | J167: =IF('Pivot Table Data'!O167="Yes", 'Pivot Table Data'!T167, "") -> 216
A168: ='Pivot Table Data'!B168 -> 0 | B168: ='Pivot Table Data'!F168 -> Health Sciences East | C168: ='Pivot Table Data'!P168 -> P784 | D168: ='Pivot Table Data'!I168 -> - | E168: ='Pivot Table Data'!J168 -> Accessible | F168: ='Pivot Table Data'!K168 -> 0 | G168: ='Pivot Table Data'!L168 -> 0 | H168: ='Pivot Table Data'!S168 -> 6 | I168: ='Pivot Table Data'!T168 -> 6 | J168: =IF('Pivot Table Data'!O168="Yes", 'Pivot Table Data'!T168, "") -> 
A169: ='Pivot Table Data'!B169 -> 0 | B169: ='Pivot Table Data'!F169 -> Health Sciences East | C169: ='Pivot Table Data'!P169 -> P784 | D169: ='Pivot Table Data'!I169 -> - | E169: ='Pivot Table Data'!J169 -> Accessible (Van) | F169: ='Pivot Table Data'!K169 -> 0 | G169: ='Pivot Table Data'!L169 -> 0 | H169: ='Pivot Table Data'!S169 -> 12 | I169: ='Pivot Table Data'!T169 -> 12 | J169: =IF('Pivot Table Data'!O169="Yes", 'Pivot Table Data'!T169, "") -> 
A170: ='Pivot Table Data'!B170 -> 0 | B170: ='Pivot Table Data'!F170 -> Health Sciences East | C170: ='Pivot Table Data'!P170 -> P784 | D170: ='Pivot Table Data'!I170 -> - | E170: ='Pivot Table Data'!J170 -> B | F170: ='Pivot Table Data'!K170 -> 0 | G170: ='Pivot Table Data'!L170 -> 0 | H170: ='Pivot Table Data'!S170 -> 81 | I170: ='Pivot Table Data'!T170 -> 81 | J170: =IF('Pivot Table Data'!O170="Yes", 'Pivot Table Data'!T170, "") -> 81
A171: ='Pivot Table Data'!B171 -> 0 | B171: ='Pivot Table Data'!F171 -> Health Sciences East | C171: ='Pivot Table Data'!P171 -> P784 | D171: ='Pivot Table Data'!I171 -> - | E171: ='Pivot Table Data'!J171 -> Reserved | F171: ='Pivot Table Data'!K171 -> Valet | G171: ='Pivot Table Data'!L171 -> 0 | H171: ='Pivot Table Data'!S171 -> 9 | I171: ='Pivot Table Data'!T171 -> 9 | J171: =IF('Pivot Table Data'!O171="Yes", 'Pivot Table Data'!T171, "") -> 
A172: ='Pivot Table Data'!B172 -> 0 | B172: ='Pivot Table Data'!F172 -> Health Sciences East | C172: ='Pivot Table Data'!P172 -> P785 | D172: ='Pivot Table Data'!I172 -> - | E172: ='Pivot Table Data'!J172 -> Accessible | F172: ='Pivot Table Data'!K172 -> 0 | G172: ='Pivot Table Data'!L172 -> 0 | H172: ='Pivot Table Data'!S172 -> 0 | I172: ='Pivot Table Data'!T172 -> 0 | J172: =IF('Pivot Table Data'!O172="Yes", 'Pivot Table Data'!T172, "") -> 
A173: ='Pivot Table Data'!B173 -> 0 | B173: ='Pivot Table Data'!F173 -> Health Sciences East | C173: ='Pivot Table Data'!P173 -> P785 | D173: ='Pivot Table Data'!I173 -> - | E173: ='Pivot Table Data'!J173 -> Accessible (Van) | F173: ='Pivot Table Data'!K173 -> 0 | G173: ='Pivot Table Data'!L173 -> 0 | H173: ='Pivot Table Data'!S173 -> 8 | I173: ='Pivot Table Data'!T173 -> 8 | J173: =IF('Pivot Table Data'!O173="Yes", 'Pivot Table Data'!T173, "") -> 
A174: ='Pivot Table Data'!B174 -> 0 | B174: ='Pivot Table Data'!F174 -> Health Sciences East | C174: ='Pivot Table Data'!P174 -> P785 | D174: ='Pivot Table Data'!I174 -> - | E174: ='Pivot Table Data'!J174 -> B | F174: ='Pivot Table Data'!K174 -> 0 | G174: ='Pivot Table Data'!L174 -> 0 | H174: ='Pivot Table Data'!S174 -> 384 | I174: ='Pivot Table Data'!T174 -> 384 | J174: =IF('Pivot Table Data'!O174="Yes", 'Pivot Table Data'!T174, "") -> 384
A175: ='Pivot Table Data'!B175 -> 0 | B175: ='Pivot Table Data'!F175 -> Medical Center Hillcrest | C175: ='Pivot Table Data'!P175 -> Arbor | D175: ='Pivot Table Data'!I175 -> L1 | E175: ='Pivot Table Data'!J175 -> Visitor | F175: ='Pivot Table Data'!K175 -> 0 | G175: ='Pivot Table Data'!L175 -> 0 | H175: ='Pivot Table Data'!S175 -> 41 | I175: ='Pivot Table Data'!T175 -> 263 | J175: =IF('Pivot Table Data'!O175="Yes", 'Pivot Table Data'!T175, "") -> 
A176: ='Pivot Table Data'!B176 -> 0 | B176: ='Pivot Table Data'!F176 -> Medical Center Hillcrest | C176: ='Pivot Table Data'!P176 -> Arbor | D176: ='Pivot Table Data'!I176 -> L2 | E176: ='Pivot Table Data'!J176 -> Visitor | F176: ='Pivot Table Data'!K176 -> 0 | G176: ='Pivot Table Data'!L176 -> 0 | H176: ='Pivot Table Data'!S176 -> 41 | I176: ='Pivot Table Data'!T176 ->  | J176: =IF('Pivot Table Data'!O176="Yes", 'Pivot Table Data'!T176, "") -> 
A177: ='Pivot Table Data'!B177 -> 0 | B177: ='Pivot Table Data'!F177 -> Medical Center Hillcrest | C177: ='Pivot Table Data'!P177 -> Arbor | D177: ='Pivot Table Data'!I177 -> L3 | E177: ='Pivot Table Data'!J177 -> Visitor | F177: ='Pivot Table Data'!K177 -> 0 | G177: ='Pivot Table Data'!L177 -> 0 | H177: ='Pivot Table Data'!S177 -> 39 | I177: ='Pivot Table Data'!T177 ->  | J177: =IF('Pivot Table Data'!O177="Yes", 'Pivot Table Data'!T177, "") -> 
A178: ='Pivot Table Data'!B178 -> 0 | B178: ='Pivot Table Data'!F178 -> Medical Center Hillcrest | C178: ='Pivot Table Data'!P178 -> Arbor | D178: ='Pivot Table Data'!I178 -> L4 | E178: ='Pivot Table Data'!J178 -> Visitor | F178: ='Pivot Table Data'!K178 -> 0 | G178: ='Pivot Table Data'!L178 -> 0 | H178: ='Pivot Table Data'!S178 -> 39 | I178: ='Pivot Table Data'!T178 ->  | J178: =IF('Pivot Table Data'!O178="Yes", 'Pivot Table Data'!T178, "") -> 
A179: ='Pivot Table Data'!B179 -> 0 | B179: ='Pivot Table Data'!F179 -> Medical Center Hillcrest | C179: ='Pivot Table Data'!P179 -> Arbor | D179: ='Pivot Table Data'!I179 -> L5 | E179: ='Pivot Table Data'!J179 -> Visitor | F179: ='Pivot Table Data'!K179 -> 0 | G179: ='Pivot Table Data'!L179 -> 0 | H179: ='Pivot Table Data'!S179 -> 39 | I179: ='Pivot Table Data'!T179 ->  | J179: =IF('Pivot Table Data'!O179="Yes", 'Pivot Table Data'!T179, "") -> 
A180: ='Pivot Table Data'!B180 -> 0 | B180: ='Pivot Table Data'!F180 -> Medical Center Hillcrest | C180: ='Pivot Table Data'!P180 -> Arbor | D180: ='Pivot Table Data'!I180 -> L6 | E180: ='Pivot Table Data'!J180 -> Visitor | F180: ='Pivot Table Data'!K180 -> 0 | G180: ='Pivot Table Data'!L180 -> 0 | H180: ='Pivot Table Data'!S180 -> 39 | I180: ='Pivot Table Data'!T180 ->  | J180: =IF('Pivot Table Data'!O180="Yes", 'Pivot Table Data'!T180, "") -> 
A181: ='Pivot Table Data'!B181 -> 0 | B181: ='Pivot Table Data'!F181 -> Medical Center Hillcrest | C181: ='Pivot Table Data'!P181 -> Arbor | D181: ='Pivot Table Data'!I181 -> L7 | E181: ='Pivot Table Data'!J181 -> Motorcycle Section | F181: ='Pivot Table Data'!K181 -> 0 | G181: ='Pivot Table Data'!L181 -> 0 | H181: ='Pivot Table Data'!S181 -> 10 | I181: ='Pivot Table Data'!T181 -> 10 | J181: =IF('Pivot Table Data'!O181="Yes", 'Pivot Table Data'!T181, "") -> 
A182: ='Pivot Table Data'!B182 -> 0 | B182: ='Pivot Table Data'!F182 -> Medical Center Hillcrest | C182: ='Pivot Table Data'!P182 -> Arbor | D182: ='Pivot Table Data'!I182 -> L7 | E182: ='Pivot Table Data'!J182 -> Visitor | F182: ='Pivot Table Data'!K182 -> Patient Visitor Reserved | G182: ='Pivot Table Data'!L182 -> 0 | H182: ='Pivot Table Data'!S182 -> 4 | I182: ='Pivot Table Data'!T182 -> 4 | J182: =IF('Pivot Table Data'!O182="Yes", 'Pivot Table Data'!T182, "") -> 
A183: ='Pivot Table Data'!B183 -> 0 | B183: ='Pivot Table Data'!F183 -> Medical Center Hillcrest | C183: ='Pivot Table Data'!P183 -> Arbor | D183: ='Pivot Table Data'!I183 -> L7 | E183: ='Pivot Table Data'!J183 -> Visitor | F183: ='Pivot Table Data'!K183 -> 0 | G183: ='Pivot Table Data'!L183 -> 0 | H183: ='Pivot Table Data'!S183 -> 25 | I183: ='Pivot Table Data'!T183 ->  | J183: =IF('Pivot Table Data'!O183="Yes", 'Pivot Table Data'!T183, "") -> 
A184: ='Pivot Table Data'!B184 -> 0 | B184: ='Pivot Table Data'!F184 -> Medical Center Hillcrest | C184: ='Pivot Table Data'!P184 -> Arbor | D184: ='Pivot Table Data'!I184 -> L8 | E184: ='Pivot Table Data'!J184 -> Accessible | F184: ='Pivot Table Data'!K184 -> 0 | G184: ='Pivot Table Data'!L184 -> 0 | H184: ='Pivot Table Data'!S184 -> 10 | I184: ='Pivot Table Data'!T184 -> 15 | J184: =IF('Pivot Table Data'!O184="Yes", 'Pivot Table Data'!T184, "") -> 
A185: ='Pivot Table Data'!B185 -> 0 | B185: ='Pivot Table Data'!F185 -> Medical Center Hillcrest | C185: ='Pivot Table Data'!P185 -> Arbor | D185: ='Pivot Table Data'!I185 -> L8 | E185: ='Pivot Table Data'!J185 -> Accessible (Van) | F185: ='Pivot Table Data'!K185 -> 0 | G185: ='Pivot Table Data'!L185 -> 0 | H185: ='Pivot Table Data'!S185 -> 0 | I185: ='Pivot Table Data'!T185 -> 0 | J185: =IF('Pivot Table Data'!O185="Yes", 'Pivot Table Data'!T185, "") -> 
A186: ='Pivot Table Data'!B186 -> 0 | B186: ='Pivot Table Data'!F186 -> Medical Center Hillcrest | C186: ='Pivot Table Data'!P186 -> Arbor | D186: ='Pivot Table Data'!I186 -> L8 | E186: ='Pivot Table Data'!J186 -> Reserved | F186: ='Pivot Table Data'!K186 -> Transportation Office | G186: ='Pivot Table Data'!L186 -> 0 | H186: ='Pivot Table Data'!S186 -> 1 | I186: ='Pivot Table Data'!T186 -> 1 | J186: =IF('Pivot Table Data'!O186="Yes", 'Pivot Table Data'!T186, "") -> 
A187: ='Pivot Table Data'!B187 -> 0 | B187: ='Pivot Table Data'!F187 -> Medical Center Hillcrest | C187: ='Pivot Table Data'!P187 -> Arbor | D187: ='Pivot Table Data'!I187 -> L8 | E187: ='Pivot Table Data'!J187 -> UC Vehicle | F187: ='Pivot Table Data'!K187 -> 0 | G187: ='Pivot Table Data'!L187 -> 0 | H187: ='Pivot Table Data'!S187 -> 2 | I187: ='Pivot Table Data'!T187 -> 2 | J187: =IF('Pivot Table Data'!O187="Yes", 'Pivot Table Data'!T187, "") -> 
A188: ='Pivot Table Data'!B188 -> 0 | B188: ='Pivot Table Data'!F188 -> Medical Center Hillcrest | C188: ='Pivot Table Data'!P188 -> Arbor | D188: ='Pivot Table Data'!I188 -> L9 | E188: ='Pivot Table Data'!J188 -> Electric Vehicle | F188: ='Pivot Table Data'!K188 -> 0 | G188: ='Pivot Table Data'!L188 -> 4 Hours | H188: ='Pivot Table Data'!S188 -> 12 | I188: ='Pivot Table Data'!T188 -> 12 | J188: =IF('Pivot Table Data'!O188="Yes", 'Pivot Table Data'!T188, "") -> 
A189: ='Pivot Table Data'!B189 -> 0 | B189: ='Pivot Table Data'!F189 -> Medical Center Hillcrest | C189: ='Pivot Table Data'!P189 -> Arbor | D189: ='Pivot Table Data'!I189 -> L9 | E189: ='Pivot Table Data'!J189 -> Motorcycle Section | F189: ='Pivot Table Data'!K189 -> 0 | G189: ='Pivot Table Data'!L189 -> 0 | H189: ='Pivot Table Data'!S189 -> 0 | I189: ='Pivot Table Data'!T189 ->  | J189: =IF('Pivot Table Data'!O189="Yes", 'Pivot Table Data'!T189, "") -> 
A190: ='Pivot Table Data'!B190 -> 0 | B190: ='Pivot Table Data'!F190 -> Medical Center Hillcrest | C190: ='Pivot Table Data'!P190 -> Arbor | D190: ='Pivot Table Data'!I190 -> L9 | E190: ='Pivot Table Data'!J190 -> Reserved | F190: ='Pivot Table Data'!K190 -> 0 | G190: ='Pivot Table Data'!L190 -> 0 | H190: ='Pivot Table Data'!S190 -> 19 | I190: ='Pivot Table Data'!T190 -> 19 | J190: =IF('Pivot Table Data'!O190="Yes", 'Pivot Table Data'!T190, "") -> 
A191: ='Pivot Table Data'!B191 -> 0 | B191: ='Pivot Table Data'!F191 -> Medical Center Hillcrest | C191: ='Pivot Table Data'!P191 -> Arbor | D191: ='Pivot Table Data'!I191 -> L10 | E191: ='Pivot Table Data'!J191 -> A | F191: ='Pivot Table Data'!K191 -> 0 | G191: ='Pivot Table Data'!L191 -> 0 | H191: ='Pivot Table Data'!S191 -> 44 | I191: ='Pivot Table Data'!T191 -> 226 | J191: =IF('Pivot Table Data'!O191="Yes", 'Pivot Table Data'!T191, "") -> 
A192: ='Pivot Table Data'!B192 -> 0 | B192: ='Pivot Table Data'!F192 -> Medical Center Hillcrest | C192: ='Pivot Table Data'!P192 -> Arbor | D192: ='Pivot Table Data'!I192 -> L10 | E192: ='Pivot Table Data'!J192 -> Accessible | F192: ='Pivot Table Data'!K192 -> 0 | G192: ='Pivot Table Data'!L192 -> 0 | H192: ='Pivot Table Data'!S192 -> 3 | I192: ='Pivot Table Data'!T192 ->  | J192: =IF('Pivot Table Data'!O192="Yes", 'Pivot Table Data'!T192, "") -> 
A193: ='Pivot Table Data'!B193 -> 0 | B193: ='Pivot Table Data'!F193 -> Medical Center Hillcrest | C193: ='Pivot Table Data'!P193 -> Arbor | D193: ='Pivot Table Data'!I193 -> L10 | E193: ='Pivot Table Data'!J193 -> Accessible (Van) | F193: ='Pivot Table Data'!K193 -> 0 | G193: ='Pivot Table Data'!L193 -> 0 | H193: ='Pivot Table Data'!S193 -> 0 | I193: ='Pivot Table Data'!T193 ->  | J193: =IF('Pivot Table Data'!O193="Yes", 'Pivot Table Data'!T193, "") -> 
A194: ='Pivot Table Data'!B194 -> 0 | B194: ='Pivot Table Data'!F194 -> Medical Center Hillcrest | C194: ='Pivot Table Data'!P194 -> Arbor | D194: ='Pivot Table Data'!I194 -> L11 | E194: ='Pivot Table Data'!J194 -> A | F194: ='Pivot Table Data'!K194 -> 0 | G194: ='Pivot Table Data'!L194 -> 0 | H194: ='Pivot Table Data'!S194 -> 47 | I194: ='Pivot Table Data'!T194 ->  | J194: =IF('Pivot Table Data'!O194="Yes", 'Pivot Table Data'!T194, "") -> 
A195: ='Pivot Table Data'!B195 -> 0 | B195: ='Pivot Table Data'!F195 -> Medical Center Hillcrest | C195: ='Pivot Table Data'!P195 -> Arbor | D195: ='Pivot Table Data'!I195 -> L12 | E195: ='Pivot Table Data'!J195 -> A | F195: ='Pivot Table Data'!K195 -> 0 | G195: ='Pivot Table Data'!L195 -> 0 | H195: ='Pivot Table Data'!S195 -> 45 | I195: ='Pivot Table Data'!T195 ->  | J195: =IF('Pivot Table Data'!O195="Yes", 'Pivot Table Data'!T195, "") -> 
A196: ='Pivot Table Data'!B196 -> 0 | B196: ='Pivot Table Data'!F196 -> Medical Center Hillcrest | C196: ='Pivot Table Data'!P196 -> Arbor | D196: ='Pivot Table Data'!I196 -> L12 | E196: ='Pivot Table Data'!J196 -> Accessible | F196: ='Pivot Table Data'!K196 -> 0 | G196: ='Pivot Table Data'!L196 -> 0 | H196: ='Pivot Table Data'!S196 -> 1 | I196: ='Pivot Table Data'!T196 ->  | J196: =IF('Pivot Table Data'!O196="Yes", 'Pivot Table Data'!T196, "") -> 
A197: ='Pivot Table Data'!B197 -> 0 | B197: ='Pivot Table Data'!F197 -> Medical Center Hillcrest | C197: ='Pivot Table Data'!P197 -> Arbor | D197: ='Pivot Table Data'!I197 -> L12 | E197: ='Pivot Table Data'!J197 -> Accessible (Van) | F197: ='Pivot Table Data'!K197 -> 0 | G197: ='Pivot Table Data'!L197 -> 0 | H197: ='Pivot Table Data'!S197 -> 0 | I197: ='Pivot Table Data'!T197 ->  | J197: =IF('Pivot Table Data'!O197="Yes", 'Pivot Table Data'!T197, "") -> 
A198: ='Pivot Table Data'!B198 -> 0 | B198: ='Pivot Table Data'!F198 -> Medical Center Hillcrest | C198: ='Pivot Table Data'!P198 -> Arbor | D198: ='Pivot Table Data'!I198 -> L13 | E198: ='Pivot Table Data'!J198 -> A | F198: ='Pivot Table Data'!K198 -> 0 | G198: ='Pivot Table Data'!L198 -> 0 | H198: ='Pivot Table Data'!S198 -> 47 | I198: ='Pivot Table Data'!T198 ->  | J198: =IF('Pivot Table Data'!O198="Yes", 'Pivot Table Data'!T198, "") -> 
A199: ='Pivot Table Data'!B199 -> 0 | B199: ='Pivot Table Data'!F199 -> Medical Center Hillcrest | C199: ='Pivot Table Data'!P199 -> Arbor | D199: ='Pivot Table Data'!I199 -> L14 | E199: ='Pivot Table Data'!J199 -> A | F199: ='Pivot Table Data'!K199 -> 0 | G199: ='Pivot Table Data'!L199 -> 0 | H199: ='Pivot Table Data'!S199 -> 43 | I199: ='Pivot Table Data'!T199 ->  | J199: =IF('Pivot Table Data'!O199="Yes", 'Pivot Table Data'!T199, "") -> 
A200: ='Pivot Table Data'!B200 -> 0 | B200: ='Pivot Table Data'!F200 -> Medical Center Hillcrest | C200: ='Pivot Table Data'!P200 -> Arbor | D200: ='Pivot Table Data'!I200 -> L14 | E200: ='Pivot Table Data'!J200 -> Accessible | F200: ='Pivot Table Data'!K200 -> 0 | G200: ='Pivot Table Data'!L200 -> 0 | H200: ='Pivot Table Data'!S200 -> 1 | I200: ='Pivot Table Data'!T200 ->  | J200: =IF('Pivot Table Data'!O200="Yes", 'Pivot Table Data'!T200, "") -> 
A201: ='Pivot Table Data'!B201 -> 0 | B201: ='Pivot Table Data'!F201 -> Medical Center Hillcrest | C201: ='Pivot Table Data'!P201 -> Arbor | D201: ='Pivot Table Data'!I201 -> L14 | E201: ='Pivot Table Data'!J201 -> Accessible (Van) | F201: ='Pivot Table Data'!K201 -> 0 | G201: ='Pivot Table Data'!L201 -> 0 | H201: ='Pivot Table Data'!S201 -> 0 | I201: ='Pivot Table Data'!T201 ->  | J201: =IF('Pivot Table Data'!O201="Yes", 'Pivot Table Data'!T201, "") -> 
... 800 more rows

Sheet Print Occupancy Forms (hidden)
A1: Day / Date : | E1: Name(s) :
M3: * Only enter the number of open spaces
A4: ='Pivot Table Data'!B4 -> Zone # | B4: ='Pivot Table Data'!F4 -> Neighborhood | C4: ='Pivot Table Data'!P4 -> Lot / Structure | D4: ='Pivot Table Data'!I4 -> Garage Level | E4: ='Pivot Table Data'!J4 -> Space Type | F4: ='Pivot Table Data'!K4 -> Space Subtype | G4: ='Pivot Table Data'!L4 -> Time Limit [minutes] | H4: Stall Count (Inventory) | I4: Stall Count (Occupancy) | J4: Stall Count (QPass) | K4: ='Pivot Table Data'!AB4 -> 6am | L4: ='Pivot Table Data'!AC4 -> 7am | M4: ='Pivot Table Data'!AD4 -> 8am | N4: ='Pivot Table Data'!AE4 -> 9am | O4: ='Pivot Table Data'!AF4 -> 10am | P4: ='Pivot Table Data'!AG4 -> 11am | Q4: ='Pivot Table Data'!AH4 -> 12pm | R4: ='Pivot Table Data'!AI4 -> 1pm | S4: ='Pivot Table Data'!AJ4 -> 2pm | T4: ='Pivot Table Data'!AK4 -> 3pm | U4: ='Pivot Table Data'!AL4 -> 4pm | V4: ='Pivot Table Data'!AM4 -> 5pm | W4: ='Pivot Table Data'!AN4 -> 6pm | X4: ='Pivot Table Data'!AO4 -> 7pm | Y4: ='Pivot Table Data'!AP4 -> 8pm | Z4: ='Pivot Table Data'!AQ4 -> 9pm | AA4: ='Pivot Table Data'!AR4 -> 10pm | AB4: Notes
A5: ='Pivot Table Data'!B5 -> 0 | B5: ='Pivot Table Data'!F5 -> Health Sciences East | C5: ='Pivot Table Data'!P5 -> Athena | D5: ='Pivot Table Data'!I5 -> Ground Floor | E5: ='Pivot Table Data'!J5 -> A | F5: ='Pivot Table Data'!K5 -> 0 | G5: ='Pivot Table Data'!L5 -> 0 | H5: ='Pivot Table Data'!S5 -> 4 | I5: ='Pivot Table Data'!T5 -> 307 | J5: =IF('Pivot Table Data'!O5="Yes", 'Pivot Table Data'!T5, "") -> 307
A6: ='Pivot Table Data'!B6 -> 0 | B6: ='Pivot Table Data'!F6 -> Health Sciences East | C6: ='Pivot Table Data'!P6 -> Athena | D6: ='Pivot Table Data'!I6 -> Ground Floor | E6: ='Pivot Table Data'!J6 -> Accessible | F6: ='Pivot Table Data'!K6 -> 0 | G6: ='Pivot Table Data'!L6 -> 0 | H6: ='Pivot Table Data'!S6 -> 49 | I6: ='Pivot Table Data'!T6 -> 71 | J6: =IF('Pivot Table Data'!O6="Yes", 'Pivot Table Data'!T6, "") -> 
A7: ='Pivot Table Data'!B7 -> 0 | B7: ='Pivot Table Data'!F7 -> Health Sciences East | C7: ='Pivot Table Data'!P7 -> Athena | D7: ='Pivot Table Data'!I7 -> Ground Floor | E7: ='Pivot Table Data'!J7 -> Accessible (Van) | F7: ='Pivot Table Data'!K7 -> 0 | G7: ='Pivot Table Data'!L7 -> 0 | H7: ='Pivot Table Data'!S7 -> 3 | I7: ='Pivot Table Data'!T7 -> 8 | J7: =IF('Pivot Table Data'!O7="Yes", 'Pivot Table Data'!T7, "") -> 
A8: ='Pivot Table Data'!B8 -> 0 | B8: ='Pivot Table Data'!F8 -> Health Sciences East | C8: ='Pivot Table Data'!P8 -> Athena | D8: ='Pivot Table Data'!I8 -> Ground Floor | E8: ='Pivot Table Data'!J8 -> Accessible (Van) | F8: ='Pivot Table Data'!K8 -> 0 | G8: ='Pivot Table Data'!L8 -> 0 | H8: ='Pivot Table Data'!S8 -> 0 | I8: ='Pivot Table Data'!T8 ->  | J8: =IF('Pivot Table Data'!O8="Yes", 'Pivot Table Data'!T8, "") -> 
A9: ='Pivot Table Data'!B9 -> 0 | B9: ='Pivot Table Data'!F9 -> Health Sciences East | C9: ='Pivot Table Data'!P9 -> Athena | D9: ='Pivot Table Data'!I9 -> Ground Floor | E9: ='Pivot Table Data'!J9 -> Electric Vehicle | F9: ='Pivot Table Data'!K9 -> ADA | G9: ='Pivot Table Data'!L9 -> 0 | H9: ='Pivot Table Data'!S9 -> 2 | I9: ='Pivot Table Data'!T9 -> 2 | J9: =IF('Pivot Table Data'!O9="Yes", 'Pivot Table Data'!T9, "") -> 
A10: ='Pivot Table Data'!B10 -> 0 | B10: ='Pivot Table Data'!F10 -> Health Sciences East | C10: ='Pivot Table Data'!P10 -> Athena | D10: ='Pivot Table Data'!I10 -> Ground Floor | E10: ='Pivot Table Data'!J10 -> Electric Vehicle | F10: ='Pivot Table Data'!K10 -> 0 | G10: ='Pivot Table Data'!L10 -> 0 | H10: ='Pivot Table Data'!S10 -> 16 | I10: ='Pivot Table Data'!T10 -> 16 | J10: =IF('Pivot Table Data'!O10="Yes", 'Pivot Table Data'!T10, "") -> 
A11: ='Pivot Table Data'!B11 -> 0 | B11: ='Pivot Table Data'!F11 -> Health Sciences East | C11: ='Pivot Table Data'!P11 -> Athena | D11: ='Pivot Table Data'!I11 -> Ground Floor | E11: ='Pivot Table Data'!J11 -> Motorcycle Section | F11: ='Pivot Table Data'!K11 -> 0 | G11: ='Pivot Table Data'!L11 -> 0 | H11: ='Pivot Table Data'!S11 -> 0 | I11: ='Pivot Table Data'!T11 -> 30 | J11: =IF('Pivot Table Data'!O11="Yes", 'Pivot Table Data'!T11, "") -> 
A12: ='Pivot Table Data'!B12 -> 0 | B12: ='Pivot Table Data'!F12 -> Health Sciences East | C12: ='Pivot Table Data'!P12 -> Athena | D12: ='Pivot Table Data'!I12 -> Ground Floor | E12: ='Pivot Table Data'!J12 -> Visitor | F12: ='Pivot Table Data'!K12 -> Patient/Visitor Reserved | G12: ='Pivot Table Data'!L12 -> 30 minutes | H12: ='Pivot Table Data'!S12 -> 9 | I12: ='Pivot Table Data'!T12 -> 9 | J12: =IF('Pivot Table Data'!O12="Yes", 'Pivot Table Data'!T12, "") -> 9
A13: ='Pivot Table Data'!B13 -> 0 | B13: ='Pivot Table Data'!F13 -> Health Sciences East | C13: ='Pivot Table Data'!P13 -> Athena | D13: ='Pivot Table Data'!I13 -> Ground Floor | E13: ='Pivot Table Data'!J13 -> Visitor | F13: ='Pivot Table Data'!K13 -> 0 | G13: ='Pivot Table Data'!L13 -> 0 | H13: ='Pivot Table Data'!S13 -> 64 | I13: ='Pivot Table Data'!T13 -> 237 | J13: =IF('Pivot Table Data'!O13="Yes", 'Pivot Table Data'!T13, "") -> 237
A14: ='Pivot Table Data'!B14 -> 0 | B14: ='Pivot Table Data'!F14 -> Health Sciences East | C14: ='Pivot Table Data'!P14 -> Athena | D14: ='Pivot Table Data'!I14 -> L2 | E14: ='Pivot Table Data'!J14 -> A | F14: ='Pivot Table Data'!K14 -> 0 | G14: ='Pivot Table Data'!L14 -> 0 | H14: ='Pivot Table Data'!S14 -> 9 | I14: ='Pivot Table Data'!T14 ->  | J14: =IF('Pivot Table Data'!O14="Yes", 'Pivot Table Data'!T14, "") -> 
A15: ='Pivot Table Data'!B15 -> 0 | B15: ='Pivot Table Data'!F15 -> Health Sciences East | C15: ='Pivot Table Data'!P15 -> Athena | D15: ='Pivot Table Data'!I15 -> L2 | E15: ='Pivot Table Data'!J15 -> Accessible | F15: ='Pivot Table Data'!K15 -> 0 | G15: ='Pivot Table Data'!L15 -> 0 | H15: ='Pivot Table Data'!S15 -> 15 | I15: ='Pivot Table Data'!T15 ->  | J15: =IF('Pivot Table Data'!O15="Yes", 'Pivot Table Data'!T15, "") -> 
A16: ='Pivot Table Data'!B16 -> 0 | B16: ='Pivot Table Data'!F16 -> Health Sciences East | C16: ='Pivot Table Data'!P16 -> Athena | D16: ='Pivot Table Data'!I16 -> L2 | E16: ='Pivot Table Data'!J16 -> Accessible (Van) | F16: ='Pivot Table Data'!K16 -> 0 | G16: ='Pivot Table Data'!L16 -> 0 | H16: ='Pivot Table Data'!S16 -> 3 | I16: ='Pivot Table Data'!T16 ->  | J16: =IF('Pivot Table Data'!O16="Yes", 'Pivot Table Data'!T16, "") -> 
A17: ='Pivot Table Data'!B17 -> 0 | B17: ='Pivot Table Data'!F17 -> Health Sciences East | C17: ='Pivot Table Data'!P17 -> Athena | D17: ='Pivot Table Data'!I17 -> L2 | E17: ='Pivot Table Data'!J17 -> Motorcycle Section | F17: ='Pivot Table Data'!K17 -> 0 | G17: ='Pivot Table Data'!L17 -> 0 | H17: ='Pivot Table Data'!S17 -> 10 | I17: ='Pivot Table Data'!T17 ->  | J17: =IF('Pivot Table Data'!O17="Yes", 'Pivot Table Data'!T17, "") -> 
A18: ='Pivot Table Data'!B18 -> 0 | B18: ='Pivot Table Data'!F18 -> Health Sciences East | C18: ='Pivot Table Data'!P18 -> Athena | D18: ='Pivot Table Data'!I18 -> L2 | E18: ='Pivot Table Data'!J18 -> Motorcycle Section | F18: ='Pivot Table Data'!K18 -> 0 | G18: ='Pivot Table Data'!L18 -> 0 | H18: ='Pivot Table Data'!S18 -> 2 | I18: ='Pivot Table Data'!T18 ->  | J18: =IF('Pivot Table Data'!O18="Yes", 'Pivot Table Data'!T18, "") -> 
A19: ='Pivot Table Data'!B19 -> 0 | B19: ='Pivot Table Data'!F19 -> Health Sciences East | C19: ='Pivot Table Data'!P19 -> Athena | D19: ='Pivot Table Data'!I19 -> L2 | E19: ='Pivot Table Data'!J19 -> Visitor | F19: ='Pivot Table Data'!K19 -> Infusion | G19: ='Pivot Table Data'!L19 -> 0 | H19: ='Pivot Table Data'!S19 -> 30 | I19: ='Pivot Table Data'!T19 -> 30 | J19: =IF('Pivot Table Data'!O19="Yes", 'Pivot Table Data'!T19, "") -> 30
A20: ='Pivot Table Data'!B20 -> 0 | B20: ='Pivot Table Data'!F20 -> Health Sciences East | C20: ='Pivot Table Data'!P20 -> Athena | D20: ='Pivot Table Data'!I20 -> L2 | E20: ='Pivot Table Data'!J20 -> Visitor | F20: ='Pivot Table Data'!K20 -> Radiation | G20: ='Pivot Table Data'!L20 -> 0 | H20: ='Pivot Table Data'!S20 -> 10 | I20: ='Pivot Table Data'!T20 -> 10 | J20: =IF('Pivot Table Data'!O20="Yes", 'Pivot Table Data'!T20, "") -> 10
A21: ='Pivot Table Data'!B21 -> 0 | B21: ='Pivot Table Data'!F21 -> Health Sciences East | C21: ='Pivot Table Data'!P21 -> Athena | D21: ='Pivot Table Data'!I21 -> L2 | E21: ='Pivot Table Data'!J21 -> Visitor | F21: ='Pivot Table Data'!K21 -> 0 | G21: ='Pivot Table Data'!L21 -> 0 | H21: ='Pivot Table Data'!S21 -> 115 | I21: ='Pivot Table Data'!T21 ->  | J21: =IF('Pivot Table Data'!O21="Yes", 'Pivot Table Data'!T21, "") -> 
A22: ='Pivot Table Data'!B22 -> 0 | B22: ='Pivot Table Data'!F22 -> Health Sciences East | C22: ='Pivot Table Data'!P22 -> Athena | D22: ='Pivot Table Data'!I22 -> L3 | E22: ='Pivot Table Data'!J22 -> A | F22: ='Pivot Table Data'!K22 -> 0 | G22: ='Pivot Table Data'!L22 -> 0 | H22: ='Pivot Table Data'!S22 -> 147 | I22: ='Pivot Table Data'!T22 ->  | J22: =IF('Pivot Table Data'!O22="Yes", 'Pivot Table Data'!T22, "") -> 
A23: ='Pivot Table Data'!B23 -> 0 | B23: ='Pivot Table Data'!F23 -> Health Sciences East | C23: ='Pivot Table Data'!P23 -> Athena | D23: ='Pivot Table Data'!I23 -> L3 | E23: ='Pivot Table Data'!J23 -> A | F23: ='Pivot Table Data'!K23 -> 0 | G23: ='Pivot Table Data'!L23 -> 0 | H23: ='Pivot Table Data'!S23 -> 0 | I23: ='Pivot Table Data'!T23 ->  | J23: =IF('Pivot Table Data'!O23="Yes", 'Pivot Table Data'!T23, "") -> 
A24: ='Pivot Table Data'!B24 -> 0 | B24: ='Pivot Table Data'!F24 -> Health Sciences East | C24: ='Pivot Table Data'!P24 -> Athena | D24: ='Pivot Table Data'!I24 -> L3 | E24: ='Pivot Table Data'!J24 -> A | F24: ='Pivot Table Data'!K24 -> 0 | G24: ='Pivot Table Data'!L24 -> 0 | H24: ='Pivot Table Data'!S24 -> 0 | I24: ='Pivot Table Data'!T24 ->  | J24: =IF('Pivot Table Data'!O24="Yes", 'Pivot Table Data'!T24, "") -> 
A25: ='Pivot Table Data'!B25 -> 0 | B25: ='Pivot Table Data'!F25 -> Health Sciences East | C25: ='Pivot Table Data'!P25 -> Athena | D25: ='Pivot Table Data'!I25 -> L3 | E25: ='Pivot Table Data'!J25 -> Accessible | F25: ='Pivot Table Data'!K25 -> 0 | G25: ='Pivot Table Data'!L25 -> 0 | H25: ='Pivot Table Data'!S25 -> 7 | I25: ='Pivot Table Data'!T25 ->  | J25: =IF('Pivot Table Data'!O25="Yes", 'Pivot Table Data'!T25, "") -> 
A26: ='Pivot Table Data'!B26 -> 0 | B26: ='Pivot Table Data'!F26 -> Health Sciences East | C26: ='Pivot Table Data'!P26 -> Athena | D26: ='Pivot Table Data'!I26 -> L3 | E26: ='Pivot Table Data'!J26 -> Accessible (Van) | F26: ='Pivot Table Data'!K26 -> 0 | G26: ='Pivot Table Data'!L26 -> 0 | H26: ='Pivot Table Data'!S26 -> 2 | I26: ='Pivot Table Data'!T26 ->  | J26: =IF('Pivot Table Data'!O26="Yes", 'Pivot Table Data'!T26, "") -> 
A27: ='Pivot Table Data'!B27 -> 0 | B27: ='Pivot Table Data'!F27 -> Health Sciences East | C27: ='Pivot Table Data'!P27 -> Athena | D27: ='Pivot Table Data'!I27 -> L3 | E27: ='Pivot Table Data'!J27 -> B | F27: ='Pivot Table Data'!K27 -> 0 | G27: ='Pivot Table Data'!L27 -> 0 | H27: ='Pivot Table Data'!S27 -> 0 | I27: ='Pivot Table Data'!T27 -> 540 | J27: =IF('Pivot Table Data'!O27="Yes", 'Pivot Table Data'!T27, "") -> 540
A28: ='Pivot Table Data'!B28 -> 0 | B28: ='Pivot Table Data'!F28 -> Health Sciences East | C28: ='Pivot Table Data'!P28 -> Athena | D28: ='Pivot Table Data'!I28 -> L3 | E28: ='Pivot Table Data'!J28 -> Visitor | F28: ='Pivot Table Data'!K28 -> 0 | G28: ='Pivot Table Data'!L28 -> 0 | H28: ='Pivot Table Data'!S28 -> 58 | I28: ='Pivot Table Data'!T28 ->  | J28: =IF('Pivot Table Data'!O28="Yes", 'Pivot Table Data'!T28, "") -> 
A29: ='Pivot Table Data'!B29 -> 0 | B29: ='Pivot Table Data'!F29 -> Health Sciences East | C29: ='Pivot Table Data'!P29 -> Athena | D29: ='Pivot Table Data'!I29 -> L4 | E29: ='Pivot Table Data'!J29 -> A | F29: ='Pivot Table Data'!K29 -> 0 | G29: ='Pivot Table Data'!L29 -> 0 | H29: ='Pivot Table Data'!S29 -> 147 | I29: ='Pivot Table Data'!T29 ->  | J29: =IF('Pivot Table Data'!O29="Yes", 'Pivot Table Data'!T29, "") -> 
A30: ='Pivot Table Data'!B30 -> 0 | B30: ='Pivot Table Data'!F30 -> Health Sciences East | C30: ='Pivot Table Data'!P30 -> Athena | D30: ='Pivot Table Data'!I30 -> L4 | E30: ='Pivot Table Data'!J30 -> B | F30: ='Pivot Table Data'!K30 -> 0 | G30: ='Pivot Table Data'!L30 -> 0 | H30: ='Pivot Table Data'!S30 -> 76 | I30: ='Pivot Table Data'!T30 ->  | J30: =IF('Pivot Table Data'!O30="Yes", 'Pivot Table Data'!T30, "") -> 
A31: ='Pivot Table Data'!B31 -> 0 | B31: ='Pivot Table Data'!F31 -> Health Sciences East | C31: ='Pivot Table Data'!P31 -> Athena | D31: ='Pivot Table Data'!I31 -> L4 | E31: ='Pivot Table Data'!J31 -> Motorcycle Section | F31: ='Pivot Table Data'!K31 -> 0 | G31: ='Pivot Table Data'!L31 -> 0 | H31: ='Pivot Table Data'!S31 -> 5 | I31: ='Pivot Table Data'!T31 ->  | J31: =IF('Pivot Table Data'!O31="Yes", 'Pivot Table Data'!T31, "") -> 
A32: ='Pivot Table Data'!B32 -> 0 | B32: ='Pivot Table Data'!F32 -> Health Sciences East | C32: ='Pivot Table Data'!P32 -> Athena | D32: ='Pivot Table Data'!I32 -> L4 | E32: ='Pivot Table Data'!J32 -> Reserved | F32: ='Pivot Table Data'!K32 -> 0 | G32: ='Pivot Table Data'!L32 -> 0 | H32: ='Pivot Table Data'!S32 -> 6 | I32: ='Pivot Table Data'!T32 -> 6 | J32: =IF('Pivot Table Data'!O32="Yes", 'Pivot Table Data'!T32, "") -> 
A33: ='Pivot Table Data'!B33 -> 0 | B33: ='Pivot Table Data'!F33 -> Health Sciences East | C33: ='Pivot Table Data'!P33 -> Athena | D33: ='Pivot Table Data'!I33 -> L5 | E33: ='Pivot Table Data'!J33 -> B | F33: ='Pivot Table Data'!K33 -> 0 | G33: ='Pivot Table Data'!L33 -> 0 | H33: ='Pivot Table Data'!S33 -> 225 | I33: ='Pivot Table Data'!T33 ->  | J33: =IF('Pivot Table Data'!O33="Yes", 'Pivot Table Data'!T33, "") -> 
A34: ='Pivot Table Data'!B34 -> 0 | B34: ='Pivot Table Data'!F34 -> Health Sciences East | C34: ='Pivot Table Data'!P34 -> Athena | D34: ='Pivot Table Data'!I34 -> L5 | E34: ='Pivot Table Data'!J34 -> Electric Vehicle | F34: ='Pivot Table Data'!K34 -> 0 | G34: ='Pivot Table Data'!L34 -> 12-Hour | H34: ='Pivot Table Data'!S34 -> 0 | I34: ='Pivot Table Data'!T34 -> 27 | J34: =IF('Pivot Table Data'!O34="Yes", 'Pivot Table Data'!T34, "") -> 
A35: ='Pivot Table Data'!B35 -> 0 | B35: ='Pivot Table Data'!F35 -> Health Sciences East | C35: ='Pivot Table Data'!P35 -> Athena | D35: ='Pivot Table Data'!I35 -> L5 | E35: ='Pivot Table Data'!J35 -> Motorcycle Section | F35: ='Pivot Table Data'!K35 -> 0 | G35: ='Pivot Table Data'!L35 -> 0 | H35: ='Pivot Table Data'!S35 -> 5 | I35: ='Pivot Table Data'!T35 ->  | J35: =IF('Pivot Table Data'!O35="Yes", 'Pivot Table Data'!T35, "") -> 
A36: ='Pivot Table Data'!B36 -> 0 | B36: ='Pivot Table Data'!F36 -> Health Sciences East | C36: ='Pivot Table Data'!P36 -> Athena | D36: ='Pivot Table Data'!I36 -> L6 | E36: ='Pivot Table Data'!J36 -> B | F36: ='Pivot Table Data'!K36 -> 0 | G36: ='Pivot Table Data'!L36 -> 0 | H36: ='Pivot Table Data'!S36 -> 133 | I36: ='Pivot Table Data'!T36 ->  | J36: =IF('Pivot Table Data'!O36="Yes", 'Pivot Table Data'!T36, "") -> 
A37: ='Pivot Table Data'!B37 -> 0 | B37: ='Pivot Table Data'!F37 -> Health Sciences East | C37: ='Pivot Table Data'!P37 -> Athena | D37: ='Pivot Table Data'!I37 -> L6 | E37: ='Pivot Table Data'!J37 -> Electric Vehicle | F37: ='Pivot Table Data'!K37 -> 0 | G37: ='Pivot Table Data'!L37 -> 12-Hour | H37: ='Pivot Table Data'!S37 -> 27 | I37: ='Pivot Table Data'!T37 ->  | J37: =IF('Pivot Table Data'!O37="Yes", 'Pivot Table Data'!T37, "") -> 
A38: ='Pivot Table Data'!B38 -> 0 | B38: ='Pivot Table Data'!F38 -> Health Sciences East | C38: ='Pivot Table Data'!P38 -> Athena | D38: ='Pivot Table Data'!I38 -> L6 | E38: ='Pivot Table Data'!J38 -> Motorcycle Section | F38: ='Pivot Table Data'!K38 -> 0 | G38: ='Pivot Table Data'!L38 -> 0 | H38: ='Pivot Table Data'!S38 -> 8 | I38: ='Pivot Table Data'!T38 ->  | J38: =IF('Pivot Table Data'!O38="Yes", 'Pivot Table Data'!T38, "") -> 
A39: ='Pivot Table Data'!B39 -> 0 | B39: ='Pivot Table Data'!F39 -> Health Sciences East | C39: ='Pivot Table Data'!P39 -> Athena | D39: ='Pivot Table Data'!I39 -> Roof | E39: ='Pivot Table Data'!J39 -> B | F39: ='Pivot Table Data'!K39 -> 0 | G39: ='Pivot Table Data'!L39 -> 0 | H39: ='Pivot Table Data'!S39 -> 106 | I39: ='Pivot Table Data'!T39 ->  | J39: =IF('Pivot Table Data'!O39="Yes", 'Pivot Table Data'!T39, "") -> 
A40: ='Pivot Table Data'!B40 -> 0 | B40: ='Pivot Table Data'!F40 -> Health Sciences East | C40: ='Pivot Table Data'!P40 -> Campus Point East | D40: ='Pivot Table Data'!I40 -> L1 | E40: ='Pivot Table Data'!J40 -> A | F40: ='Pivot Table Data'!K40 -> 24/7 Enforced | G40: ='Pivot Table Data'!L40 -> 0 | H40: ='Pivot Table Data'!S40 -> 177 | I40: ='Pivot Table Data'!T40 -> 371 | J40: =IF('Pivot Table Data'!O40="Yes", 'Pivot Table Data'!T40, "") -> 371
A41: ='Pivot Table Data'!B41 -> 0 | B41: ='Pivot Table Data'!F41 -> Health Sciences East | C41: ='Pivot Table Data'!P41 -> Campus Point East | D41: ='Pivot Table Data'!I41 -> L2 | E41: ='Pivot Table Data'!J41 -> A | F41: ='Pivot Table Data'!K41 -> 24/7 Enforced | G41: ='Pivot Table Data'!L41 -> 0 | H41: ='Pivot Table Data'!S41 -> 194 | I41: ='Pivot Table Data'!T41 ->  | J41: =IF('Pivot Table Data'!O41="Yes", 'Pivot Table Data'!T41, "") -> 
A42: ='Pivot Table Data'!B42 -> 0 | B42: ='Pivot Table Data'!F42 -> Health Sciences East | C42: ='Pivot Table Data'!P42 -> Campus Point East | D42: ='Pivot Table Data'!I42 -> L2 | E42: ='Pivot Table Data'!J42 -> Accessible | F42: ='Pivot Table Data'!K42 -> 0 | G42: ='Pivot Table Data'!L42 -> 0 | H42: ='Pivot Table Data'!S42 -> 11 | I42: ='Pivot Table Data'!T42 -> 11 | J42: =IF('Pivot Table Data'!O42="Yes", 'Pivot Table Data'!T42, "") -> 
A43: ='Pivot Table Data'!B43 -> 0 | B43: ='Pivot Table Data'!F43 -> Health Sciences East | C43: ='Pivot Table Data'!P43 -> Campus Point East | D43: ='Pivot Table Data'!I43 -> L2 | E43: ='Pivot Table Data'!J43 -> Accessible (Van) | F43: ='Pivot Table Data'!K43 -> 0 | G43: ='Pivot Table Data'!L43 -> 0 | H43: ='Pivot Table Data'!S43 -> 1 | I43: ='Pivot Table Data'!T43 -> 1 | J43: =IF('Pivot Table Data'!O43="Yes", 'Pivot Table Data'!T43, "") -> 
A44: ='Pivot Table Data'!B44 -> 0 | B44: ='Pivot Table Data'!F44 -> Health Sciences East | C44: ='Pivot Table Data'!P44 -> Campus Point East | D44: ='Pivot Table Data'!I44 -> L2 | E44: ='Pivot Table Data'!J44 -> Electric Vehicle | F44: ='Pivot Table Data'!K44 -> 0 | G44: ='Pivot Table Data'!L44 -> 0 | H44: ='Pivot Table Data'!S44 -> 3 | I44: ='Pivot Table Data'!T44 -> 3 | J44: =IF('Pivot Table Data'!O44="Yes", 'Pivot Table Data'!T44, "") -> 
A45: ='Pivot Table Data'!B45 -> 0 | B45: ='Pivot Table Data'!F45 -> Health Sciences East | C45: ='Pivot Table Data'!P45 -> Campus Point East | D45: ='Pivot Table Data'!I45 -> L2 | E45: ='Pivot Table Data'!J45 -> Motorcycle Section | F45: ='Pivot Table Data'!K45 -> 0 | G45: ='Pivot Table Data'!L45 -> 0 | H45: ='Pivot Table Data'!S45 -> 8 | I45: ='Pivot Table Data'!T45 -> 8 | J45: =IF('Pivot Table Data'!O45="Yes", 'Pivot Table Data'!T45, "") -> 
A46: ='Pivot Table Data'!B46 -> 0 | B46: ='Pivot Table Data'!F46 -> Health Sciences East | C46: ='Pivot Table Data'!P46 -> Campus Point East | D46: ='Pivot Table Data'!I46 -> L2 | E46: ='Pivot Table Data'!J46 -> Reserved | F46: ='Pivot Table Data'!K46 -> 0 | G46: ='Pivot Table Data'!L46 -> 0 | H46: ='Pivot Table Data'!S46 -> 40 | I46: ='Pivot Table Data'!T46 -> 40 | J46: =IF('Pivot Table Data'!O46="Yes", 'Pivot Table Data'!T46, "") -> 
A47: ='Pivot Table Data'!B47 -> 0 | B47: ='Pivot Table Data'!F47 -> Health Sciences East | C47: ='Pivot Table Data'!P47 -> Campus Point East | D47: ='Pivot Table Data'!I47 -> L3 | E47: ='Pivot Table Data'!J47 -> Reserved | F47: ='Pivot Table Data'!K47 -> Valet | G47: ='Pivot Table Data'!L47 -> 0 | H47: ='Pivot Table Data'!S47 -> 127 | I47: ='Pivot Table Data'!T47 -> 127 | J47: =IF('Pivot Table Data'!O47="Yes", 'Pivot Table Data'!T47, "") -> 
A48: ='Pivot Table Data'!B48 -> 0 | B48: ='Pivot Table Data'!F48 -> Health Sciences East | C48: ='Pivot Table Data'!P48 -> Campus Point East | D48: ='Pivot Table Data'!I48 -> L3 | E48: ='Pivot Table Data'!J48 -> Visitor | F48: ='Pivot Table Data'!K48 -> 0 | G48: ='Pivot Table Data'!L48 -> 0 | H48: ='Pivot Table Data'!S48 -> 138 | I48: ='Pivot Table Data'!T48 -> 138 | J48: =IF('Pivot Table Data'!O48="Yes", 'Pivot Table Data'!T48, "") -> 138
A49: ='Pivot Table Data'!B49 -> 0 | B49: ='Pivot Table Data'!F49 -> Health Sciences East | C49: ='Pivot Table Data'!P49 -> Campus Point West | D49: ='Pivot Table Data'!I49 -> B3 | E49: ='Pivot Table Data'!J49 -> Motorcycle Section | F49: ='Pivot Table Data'!K49 -> 0 | G49: ='Pivot Table Data'!L49 -> 0 | H49: ='Pivot Table Data'!S49 -> 0 | I49: ='Pivot Table Data'!T49 -> 0 | J49: =IF('Pivot Table Data'!O49="Yes", 'Pivot Table Data'!T49, "") -> 
A50: ='Pivot Table Data'!B50 -> 0 | B50: ='Pivot Table Data'!F50 -> Health Sciences East | C50: ='Pivot Table Data'!P50 -> Campus Point West | D50: ='Pivot Table Data'!I50 -> B3 | E50: ='Pivot Table Data'!J50 -> Visitor | F50: ='Pivot Table Data'!K50 -> 0 | G50: ='Pivot Table Data'!L50 -> 0 | H50: ='Pivot Table Data'!S50 -> 130 | I50: ='Pivot Table Data'!T50 -> 611 | J50: =IF('Pivot Table Data'!O50="Yes", 'Pivot Table Data'!T50, "") -> 611
A51: ='Pivot Table Data'!B51 -> 0 | B51: ='Pivot Table Data'!F51 -> Health Sciences East | C51: ='Pivot Table Data'!P51 -> Campus Point West | D51: ='Pivot Table Data'!I51 -> B2 | E51: ='Pivot Table Data'!J51 -> Motorcycle Section | F51: ='Pivot Table Data'!K51 -> 0 | G51: ='Pivot Table Data'!L51 -> 0 | H51: ='Pivot Table Data'!S51 -> 0 | I51: ='Pivot Table Data'!T51 ->  | J51: =IF('Pivot Table Data'!O51="Yes", 'Pivot Table Data'!T51, "") -> 
A52: ='Pivot Table Data'!B52 -> 0 | B52: ='Pivot Table Data'!F52 -> Health Sciences East | C52: ='Pivot Table Data'!P52 -> Campus Point West | D52: ='Pivot Table Data'!I52 -> B2 | E52: ='Pivot Table Data'!J52 -> Visitor | F52: ='Pivot Table Data'!K52 -> 0 | G52: ='Pivot Table Data'!L52 -> 0 | H52: ='Pivot Table Data'!S52 -> 181 | I52: ='Pivot Table Data'!T52 ->  | J52: =IF('Pivot Table Data'!O52="Yes", 'Pivot Table Data'!T52, "") -> 
A53: ='Pivot Table Data'!B53 -> 0 | B53: ='Pivot Table Data'!F53 -> Health Sciences East | C53: ='Pivot Table Data'!P53 -> Campus Point West | D53: ='Pivot Table Data'!I53 -> B1 | E53: ='Pivot Table Data'!J53 -> Accessible | F53: ='Pivot Table Data'!K53 -> 0 | G53: ='Pivot Table Data'!L53 -> 0 | H53: ='Pivot Table Data'!S53 -> 31 | I53: ='Pivot Table Data'!T53 -> 87 | J53: =IF('Pivot Table Data'!O53="Yes", 'Pivot Table Data'!T53, "") -> 
A54: ='Pivot Table Data'!B54 -> 0 | B54: ='Pivot Table Data'!F54 -> Health Sciences East | C54: ='Pivot Table Data'!P54 -> Campus Point West | D54: ='Pivot Table Data'!I54 -> B1 | E54: ='Pivot Table Data'!J54 -> Accessible (Van) | F54: ='Pivot Table Data'!K54 -> 0 | G54: ='Pivot Table Data'!L54 -> 0 | H54: ='Pivot Table Data'!S54 -> 6 | I54: ='Pivot Table Data'!T54 -> 17 | J54: =IF('Pivot Table Data'!O54="Yes", 'Pivot Table Data'!T54, "") -> 
A55: ='Pivot Table Data'!B55 -> 0 | B55: ='Pivot Table Data'!F55 -> Health Sciences East | C55: ='Pivot Table Data'!P55 -> Campus Point West | D55: ='Pivot Table Data'!I55 -> B1 | E55: ='Pivot Table Data'!J55 -> Electric Vehicle | F55: ='Pivot Table Data'!K55 -> 0 | G55: ='Pivot Table Data'!L55 -> 0 | H55: ='Pivot Table Data'!S55 -> 6 | I55: ='Pivot Table Data'!T55 -> 6 | J55: =IF('Pivot Table Data'!O55="Yes", 'Pivot Table Data'!T55, "") -> 
A56: ='Pivot Table Data'!B56 -> 0 | B56: ='Pivot Table Data'!F56 -> Health Sciences East | C56: ='Pivot Table Data'!P56 -> Campus Point West | D56: ='Pivot Table Data'!I56 -> B1 | E56: ='Pivot Table Data'!J56 -> Visitor | F56: ='Pivot Table Data'!K56 -> 0 | G56: ='Pivot Table Data'!L56 -> 0 | H56: ='Pivot Table Data'!S56 -> 109 | I56: ='Pivot Table Data'!T56 ->  | J56: =IF('Pivot Table Data'!O56="Yes", 'Pivot Table Data'!T56, "") -> 
A57: ='Pivot Table Data'!B57 -> 0 | B57: ='Pivot Table Data'!F57 -> Health Sciences East | C57: ='Pivot Table Data'!P57 -> Campus Point West | D57: ='Pivot Table Data'!I57 -> Ground Floor | E57: ='Pivot Table Data'!J57 -> A | F57: ='Pivot Table Data'!K57 -> 24/7 Enforced | G57: ='Pivot Table Data'!L57 -> 0 | H57: ='Pivot Table Data'!S57 -> 7 | I57: ='Pivot Table Data'!T57 -> 7 | J57: =IF('Pivot Table Data'!O57="Yes", 'Pivot Table Data'!T57, "") -> 7
A58: ='Pivot Table Data'!B58 -> 0 | B58: ='Pivot Table Data'!F58 -> Health Sciences East | C58: ='Pivot Table Data'!P58 -> Campus Point West | D58: ='Pivot Table Data'!I58 -> Ground Floor | E58: ='Pivot Table Data'!J58 -> Accessible | F58: ='Pivot Table Data'!K58 -> 0 | G58: ='Pivot Table Data'!L58 -> 0 | H58: ='Pivot Table Data'!S58 -> 24 | I58: ='Pivot Table Data'!T58 ->  | J58: =IF('Pivot Table Data'!O58="Yes", 'Pivot Table Data'!T58, "") -> 
A59: ='Pivot Table Data'!B59 -> 0 | B59: ='Pivot Table Data'!F59 -> Health Sciences East | C59: ='Pivot Table Data'!P59 -> Campus Point West | D59: ='Pivot Table Data'!I59 -> Ground Floor | E59: ='Pivot Table Data'!J59 -> Accessible (Van) | F59: ='Pivot Table Data'!K59 -> 0 | G59: ='Pivot Table Data'!L59 -> 0 | H59: ='Pivot Table Data'!S59 -> 7 | I59: ='Pivot Table Data'!T59 ->  | J59: =IF('Pivot Table Data'!O59="Yes", 'Pivot Table Data'!T59, "") -> 
A60: ='Pivot Table Data'!B60 -> 0 | B60: ='Pivot Table Data'!F60 -> Health Sciences East | C60: ='Pivot Table Data'!P60 -> Campus Point West | D60: ='Pivot Table Data'!I60 -> Ground Floor | E60: ='Pivot Table Data'!J60 -> Motorcycle Section | F60: ='Pivot Table Data'!K60 -> 0 | G60: ='Pivot Table Data'!L60 -> 0 | H60: ='Pivot Table Data'!S60 -> 0 | I60: ='Pivot Table Data'!T60 ->  | J60: =IF('Pivot Table Data'!O60="Yes", 'Pivot Table Data'!T60, "") -> 
A61: ='Pivot Table Data'!B61 -> 0 | B61: ='Pivot Table Data'!F61 -> Health Sciences East | C61: ='Pivot Table Data'!P61 -> Campus Point West | D61: ='Pivot Table Data'!I61 -> Ground Floor | E61: ='Pivot Table Data'!J61 -> Reserved | F61: ='Pivot Table Data'!K61 -> Emergency Room | G61: ='Pivot Table Data'!L61 -> 0 | H61: ='Pivot Table Data'!S61 -> 10 | I61: ='Pivot Table Data'!T61 -> 10 | J61: =IF('Pivot Table Data'!O61="Yes", 'Pivot Table Data'!T61, "") -> 
A62: ='Pivot Table Data'!B62 -> 0 | B62: ='Pivot Table Data'!F62 -> Health Sciences East | C62: ='Pivot Table Data'!P62 -> Campus Point West | D62: ='Pivot Table Data'!I62 -> Ground Floor | E62: ='Pivot Table Data'!J62 -> Reserved | F62: ='Pivot Table Data'!K62 -> 0 | G62: ='Pivot Table Data'!L62 -> 0 | H62: ='Pivot Table Data'!S62 -> 6 | I62: ='Pivot Table Data'!T62 -> 18 | J62: =IF('Pivot Table Data'!O62="Yes", 'Pivot Table Data'!T62, "") -> 
A63: ='Pivot Table Data'!B63 -> 0 | B63: ='Pivot Table Data'!F63 -> Health Sciences East | C63: ='Pivot Table Data'!P63 -> Campus Point West | D63: ='Pivot Table Data'!I63 -> Ground Floor | E63: ='Pivot Table Data'!J63 -> Reserved | F63: ='Pivot Table Data'!K63 -> 0 | G63: ='Pivot Table Data'!L63 -> 0 | H63: ='Pivot Table Data'!S63 -> 2 | I63: ='Pivot Table Data'!T63 ->  | J63: =IF('Pivot Table Data'!O63="Yes", 'Pivot Table Data'!T63, "") -> 
A64: ='Pivot Table Data'!B64 -> 0 | B64: ='Pivot Table Data'!F64 -> Health Sciences East | C64: ='Pivot Table Data'!P64 -> Campus Point West | D64: ='Pivot Table Data'!I64 -> Ground Floor | E64: ='Pivot Table Data'!J64 -> Reserved | F64: ='Pivot Table Data'!K64 -> 0 | G64: ='Pivot Table Data'!L64 -> 0 | H64: ='Pivot Table Data'!S64 -> 10 | I64: ='Pivot Table Data'!T64 ->  | J64: =IF('Pivot Table Data'!O64="Yes", 'Pivot Table Data'!T64, "") -> 
A65: ='Pivot Table Data'!B65 -> 0 | B65: ='Pivot Table Data'!F65 -> Health Sciences East | C65: ='Pivot Table Data'!P65 -> Campus Point West | D65: ='Pivot Table Data'!I65 -> Ground Floor | E65: ='Pivot Table Data'!J65 -> Visitor | F65: ='Pivot Table Data'!K65 -> Patient/Visitor Reserved | G65: ='Pivot Table Data'!L65 -> 30 minutes | H65: ='Pivot Table Data'!S65 -> 1 | I65: ='Pivot Table Data'!T65 -> 1 | J65: =IF('Pivot Table Data'!O65="Yes", 'Pivot Table Data'!T65, "") -> 1
A66: ='Pivot Table Data'!B66 -> 0 | B66: ='Pivot Table Data'!F66 -> Health Sciences East | C66: ='Pivot Table Data'!P66 -> Campus Point West | D66: ='Pivot Table Data'!I66 -> Ground Floor | E66: ='Pivot Table Data'!J66 -> Visitor | F66: ='Pivot Table Data'!K66 -> 0 | G66: ='Pivot Table Data'!L66 -> 0 | H66: ='Pivot Table Data'!S66 -> 47 | I66: ='Pivot Table Data'!T66 ->  | J66: =IF('Pivot Table Data'!O66="Yes", 'Pivot Table Data'!T66, "") -> 
A67: ='Pivot Table Data'!B67 -> 0 | B67: ='Pivot Table Data'!F67 -> Health Sciences East | C67: ='Pivot Table Data'!P67 -> Campus Point West | D67: ='Pivot Table Data'!I67 -> Ground Floor | E67: ='Pivot Table Data'!J67 -> Visitor | F67: ='Pivot Table Data'!K67 -> 0 | G67: ='Pivot Table Data'!L67 -> 0 | H67: ='Pivot Table Data'!S67 -> 18 | I67: ='Pivot Table Data'!T67 ->  | J67: =IF('Pivot Table Data'!O67="Yes", 'Pivot Table Data'!T67, "") -> 
A68: ='Pivot Table Data'!B68 -> 0 | B68: ='Pivot Table Data'!F68 -> Health Sciences East | C68: ='Pivot Table Data'!P68 -> Campus Point West | D68: ='Pivot Table Data'!I68 -> Roof | E68: ='Pivot Table Data'!J68 -> Accessible | F68: ='Pivot Table Data'!K68 -> 0 | G68: ='Pivot Table Data'!L68 -> 0 | H68: ='Pivot Table Data'!S68 -> 32 | I68: ='Pivot Table Data'!T68 ->  | J68: =IF('Pivot Table Data'!O68="Yes", 'Pivot Table Data'!T68, "") -> 
A69: ='Pivot Table Data'!B69 -> 0 | B69: ='Pivot Table Data'!F69 -> Health Sciences East | C69: ='Pivot Table Data'!P69 -> Campus Point West | D69: ='Pivot Table Data'!I69 -> Roof | E69: ='Pivot Table Data'!J69 -> Accessible (Van) | F69: ='Pivot Table Data'!K69 -> 0 | G69: ='Pivot Table Data'!L69 -> 0 | H69: ='Pivot Table Data'!S69 -> 4 | I69: ='Pivot Table Data'!T69 ->  | J69: =IF('Pivot Table Data'!O69="Yes", 'Pivot Table Data'!T69, "") -> 
A70: ='Pivot Table Data'!B70 -> 0 | B70: ='Pivot Table Data'!F70 -> Health Sciences East | C70: ='Pivot Table Data'!P70 -> Campus Point West | D70: ='Pivot Table Data'!I70 -> Roof | E70: ='Pivot Table Data'!J70 -> Motorcycle Section | F70: ='Pivot Table Data'!K70 -> 0 | G70: ='Pivot Table Data'!L70 -> 0 | H70: ='Pivot Table Data'!S70 -> 0 | I70: ='Pivot Table Data'!T70 ->  | J70: =IF('Pivot Table Data'!O70="Yes", 'Pivot Table Data'!T70, "") -> 
A71: ='Pivot Table Data'!B71 -> 0 | B71: ='Pivot Table Data'!F71 -> Health Sciences East | C71: ='Pivot Table Data'!P71 -> Campus Point West | D71: ='Pivot Table Data'!I71 -> Roof | E71: ='Pivot Table Data'!J71 -> Visitor | F71: ='Pivot Table Data'!K71 -> 0 | G71: ='Pivot Table Data'!L71 -> 0 | H71: ='Pivot Table Data'!S71 -> 126 | I71: ='Pivot Table Data'!T71 ->  | J71: =IF('Pivot Table Data'!O71="Yes", 'Pivot Table Data'!T71, "") -> 
A72: ='Pivot Table Data'!B72 -> 0 | B72: ='Pivot Table Data'!F72 -> Health Sciences East | C72: ='Pivot Table Data'!P72 -> Curb | D72: ='Pivot Table Data'!I72 -> - | E72: ='Pivot Table Data'!J72 -> 0 | F72: ='Pivot Table Data'!K72 -> 0 | G72: ='Pivot Table Data'!L72 -> 0 | H72: ='Pivot Table Data'!S72 -> 0 | I72: ='Pivot Table Data'!T72 -> 0 | J72: =IF('Pivot Table Data'!O72="Yes", 'Pivot Table Data'!T72, "") -> 
A73: ='Pivot Table Data'!B73 -> 0 | B73: ='Pivot Table Data'!F73 -> Science Research Park | C73: ='Pivot Table Data'!P73 -> Mesa Canyon | D73: ='Pivot Table Data'!I73 -> Ground | E73: ='Pivot Table Data'!J73 -> Accessible | F73: ='Pivot Table Data'!K73 -> 0 | G73: ='Pivot Table Data'!L73 -> 0 | H73: ='Pivot Table Data'!S73 -> 5 | I73: ='Pivot Table Data'!T73 -> 12 | J73: =IF('Pivot Table Data'!O73="Yes", 'Pivot Table Data'!T73, "") -> 
A74: ='Pivot Table Data'!B74 -> 0 | B74: ='Pivot Table Data'!F74 -> Science Research Park | C74: ='Pivot Table Data'!P74 -> Mesa Canyon | D74: ='Pivot Table Data'!I74 -> Ground | E74: ='Pivot Table Data'!J74 -> Accessible (Van) | F74: ='Pivot Table Data'!K74 -> 0 | G74: ='Pivot Table Data'!L74 -> 0 | H74: ='Pivot Table Data'!S74 -> 2 | I74: ='Pivot Table Data'!T74 -> 5 | J74: =IF('Pivot Table Data'!O74="Yes", 'Pivot Table Data'!T74, "") -> 
A75: ='Pivot Table Data'!B75 -> 0 | B75: ='Pivot Table Data'!F75 -> Science Research Park | C75: ='Pivot Table Data'!P75 -> Mesa Canyon | D75: ='Pivot Table Data'!I75 -> Ground | E75: ='Pivot Table Data'!J75 -> B | F75: ='Pivot Table Data'!K75 -> 0 | G75: ='Pivot Table Data'!L75 -> 0 | H75: ='Pivot Table Data'!S75 -> 148 | I75: ='Pivot Table Data'!T75 -> 497 | J75: =IF('Pivot Table Data'!O75="Yes", 'Pivot Table Data'!T75, "") -> 497
A76: ='Pivot Table Data'!B76 -> 0 | B76: ='Pivot Table Data'!F76 -> Science Research Park | C76: ='Pivot Table Data'!P76 -> Mesa Canyon | D76: ='Pivot Table Data'!I76 -> Ground | E76: ='Pivot Table Data'!J76 -> Electric Vehicle | F76: ='Pivot Table Data'!K76 -> 0 | G76: ='Pivot Table Data'!L76 -> 0 | H76: ='Pivot Table Data'!S76 -> 18 | I76: ='Pivot Table Data'!T76 -> 33 | J76: =IF('Pivot Table Data'!O76="Yes", 'Pivot Table Data'!T76, "") -> 
A77: ='Pivot Table Data'!B77 -> 0 | B77: ='Pivot Table Data'!F77 -> Science Research Park | C77: ='Pivot Table Data'!P77 -> Mesa Canyon | D77: ='Pivot Table Data'!I77 -> Ground | E77: ='Pivot Table Data'!J77 -> G | F77: ='Pivot Table Data'!K77 -> 0 | G77: ='Pivot Table Data'!L77 -> 0 | H77: ='Pivot Table Data'!S77 -> 0 | I77: ='Pivot Table Data'!T77 -> 578 | J77: =IF('Pivot Table Data'!O77="Yes", 'Pivot Table Data'!T77, "") -> 
A78: ='Pivot Table Data'!B78 -> 0 | B78: ='Pivot Table Data'!F78 -> Science Research Park | C78: ='Pivot Table Data'!P78 -> Mesa Canyon | D78: ='Pivot Table Data'!I78 -> Ground | E78: ='Pivot Table Data'!J78 -> Motorcycle Section | F78: ='Pivot Table Data'!K78 -> 0 | G78: ='Pivot Table Data'!L78 -> 0 | H78: ='Pivot Table Data'!S78 -> 6 | I78: ='Pivot Table Data'!T78 -> 16 | J78: =IF('Pivot Table Data'!O78="Yes", 'Pivot Table Data'!T78, "") -> 
A79: ='Pivot Table Data'!B79 -> 0 | B79: ='Pivot Table Data'!F79 -> Science Research Park | C79: ='Pivot Table Data'!P79 -> Mesa Canyon | D79: ='Pivot Table Data'!I79 -> L2 | E79: ='Pivot Table Data'!J79 -> Accessible | F79: ='Pivot Table Data'!K79 -> 0 | G79: ='Pivot Table Data'!L79 -> 0 | H79: ='Pivot Table Data'!S79 -> 4 | I79: ='Pivot Table Data'!T79 ->  | J79: =IF('Pivot Table Data'!O79="Yes", 'Pivot Table Data'!T79, "") -> 
A80: ='Pivot Table Data'!B80 -> 0 | B80: ='Pivot Table Data'!F80 -> Science Research Park | C80: ='Pivot Table Data'!P80 -> Mesa Canyon | D80: ='Pivot Table Data'!I80 -> L2 | E80: ='Pivot Table Data'!J80 -> Accessible (Van) | F80: ='Pivot Table Data'!K80 -> 0 | G80: ='Pivot Table Data'!L80 -> 0 | H80: ='Pivot Table Data'!S80 -> 1 | I80: ='Pivot Table Data'!T80 ->  | J80: =IF('Pivot Table Data'!O80="Yes", 'Pivot Table Data'!T80, "") -> 
A81: ='Pivot Table Data'!B81 -> 0 | B81: ='Pivot Table Data'!F81 -> Science Research Park | C81: ='Pivot Table Data'!P81 -> Mesa Canyon | D81: ='Pivot Table Data'!I81 -> L2 | E81: ='Pivot Table Data'!J81 -> B | F81: ='Pivot Table Data'!K81 -> 0 | G81: ='Pivot Table Data'!L81 -> 0 | H81: ='Pivot Table Data'!S81 -> 218 | I81: ='Pivot Table Data'!T81 ->  | J81: =IF('Pivot Table Data'!O81="Yes", 'Pivot Table Data'!T81, "") -> 
A82: ='Pivot Table Data'!B82 -> 0 | B82: ='Pivot Table Data'!F82 -> Science Research Park | C82: ='Pivot Table Data'!P82 -> Mesa Canyon | D82: ='Pivot Table Data'!I82 -> L2 | E82: ='Pivot Table Data'!J82 -> Electric Vehicle | F82: ='Pivot Table Data'!K82 -> 0 | G82: ='Pivot Table Data'!L82 -> 0 | H82: ='Pivot Table Data'!S82 -> 6 | I82: ='Pivot Table Data'!T82 ->  | J82: =IF('Pivot Table Data'!O82="Yes", 'Pivot Table Data'!T82, "") -> 
A83: ='Pivot Table Data'!B83 -> 0 | B83: ='Pivot Table Data'!F83 -> Science Research Park | C83: ='Pivot Table Data'!P83 -> Mesa Canyon | D83: ='Pivot Table Data'!I83 -> L2 | E83: ='Pivot Table Data'!J83 -> G | F83: ='Pivot Table Data'!K83 -> 0 | G83: ='Pivot Table Data'!L83 -> 0 | H83: ='Pivot Table Data'!S83 -> 0 | I83: ='Pivot Table Data'!T83 ->  | J83: =IF('Pivot Table Data'!O83="Yes", 'Pivot Table Data'!T83, "") -> 
A84: ='Pivot Table Data'!B84 -> 0 | B84: ='Pivot Table Data'!F84 -> Science Research Park | C84: ='Pivot Table Data'!P84 -> Mesa Canyon | D84: ='Pivot Table Data'!I84 -> L2 | E84: ='Pivot Table Data'!J84 -> Motorcycle Section | F84: ='Pivot Table Data'!K84 -> 0 | G84: ='Pivot Table Data'!L84 -> 0 | H84: ='Pivot Table Data'!S84 -> 0 | I84: ='Pivot Table Data'!T84 ->  | J84: =IF('Pivot Table Data'!O84="Yes", 'Pivot Table Data'!T84, "") -> 
A85: ='Pivot Table Data'!B85 -> 0 | B85: ='Pivot Table Data'!F85 -> Science Research Park | C85: ='Pivot Table Data'!P85 -> Mesa Canyon | D85: ='Pivot Table Data'!I85 -> L3 | E85: ='Pivot Table Data'!J85 -> Accessible | F85: ='Pivot Table Data'!K85 -> 0 | G85: ='Pivot Table Data'!L85 -> 0 | H85: ='Pivot Table Data'!S85 -> 3 | I85: ='Pivot Table Data'!T85 ->  | J85: =IF('Pivot Table Data'!O85="Yes", 'Pivot Table Data'!T85, "") -> 
A86: ='Pivot Table Data'!B86 -> 0 | B86: ='Pivot Table Data'!F86 -> Science Research Park | C86: ='Pivot Table Data'!P86 -> Mesa Canyon | D86: ='Pivot Table Data'!I86 -> L3 | E86: ='Pivot Table Data'!J86 -> Accessible (Van) | F86: ='Pivot Table Data'!K86 -> 0 | G86: ='Pivot Table Data'!L86 -> 0 | H86: ='Pivot Table Data'!S86 -> 2 | I86: ='Pivot Table Data'!T86 ->  | J86: =IF('Pivot Table Data'!O86="Yes", 'Pivot Table Data'!T86, "") -> 
A87: ='Pivot Table Data'!B87 -> 0 | B87: ='Pivot Table Data'!F87 -> Science Research Park | C87: ='Pivot Table Data'!P87 -> Mesa Canyon | D87: ='Pivot Table Data'!I87 -> L3 | E87: ='Pivot Table Data'!J87 -> B | F87: ='Pivot Table Data'!K87 -> 0 | G87: ='Pivot Table Data'!L87 -> 0 | H87: ='Pivot Table Data'!S87 -> 131 | I87: ='Pivot Table Data'!T87 ->  | J87: =IF('Pivot Table Data'!O87="Yes", 'Pivot Table Data'!T87, "") -> 
A88: ='Pivot Table Data'!B88 -> 0 | B88: ='Pivot Table Data'!F88 -> Science Research Park | C88: ='Pivot Table Data'!P88 -> Mesa Canyon | D88: ='Pivot Table Data'!I88 -> L3 | E88: ='Pivot Table Data'!J88 -> Electric Vehicle | F88: ='Pivot Table Data'!K88 -> 0 | G88: ='Pivot Table Data'!L88 -> 0 | H88: ='Pivot Table Data'!S88 -> 7 | I88: ='Pivot Table Data'!T88 ->  | J88: =IF('Pivot Table Data'!O88="Yes", 'Pivot Table Data'!T88, "") -> 
A89: ='Pivot Table Data'!B89 -> 0 | B89: ='Pivot Table Data'!F89 -> Science Research Park | C89: ='Pivot Table Data'!P89 -> Mesa Canyon | D89: ='Pivot Table Data'!I89 -> L3 | E89: ='Pivot Table Data'!J89 -> G | F89: ='Pivot Table Data'!K89 -> 0 | G89: ='Pivot Table Data'!L89 -> 0 | H89: ='Pivot Table Data'!S89 -> 0 | I89: ='Pivot Table Data'!T89 ->  | J89: =IF('Pivot Table Data'!O89="Yes", 'Pivot Table Data'!T89, "") -> 
A90: ='Pivot Table Data'!B90 -> 0 | B90: ='Pivot Table Data'!F90 -> Science Research Park | C90: ='Pivot Table Data'!P90 -> Mesa Canyon | D90: ='Pivot Table Data'!I90 -> L3 | E90: ='Pivot Table Data'!J90 -> Motorcycle Section | F90: ='Pivot Table Data'!K90 -> 0 | G90: ='Pivot Table Data'!L90 -> 0 | H90: ='Pivot Table Data'!S90 -> 10 | I90: ='Pivot Table Data'!T90 ->  | J90: =IF('Pivot Table Data'!O90="Yes", 'Pivot Table Data'!T90, "") -> 
A91: ='Pivot Table Data'!B91 -> 0 | B91: ='Pivot Table Data'!F91 -> Science Research Park | C91: ='Pivot Table Data'!P91 -> Mesa Canyon | D91: ='Pivot Table Data'!I91 -> L4 | E91: ='Pivot Table Data'!J91 -> Accessible | F91: ='Pivot Table Data'!K91 -> 0 | G91: ='Pivot Table Data'!L91 -> 0 | H91: ='Pivot Table Data'!S91 -> 0 | I91: ='Pivot Table Data'!T91 ->  | J91: =IF('Pivot Table Data'!O91="Yes", 'Pivot Table Data'!T91, "") -> 
A92: ='Pivot Table Data'!B92 -> 0 | B92: ='Pivot Table Data'!F92 -> Science Research Park | C92: ='Pivot Table Data'!P92 -> Mesa Canyon | D92: ='Pivot Table Data'!I92 -> L4 | E92: ='Pivot Table Data'!J92 -> Accessible (Van) | F92: ='Pivot Table Data'!K92 -> 0 | G92: ='Pivot Table Data'!L92 -> 0 | H92: ='Pivot Table Data'!S92 -> 0 | I92: ='Pivot Table Data'!T92 ->  | J92: =IF('Pivot Table Data'!O92="Yes", 'Pivot Table Data'!T92, "") -> 
A93: ='Pivot Table Data'!B93 -> 0 | B93: ='Pivot Table Data'!F93 -> Science Research Park | C93: ='Pivot Table Data'!P93 -> Mesa Canyon | D93: ='Pivot Table Data'!I93 -> L4 | E93: ='Pivot Table Data'!J93 -> B | F93: ='Pivot Table Data'!K93 -> 0 | G93: ='Pivot Table Data'!L93 -> 0 | H93: ='Pivot Table Data'!S93 -> 0 | I93: ='Pivot Table Data'!T93 ->  | J93: =IF('Pivot Table Data'!O93="Yes", 'Pivot Table Data'!T93, "") -> 
A94: ='Pivot Table Data'!B94 -> 0 | B94: ='Pivot Table Data'!F94 -> Science Research Park | C94: ='Pivot Table Data'!P94 -> Mesa Canyon | D94: ='Pivot Table Data'!I94 -> L4 | E94: ='Pivot Table Data'!J94 -> Electric Vehicle | F94: ='Pivot Table Data'!K94 -> 0 | G94: ='Pivot Table Data'!L94 -> 0 | H94: ='Pivot Table Data'!S94 -> 2 | I94: ='Pivot Table Data'!T94 ->  | J94: =IF('Pivot Table Data'!O94="Yes", 'Pivot Table Data'!T94, "") -> 
A95: ='Pivot Table Data'!B95 -> 0 | B95: ='Pivot Table Data'!F95 -> Science Research Park | C95: ='Pivot Table Data'!P95 -> Mesa Canyon | D95: ='Pivot Table Data'!I95 -> L4 | E95: ='Pivot Table Data'!J95 -> G | F95: ='Pivot Table Data'!K95 -> 0 | G95: ='Pivot Table Data'!L95 -> 0 | H95: ='Pivot Table Data'!S95 -> 144 | I95: ='Pivot Table Data'!T95 ->  | J95: =IF('Pivot Table Data'!O95="Yes", 'Pivot Table Data'!T95, "") -> 
A96: ='Pivot Table Data'!B96 -> 0 | B96: ='Pivot Table Data'!F96 -> Science Research Park | C96: ='Pivot Table Data'!P96 -> Mesa Canyon | D96: ='Pivot Table Data'!I96 -> L4 | E96: ='Pivot Table Data'!J96 -> Motorcycle Section | F96: ='Pivot Table Data'!K96 -> 0 | G96: ='Pivot Table Data'!L96 -> 0 | H96: ='Pivot Table Data'!S96 -> 0 | I96: ='Pivot Table Data'!T96 ->  | J96: =IF('Pivot Table Data'!O96="Yes", 'Pivot Table Data'!T96, "") -> 
A97: ='Pivot Table Data'!B97 -> 0 | B97: ='Pivot Table Data'!F97 -> Science Research Park | C97: ='Pivot Table Data'!P97 -> Mesa Canyon | D97: ='Pivot Table Data'!I97 -> L5 | E97: ='Pivot Table Data'!J97 -> Accessible | F97: ='Pivot Table Data'!K97 -> 0 | G97: ='Pivot Table Data'!L97 -> 0 | H97: ='Pivot Table Data'!S97 -> 0 | I97: ='Pivot Table Data'!T97 ->  | J97: =IF('Pivot Table Data'!O97="Yes", 'Pivot Table Data'!T97, "") -> 
A98: ='Pivot Table Data'!B98 -> 0 | B98: ='Pivot Table Data'!F98 -> Science Research Park | C98: ='Pivot Table Data'!P98 -> Mesa Canyon | D98: ='Pivot Table Data'!I98 -> L5 | E98: ='Pivot Table Data'!J98 -> Accessible (Van) | F98: ='Pivot Table Data'!K98 -> 0 | G98: ='Pivot Table Data'!L98 -> 0 | H98: ='Pivot Table Data'!S98 -> 0 | I98: ='Pivot Table Data'!T98 ->  | J98: =IF('Pivot Table Data'!O98="Yes", 'Pivot Table Data'!T98, "") -> 
A99: ='Pivot Table Data'!B99 -> 0 | B99: ='Pivot Table Data'!F99 -> Science Research Park | C99: ='Pivot Table Data'!P99 -> Mesa Canyon | D99: ='Pivot Table Data'!I99 -> L5 | E99: ='Pivot Table Data'!J99 -> B | F99: ='Pivot Table Data'!K99 -> 0 | G99: ='Pivot Table Data'!L99 -> 0 | H99: ='Pivot Table Data'!S99 -> 0 | I99: ='Pivot Table Data'!T99 ->  | J99: =IF('Pivot Table Data'!O99="Yes", 'Pivot Table Data'!T99, "") -> 
A100: ='Pivot Table Data'!B100 -> 0 | B100: ='Pivot Table Data'!F100 -> Science Research Park | C100: ='Pivot Table Data'!P100 -> Mesa Canyon | D100: ='Pivot Table Data'!I100 -> L5 | E100: ='Pivot Table Data'!J100 -> Electric Vehicle | F100: ='Pivot Table Data'!K100 -> 0 | G100: ='Pivot Table Data'!L100 -> 0 | H100: ='Pivot Table Data'!S100 -> 0 | I100: ='Pivot Table Data'!T100 ->  | J100: =IF('Pivot Table Data'!O100="Yes", 'Pivot Table Data'!T100, "") -> 
A101: ='Pivot Table Data'!B101 -> 0 | B101: ='Pivot Table Data'!F101 -> Science Research Park | C101: ='Pivot Table Data'!P101 -> Mesa Canyon | D101: ='Pivot Table Data'!I101 -> L5 | E101: ='Pivot Table Data'!J101 -> G | F101: ='Pivot Table Data'!K101 -> 0 | G101: ='Pivot Table Data'!L101 -> 0 | H101: ='Pivot Table Data'!S101 -> 217 | I101: ='Pivot Table Data'!T101 ->  | J101: =IF('Pivot Table Data'!O101="Yes", 'Pivot Table Data'!T101, "") -> 
A102: ='Pivot Table Data'!B102 -> 0 | B102: ='Pivot Table Data'!F102 -> Science Research Park | C102: ='Pivot Table Data'!P102 -> Mesa Canyon | D102: ='Pivot Table Data'!I102 -> L5 | E102: ='Pivot Table Data'!J102 -> Motorcycle Section | F102: ='Pivot Table Data'!K102 -> 0 | G102: ='Pivot Table Data'!L102 -> 0 | H102: ='Pivot Table Data'!S102 -> 0 | I102: ='Pivot Table Data'!T102 ->  | J102: =IF('Pivot Table Data'!O102="Yes", 'Pivot Table Data'!T102, "") -> 
A103: ='Pivot Table Data'!B103 -> 0 | B103: ='Pivot Table Data'!F103 -> Science Research Park | C103: ='Pivot Table Data'!P103 -> Mesa Canyon | D103: ='Pivot Table Data'!I103 -> L6 | E103: ='Pivot Table Data'!J103 -> Accessible | F103: ='Pivot Table Data'!K103 -> 0 | G103: ='Pivot Table Data'!L103 -> 0 | H103: ='Pivot Table Data'!S103 -> 0 | I103: ='Pivot Table Data'!T103 ->  | J103: =IF('Pivot Table Data'!O103="Yes", 'Pivot Table Data'!T103, "") -> 
A104: ='Pivot Table Data'!B104 -> 0 | B104: ='Pivot Table Data'!F104 -> Science Research Park | C104: ='Pivot Table Data'!P104 -> Mesa Canyon | D104: ='Pivot Table Data'!I104 -> L6 | E104: ='Pivot Table Data'!J104 -> Accessible (Van) | F104: ='Pivot Table Data'!K104 -> 0 | G104: ='Pivot Table Data'!L104 -> 0 | H104: ='Pivot Table Data'!S104 -> 0 | I104: ='Pivot Table Data'!T104 ->  | J104: =IF('Pivot Table Data'!O104="Yes", 'Pivot Table Data'!T104, "") -> 
A105: ='Pivot Table Data'!B105 -> 0 | B105: ='Pivot Table Data'!F105 -> Science Research Park | C105: ='Pivot Table Data'!P105 -> Mesa Canyon | D105: ='Pivot Table Data'!I105 -> L6 | E105: ='Pivot Table Data'!J105 -> B | F105: ='Pivot Table Data'!K105 -> 0 | G105: ='Pivot Table Data'!L105 -> 0 | H105: ='Pivot Table Data'!S105 -> 0 | I105: ='Pivot Table Data'!T105 ->  | J105: =IF('Pivot Table Data'!O105="Yes", 'Pivot Table Data'!T105, "") -> 
A106: ='Pivot Table Data'!B106 -> 0 | B106: ='Pivot Table Data'!F106 -> Science Research Park | C106: ='Pivot Table Data'!P106 -> Mesa Canyon | D106: ='Pivot Table Data'!I106 -> L6 | E106: ='Pivot Table Data'!J106 -> Electric Vehicle | F106: ='Pivot Table Data'!K106 -> 0 | G106: ='Pivot Table Data'!L106 -> 0 | H106: ='Pivot Table Data'!S106 -> 0 | I106: ='Pivot Table Data'!T106 ->  | J106: =IF('Pivot Table Data'!O106="Yes", 'Pivot Table Data'!T106, "") -> 
A107: ='Pivot Table Data'!B107 -> 0 | B107: ='Pivot Table Data'!F107 -> Science Research Park | C107: ='Pivot Table Data'!P107 -> Mesa Canyon | D107: ='Pivot Table Data'!I107 -> L6 | E107: ='Pivot Table Data'!J107 -> G | F107: ='Pivot Table Data'!K107 -> 0 | G107: ='Pivot Table Data'!L107 -> 0 | H107: ='Pivot Table Data'!S107 -> 217 | I107: ='Pivot Table Data'!T107 ->  | J107: =IF('Pivot Table Data'!O107="Yes", 'Pivot Table Data'!T107, "") -> 
A108: ='Pivot Table Data'!B108 -> 0 | B108: ='Pivot Table Data'!F108 -> Science Research Park | C108: ='Pivot Table Data'!P108 -> Mesa Canyon | D108: ='Pivot Table Data'!I108 -> L6 | E108: ='Pivot Table Data'!J108 -> Motorcycle Section | F108: ='Pivot Table Data'!K108 -> 0 | G108: ='Pivot Table Data'!L108 -> 0 | H108: ='Pivot Table Data'!S108 -> 0 | I108: ='Pivot Table Data'!T108 ->  | J108: =IF('Pivot Table Data'!O108="Yes", 'Pivot Table Data'!T108, "") -> 
A109: ='Pivot Table Data'!B109 -> 0 | B109: ='Pivot Table Data'!F109 -> East Recreation | C109: ='Pivot Table Data'!P109 -> P701 | D109: ='Pivot Table Data'!I109 -> - | E109: ='Pivot Table Data'!J109 -> S | F109: ='Pivot Table Data'!K109 -> 0 | G109: ='Pivot Table Data'!L109 -> 0 | H109: ='Pivot Table Data'!S109 -> 378 | I109: ='Pivot Table Data'!T109 -> 378 | J109: =IF('Pivot Table Data'!O109="Yes", 'Pivot Table Data'!T109, "") -> 378
A110: ='Pivot Table Data'!B110 -> 0 | B110: ='Pivot Table Data'!F110 -> Health Sciences East | C110: ='Pivot Table Data'!P110 -> P702 | D110: ='Pivot Table Data'!I110 -> - | E110: ='Pivot Table Data'!J110 -> Accessible | F110: ='Pivot Table Data'!K110 -> 0 | G110: ='Pivot Table Data'!L110 -> 0 | H110: ='Pivot Table Data'!S110 -> 3 | I110: ='Pivot Table Data'!T110 -> 3 | J110: =IF('Pivot Table Data'!O110="Yes", 'Pivot Table Data'!T110, "") -> 
A111: ='Pivot Table Data'!B111 -> 0 | B111: ='Pivot Table Data'!F111 -> Health Sciences East | C111: ='Pivot Table Data'!P111 -> P702 | D111: ='Pivot Table Data'!I111 -> - | E111: ='Pivot Table Data'!J111 -> Accessible (Van) | F111: ='Pivot Table Data'!K111 -> 0 | G111: ='Pivot Table Data'!L111 -> 0 | H111: ='Pivot Table Data'!S111 -> 3 | I111: ='Pivot Table Data'!T111 -> 3 | J111: =IF('Pivot Table Data'!O111="Yes", 'Pivot Table Data'!T111, "") -> 
A112: ='Pivot Table Data'!B112 -> 0 | B112: ='Pivot Table Data'!F112 -> Health Sciences East | C112: ='Pivot Table Data'!P112 -> P702 | D112: ='Pivot Table Data'!I112 -> - | E112: ='Pivot Table Data'!J112 -> B | F112: ='Pivot Table Data'!K112 -> 0 | G112: ='Pivot Table Data'!L112 -> 0 | H112: ='Pivot Table Data'!S112 -> 183 | I112: ='Pivot Table Data'!T112 -> 183 | J112: =IF('Pivot Table Data'!O112="Yes", 'Pivot Table Data'!T112, "") -> 183
A113: ='Pivot Table Data'!B113 -> 0 | B113: ='Pivot Table Data'!F113 -> Health Sciences East | C113: ='Pivot Table Data'!P113 -> P703 | D113: ='Pivot Table Data'!I113 -> - | E113: ='Pivot Table Data'!J113 -> Accessible | F113: ='Pivot Table Data'!K113 -> 0 | G113: ='Pivot Table Data'!L113 -> 0 | H113: ='Pivot Table Data'!S113 -> 0 | I113: ='Pivot Table Data'!T113 -> 0 | J113: =IF('Pivot Table Data'!O113="Yes", 'Pivot Table Data'!T113, "") -> 
A114: ='Pivot Table Data'!B114 -> 0 | B114: ='Pivot Table Data'!F114 -> Health Sciences East | C114: ='Pivot Table Data'!P114 -> P703 | D114: ='Pivot Table Data'!I114 -> - | E114: ='Pivot Table Data'!J114 -> Accessible (Van) | F114: ='Pivot Table Data'!K114 -> 0 | G114: ='Pivot Table Data'!L114 -> 0 | H114: ='Pivot Table Data'!S114 -> 11 | I114: ='Pivot Table Data'!T114 -> 11 | J114: =IF('Pivot Table Data'!O114="Yes", 'Pivot Table Data'!T114, "") -> 
A115: ='Pivot Table Data'!B115 -> 0 | B115: ='Pivot Table Data'!F115 -> Health Sciences East | C115: ='Pivot Table Data'!P115 -> P703 | D115: ='Pivot Table Data'!I115 -> - | E115: ='Pivot Table Data'!J115 -> Allocated | F115: ='Pivot Table Data'!K115 -> Ambulance | G115: ='Pivot Table Data'!L115 -> 0 | H115: ='Pivot Table Data'!S115 -> 2 | I115: ='Pivot Table Data'!T115 -> 2 | J115: =IF('Pivot Table Data'!O115="Yes", 'Pivot Table Data'!T115, "") -> 
A116: ='Pivot Table Data'!B116 -> 0 | B116: ='Pivot Table Data'!F116 -> Health Sciences East | C116: ='Pivot Table Data'!P116 -> P703 | D116: ='Pivot Table Data'!I116 -> - | E116: ='Pivot Table Data'!J116 -> D ($5.00) | F116: ='Pivot Table Data'!K116 -> 0 | G116: ='Pivot Table Data'!L116 -> 0 | H116: ='Pivot Table Data'!S116 -> 295 | I116: ='Pivot Table Data'!T116 -> 295 | J116: =IF('Pivot Table Data'!O116="Yes", 'Pivot Table Data'!T116, "") -> 295
A117: ='Pivot Table Data'!B117 -> 0 | B117: ='Pivot Table Data'!F117 -> Health Sciences East | C117: ='Pivot Table Data'!P117 -> P703 | D117: ='Pivot Table Data'!I117 -> - | E117: ='Pivot Table Data'!J117 -> Electric Vehicle | F117: ='Pivot Table Data'!K117 -> 0 | G117: ='Pivot Table Data'!L117 -> 0 | H117: ='Pivot Table Data'!S117 -> 12 | I117: ='Pivot Table Data'!T117 -> 12 | J117: =IF('Pivot Table Data'!O117="Yes", 'Pivot Table Data'!T117, "") -> 
A118: ='Pivot Table Data'!B118 -> 0 | B118: ='Pivot Table Data'!F118 -> Health Sciences East | C118: ='Pivot Table Data'!P118 -> P703 | D118: ='Pivot Table Data'!I118 -> - | E118: ='Pivot Table Data'!J118 -> Loading | F118: ='Pivot Table Data'!K118 -> 0 | G118: ='Pivot Table Data'!L118 -> 0 | H118: ='Pivot Table Data'!S118 -> 2 | I118: ='Pivot Table Data'!T118 -> 2 | J118: =IF('Pivot Table Data'!O118="Yes", 'Pivot Table Data'!T118, "") -> 
A119: ='Pivot Table Data'!B119 -> 0 | B119: ='Pivot Table Data'!F119 -> Health Sciences East | C119: ='Pivot Table Data'!P119 -> P703 | D119: ='Pivot Table Data'!I119 -> - | E119: ='Pivot Table Data'!J119 -> Reserved | F119: ='Pivot Table Data'!K119 -> V2G | G119: ='Pivot Table Data'!L119 -> 0 | H119: ='Pivot Table Data'!S119 -> 1 | I119: ='Pivot Table Data'!T119 -> 1 | J119: =IF('Pivot Table Data'!O119="Yes", 'Pivot Table Data'!T119, "") -> 
A120: ='Pivot Table Data'!B120 -> 0 | B120: ='Pivot Table Data'!F120 -> Health Sciences East | C120: ='Pivot Table Data'!P120 -> P703 | D120: ='Pivot Table Data'!I120 -> - | E120: ='Pivot Table Data'!J120 -> Reserved | F120: ='Pivot Table Data'!K120 -> 0 | G120: ='Pivot Table Data'!L120 -> 0 | H120: ='Pivot Table Data'!S120 -> 1 | I120: ='Pivot Table Data'!T120 -> 1 | J120: =IF('Pivot Table Data'!O120="Yes", 'Pivot Table Data'!T120, "") -> 
A121: ='Pivot Table Data'!B121 -> 0 | B121: ='Pivot Table Data'!F121 -> Health Sciences East | C121: ='Pivot Table Data'!P121 -> P703 | D121: ='Pivot Table Data'!I121 -> - | E121: ='Pivot Table Data'!J121 -> UC Vehicle | F121: ='Pivot Table Data'!K121 -> UC Cart | G121: ='Pivot Table Data'!L121 -> 0 | H121: ='Pivot Table Data'!S121 -> 2 | I121: ='Pivot Table Data'!T121 -> 2 | J121: =IF('Pivot Table Data'!O121="Yes", 'Pivot Table Data'!T121, "") -> 
A122: ='Pivot Table Data'!B122 -> 0 | B122: ='Pivot Table Data'!F122 -> Health Sciences East | C122: ='Pivot Table Data'!P122 -> P703 | D122: ='Pivot Table Data'!I122 -> - | E122: ='Pivot Table Data'!J122 -> UC Vehicle | F122: ='Pivot Table Data'!K122 -> 0 | G122: ='Pivot Table Data'!L122 -> 0 | H122: ='Pivot Table Data'!S122 -> 19 | I122: ='Pivot Table Data'!T122 -> 19 | J122: =IF('Pivot Table Data'!O122="Yes", 'Pivot Table Data'!T122, "") -> 
A123: ='Pivot Table Data'!B123 -> 0 | B123: ='Pivot Table Data'!F123 -> Health Sciences East | C123: ='Pivot Table Data'!P123 -> P703 | D123: ='Pivot Table Data'!I123 -> - | E123: ='Pivot Table Data'!J123 -> Visitor | F123: ='Pivot Table Data'!K123 -> Radiation Oncology Center Patient | G123: ='Pivot Table Data'!L123 -> 0 | H123: ='Pivot Table Data'!S123 -> 17 | I123: ='Pivot Table Data'!T123 -> 17 | J123: =IF('Pivot Table Data'!O123="Yes", 'Pivot Table Data'!T123, "") -> 17
A124: ='Pivot Table Data'!B124 -> 0 | B124: ='Pivot Table Data'!F124 -> Health Sciences East | C124: ='Pivot Table Data'!P124 -> P704 | D124: ='Pivot Table Data'!I124 -> - | E124: ='Pivot Table Data'!J124 -> D ($5.00) | F124: ='Pivot Table Data'!K124 -> 0 | G124: ='Pivot Table Data'!L124 -> 0 | H124: ='Pivot Table Data'!S124 -> 326 | I124: ='Pivot Table Data'!T124 -> 326 | J124: =IF('Pivot Table Data'!O124="Yes", 'Pivot Table Data'!T124, "") -> 326
A125: ='Pivot Table Data'!B125 -> 0 | B125: ='Pivot Table Data'!F125 -> Health Sciences East | C125: ='Pivot Table Data'!P125 -> P705 | D125: ='Pivot Table Data'!I125 -> - | E125: ='Pivot Table Data'!J125 -> D ($5.00) | F125: ='Pivot Table Data'!K125 -> 0 | G125: ='Pivot Table Data'!L125 -> 0 | H125: ='Pivot Table Data'!S125 -> 266 | I125: ='Pivot Table Data'!T125 -> 266 | J125: =IF('Pivot Table Data'!O125="Yes", 'Pivot Table Data'!T125, "") -> 266
A126: ='Pivot Table Data'!B126 -> 0 | B126: ='Pivot Table Data'!F126 -> Preuss School | C126: ='Pivot Table Data'!P126 -> P706 | D126: ='Pivot Table Data'!I126 -> - | E126: ='Pivot Table Data'!J126 -> A | F126: ='Pivot Table Data'!K126 -> Preuss | G126: ='Pivot Table Data'!L126 -> 0 | H126: ='Pivot Table Data'!S126 -> 6 | I126: ='Pivot Table Data'!T126 -> 6 | J126: =IF('Pivot Table Data'!O126="Yes", 'Pivot Table Data'!T126, "") -> 6
A127: ='Pivot Table Data'!B127 -> 0 | B127: ='Pivot Table Data'!F127 -> Preuss School | C127: ='Pivot Table Data'!P127 -> P706 | D127: ='Pivot Table Data'!I127 -> - | E127: ='Pivot Table Data'!J127 -> Accessible | F127: ='Pivot Table Data'!K127 -> 0 | G127: ='Pivot Table Data'!L127 -> 0 | H127: ='Pivot Table Data'!S127 -> 1 | I127: ='Pivot Table Data'!T127 -> 1 | J127: =IF('Pivot Table Data'!O127="Yes", 'Pivot Table Data'!T127, "") -> 
A128: ='Pivot Table Data'!B128 -> 0 | B128: ='Pivot Table Data'!F128 -> Preuss School | C128: ='Pivot Table Data'!P128 -> P706 | D128: ='Pivot Table Data'!I128 -> - | E128: ='Pivot Table Data'!J128 -> Accessible (Van) | F128: ='Pivot Table Data'!K128 -> 0 | G128: ='Pivot Table Data'!L128 -> 0 | H128: ='Pivot Table Data'!S128 -> 3 | I128: ='Pivot Table Data'!T128 -> 3 | J128: =IF('Pivot Table Data'!O128="Yes", 'Pivot Table Data'!T128, "") -> 
A129: ='Pivot Table Data'!B129 -> 0 | B129: ='Pivot Table Data'!F129 -> Preuss School | C129: ='Pivot Table Data'!P129 -> P706 | D129: ='Pivot Table Data'!I129 -> - | E129: ='Pivot Table Data'!J129 -> B | F129: ='Pivot Table Data'!K129 -> Preuss | G129: ='Pivot Table Data'!L129 -> 0 | H129: ='Pivot Table Data'!S129 -> 59 | I129: ='Pivot Table Data'!T129 -> 59 | J129: =IF('Pivot Table Data'!O129="Yes", 'Pivot Table Data'!T129, "") -> 59
A130: ='Pivot Table Data'!B130 -> 0 | B130: ='Pivot Table Data'!F130 -> Preuss School | C130: ='Pivot Table Data'!P130 -> P706 | D130: ='Pivot Table Data'!I130 -> - | E130: ='Pivot Table Data'!J130 -> Loading | F130: ='Pivot Table Data'!K130 -> 0 | G130: ='Pivot Table Data'!L130 -> 30 minutes | H130: ='Pivot Table Data'!S130 -> 3 | I130: ='Pivot Table Data'!T130 -> 3 | J130: =IF('Pivot Table Data'!O130="Yes", 'Pivot Table Data'!T130, "") -> 
A131: ='Pivot Table Data'!B131 -> 0 | B131: ='Pivot Table Data'!F131 -> Health Sciences East | C131: ='Pivot Table Data'!P131 -> P707 | D131: ='Pivot Table Data'!I131 -> - | E131: ='Pivot Table Data'!J131 -> Accessible | F131: ='Pivot Table Data'!K131 -> 0 | G131: ='Pivot Table Data'!L131 -> 0 | H131: ='Pivot Table Data'!S131 -> 4 | I131: ='Pivot Table Data'!T131 -> 4 | J131: =IF('Pivot Table Data'!O131="Yes", 'Pivot Table Data'!T131, "") -> 
A132: ='Pivot Table Data'!B132 -> 0 | B132: ='Pivot Table Data'!F132 -> Health Sciences East | C132: ='Pivot Table Data'!P132 -> P707 | D132: ='Pivot Table Data'!I132 -> - | E132: ='Pivot Table Data'!J132 -> Accessible (Van) | F132: ='Pivot Table Data'!K132 -> 0 | G132: ='Pivot Table Data'!L132 -> 0 | H132: ='Pivot Table Data'!S132 -> 3 | I132: ='Pivot Table Data'!T132 -> 3 | J132: =IF('Pivot Table Data'!O132="Yes", 'Pivot Table Data'!T132, "") -> 
A133: ='Pivot Table Data'!B133 -> 0 | B133: ='Pivot Table Data'!F133 -> Health Sciences East | C133: ='Pivot Table Data'!P133 -> P707 | D133: ='Pivot Table Data'!I133 -> - | E133: ='Pivot Table Data'!J133 -> Electric Vehicle | F133: ='Pivot Table Data'!K133 -> 0 | G133: ='Pivot Table Data'!L133 -> 0 | H133: ='Pivot Table Data'!S133 -> 2 | I133: ='Pivot Table Data'!T133 -> 2 | J133: =IF('Pivot Table Data'!O133="Yes", 'Pivot Table Data'!T133, "") -> 
A134: ='Pivot Table Data'!B134 -> 0 | B134: ='Pivot Table Data'!F134 -> Health Sciences East | C134: ='Pivot Table Data'!P134 -> P707 | D134: ='Pivot Table Data'!I134 -> - | E134: ='Pivot Table Data'!J134 -> Reserved | F134: ='Pivot Table Data'!K134 -> 0 | G134: ='Pivot Table Data'!L134 -> 0 | H134: ='Pivot Table Data'!S134 -> 6 | I134: ='Pivot Table Data'!T134 -> 6 | J134: =IF('Pivot Table Data'!O134="Yes", 'Pivot Table Data'!T134, "") -> 
A135: ='Pivot Table Data'!B135 -> 0 | B135: ='Pivot Table Data'!F135 -> Health Sciences East | C135: ='Pivot Table Data'!P135 -> P707 | D135: ='Pivot Table Data'!I135 -> - | E135: ='Pivot Table Data'!J135 -> S | F135: ='Pivot Table Data'!K135 -> 0 | G135: ='Pivot Table Data'!L135 -> 0 | H135: ='Pivot Table Data'!S135 -> 194 | I135: ='Pivot Table Data'!T135 -> 194 | J135: =IF('Pivot Table Data'!O135="Yes", 'Pivot Table Data'!T135, "") -> 194
A136: ='Pivot Table Data'!B136 -> 0 | B136: ='Pivot Table Data'!F136 -> Health Sciences East | C136: ='Pivot Table Data'!P136 -> P751 | D136: ='Pivot Table Data'!I136 -> - | E136: ='Pivot Table Data'!J136 -> Accessible | F136: ='Pivot Table Data'!K136 -> 0 | G136: ='Pivot Table Data'!L136 -> 0 | H136: ='Pivot Table Data'!S136 -> 2 | I136: ='Pivot Table Data'!T136 -> 2 | J136: =IF('Pivot Table Data'!O136="Yes", 'Pivot Table Data'!T136, "") -> 
A137: ='Pivot Table Data'!B137 -> 0 | B137: ='Pivot Table Data'!F137 -> Health Sciences East | C137: ='Pivot Table Data'!P137 -> P751 | D137: ='Pivot Table Data'!I137 -> - | E137: ='Pivot Table Data'!J137 -> Accessible (Van) | F137: ='Pivot Table Data'!K137 -> 0 | G137: ='Pivot Table Data'!L137 -> 0 | H137: ='Pivot Table Data'!S137 -> 2 | I137: ='Pivot Table Data'!T137 -> 2 | J137: =IF('Pivot Table Data'!O137="Yes", 'Pivot Table Data'!T137, "") -> 
A138: ='Pivot Table Data'!B138 -> 0 | B138: ='Pivot Table Data'!F138 -> Health Sciences East | C138: ='Pivot Table Data'!P138 -> P751 | D138: ='Pivot Table Data'!I138 -> - | E138: ='Pivot Table Data'!J138 -> Electric Vehicle | F138: ='Pivot Table Data'!K138 -> 0 | G138: ='Pivot Table Data'!L138 -> 0 | H138: ='Pivot Table Data'!S138 -> 0 | I138: ='Pivot Table Data'!T138 -> 0 | J138: =IF('Pivot Table Data'!O138="Yes", 'Pivot Table Data'!T138, "") -> 
A139: ='Pivot Table Data'!B139 -> 0 | B139: ='Pivot Table Data'!F139 -> Health Sciences East | C139: ='Pivot Table Data'!P139 -> P751 | D139: ='Pivot Table Data'!I139 -> - | E139: ='Pivot Table Data'!J139 -> Reserved | F139: ='Pivot Table Data'!K139 -> Valet | G139: ='Pivot Table Data'!L139 -> 0 | H139: ='Pivot Table Data'!S139 -> 0 | I139: ='Pivot Table Data'!T139 -> 0 | J139: =IF('Pivot Table Data'!O139="Yes", 'Pivot Table Data'!T139, "") -> 
A140: ='Pivot Table Data'!B140 -> 0 | B140: ='Pivot Table Data'!F140 -> Health Sciences East | C140: ='Pivot Table Data'!P140 -> P751 | D140: ='Pivot Table Data'!I140 -> - | E140: ='Pivot Table Data'!J140 -> Reserved | F140: ='Pivot Table Data'!K140 -> 0 | G140: ='Pivot Table Data'!L140 -> 0 | H140: ='Pivot Table Data'!S140 -> 0 | I140: ='Pivot Table Data'!T140 -> 0 | J140: =IF('Pivot Table Data'!O140="Yes", 'Pivot Table Data'!T140, "") -> 
A141: ='Pivot Table Data'!B141 -> 0 | B141: ='Pivot Table Data'!F141 -> Health Sciences East | C141: ='Pivot Table Data'!P141 -> P751 | D141: ='Pivot Table Data'!I141 -> - | E141: ='Pivot Table Data'!J141 -> Visitor | F141: ='Pivot Table Data'!K141 -> 0 | G141: ='Pivot Table Data'!L141 -> 30 minutes | H141: ='Pivot Table Data'!S141 -> 3 | I141: ='Pivot Table Data'!T141 -> 3 | J141: =IF('Pivot Table Data'!O141="Yes", 'Pivot Table Data'!T141, "") -> 3
A142: ='Pivot Table Data'!B142 -> 0 | B142: ='Pivot Table Data'!F142 -> Health Sciences East | C142: ='Pivot Table Data'!P142 -> P752 | D142: ='Pivot Table Data'!I142 -> - | E142: ='Pivot Table Data'!J142 -> Accessible | F142: ='Pivot Table Data'!K142 -> 0 | G142: ='Pivot Table Data'!L142 -> 0 | H142: ='Pivot Table Data'!S142 -> 0 | I142: ='Pivot Table Data'!T142 -> 0 | J142: =IF('Pivot Table Data'!O142="Yes", 'Pivot Table Data'!T142, "") -> 
A143: ='Pivot Table Data'!B143 -> 0 | B143: ='Pivot Table Data'!F143 -> Health Sciences East | C143: ='Pivot Table Data'!P143 -> P752 | D143: ='Pivot Table Data'!I143 -> - | E143: ='Pivot Table Data'!J143 -> Accessible (Van) | F143: ='Pivot Table Data'!K143 -> 0 | G143: ='Pivot Table Data'!L143 -> 0 | H143: ='Pivot Table Data'!S143 -> 2 | I143: ='Pivot Table Data'!T143 -> 2 | J143: =IF('Pivot Table Data'!O143="Yes", 'Pivot Table Data'!T143, "") -> 
A144: ='Pivot Table Data'!B144 -> 0 | B144: ='Pivot Table Data'!F144 -> Health Sciences East | C144: ='Pivot Table Data'!P144 -> P752 | D144: ='Pivot Table Data'!I144 -> - | E144: ='Pivot Table Data'!J144 -> Allocated | F144: ='Pivot Table Data'!K144 -> Physician On Call | G144: ='Pivot Table Data'!L144 -> 0 | H144: ='Pivot Table Data'!S144 -> 4 | I144: ='Pivot Table Data'!T144 -> 4 | J144: =IF('Pivot Table Data'!O144="Yes", 'Pivot Table Data'!T144, "") -> 
A145: ='Pivot Table Data'!B145 -> 0 | B145: ='Pivot Table Data'!F145 -> Health Sciences East | C145: ='Pivot Table Data'!P145 -> P752 | D145: ='Pivot Table Data'!I145 -> - | E145: ='Pivot Table Data'!J145 -> Reserved | F145: ='Pivot Table Data'!K145 -> Valet | G145: ='Pivot Table Data'!L145 -> 0 | H145: ='Pivot Table Data'!S145 -> 23 | I145: ='Pivot Table Data'!T145 -> 23 | J145: =IF('Pivot Table Data'!O145="Yes", 'Pivot Table Data'!T145, "") -> 
A146: ='Pivot Table Data'!B146 -> 0 | B146: ='Pivot Table Data'!F146 -> Health Sciences East | C146: ='Pivot Table Data'!P146 -> P752 | D146: ='Pivot Table Data'!I146 -> - | E146: ='Pivot Table Data'!J146 -> Reserved | F146: ='Pivot Table Data'!K146 -> 0 | G146: ='Pivot Table Data'!L146 -> 0 | H146: ='Pivot Table Data'!S146 -> 1 | I146: ='Pivot Table Data'!T146 -> 1 | J146: =IF('Pivot Table Data'!O146="Yes", 'Pivot Table Data'!T146, "") -> 
A147: ='Pivot Table Data'!B147 -> 0 | B147: ='Pivot Table Data'!F147 -> Health Sciences East | C147: ='Pivot Table Data'!P147 -> P753 | D147: ='Pivot Table Data'!I147 -> - | E147: ='Pivot Table Data'!J147 -> Accessible | F147: ='Pivot Table Data'!K147 -> 0 | G147: ='Pivot Table Data'!L147 -> 0 | H147: ='Pivot Table Data'!S147 -> 0 | I147: ='Pivot Table Data'!T147 -> 0 | J147: =IF('Pivot Table Data'!O147="Yes", 'Pivot Table Data'!T147, "") -> 
A148: ='Pivot Table Data'!B148 -> 0 | B148: ='Pivot Table Data'!F148 -> Health Sciences East | C148: ='Pivot Table Data'!P148 -> P753 | D148: ='Pivot Table Data'!I148 -> - | E148: ='Pivot Table Data'!J148 -> Accessible (Van) | F148: ='Pivot Table Data'!K148 -> 0 | G148: ='Pivot Table Data'!L148 -> 0 | H148: ='Pivot Table Data'!S148 -> 2 | I148: ='Pivot Table Data'!T148 -> 2 | J148: =IF('Pivot Table Data'!O148="Yes", 'Pivot Table Data'!T148, "") -> 
A149: ='Pivot Table Data'!B149 -> 0 | B149: ='Pivot Table Data'!F149 -> Health Sciences East | C149: ='Pivot Table Data'!P149 -> P753 | D149: ='Pivot Table Data'!I149 -> - | E149: ='Pivot Table Data'!J149 -> Reserved | F149: ='Pivot Table Data'!K149 -> 0 | G149: ='Pivot Table Data'!L149 -> 0 | H149: ='Pivot Table Data'!S149 -> 32 | I149: ='Pivot Table Data'!T149 -> 32 | J149: =IF('Pivot Table Data'!O149="Yes", 'Pivot Table Data'!T149, "") -> 
A150: ='Pivot Table Data'!B150 -> 0 | B150: ='Pivot Table Data'!F150 -> Health Sciences East | C150: ='Pivot Table Data'!P150 -> P757 | D150: ='Pivot Table Data'!I150 -> - | E150: ='Pivot Table Data'!J150 -> Loading | F150: ='Pivot Table Data'!K150 -> Shiley Surgery | G150: ='Pivot Table Data'!L150 -> 20 | H150: ='Pivot Table Data'!S150 -> 0 | I150: ='Pivot Table Data'!T150 -> 0 | J150: =IF('Pivot Table Data'!O150="Yes", 'Pivot Table Data'!T150, "") -> 
A151: ='Pivot Table Data'!B151 -> 0 | B151: ='Pivot Table Data'!F151 -> Health Sciences East | C151: ='Pivot Table Data'!P151 -> P757 | D151: ='Pivot Table Data'!I151 -> - | E151: ='Pivot Table Data'!J151 -> Reserved | F151: ='Pivot Table Data'!K151 -> 0 | G151: ='Pivot Table Data'!L151 -> 0 | H151: ='Pivot Table Data'!S151 -> 0 | I151: ='Pivot Table Data'!T151 -> 0 | J151: =IF('Pivot Table Data'!O151="Yes", 'Pivot Table Data'!T151, "") -> 
A152: ='Pivot Table Data'!B152 -> 0 | B152: ='Pivot Table Data'!F152 -> Health Sciences East | C152: ='Pivot Table Data'!P152 -> P757 | D152: ='Pivot Table Data'!I152 -> - | E152: ='Pivot Table Data'!J152 -> UC Vehicle | F152: ='Pivot Table Data'!K152 -> 0 | G152: ='Pivot Table Data'!L152 -> 0 | H152: ='Pivot Table Data'!S152 -> 0 | I152: ='Pivot Table Data'!T152 -> 0 | J152: =IF('Pivot Table Data'!O152="Yes", 'Pivot Table Data'!T152, "") -> 
A153: ='Pivot Table Data'!B153 -> 0 | B153: ='Pivot Table Data'!F153 -> Health Sciences East | C153: ='Pivot Table Data'!P153 -> P758 | D153: ='Pivot Table Data'!I153 -> - | E153: ='Pivot Table Data'!J153 -> Accessible | F153: ='Pivot Table Data'!K153 -> 0 | G153: ='Pivot Table Data'!L153 -> 0 | H153: ='Pivot Table Data'!S153 -> 2 | I153: ='Pivot Table Data'!T153 -> 2 | J153: =IF('Pivot Table Data'!O153="Yes", 'Pivot Table Data'!T153, "") -> 
A154: ='Pivot Table Data'!B154 -> 0 | B154: ='Pivot Table Data'!F154 -> Health Sciences East | C154: ='Pivot Table Data'!P154 -> P758 | D154: ='Pivot Table Data'!I154 -> - | E154: ='Pivot Table Data'!J154 -> Accessible (Van) | F154: ='Pivot Table Data'!K154 -> 0 | G154: ='Pivot Table Data'!L154 -> 0 | H154: ='Pivot Table Data'!S154 -> 0 | I154: ='Pivot Table Data'!T154 -> 0 | J154: =IF('Pivot Table Data'!O154="Yes", 'Pivot Table Data'!T154, "") -> 
A155: ='Pivot Table Data'!B155 -> 0 | B155: ='Pivot Table Data'!F155 -> Health Sciences East | C155: ='Pivot Table Data'!P155 -> P758 | D155: ='Pivot Table Data'!I155 -> - | E155: ='Pivot Table Data'!J155 -> Motorcycle Section | F155: ='Pivot Table Data'!K155 -> 0 | G155: ='Pivot Table Data'!L155 -> 0 | H155: ='Pivot Table Data'!S155 -> 0 | I155: ='Pivot Table Data'!T155 -> 0 | J155: =IF('Pivot Table Data'!O155="Yes", 'Pivot Table Data'!T155, "") -> 
A156: ='Pivot Table Data'!B156 -> 0 | B156: ='Pivot Table Data'!F156 -> Health Sciences East | C156: ='Pivot Table Data'!P156 -> P758 | D156: ='Pivot Table Data'!I156 -> - | E156: ='Pivot Table Data'!J156 -> Reserved | F156: ='Pivot Table Data'!K156 -> 0 | G156: ='Pivot Table Data'!L156 -> 0 | H156: ='Pivot Table Data'!S156 -> 5 | I156: ='Pivot Table Data'!T156 -> 5 | J156: =IF('Pivot Table Data'!O156="Yes", 'Pivot Table Data'!T156, "") -> 
A157: ='Pivot Table Data'!B157 -> 0 | B157: ='Pivot Table Data'!F157 -> Health Sciences East | C157: ='Pivot Table Data'!P157 -> P759 | D157: ='Pivot Table Data'!I157 -> - | E157: ='Pivot Table Data'!J157 -> A | F157: ='Pivot Table Data'!K157 -> Physician A | G157: ='Pivot Table Data'!L157 -> 0 | H157: ='Pivot Table Data'!S157 -> 87 | I157: ='Pivot Table Data'!T157 -> 87 | J157: =IF('Pivot Table Data'!O157="Yes", 'Pivot Table Data'!T157, "") -> 87
A158: ='Pivot Table Data'!B158 -> 0 | B158: ='Pivot Table Data'!F158 -> Health Sciences East | C158: ='Pivot Table Data'!P158 -> P759 | D158: ='Pivot Table Data'!I158 -> - | E158: ='Pivot Table Data'!J158 -> Accessible | F158: ='Pivot Table Data'!K158 -> 0 | G158: ='Pivot Table Data'!L158 -> 0 | H158: ='Pivot Table Data'!S158 -> 4 | I158: ='Pivot Table Data'!T158 -> 4 | J158: =IF('Pivot Table Data'!O158="Yes", 'Pivot Table Data'!T158, "") -> 
A159: ='Pivot Table Data'!B159 -> 0 | B159: ='Pivot Table Data'!F159 -> Health Sciences East | C159: ='Pivot Table Data'!P159 -> P759 | D159: ='Pivot Table Data'!I159 -> - | E159: ='Pivot Table Data'!J159 -> Accessible (Van) | F159: ='Pivot Table Data'!K159 -> 0 | G159: ='Pivot Table Data'!L159 -> 0 | H159: ='Pivot Table Data'!S159 -> 5 | I159: ='Pivot Table Data'!T159 -> 5 | J159: =IF('Pivot Table Data'!O159="Yes", 'Pivot Table Data'!T159, "") -> 
A160: ='Pivot Table Data'!B160 -> 0 | B160: ='Pivot Table Data'!F160 -> Health Sciences East | C160: ='Pivot Table Data'!P160 -> P759 | D160: ='Pivot Table Data'!I160 -> - | E160: ='Pivot Table Data'!J160 -> Motorcycle Section | F160: ='Pivot Table Data'!K160 -> 0 | G160: ='Pivot Table Data'!L160 -> 0 | H160: ='Pivot Table Data'!S160 -> 1 | I160: ='Pivot Table Data'!T160 -> 1 | J160: =IF('Pivot Table Data'!O160="Yes", 'Pivot Table Data'!T160, "") -> 
A161: ='Pivot Table Data'!B161 -> 0 | B161: ='Pivot Table Data'!F161 -> Health Sciences East | C161: ='Pivot Table Data'!P161 -> P759 | D161: ='Pivot Table Data'!I161 -> - | E161: ='Pivot Table Data'!J161 -> Reserved | F161: ='Pivot Table Data'!K161 -> Alzheimer's Disease Research Center Patient | G161: ='Pivot Table Data'!L161 -> 0 | H161: ='Pivot Table Data'!S161 -> 10 | I161: ='Pivot Table Data'!T161 -> 10 | J161: =IF('Pivot Table Data'!O161="Yes", 'Pivot Table Data'!T161, "") -> 
A162: ='Pivot Table Data'!B162 -> 0 | B162: ='Pivot Table Data'!F162 -> Health Sciences East | C162: ='Pivot Table Data'!P162 -> P759 | D162: ='Pivot Table Data'!I162 -> - | E162: ='Pivot Table Data'!J162 -> Reserved | F162: ='Pivot Table Data'!K162 -> Brain Health and Memory Disorders | G162: ='Pivot Table Data'!L162 -> 0 | H162: ='Pivot Table Data'!S162 -> 5 | I162: ='Pivot Table Data'!T162 -> 5 | J162: =IF('Pivot Table Data'!O162="Yes", 'Pivot Table Data'!T162, "") -> 
A163: ='Pivot Table Data'!B163 -> 0 | B163: ='Pivot Table Data'!F163 -> Health Sciences East | C163: ='Pivot Table Data'!P163 -> P759 | D163: ='Pivot Table Data'!I163 -> - | E163: ='Pivot Table Data'!J163 -> Reserved | F163: ='Pivot Table Data'!K163 -> Huntington's Disease Clinical Research Center | G163: ='Pivot Table Data'!L163 -> 0 | H163: ='Pivot Table Data'!S163 -> 2 | I163: ='Pivot Table Data'!T163 -> 2 | J163: =IF('Pivot Table Data'!O163="Yes", 'Pivot Table Data'!T163, "") -> 
A164: ='Pivot Table Data'!B164 -> 0 | B164: ='Pivot Table Data'!F164 -> Health Sciences East | C164: ='Pivot Table Data'!P164 -> P761 | D164: ='Pivot Table Data'!I164 -> - | E164: ='Pivot Table Data'!J164 -> UC Vehicle | F164: ='Pivot Table Data'!K164 -> 0 | G164: ='Pivot Table Data'!L164 -> 0 | H164: ='Pivot Table Data'!S164 -> 3 | I164: ='Pivot Table Data'!T164 -> 3 | J164: =IF('Pivot Table Data'!O164="Yes", 'Pivot Table Data'!T164, "") -> 
A165: ='Pivot Table Data'!B165 -> 0 | B165: ='Pivot Table Data'!F165 -> Health Sciences East | C165: ='Pivot Table Data'!P165 -> P762 | D165: ='Pivot Table Data'!I165 -> - | E165: ='Pivot Table Data'!J165 -> Loading | F165: ='Pivot Table Data'!K165 -> 0 | G165: ='Pivot Table Data'!L165 -> 0 | H165: ='Pivot Table Data'!S165 -> 1 | I165: ='Pivot Table Data'!T165 -> 1 | J165: =IF('Pivot Table Data'!O165="Yes", 'Pivot Table Data'!T165, "") -> 
A166: ='Pivot Table Data'!B166 -> 0 | B166: ='Pivot Table Data'!F166 -> Health Sciences East | C166: ='Pivot Table Data'!P166 -> P762 | D166: ='Pivot Table Data'!I166 -> - | E166: ='Pivot Table Data'!J166 -> Service Yard | F166: ='Pivot Table Data'!K166 -> 0 | G166: ='Pivot Table Data'!L166 -> 0 | H166: ='Pivot Table Data'!S166 -> 3 | I166: ='Pivot Table Data'!T166 -> 3 | J166: =IF('Pivot Table Data'!O166="Yes", 'Pivot Table Data'!T166, "") -> 
A167: ='Pivot Table Data'!B167 -> 0 | B167: ='Pivot Table Data'!F167 -> Science Research Park | C167: ='Pivot Table Data'!P167 -> P782 | D167: ='Pivot Table Data'!I167 -> - | E167: ='Pivot Table Data'!J167 -> SS ($3.25) | F167: ='Pivot Table Data'!K167 -> 0 | G167: ='Pivot Table Data'!L167 -> 0 | H167: ='Pivot Table Data'!S167 -> 216 | I167: ='Pivot Table Data'!T167 -> 216 | J167: =IF('Pivot Table Data'!O167="Yes", 'Pivot Table Data'!T167, "") -> 216
A168: ='Pivot Table Data'!B168 -> 0 | B168: ='Pivot Table Data'!F168 -> Health Sciences East | C168: ='Pivot Table Data'!P168 -> P784 | D168: ='Pivot Table Data'!I168 -> - | E168: ='Pivot Table Data'!J168 -> Accessible | F168: ='Pivot Table Data'!K168 -> 0 | G168: ='Pivot Table Data'!L168 -> 0 | H168: ='Pivot Table Data'!S168 -> 6 | I168: ='Pivot Table Data'!T168 -> 6 | J168: =IF('Pivot Table Data'!O168="Yes", 'Pivot Table Data'!T168, "") -> 
A169: ='Pivot Table Data'!B169 -> 0 | B169: ='Pivot Table Data'!F169 -> Health Sciences East | C169: ='Pivot Table Data'!P169 -> P784 | D169: ='Pivot Table Data'!I169 -> - | E169: ='Pivot Table Data'!J169 -> Accessible (Van) | F169: ='Pivot Table Data'!K169 -> 0 | G169: ='Pivot Table Data'!L169 -> 0 | H169: ='Pivot Table Data'!S169 -> 12 | I169: ='Pivot Table Data'!T169 -> 12 | J169: =IF('Pivot Table Data'!O169="Yes", 'Pivot Table Data'!T169, "") -> 
A170: ='Pivot Table Data'!B170 -> 0 | B170: ='Pivot Table Data'!F170 -> Health Sciences East | C170: ='Pivot Table Data'!P170 -> P784 | D170: ='Pivot Table Data'!I170 -> - | E170: ='Pivot Table Data'!J170 -> B | F170: ='Pivot Table Data'!K170 -> 0 | G170: ='Pivot Table Data'!L170 -> 0 | H170: ='Pivot Table Data'!S170 -> 81 | I170: ='Pivot Table Data'!T170 -> 81 | J170: =IF('Pivot Table Data'!O170="Yes", 'Pivot Table Data'!T170, "") -> 81
A171: ='Pivot Table Data'!B171 -> 0 | B171: ='Pivot Table Data'!F171 -> Health Sciences East | C171: ='Pivot Table Data'!P171 -> P784 | D171: ='Pivot Table Data'!I171 -> - | E171: ='Pivot Table Data'!J171 -> Reserved | F171: ='Pivot Table Data'!K171 -> Valet | G171: ='Pivot Table Data'!L171 -> 0 | H171: ='Pivot Table Data'!S171 -> 9 | I171: ='Pivot Table Data'!T171 -> 9 | J171: =IF('Pivot Table Data'!O171="Yes", 'Pivot Table Data'!T171, "") -> 
A172: ='Pivot Table Data'!B172 -> 0 | B172: ='Pivot Table Data'!F172 -> Health Sciences East | C172: ='Pivot Table Data'!P172 -> P785 | D172: ='Pivot Table Data'!I172 -> - | E172: ='Pivot Table Data'!J172 -> Accessible | F172: ='Pivot Table Data'!K172 -> 0 | G172: ='Pivot Table Data'!L172 -> 0 | H172: ='Pivot Table Data'!S172 -> 0 | I172: ='Pivot Table Data'!T172 -> 0 | J172: =IF('Pivot Table Data'!O172="Yes", 'Pivot Table Data'!T172, "") -> 
A173: ='Pivot Table Data'!B173 -> 0 | B173: ='Pivot Table Data'!F173 -> Health Sciences East | C173: ='Pivot Table Data'!P173 -> P785 | D173: ='Pivot Table Data'!I173 -> - | E173: ='Pivot Table Data'!J173 -> Accessible (Van) | F173: ='Pivot Table Data'!K173 -> 0 | G173: ='Pivot Table Data'!L173 -> 0 | H173: ='Pivot Table Data'!S173 -> 8 | I173: ='Pivot Table Data'!T173 -> 8 | J173: =IF('Pivot Table Data'!O173="Yes", 'Pivot Table Data'!T173, "") -> 
A174: ='Pivot Table Data'!B174 -> 0 | B174: ='Pivot Table Data'!F174 -> Health Sciences East | C174: ='Pivot Table Data'!P174 -> P785 | D174: ='Pivot Table Data'!I174 -> - | E174: ='Pivot Table Data'!J174 -> B | F174: ='Pivot Table Data'!K174 -> 0 | G174: ='Pivot Table Data'!L174 -> 0 | H174: ='Pivot Table Data'!S174 -> 384 | I174: ='Pivot Table Data'!T174 -> 384 | J174: =IF('Pivot Table Data'!O174="Yes", 'Pivot Table Data'!T174, "") -> 384
A175: ='Pivot Table Data'!B175 -> 0 | B175: ='Pivot Table Data'!F175 -> Medical Center Hillcrest | C175: ='Pivot Table Data'!P175 -> Arbor | D175: ='Pivot Table Data'!I175 -> L1 | E175: ='Pivot Table Data'!J175 -> Visitor | F175: ='Pivot Table Data'!K175 -> 0 | G175: ='Pivot Table Data'!L175 -> 0 | H175: ='Pivot Table Data'!S175 -> 41 | I175: ='Pivot Table Data'!T175 -> 263 | J175: =IF('Pivot Table Data'!O175="Yes", 'Pivot Table Data'!T175, "") -> 
A176: ='Pivot Table Data'!B176 -> 0 | B176: ='Pivot Table Data'!F176 -> Medical Center Hillcrest | C176: ='Pivot Table Data'!P176 -> Arbor | D176: ='Pivot Table Data'!I176 -> L2 | E176: ='Pivot Table Data'!J176 -> Visitor | F176: ='Pivot Table Data'!K176 -> 0 | G176: ='Pivot Table Data'!L176 -> 0 | H176: ='Pivot Table Data'!S176 -> 41 | I176: ='Pivot Table Data'!T176 ->  | J176: =IF('Pivot Table Data'!O176="Yes", 'Pivot Table Data'!T176, "") -> 
A177: ='Pivot Table Data'!B177 -> 0 | B177: ='Pivot Table Data'!F177 -> Medical Center Hillcrest | C177: ='Pivot Table Data'!P177 -> Arbor | D177: ='Pivot Table Data'!I177 -> L3 | E177: ='Pivot Table Data'!J177 -> Visitor | F177: ='Pivot Table Data'!K177 -> 0 | G177: ='Pivot Table Data'!L177 -> 0 | H177: ='Pivot Table Data'!S177 -> 39 | I177: ='Pivot Table Data'!T177 ->  | J177: =IF('Pivot Table Data'!O177="Yes", 'Pivot Table Data'!T177, "") -> 
A178: ='Pivot Table Data'!B178 -> 0 | B178: ='Pivot Table Data'!F178 -> Medical Center Hillcrest | C178: ='Pivot Table Data'!P178 -> Arbor | D178: ='Pivot Table Data'!I178 -> L4 | E178: ='Pivot Table Data'!J178 -> Visitor | F178: ='Pivot Table Data'!K178 -> 0 | G178: ='Pivot Table Data'!L178 -> 0 | H178: ='Pivot Table Data'!S178 -> 39 | I178: ='Pivot Table Data'!T178 ->  | J178: =IF('Pivot Table Data'!O178="Yes", 'Pivot Table Data'!T178, "") -> 
A179: ='Pivot Table Data'!B179 -> 0 | B179: ='Pivot Table Data'!F179 -> Medical Center Hillcrest | C179: ='Pivot Table Data'!P179 -> Arbor | D179: ='Pivot Table Data'!I179 -> L5 | E179: ='Pivot Table Data'!J179 -> Visitor | F179: ='Pivot Table Data'!K179 -> 0 | G179: ='Pivot Table Data'!L179 -> 0 | H179: ='Pivot Table Data'!S179 -> 39 | I179: ='Pivot Table Data'!T179 ->  | J179: =IF('Pivot Table Data'!O179="Yes", 'Pivot Table Data'!T179, "") -> 
A180: ='Pivot Table Data'!B180 -> 0 | B180: ='Pivot Table Data'!F180 -> Medical Center Hillcrest | C180: ='Pivot Table Data'!P180 -> Arbor | D180: ='Pivot Table Data'!I180 -> L6 | E180: ='Pivot Table Data'!J180 -> Visitor | F180: ='Pivot Table Data'!K180 -> 0 | G180: ='Pivot Table Data'!L180 -> 0 | H180: ='Pivot Table Data'!S180 -> 39 | I180: ='Pivot Table Data'!T180 ->  | J180: =IF('Pivot Table Data'!O180="Yes", 'Pivot Table Data'!T180, "") -> 
A181: ='Pivot Table Data'!B181 -> 0 | B181: ='Pivot Table Data'!F181 -> Medical Center Hillcrest | C181: ='Pivot Table Data'!P181 -> Arbor | D181: ='Pivot Table Data'!I181 -> L7 | E181: ='Pivot Table Data'!J181 -> Motorcycle Section | F181: ='Pivot Table Data'!K181 -> 0 | G181: ='Pivot Table Data'!L181 -> 0 | H181: ='Pivot Table Data'!S181 -> 10 | I181: ='Pivot Table Data'!T181 -> 10 | J181: =IF('Pivot Table Data'!O181="Yes", 'Pivot Table Data'!T181, "") -> 
A182: ='Pivot Table Data'!B182 -> 0 | B182: ='Pivot Table Data'!F182 -> Medical Center Hillcrest | C182: ='Pivot Table Data'!P182 -> Arbor | D182: ='Pivot Table Data'!I182 -> L7 | E182: ='Pivot Table Data'!J182 -> Visitor | F182: ='Pivot Table Data'!K182 -> Patient Visitor Reserved | G182: ='Pivot Table Data'!L182 -> 0 | H182: ='Pivot Table Data'!S182 -> 4 | I182: ='Pivot Table Data'!T182 -> 4 | J182: =IF('Pivot Table Data'!O182="Yes", 'Pivot Table Data'!T182, "") -> 
A183: ='Pivot Table Data'!B183 -> 0 | B183: ='Pivot Table Data'!F183 -> Medical Center Hillcrest | C183: ='Pivot Table Data'!P183 -> Arbor | D183: ='Pivot Table Data'!I183 -> L7 | E183: ='Pivot Table Data'!J183 -> Visitor | F183: ='Pivot Table Data'!K183 -> 0 | G183: ='Pivot Table Data'!L183 -> 0 | H183: ='Pivot Table Data'!S183 -> 25 | I183: ='Pivot Table Data'!T183 ->  | J183: =IF('Pivot Table Data'!O183="Yes", 'Pivot Table Data'!T183, "") -> 
A184: ='Pivot Table Data'!B184 -> 0 | B184: ='Pivot Table Data'!F184 -> Medical Center Hillcrest | C184: ='Pivot Table Data'!P184 -> Arbor | D184: ='Pivot Table Data'!I184 -> L8 | E184: ='Pivot Table Data'!J184 -> Accessible | F184: ='Pivot Table Data'!K184 -> 0 | G184: ='Pivot Table Data'!L184 -> 0 | H184: ='Pivot Table Data'!S184 -> 10 | I184: ='Pivot Table Data'!T184 -> 15 | J184: =IF('Pivot Table Data'!O184="Yes", 'Pivot Table Data'!T184, "") -> 
A185: ='Pivot Table Data'!B185 -> 0 | B185: ='Pivot Table Data'!F185 -> Medical Center Hillcrest | C185: ='Pivot Table Data'!P185 -> Arbor | D185: ='Pivot Table Data'!I185 -> L8 | E185: ='Pivot Table Data'!J185 -> Accessible (Van) | F185: ='Pivot Table Data'!K185 -> 0 | G185: ='Pivot Table Data'!L185 -> 0 | H185: ='Pivot Table Data'!S185 -> 0 | I185: ='Pivot Table Data'!T185 -> 0 | J185: =IF('Pivot Table Data'!O185="Yes", 'Pivot Table Data'!T185, "") -> 
A186: ='Pivot Table Data'!B186 -> 0 | B186: ='Pivot Table Data'!F186 -> Medical Center Hillcrest | C186: ='Pivot Table Data'!P186 -> Arbor | D186: ='Pivot Table Data'!I186 -> L8 | E186: ='Pivot Table Data'!J186 -> Reserved | F186: ='Pivot Table Data'!K186 -> Transportation Office | G186: ='Pivot Table Data'!L186 -> 0 | H186: ='Pivot Table Data'!S186 -> 1 | I186: ='Pivot Table Data'!T186 -> 1 | J186: =IF('Pivot Table Data'!O186="Yes", 'Pivot Table Data'!T186, "") -> 
A187: ='Pivot Table Data'!B187 -> 0 | B187: ='Pivot Table Data'!F187 -> Medical Center Hillcrest | C187: ='Pivot Table Data'!P187 -> Arbor | D187: ='Pivot Table Data'!I187 -> L8 | E187: ='Pivot Table Data'!J187 -> UC Vehicle | F187: ='Pivot Table Data'!K187 -> 0 | G187: ='Pivot Table Data'!L187 -> 0 | H187: ='Pivot Table Data'!S187 -> 2 | I187: ='Pivot Table Data'!T187 -> 2 | J187: =IF('Pivot Table Data'!O187="Yes", 'Pivot Table Data'!T187, "") -> 
A188: ='Pivot Table Data'!B188 -> 0 | B188: ='Pivot Table Data'!F188 -> Medical Center Hillcrest | C188: ='Pivot Table Data'!P188 -> Arbor | D188: ='Pivot Table Data'!I188 -> L9 | E188: ='Pivot Table Data'!J188 -> Electric Vehicle | F188: ='Pivot Table Data'!K188 -> 0 | G188: ='Pivot Table Data'!L188 -> 4 Hours | H188: ='Pivot Table Data'!S188 -> 12 | I188: ='Pivot Table Data'!T188 -> 12 | J188: =IF('Pivot Table Data'!O188="Yes", 'Pivot Table Data'!T188, "") -> 
A189: ='Pivot Table Data'!B189 -> 0 | B189: ='Pivot Table Data'!F189 -> Medical Center Hillcrest | C189: ='Pivot Table Data'!P189 -> Arbor | D189: ='Pivot Table Data'!I189 -> L9 | E189: ='Pivot Table Data'!J189 -> Motorcycle Section | F189: ='Pivot Table Data'!K189 -> 0 | G189: ='Pivot Table Data'!L189 -> 0 | H189: ='Pivot Table Data'!S189 -> 0 | I189: ='Pivot Table Data'!T189 ->  | J189: =IF('Pivot Table Data'!O189="Yes", 'Pivot Table Data'!T189, "") -> 
A190: ='Pivot Table Data'!B190 -> 0 | B190: ='Pivot Table Data'!F190 -> Medical Center Hillcrest | C190: ='Pivot Table Data'!P190 -> Arbor | D190: ='Pivot Table Data'!I190 -> L9 | E190: ='Pivot Table Data'!J190 -> Reserved | F190: ='Pivot Table Data'!K190 -> 0 | G190: ='Pivot Table Data'!L190 -> 0 | H190: ='Pivot Table Data'!S190 -> 19 | I190: ='Pivot Table Data'!T190 -> 19 | J190: =IF('Pivot Table Data'!O190="Yes", 'Pivot Table Data'!T190, "") -> 
A191: ='Pivot Table Data'!B191 -> 0 | B191: ='Pivot Table Data'!F191 -> Medical Center Hillcrest | C191: ='Pivot Table Data'!P191 -> Arbor | D191: ='Pivot Table Data'!I191 -> L10 | E191: ='Pivot Table Data'!J191 -> A | F191: ='Pivot Table Data'!K191 -> 0 | G191: ='Pivot Table Data'!L191 -> 0 | H191: ='Pivot Table Data'!S191 -> 44 | I191: ='Pivot Table Data'!T191 -> 226 | J191: =IF('Pivot Table Data'!O191="Yes", 'Pivot Table Data'!T191, "") -> 
A192: ='Pivot Table Data'!B192 -> 0 | B192: ='Pivot Table Data'!F192 -> Medical Center Hillcrest | C192: ='Pivot Table Data'!P192 -> Arbor | D192: ='Pivot Table Data'!I192 -> L10 | E192: ='Pivot Table Data'!J192 -> Accessible | F192: ='Pivot Table Data'!K192 -> 0 | G192: ='Pivot Table Data'!L192 -> 0 | H192: ='Pivot Table Data'!S192 -> 3 | I192: ='Pivot Table Data'!T192 ->  | J192: =IF('Pivot Table Data'!O192="Yes", 'Pivot Table Data'!T192, "") -> 
A193: ='Pivot Table Data'!B193 -> 0 | B193: ='Pivot Table Data'!F193 -> Medical Center Hillcrest | C193: ='Pivot Table Data'!P193 -> Arbor | D193: ='Pivot Table Data'!I193 -> L10 | E193: ='Pivot Table Data'!J193 -> Accessible (Van) | F193: ='Pivot Table Data'!K193 -> 0 | G193: ='Pivot Table Data'!L193 -> 0 | H193: ='Pivot Table Data'!S193 -> 0 | I193: ='Pivot Table Data'!T193 ->  | J193: =IF('Pivot Table Data'!O193="Yes", 'Pivot Table Data'!T193, "") -> 
A194: ='Pivot Table Data'!B194 -> 0 | B194: ='Pivot Table Data'!F194 -> Medical Center Hillcrest | C194: ='Pivot Table Data'!P194 -> Arbor | D194: ='Pivot Table Data'!I194 -> L11 | E194: ='Pivot Table Data'!J194 -> A | F194: ='Pivot Table Data'!K194 -> 0 | G194: ='Pivot Table Data'!L194 -> 0 | H194: ='Pivot Table Data'!S194 -> 47 | I194: ='Pivot Table Data'!T194 ->  | J194: =IF('Pivot Table Data'!O194="Yes", 'Pivot Table Data'!T194, "") -> 
A195: ='Pivot Table Data'!B195 -> 0 | B195: ='Pivot Table Data'!F195 -> Medical Center Hillcrest | C195: ='Pivot Table Data'!P195 -> Arbor | D195: ='Pivot Table Data'!I195 -> L12 | E195: ='Pivot Table Data'!J195 -> A | F195: ='Pivot Table Data'!K195 -> 0 | G195: ='Pivot Table Data'!L195 -> 0 | H195: ='Pivot Table Data'!S195 -> 45 | I195: ='Pivot Table Data'!T195 ->  | J195: =IF('Pivot Table Data'!O195="Yes", 'Pivot Table Data'!T195, "") -> 
A196: ='Pivot Table Data'!B196 -> 0 | B196: ='Pivot Table Data'!F196 -> Medical Center Hillcrest | C196: ='Pivot Table Data'!P196 -> Arbor | D196: ='Pivot Table Data'!I196 -> L12 | E196: ='Pivot Table Data'!J196 -> Accessible | F196: ='Pivot Table Data'!K196 -> 0 | G196: ='Pivot Table Data'!L196 -> 0 | H196: ='Pivot Table Data'!S196 -> 1 | I196: ='Pivot Table Data'!T196 ->  | J196: =IF('Pivot Table Data'!O196="Yes", 'Pivot Table Data'!T196, "") -> 
